Workbook

Sheet Main Menu
B1: Enter Your Start Date Below (dd/mm)
B2: 2010-08-16
B4: Main Start Up Data Sheet
B6: Fit Test Page
B9: Master Schedule
B12: Worksheets
B14: Charts
A17: Copyright, 2007 Bill Knighton. All Rights Reserved.

Sheet Master Schedule
A1: Main Menu | C1: Main SetUp | D1: Fit Test Page | E1: Workout Journals Menu | H1: Charts Menu | J1: Workout Summaries Page | M1: Cardio Page
A2: Master Schedule | E2: For Classic, Lean, Doubles Programs | J2: ='Main Sheet'!C4 -> 0
A3: Day 01 | B3: ='Main Sheet'!C19 -> 2010-08-16 | D3: Enter Your Starting Date Here
A4: Use It or Lose It | D4: From | H4: To
D5: ='Main Sheet'!C19 -> 2010-08-16 | E5: =D5 -> 2010-08-16 | H5: =D5+27 -> 2010-09-12 | I5: =H5 -> 2010-09-12
D6: =H5+1 -> 2010-09-13 | E6: =D6 -> 2010-09-13 | H6: =H5+28 -> 2010-10-10 | I6: =H6 -> 2010-10-10
D7: =H6+1 -> 2010-10-11 | E7: =D7 -> 2010-10-11 | H7: =D5+90 -> 2010-11-14 | I7: =H7 -> 2010-11-14
A8: Day | B8: Date | C8: Day of Week | D8: Classic Program | F8: Lean Program | H8: Doubles Program (AM) | J8: Doubles Program (PM) | L8: Week | N8: Phase
A9: 1 | B9: ='Main Menu'!$B$2 -> 2010-08-16 | C9: =B9 -> 2010-08-16 | D9: Chest & Back + Ab Ripper X | F9: Core Synergistics | H9: Chest & Back + Ab Ripper X | L9: 1 | M9: Main | N9: Phase 1
A10: 2 | B10: =B9+1 -> 2010-08-17 | C10: =B10 -> 2010-08-17 | D10: Plyometrics | F10: Cardio X | H10: Plyometrics
A11: 3 | B11: =B10+1 -> 2010-08-18 | C11: 2010-08-18 | D11: Shoulders & Arms + Ab Ripper X | F11: Shoulders & Arms + Ab Ripper X | H11: Shoulders & Arms + Ab Ripper X
A12: 4 | B12: =B11+1 -> 2010-08-19 | C12: 2010-08-19 | D12: Yoga X | F12: Yoga X | H12: Yoga X
A13: 5 | B13: 2010-08-20 | C13: 2010-08-20 | D13: Legs & Back + Ab Ripper X | F13: Legs & Back + Ab Ripper X | H13: Legs & Back + Ab Ripper X
A14: 6 | B14: =B13+1 -> 2010-08-21 | C14: 2010-08-21 | D14: Kenpo X | F14: Kenpo X | H14: Kenpo X
A15: 7 | B15: 2010-08-22 | C15: 2010-08-22 | D15: Rest or X Stretch | F15: Rest or X Stretch | H15: Rest or X Stretch
A16: 8 | B16: 2010-08-23 | C16: 2010-08-23 | D16: Chest & Back + Ab Ripper X | F16: Core Synergistics | H16: Chest & Back + Ab Ripper X | L16: 2
A17: 9 | B17: =B16+1 -> 2010-08-24 | C17: 2010-08-24 | D17: Plyometrics | F17: Cardio X | H17: Plyometrics
A18: 10 | B18: 2010-08-25 | C18: 2010-08-25 | D18: Shoulders & Arms + Ab Ripper X | F18: Shoulders & Arms + Ab Ripper X | H18: Shoulders & Arms + Ab Ripper X
A19: 11 | B19: 2010-08-26 | C19: 2010-08-26 | D19: Yoga X | F19: Yoga X | H19: Yoga X
A20: 12 | B20: 2010-08-27 | C20: 2010-08-27 | D20: Legs & Back + Ab Ripper X | F20: Legs & Back + Ab Ripper X | H20: Legs & Back + Ab Ripper X
A21: 13 | B21: 2010-08-28 | C21: 2010-08-28 | D21: Kenpo X | F21: Kenpo X | H21: Kenpo X
A22: 14 | B22: 2010-08-29 | C22: 2010-08-29 | D22: Rest or X Stretch | F22: Rest or X Stretch | H22: Rest or X Stretch
A23: 15 | B23: 2010-08-30 | C23: 2010-08-30 | D23: Chest & Back + Ab Ripper X | F23: Core Synergistics | H23: Chest & Back + Ab Ripper X | L23: 3
A24: 16 | B24: 2010-08-31 | C24: 2010-08-31 | D24: Plyometrics | F24: Cardio X | H24: Plyometrics
A25: 17 | B25: 2010-09-01 | C25: 2010-09-01 | D25: Shoulders & Arms + Ab Ripper X | F25: Shoulders & Arms + Ab Ripper X | H25: Shoulders & Arms + Ab Ripper X
A26: 18 | B26: 2010-09-02 | C26: 2010-09-02 | D26: Yoga X | F26: Yoga X | H26: Yoga X
A27: 19 | B27: 2010-09-03 | C27: 2010-09-03 | D27: Legs & Back + Ab Ripper X | F27: Legs & Back + Ab Ripper X | H27: Legs & Back + Ab Ripper X
A28: 20 | B28: 2010-09-04 | C28: 2010-09-04 | D28: Kenpo X | F28: Kenpo X | H28: Kenpo X
A29: 21 | B29: 2010-09-05 | C29: 2010-09-05 | D29: Rest or X Stretch | F29: Rest or X Stretch | H29: Rest or X Stretch
A30: 22 | B30: 2010-09-06 | C30: 2010-09-06 | D30: Yoga X | F30: Yoga X | H30: Yoga X | L30: 4 | M30: Recovery
A31: 23 | B31: 2010-09-07 | C31: 2010-09-07 | D31: Core Synergistics | F31: Core Synergistics | H31: Core Synergistics
A32: 24 | B32: 2010-09-08 | C32: 2010-09-08 | D32: Kenpo X | F32: Kenpo X | H32: Kenpo X
A33: 25 | B33: 2010-09-09 | C33: 2010-09-09 | D33: X Stretch | F33: X Stretch | H33: X Stretch
A34: 26 | B34: 2010-09-10 | C34: 2010-09-10 | D34: Core Synergistics | F34: Cardio X | H34: Core Synergistics
A35: 27 | B35: 2010-09-11 | C35: 2010-09-11 | D35: Yoga X | F35: Yoga X | H35: Yoga X
A36: 28 | B36: 2010-09-12 | C36: 2010-09-12 | D36: Rest or X Stretch | F36: Rest or X Stretch | H36: Rest or X Stretch
A37: 29 | B37: 2010-09-13 | C37: 2010-09-13 | D37: Chest, Sho & Triceps + Ab Ripper X | F37: Core Synergistics | H37: (AM) Cardio X | J37: Chest, Sho & Triceps + Ab Ripper X | L37: 5 | M37: Main | N37: Phase 2
A38: 30 | B38: 2010-09-14 | C38: 2010-09-14 | D38: Plyometrics | F38: Cardio X | H38: Plyometrics
A39: 31 | B39: 2010-09-15 | C39: 2010-09-15 | D39: Back & Biceps + Ab Ripper X | F39: Chest, Sho & Triceps + Ab Ripper X | H39: (AM) Cardio X | J39: Back & Biceps + Ab Ripper X
A40: 32 | B40: 2010-09-16 | C40: 2010-09-16 | D40: Yoga X | F40: Yoga X | H40: Yoga X
A41: 33 | B41: 2010-09-17 | C41: 2010-09-17 | D41: Legs & Back + Ab Ripper X | F41: Legs & Back + Ab Ripper X | H41: (AM) Cardio X | J41: Legs & Back + Ab Ripper X
A42: 34 | B42: 2010-09-18 | C42: 2010-09-18 | D42: Kenpo X | F42: Kenpo X | H42: Kenpo X
A43: 35 | B43: 2010-09-19 | C43: 2010-09-19 | D43: Rest or X Stretch | F43: Rest or X Stretch | H43: Rest or X Stretch
A44: 36 | B44: 2010-09-20 | C44: 2010-09-20 | D44: Chest, Sho & Triceps + Ab Ripper X | F44: Core Synergistics | H44: (AM) Cardio X | J44: Chest, Sho & Triceps + Ab Ripper X | L44: 6
A45: 37 | B45: 2010-09-21 | C45: 2010-09-21 | D45: Plyometrics | F45: Cardio X | H45: Plyometrics
A46: 38 | B46: 2010-09-22 | C46: 2010-09-22 | D46: Back & Biceps + Ab Ripper X | F46: Chest, Sho & Triceps + Ab Ripper X | H46: (AM) Cardio X | J46: Back & Biceps + Ab Ripper X
A47: 39 | B47: 2010-09-23 | C47: 2010-09-23 | D47: Yoga X | F47: Yoga X | H47: Yoga X
A48: 40 | B48: 2010-09-24 | C48: 2010-09-24 | D48: Legs & Back + Ab Ripper X | F48: Legs & Back + Ab Ripper X | H48: (AM) Cardio X | J48: Legs & Back + Ab Ripper X
A49: 41 | B49: 2010-09-25 | C49: 2010-09-25 | D49: Kenpo X | F49: Kenpo X | H49: Kenpo X
A50: 42 | B50: 2010-09-26 | C50: 2010-09-26 | D50: Rest or X Stretch | F50: Rest or X Stretch | H50: Rest or X Stretch
A51: 43 | B51: 2010-09-27 | C51: 2010-09-27 | D51: Chest, Sho & Triceps + Ab Ripper X | F51: Core Synergistics | H51: (AM) Cardio X | J51: Chest, Sho & Triceps + Ab Ripper X | L51: 7
A52: 44 | B52: 2010-09-28 | C52: 2010-09-28 | D52: Plyometrics | F52: Cardio X | H52: Plyometrics
A53: 45 | B53: 2010-09-29 | C53: 2010-09-29 | D53: Back & Biceps + Ab Ripper X | F53: Chest, Sho & Triceps + Ab Ripper X | H53: (AM) Cardio X | J53: Back & Biceps + Ab Ripper X
A54: 46 | B54: 2010-09-30 | C54: 2010-09-30 | D54: Yoga X | F54: Yoga X | H54: Yoga X
A55: 47 | B55: 2010-10-01 | C55: 2010-10-01 | D55: Legs & Back + Ab Ripper X | F55: Legs & Back + Ab Ripper X | H55: (AM) Cardio X | J55: Legs & Back + Ab Ripper X
A56: 48 | B56: 2010-10-02 | C56: 2010-10-02 | D56: Kenpo X | F56: Kenpo X | H56: Kenpo X
A57: 49 | B57: 2010-10-03 | C57: 2010-10-03 | D57: Rest or X Stretch | F57: Rest or X Stretch | H57: Rest or X Stretch
A58: 50 | B58: 2010-10-04 | C58: 2010-10-04 | D58: Yoga X | F58: Yoga X | H58: Yoga X | L58: 8 | M58: Recovery
A59: 51 | B59: 2010-10-05 | C59: 2010-10-05 | D59: Core Synergistics | F59: Core Synergistics | H59: Core Synergistics
A60: 52 | B60: 2010-10-06 | C60: 2010-10-06 | D60: Kenpo X | F60: Kenpo X | H60: Kenpo X
A61: 53 | B61: 2010-10-07 | C61: 2010-10-07 | D61: X Stretch | F61: X Stretch | H61: X Stretch
A62: 54 | B62: 2010-10-08 | C62: 2010-10-08 | D62: Core Synergistics | F62: Cardio X | H62: Core Synergistics
A63: 55 | B63: 2010-10-09 | C63: 2010-10-09 | D63: Yoga X | F63: Yoga X | H63: Yoga X
A64: 56 | B64: 2010-10-10 | C64: 2010-10-10 | D64: Rest or X Stretch | F64: Rest or X Stretch | H64: Rest or X Stretch
A65: 57 | B65: 2010-10-11 | C65: 2010-10-11 | D65: Chest & Back + Ab Ripper X | F65: Chest & Back + Ab Ripper X | H65: (AM) Cardio X | J65: Chest & Back + Ab Ripper X | L65: 9 | M65: Main | N65: Phase 3
A66: 58 | B66: 2010-10-12 | C66: 2010-10-12 | D66: Plyometrics | F66: Cardio X | H66: (AM) Cardio X | J66: Plyometrics
A67: 59 | B67: 2010-10-13 | C67: 2010-10-13 | D67: Shoulders & Arms + Ab Ripper X | F67: Shoulders & Arms + Ab Ripper X | H67: Shoulders & Arms + Ab Ripper X
A68: 60 | B68: 2010-10-14 | C68: 2010-10-14 | D68: Yoga X | F68: Yoga X | H68: (AM) Cardio X | J68: Yoga X
A69: 61 | B69: 2010-10-15 | C69: 2010-10-15 | D69: Legs & Back + Ab Ripper X | F69: Core Synergistics | H69: (AM) Cardio X | J69: Legs & Back + Ab Ripper X
A70: 62 | B70: 2010-10-16 | C70: 2010-10-16 | D70: Kenpo X | F70: Kenpo X | H70: Kenpo X
A71: 63 | B71: 2010-10-17 | C71: 2010-10-17 | D71: Rest or X Stretch | F71: Rest or X Stretch | H71: Rest or X Stretch
A72: 64 | B72: 2010-10-18 | C72: 2010-10-18 | D72: Chest, Sho & Triceps + Ab Ripper X | F72: Chest, Sho & Triceps + Ab Ripper X | H72: (AM) Cardio X | J72: Chest, Sho & Triceps + Ab Ripper X | L72: 10
A73: 65 | B73: 2010-10-19 | C73: 2010-10-19 | D73: Plyometrics | F73: Cardio X | H73: (AM) Cardio X | J73: Plyometrics
A74: 66 | B74: 2010-10-20 | C74: =B74 -> 2010-10-20 | D74: Back & Biceps + Ab Ripper X | F74: Back & Biceps + Ab Ripper X | H74: Back & Biceps + Ab Ripper X
A75: 67 | B75: =B74+1 -> 2010-10-21 | C75: =B75 -> 2010-10-21 | D75: Yoga X | F75: Yoga X | H75: (AM) Cardio X | J75: Yoga X
A76: 68 | B76: 2010-10-22 | C76: =B76 -> 2010-10-22 | D76: Legs & Back + Ab Ripper X | F76: Core Synergistics | H76: (AM) Cardio X | J76: Legs & Back + Ab Ripper X
A77: 69 | B77: 2010-10-23 | C77: =B77 -> 2010-10-23 | D77: Kenpo X | F77: Kenpo X | H77: Kenpo X
A78: 70 | B78: 2010-10-24 | C78: =B78 -> 2010-10-24 | D78: Rest or X Stretch | F78: Rest or X Stretch | H78: Rest or X Stretch
A79: 71 | B79: 2010-10-25 | C79: =B79 -> 2010-10-25 | D79: Chest & Back + Ab Ripper X | F79: Chest & Back + Ab Ripper X | H79: (AM) Cardio X | J79: Chest & Back + Ab Ripper X | L79: 11
A80: 72 | B80: 2010-10-26 | C80: 2010-10-26 | D80: Plyometrics | F80: Cardio X | H80: (AM) Cardio X | J80: Plyometrics
A81: 73 | B81: 2010-10-27 | C81: 2010-10-27 | D81: Shoulders & Arms + Ab Ripper X | F81: Shoulders & Arms + Ab Ripper X | H81: Shoulders & Arms + Ab Ripper X
A82: 74 | B82: 2010-10-28 | C82: 2010-10-28 | D82: Yoga X | F82: Yoga X | H82: (AM) Cardio X | J82: Yoga X
A83: 75 | B83: 2010-10-29 | C83: 2010-10-29 | D83: Legs & Back + Ab Ripper X | F83: Core Synergistics | H83: (AM) Cardio X | J83: Legs & Back + Ab Ripper X
A84: 76 | B84: 2010-10-30 | C84: 2010-10-30 | D84: Kenpo X | F84: Kenpo X | H84: Kenpo X
A85: 77 | B85: 2010-10-31 | C85: 2010-10-31 | D85: Rest or X Stretch | F85: Rest or X Stretch | H85: Rest or X Stretch
A86: 78 | B86: 2010-11-01 | C86: 2010-11-01 | D86: Chest, Sho & Triceps + Ab Ripper X | F86: Chest, Sho & Triceps + Ab Ripper X | H86: (AM) Cardio X | J86: Chest, Sho & Triceps + Ab Ripper X | L86: 12
A87: 79 | B87: 2010-11-02 | C87: 2010-11-02 | D87: Plyometrics | F87: Cardio X | H87: (AM) Cardio X | J87: Plyometrics
A88: 80 | B88: 2010-11-03 | C88: 2010-11-03 | D88: Back & Biceps + Ab Ripper X | F88: Back & Biceps + Ab Ripper X | H88: Back & Biceps + Ab Ripper X
A89: 81 | B89: 2010-11-04 | C89: 2010-11-04 | D89: Yoga X | F89: Yoga X | H89: (AM) Cardio X | J89: Yoga X
A90: 82 | B90: 2010-11-05 | C90: 2010-11-05 | D90: Legs & Back + Ab Ripper X | F90: Core Synergistics | H90: (AM) Cardio X | J90: Legs & Back + Ab Ripper X
A91: 83 | B91: 2010-11-06 | C91: 2010-11-06 | D91: Kenpo X | F91: Kenpo X | H91: Kenpo X
A92: 84 | B92: 2010-11-07 | C92: 2010-11-07 | D92: Rest or X Stretch | F92: Rest or X Stretch | H92: Rest or X Stretch
A93: 85 | B93: 2010-11-08 | C93: 2010-11-08 | D93: Yoga X | F93: Yoga X | H93: Yoga X | L93: 13 | M93: Recovery
A94: 86 | B94: 2010-11-09 | C94: 2010-11-09 | D94: Core Synergistics | F94: Core Synergistics | H94: Core Synergistics
A95: 87 | B95: 2010-11-10 | C95: 2010-11-10 | D95: Kenpo X | F95: Kenpo X | H95: Kenpo X
A96: 88 | B96: 2010-11-11 | C96: 2010-11-11 | D96: X Stretch | F96: X Stretch | H96: X Stretch
A97: 89 | B97: 2010-11-12 | C97: 2010-11-12 | D97: Core Synergistics | F97: Cardio X | H97: Core Synergistics
A98: 90 | B98: 2010-11-13 | C98: 2010-11-13 | D98: Yoga X | F98: Yoga X | H98: Yoga X
A99: 91 | B99: 2010-11-14 | C99: =B99 -> 2010-11-14 | D99: CELEBRATE & CHECK FINAL RESULTS | E99: =IF('X Stretch'!$F$12="X","X","") ->  | F99: CELEBRATE & CHECK FINAL RESULTS | G99: =IF('X Stretch'!$F$12="X","X","") ->  | H99: CELEBRATE & CHECK FINAL RESULTS
A100: TOTAL NUMBER OF WORKOUTS COMPLETED | D100: =COUNTIF(E9:E99,"X") -> 0 | F100: =COUNTIF(G9:G99,"X") -> 0 | H100: =COUNTIF(I9:I99,"X") -> 0 | J100: =COUNTIF(K9:K99,"X") -> 0
A101: TOTAL PCT OF WORKOUTS COMPLETED | D101: =D100/90 -> 0 | F101: =F100/90 -> 0 | H101: =H100/(90) -> 0 | J101: =J100/25 -> 0
A102: Number of Days Actual: | C102: =B99-B9 -> 90

Sheet Main Sheet
B1: Main Menu | C1: Master Schedule | E1: Worksheets | G1: Charts
B2: Main SetUp Page
B4: Name:
B6: Starting Info
B7: Sex: | C7: Male | D7: <= Male or Female from dropdown list
B8: Age:
B9: Height: | D9: inches | E9: =C9*2.54 -> 0 | F9: cm | G9: Go To Fit Test Page
B10: Weight: | D10: pounds | E10: =C10*0.45359237 -> 0 | F10: kg
B11: Waist: | D11: inches | E11: =C11*2.54 -> 0 | F11: cm
B12: Hips: | D12: inches | E12: =C12*2.54 -> 0 | F12: cm
B13: Neck: | D13: inches | E13: =C13*2.54 -> 0 | F13: cm
B14: Get Body Fat % From: | C14: Auto Calc | D14: If Other: Enter Number Here =>> | G14: 0
B15: Body Fat %: | C15: =IF(C14="Auto Calc",IF(C11="",0,IF(C7="Male",495/(1.0324-0.19077*(LOG(E11-E13))+0.15456*(LOG(E9)))-450,495/(1.29579-0.35004*(LOG(E11+E12-E13))+0.221*(LOG(E9)))-450)),G14) -> 0 | D15: % | E15: Body Fat Calculators
B16: Lean Body Mass: | C16: =C10-C17 -> 0 | D16: Progress Journal
B17: Fat Mass: | C17: =IF(C10="",0,C15/100*C10) -> 0
B19: P90X Start Date==> | C19: ='Main Menu'!B2 -> 2010-08-16
B21: 90 days Goal Date: | C21: =C19+90 -> 2010-11-14
B23: Enter Below Your Body Weight and Fat % Goals at the End of 90 Days
B24: Body Weight Goal: | D24: pounds
B25: Body Fat % Goal: | D25: % = | E25: =IF(C15="",0,C15-C25) -> 0 | F25: % decrease in bodyfat
B26: Goal Weight Loss = | C26: =C10-C24 -> 0 | D26: pounds in | E26: =(C21-C19+1)/7 -> 13 | F26: weeks
B27: which | C27: = | D27: =C26/E26 -> 0 | E27: pounds to lose per week
B28: Auto Calc | C28: Male
B29: Other | C29: Female

Sheet Fit Test
A1: Main Menu | B1: Main Set Up | D1: Master Schedule | I1: Get Fit
A2: Fit Test | B2: Prior to Day 1 | D2: After Day 90 | F2: Diff (+ / -) | H2: ='Main Sheet'!C4 -> 0 | I2: TOOLS NEEDED
A3: Resting Heart Rate | B3: 0 | D3: 0 | F3: =IF(B3="","",IF(D3="","",D3-B3)) -> 0 | H3: beats per minute | I3: Heart Rate Monitor
A4: Pull-Ups | B4: 0 | D4: 0 | F4: =IF(B4="","",IF(D4="","",D4-B4)) -> 0 | H4: number | I4: Body Fat Caliper
A5: Vertical Leap (M1|M2) | B5: 0 | C5: 0 | D5: 0 | E5: 0 | H5: measurement 1 & 2 | I5: Tape Measure
A6: Vertical Leap Inches | B6: =IF(B5=0,0,C5-B5) -> 0 | D6: =IF(D5=0,0,E5-D5) -> 0 | F6: =IF(B6="","",IF(D6="","",D6-B6)) -> 0 | H6: inches | I6: Scale
A7: Push-Ups | B7: 0 | D7: 0 | F7: =IF(B7="","",IF(D7="","",D7-B7)) -> 0 | H7: number | I7: Partner (Optional)
A8: Toe-Touch | B8: -100 | D8: -100 | F8: =IF(B8="","",IF(D8="","",D8-B8)) -> 0 | H8: inches (+ / -) | I8: Pull-Up Bar
A9: Wall Squat (Seconds) | B9: 0 | D9: 0 | F9: =IF(B9="","",IF(D9=0,"",IF(D9-B9<0,"no improvement",D9-B9))) ->  | H9: Min:Sec | I9: Timer
A10: Bicep Curls (Reps | Wt ) | B10: 0 | C10: 0 | D10: 0 | E10: 0 | F10: =IF(B10="","",IF(D10="","",D10-B10)) -> 0 | G10: =IF(C10="","",IF(E10="","",E10-C10)) -> 0 | H10: Reps / Weight or Band | I10: Towel
A11: Total Poundage | B11: 0 | D11: 0 | F11: =IF(D11="","",D11-B11) -> 0 | H11: pounds | I11: Water
A12: In & Outs | B12: 0 | D12: 0 | F12: =IF(B12="","",IF(D12="","",D12-B12)) -> 0 | H12: number | I12: Your "Bring It" Face
A13: Heart Rate Maximizer | I13: Progress Journal
A14: Immediately After | B14: 0 | D14: 0 | F14: =IF(B14="","",IF(D14="","",D14-B14)) -> 0 | H14: beats per second
A15: After 1 Minute Rest | B15: 0 | D15: 0 | F15: =IF(B15="","",IF(D15="","",D15-B15)) -> 0 | H15: beats per second
A16: After 2 Minutes Rest | B16: 0 | D16: 0 | F16: =IF(B16="","",IF(D16="","",D16-B16)) -> 0 | H16: beats per second
A17: After 3 Minutes Rest | B17: 0 | D17: 0 | F17: =IF(B17="","",IF(D17="","",D17-B17)) -> 0 | H17: beats per second | I17: Weekly
A18: After 4 Minutes Rest | B18: 0 | D18: 0 | F18: =IF(B18="","",IF(D18="","",D18-B18)) -> 0 | H18: beats per second | I18: Check Up Pages
A19: Cardio Calculators | C19: ='Master Schedule'!B37 -> 2010-09-13 | D19: ='Master Schedule'!B65 -> 2010-10-11 | E19: ='Master Schedule'!B99+1 -> 2010-11-15 | G19: Body Fat Calculators | I19: Week 1 CheckUp
C20: Phase 1 | D20: Phase 2 | E20: Phase 3 | I20: Week 2 CheckUp
A21: Fitness Levels | B21: Day 1 | C21: Day 28 | D21: Day 56 | E21: Day 90 | F21: Notes | I21: Week 3 CheckUp
A22: Weight | B22: ='Main Sheet'!C10 -> 0 | C22: ='Weekly CheckUp (4)'!$B$16 -> 0 | D22: ='Weekly CheckUp (8)'!$B$16 -> 0 | E22: ='Weekly CheckUp (13)'!$B$16 -> 0 | F22: NEED TO BUY NEW CLOTHES!!! | I22: Week 4 CheckUp
A23: Body Fat % | B23: =IF('Main Sheet'!C15="",0,'Main Sheet'!C15/100) -> 0 | C23: ='Weekly CheckUp (4)'!$B$21/100 -> 0 | D23: ='Weekly CheckUp (8)'!$B$21/100 -> 0 | E23: ='Weekly CheckUp (13)'!$B$21/100 -> 0 | F23: BLEW AWAY MY BODYFAT% GOAL!! | I23: Week 5 CheckUp
A24: Chest | B24: 0 | C24: 0 | D24: 0 | E24: 0 | I24: Week 6 CheckUp
A25: Waist | B25: ='Main Sheet'!C11 -> 0 | C25: ='Weekly CheckUp (4)'!$B$17 -> 0 | D25: ='Weekly CheckUp (8)'!$B$17 -> 0 | E25: ='Weekly CheckUp (13)'!$B$17 -> 0 | I25: Week 7 CheckUp
A26: Hips | B26: ='Main Sheet'!C12 -> 0 | C26: ='Weekly CheckUp (4)'!$B$18 -> 0 | D26: ='Weekly CheckUp (8)'!$B$18 -> 0 | E26: ='Weekly CheckUp (13)'!$B$18 -> 0 | I26: Week 8 CheckUp
A27: Neck | B27: ='Main Sheet'!C13 -> 0 | C27: ='Weekly CheckUp (4)'!$B$19 -> 0 | D27: ='Weekly CheckUp (8)'!$B$19 -> 0 | E27: ='Weekly CheckUp (13)'!$B$19 -> 0 | I27: Week 9 CheckUp
A28: Right Thigh | B28: 0 | C28: 0 | D28: 0 | E28: 0 | I28: Week 10 CheckUp
A29: Left Thigh | B29: 0 | C29: 0 | D29: 0 | E29: 0 | I29: Week 11 CheckUp
A30: Right Bicep | B30: 0 | C30: 0 | D30: 0 | E30: 0 | F30: GETTING SOME GUNS!! | I30: Week 12 CheckUp
A31: Left Bicep | B31: 0 | C31: 0 | D31: 0 | E31: 0 | I31: Week 13 CheckUp
A33: Starting Statistics | B33: ='Master Schedule'!B9 -> 2010-08-16 | E33: Beginning & Ending Body Stats Chart
A34: Weight | B34: ='Main Sheet'!C10 -> 0 | D34: lbs
A35: Body Fat % | B35: ='Main Sheet'!C15 -> 0 | D35: %
A36: Fat Mass | B36: =(B34*B35)/100 -> 0 | D36: lbs
A37: Lean Mass | B37: =B34-B36 -> 0 | D37: lbs
A39: Stats at End of 90 Days | B39: ='Master Schedule'!B99 -> 2010-11-14
A40: Weight | B40: ='Weekly CheckUp (13)'!B16 -> 0 | D40: lbs
A41: Body Fat % | B41: ='Weekly CheckUp (13)'!B21 -> 0 | D41: %
A42: Fat Mass | B42: =B40*B41/100 -> 0 | D42: lbs
A43: Lean Mass | B43: =B40-B42 -> 0 | D43: lbs
A45: Final Results
A46: Fat Lost | B46: =MAX(0,B36-B42) -> 0 | D46: lbs
A47: Fat Gained | B47: =MAX(0,B42-B36) -> 0 | D47: lbs
A48: Lean Mass Gained | B48: =MAX(0,B43-B37) -> 0 | D48: lbs
A49: Lean Mass Lost | B49: =MAX(0,B37-B43) -> 0 | D49: lbs
A50: Weight Lost | B50: =MAX(0,B34-B40) -> 0 | D50: lbs
A51: Weight Gained | B51: =MAX(0,B40-B34) -> 0 | D51: lbs
A53: ='Main Sheet'!$C$7 -> Male | B53: Male | C53: Female | D53: Minimums
A54: Resting Heart Rate
A55: Pull-Ups | B55: 3 | C55: 1
A56: Vertical Leap (M1|M2)
A57: Vertical Leap Inches | B57: 5 | C57: 3
A58: Push-Ups | B58: 15 | C58: 3
A59: Toe-Touch | B59: -6 | C59: -6
A60: Wall Squat (Seconds) | B60: 60 | C60: 60
A61: Bicep Curls (Reps | Wt ) | B61: 20 | C61: 8
A62: Total Poundage | B62: 200 | C62: 80
A63: In & Outs | B63: 25 | C63: 25
A64: Heart Rate Maximizer
A65: Immediately After
A66: After 1 Minute Rest
A67: After 2 Minutes Rest
A68: After 3 Minutes Rest
A69: After 4 Minutes Rest

Sheet Workout Journals Menu
B1: ='Main Sheet'!C4 -> 0
B3: Worksheets Menu
B6: Chest & Back | G6: Plyometrics
G7: Yoga X
B8: Shoulders & Arms | G8: Kenpo X
G9: Core Synergistics
B10: Legs & Back | G10: Core Synergistics (LEAN)
G11: Cardio X (LEAN)
B12: Chest, Shoulders & Triceps | G12: Cardio X (DOUBLES)
B14: Chest, Shoulders & Triceps (Lean) | G14: X Stretch
B16: Back & Biceps | G16: Ab Ripper X
B18: Main Menu | G18: Workout Graphs Menu
B19: Master Schedule | G19: 13 Week Body Stats Journal & Graph
G21: Workout Journal Summaries

Sheet Charts Menu
B1: ='Workout Journals Menu'!B1 -> 0
B3: Charts Menu
B5: Chest & Back
B6: Shoulders & Arms | G6: Ab Ripper X Charts
B7: Legs & Back | G7: Weekly Averages per Exercise
B8: Chest, Shoulders & Triceps | G8: Weekly Total Averages of All Exercises
B9: Chest, Shoulders & Triceps (LEAN)
B10: Back & Biceps
B13: Weekly Body Stats Progress Journal & Graph
B14: Main Menu | G14: Workout Journals
B15: Master Schedule

Sheet BodyFat Calculators
A1: Main Menu | B1: Main Set Up | D1: Master Schedule | G1: Fit Test Page | I1: Weekly Body Stats Journal
A2: FAT %, The U.S. Navy Circumference Method
A4: Enter your measurements in inches or override cm block
C5: Waist | E5: Hips | G5: Neck | I5: Height
C6: ='Main Sheet'!C11 -> 0 | D6: inches | E6: ='Main Sheet'!C12 -> 0 | F6: inches | G6: ='Main Sheet'!C13 -> 0 | H6: inches | I6: ='Main Sheet'!C9 -> 0 | J6: inches
A7: From Main Sheet | C7: =C6*2.54 -> 0 | D7: cm | E7: =E6*2.54 -> 0 | F7: cm | G7: =G6*2.54 -> 0 | H7: cm | I7: =I6*2.54 -> 0 | J7: cm
E9: Your results: | G9: How to read your results:
C10: Male | E10: =IF(C6=0,0,495/(1.0324-0.19077*(LOG(C7-G7))+0.15456*(LOG(I7)))-450) -> 0 | F10: % | G10: Men should have FAT % between 10 and 18
C12: Female | E12: =IF(C6=0,0,495/(1.29579-0.35004*(LOG(C7+E7-G7))+0.221*(LOG(I7)))-450) -> 0 | F12: % | G12: Women should have FAT % between 18 and 25
A14: FAT %, Skinfold Method | I14: Weekly CheckUp Pages
A15: To calculate your body fat, enter your age and your skinfold measurements (in millimeters) in | J15: Week 1 CheckUp
A16: the appropriate calculator. Take three measurements at each site for greatest accuracy. | J16: Week 2 CheckUp
A17: The sheet will take an average of your entered values. Mouseover the measurement site labels for | J17: Week 3 CheckUp
A18: descriptions of where to use your calipers. | J18: Week 4 CheckUp
J19: Week 5 CheckUp
A20: MALE BODY FAT % CALCULATORS | J20: Week 6 CheckUp
A21: Your Age | B21: ='Main Sheet'!C8 -> 0 | J21: Week 7 CheckUp
J22: Week 8 CheckUp
A23: 3-SITE METHOD | B23: 1 | C23: 2 | D23: 3 | E23: Average | J23: Week 9 CheckUp
A24: Chest | E24: =SUM(B24:D24)/3 -> 0 | F24: 3-site BF% | H24: =((4.57/(1.10938-(0.0008267*SUM(E24:E26))+(0.0000016*SUM(E24:E26)^2)-(0.000257*B21)))-4.142)*100 -> -2.258194667 | I24: % | J24: Week 10 CheckUp
A25: Abdomen | E25: =SUM(B25:D25)/3 -> 0 | J25: Week 11 CheckUp
A26: Thigh | E26: =SUM(B26:D26)/3 -> 0 | J26: Week 12 CheckUp
J27: Week 13 CheckUp
A29: 7-SITE METHOD | B29: 1 | C29: 2 | D29: 3 | E29: Average
A30: Chest | E30: =SUM(B30:D30)/3 -> 0 | F30: 7-site BF% | H30: =((4.57/(1.112-(0.00043499*SUM(E30:E36))+(0.00000055*SUM(E30:E36)^2)-(0.00028826*B21)))-4.142)*100 -> -3.228776978 | I30: %
A31: Abdomen | E31: 0
A32: Thigh | E32: 0
A33: Suprailiac | E33: 0
A34: Midaxilliary | E34: 0
A35: Tricep | E35: 0
A36: Subscapula | E36: 0
A38: FEMALE BODY FAT % CALCULATORS
A39: Your Age | B39: =B21 -> 0
A41: 3-SITE METHOD | B41: 1 | C41: 2 | D41: 3 | E41: Average
A42: Tricep | E42: =SUM(B42:D42)/3 -> 0 | F42: 3-site BF% | H42: =((4.57/(1.0994921-(0.0009929*SUM(E42:E44))+(0.0000023*(SUM(E42:E44))^2)-(0.0001392*B39)))-4.142)*100 -> 1.446460761 | I42: %
A43: Suprailiac | E43: =SUM(B43:D43)/3 -> 0
A44: Thigh | E44: =SUM(B44:D44)/3 -> 0
A47: 7-SITE METHOD | B47: 1 | C47: 2 | D47: 3 | E47: Average
A48: Tricep | E48: =SUM(B48:D48)/3 -> 0 | F48: 7-site BF% | H48: =((4.57/(1.097-(0.00046971*SUM(E48:E54))+(0.00000056*SUM(E48:E54)^2)-(0.00012828*B39)))-4.142)*100 -> 2.390701914 | I48: %
A49: Suprailiac | E49: 0
A50: Thigh | E50: 0
A51: Chest | E51: 0
A52: Midaxillary | E52: 0
A53: Subscapula | E53: 0
A54: Abdomen | E54: 0

Sheet Cardio Calculators
A1: Main Menu | B1: Main Set Up | C1: Master Schedule | F1: Fit Test Page | H1: Weekly Body Stats Journal
A3: YOUR TARGET HEART RATE CALCULATOR FOR CARDIO
A4: Your Age from Main SetUp Page | B4: ='Main Sheet'!C8 -> 0 | C4: years
A5: Your Resting Heart Rate | B5: ='Fit Test'!B3 -> 0 | C5: beats/minute | G5: CARDIO WORKOUT LINKS
A7: calculate | B7: result
A8: data complete? | B8: =IF(OR(ISBLANK(#REF!),ISBLANK(B4),ISBLANK(B5)),"No","Yes") -> Yes | G8: Plyometrics
A9: maximum heart rate for age | B9: =206.9-(0.67*B4) -> 206.9 | C9: beats/minute | G9: Kenpo X
A10: Method 1: American Council on Exercise | G10: Cardio X (LEAN)
A11: • Lower Limit for Target Heart Rate | B11: =(B9*0.5) -> 103.45 | C11: beats/minute | G11: Cardio X (DOUBLES)
A12: • Upper Limit for Target Heart Rate | B12: =(B9*0.8) -> 165.52 | C12: beats/minute
A13: Method 2: Karvonen formula | G13: Enter Your Current Numbers Below
A14: • Lower Limit for Target Heart Rate | B14: =(B9-B5)*0.65+B5 -> 134.485 | C14: beats/minute | G14: Lower Limit for THR | I14: =C19 -> 103.45
A15: • Upper Limit for Target Heart Rate | B15: =((B9-B5)*0.85)+B5 -> 175.865 | C15: beats/minute | G15: Upper Limit for THR | I15: =C26 -> 175.865
G16: Use the above numbers in your Cardio Worksheets
A18: Intensity | B18: Level | C18: TARGET HEART RATE (THR)
A19: Very Light | B19: Sedentary | C19: =B11 -> 103.45 | D19: Beats Per Minute | G19: Take the Talk Test
A20: Light | B20: Beginner | C20: =($B$9*0.6) -> 124.14 | D20: Beats Per Minute | G20: You should be able to carry on a conversation during your workout. If you are breathless, or can't talk, you're working too hard! Slow down. Also, keep in mind that dizziness and lightheadedness is not a good sign. If you experience this, you are overexerting yourself and should stop!
A21: Light | B21: Beginner | C21: =(B9*0.65) -> 134.485 | D21: Beats Per Minute
A22: Moderate | B22: Average | C22: =(B9*0.7) -> 144.83 | D22: Beats Per Minute
A23: Moderate | B23: Average | C23: =(B9*0.75) -> 155.175 | D23: Beats Per Minute
A24: Somewhat Hard | B24: Intermediate | C24: =(B9*0.8) -> 165.52 | D24: Beats Per Minute
A25: Hard | B25: Intermediate | C25: =(B9*0.85) -> 175.865 | D25: Beats Per Minute
A26: MAX | B26: Advanced | C26: =B15 -> 175.865 | D26: Beats Per Minute | G26: If you're just starting out an exercise program, keep your heart rate at the lower end of your target heart rate zone and gradually work up to a higher intensity level.
A28: More About Target Heart Rate
A29: Your target heart rate is 60 percent to 85 percent of your maximum heart rate. Maximum heart rate is the upper limit of what your cardiovascular system can handle during physical activity. Exercising within your target heart rate zone can help boost your fitness level.
A31: To check your heart rate during exercise:
A33: 1) Stop momentarily.
A34: 2) Take your pulse for 10 seconds.
A35: 3) Multiply this number by 6 to calculate your beats per minute.
A37: Are your beats per minute within your target heart rate zone?
A39: If you're just starting out an exercise program, keep your heart rate at the lower end of your target heart rate zone and gradually work up to a higher intensity level.
A41: A FINAL WORD ABOUT HEART-RATE MONITORING
A43: Remember, your estimated target heart-rate zone is just that — an estimate.
A44: If you feel like you are exercising too hard, you probably are. The best advice is
A45: to reduce your intensity and find a heartrate range that works for you.

Sheet Chest & Back
A1: Main Menu | B1: Master Schedule | E1: Worksheets | I1: Charts | L1: Worksheet Summaries Page
A2: TOOLS | B2: CHEST & BACK
A3: Weights or Bands | B3: Week 1 | D3: Week 2 | F3: Week 3 | H3: Week 9 | J3: Week 11 | L3: Chart
A4: Push-Up Bars | B4: =B5 -> 2010-08-16 | D4: =D5 -> 2010-08-23 | F4: =F5 -> 2010-08-30 | H4: =H5 -> 2010-10-11 | J4: =J5 -> 2010-10-25
A5: Pull-Up Bar or Bands | B5: ='Master Schedule'!$B$9 -> 2010-08-16 | D5: ='Master Schedule'!B16 -> 2010-08-23 | F5: ='Master Schedule'!B23 -> 2010-08-30 | H5: ='Master Schedule'!B65 -> 2010-10-11 | J5: ='Master Schedule'!B79 -> 2010-10-25 | L5: Notes
A6: Chair | B6: Reps | D6: Reps | E6: Weight | F6: Reps | G6: Weight | H6: Reps | I6: Weight | J6: Reps | K6: Weight
A7: Standard Push-Ups
A9: Wide Front Pull-Ups
A11: Military Push-Ups
A13: Reverse Grip Chin-Ups
A15: Wide Fly Push-Ups
A17: Close Grip Overhand Pull-Ups
A19: Decline Push-Ups
A21: Heavy Pants
A23: Diamond Push-Ups
A25: Lawnmowers
A27: Dive-Bomber Push-Ups
A29: Back Flyes
A31: TOTAL PUSH-UPS | B31: =SUM(B7,B8,B11,B12,B15,B16,B19,B20,B23,B24,B27,B28) -> 0 | D31: =D7+D8+D11+D12+D15+D16+D19+D20+D23+D24+D27+D28 -> 0 | F31: =F7+F8+F11+F12+F15+F16+F19+F20+F23+F24+F27+F28 -> 0 | H31: =H7+H8+H11+H12+H15+H16+H19+H20+H23+H24+H27+H28 -> 0 | J31: =J7+J8+J11+J12+J15+J16+J19+J20+J23+J24+J27+J28 -> 0 | L31: =SUM(B31:K31)&" TOTAL PUSH-UPS" -> 0 TOTAL PUSH-UPS
A32: TOTAL PULL-UPS (Un-Assisted) | B32: =B9+B10+B13+B14+B17+B18 -> 0 | D32: =D9+D10+D13+D14+D17+D18 -> 0 | F32: =F9+F10+F13+F14+F17+F18 -> 0 | H32: =H9+H10+H13+H14+H17+H18 -> 0 | J32: =J9+J10+J13+J14+J17+J18 -> 0 | L32: =SUM(B32:K32)&" TOTAL PULL-UPS" -> 0 TOTAL PULL-UPS
B33: Ab Ripper X | D33: Ab Ripper X | F33: Ab Ripper X | H33: Ab Ripper X | J33: Ab Ripper X
A34: Notes / Supplements:
A35: DVD Time: 0:52:50
A36: Warm-Up 0:2:21
A37: Stretching: 0:6:30

Sheet Shoulders & Arms
A1: Main Menu | B1: Master Schedule | E1: Worksheets | I1: Charts | L1: Worksheet Summaries
A2: TOOLS | B2: SHOULDERS & ARMS
A3: Weights or Bands | B3: Week 1 | D3: Week 2 | F3: Week 3 | H3: Week 9 | J3: Week 11 | L3: Chart
A4: Wall | B4: =B5 -> 2010-08-18 | D4: =D5 -> 2010-08-25 | F4: =F5 -> 2010-09-01 | H4: =H5 -> 2010-10-13 | J4: =J5 -> 2010-10-20
A5: Chair | B5: ='Master Schedule'!B11 -> 2010-08-18 | D5: ='Master Schedule'!B18 -> 2010-08-25 | F5: ='Master Schedule'!B25 -> 2010-09-01 | H5: ='Master Schedule'!$B$67 -> 2010-10-13 | J5: ='Master Schedule'!$B$74 -> 2010-10-20 | L5: Notes
B6: Reps | C6: Weight | D6: Reps | E6: Weight | F6: Reps | G6: Weight | H6: Reps | I6: Weight | J6: Reps | K6: Weight
A7: Alternating Shoulder Press
A9: In & Out Bicep Curls
A11: Two-Arm Triceps Kickbacks
A13: Deep Swimmer's Press
A15: Full Supination Concentration Curls
A17: Chair Dips
A19: Upright Rows
A21: Static Arm Curls
A23: Flip-Grip Twist Triceps Kickbacks
A25: Seated Two-Angle Shoulder Flyes
A27: Crouching Cohen Curls
A29: Lying-Down Triceps Extensions
A31: In & Out Staight-Arm Shoulder Flyes
A33: Congdon Curls
A35: Side Tri-Raises
A37: DON'T HOLD YOUR BREATH | B37: Ab Ripper X | D37: Ab Ripper X | F37: Ab Ripper X | H37: Ab Ripper X | J37: Ab Ripper X
A38: Notes / Supplements:
A39: DVD Time: 0:59:40
A40: Warm-Up 0:2:45
A41: Stretching: 0:7:23

Sheet Legs & Back
A1: Main Menu | B1: Master Schedule | E1: Worksheets | I1: Charts | L1: Workout Summaries | R1: Full Screen OFF
A2: TOOLS | B2: LEGS & BACK | R2: Chart
A3: Weights or Bands | B3: Week 1 | D3: Week 2 | F3: Week 3 | H3: Week 5 | J3: Week 6 | L3: Week 7 | N3: Week 9 | P3: Week 10 | R3: Week 11 | T3: Week 12
A4: Wall | B4: =B5 -> 2010-08-20 | D4: =D5 -> 2010-08-27 | F4: =F5 -> 2010-09-03 | H4: =H5 -> 2010-09-17 | J4: =J5 -> 2010-09-24 | L4: =L5 -> 2010-10-01 | N4: =N5 -> 2010-10-15 | P4: =P5 -> 2010-10-22 | R4: =R5 -> 2010-10-29 | T4: =T5 -> 2010-11-05
A5: Pull-Up Bar or Bands | B5: ='Master Schedule'!$B13 -> 2010-08-20 | D5: ='Master Schedule'!$B20 -> 2010-08-27 | F5: ='Master Schedule'!$B27 -> 2010-09-03 | H5: ='Master Schedule'!$B$41 -> 2010-09-17 | J5: ='Master Schedule'!$B$48 -> 2010-09-24 | L5: ='Master Schedule'!$B$55 -> 2010-10-01 | N5: ='Master Schedule'!$B$69 -> 2010-10-15 | P5: ='Master Schedule'!$B$76 -> 2010-10-22 | R5: ='Master Schedule'!$B$83 -> 2010-10-29 | T5: ='Master Schedule'!$B$90 -> 2010-11-05
A6: Chair | B6: Reps | C6: Weight | D6: Reps | E6: Weight | F6: Reps | G6: Weight | H6: Reps | I6: Weight | J6: Reps | K6: Weight | L6: Reps | M6: Weight | N6: Reps | O6: Weight | P6: Reps | Q6: Weight | R6: Reps | S6: Weight | T6: Reps | U6: Weight
A7: Balanced Lunges
A8: Calf Raise Squats
A9: Reverse Grip Chin-Ups
A10: Super Skaters
A11: Wall Squats (Seconds)
A12: Wide-Front Pull-Ups
A13: Step Back Lunges
A14: Alternating Side Lunges
A15: Closed Grip Overhand Pull-Up
A16: Single-Leg Wall Squats
A17: Dead Lift Squats
A18: Switch Grip Pull-Ups
A19: Three-Way Lunges
A20: Sneaky Lunges
A21: Reverse Grip Chin-Ups
A22: Chair Salutations
A23: Toe Row Iso Lunges
A24: Wide-Front Pull-Ups
A25: Groucho Walk
A26: Calf-Raises
A27: Close-Grip Overhead Pull-Ups
A28: 80-20 Selbers Speed Squats
A29: Switch Grip Pull-Ups
A30: ="TOTAL PULL-UPS = "&B30+D30+F30+H30+J30+L30+N30+P30+T30 -> TOTAL PULL-UPS = 0 | B30: =B9+B12+B15+B18+B21+B24+B27+B29 -> 0 | D30: =D9+D12+D15+D18+D21+D24+D27+D29 -> 0 | F30: =F9+F12+F15+F18+F21+F24+F27+F29 -> 0 | H30: =H9+H12+H15+H18+H21+H24+H27+H29 -> 0 | J30: =J9+J12+J15+J18+J21+J24+J27+J29 -> 0 | L30: =L9+L12+L15+L18+L21+L24+L27+L29 -> 0 | N30: =N9+N12+N15+N18+N21+N24+N27+N29 -> 0 | P30: =P9+P12+P15+P18+P21+P24+P27+P29 -> 0 | R30: =R9+R12+R15+R18+R21+R24+R27+R29 -> 0 | T30: =T9+T12+T15+T18+T21+T24+T27+T29 -> 0
A31: Go To ( Ab Ripper X ) | B31: Ab Ripper X | D31: Ab Ripper X | F31: Ab Ripper X | H31: Ab Ripper X | J31: Ab Ripper X | L31: Ab Ripper X | N31: Ab Ripper X | P31: Ab Ripper X | R31: Ab Ripper X | T31: Ab Ripper X
A33: Notes / Supplements:
A34: DVD Time: 0:58:59
A35: Warm-Up 0:2:25
A36: Stretching: 0:7:34

Sheet Chest, Shoulders & Triceps
A1: Main Menu | B1: Master Schedule | E1: Worksheets | I1: Charts | L1: Workout Summaries
A2: TOOLS | B2: CHEST, SHOULDERS & TRICEPS
A3: Weights or Bands | B3: Week 5 | D3: Week 6 | F3: Week 7 | H3: Week 10 | J3: Week 12 | L3: Chart
A4: Push-Up Bars | B4: =B5 -> 2010-09-13 | D4: =D5 -> 2010-09-20 | F4: =F5 -> 2010-09-27 | H4: =H5 -> 2010-10-18 | J4: =J5 -> 2010-11-01
A5: Plastic Plate, Cardboard, or Towel | B5: ='Master Schedule'!B37 -> 2010-09-13 | D5: ='Master Schedule'!B44 -> 2010-09-20 | F5: ='Master Schedule'!B51 -> 2010-09-27 | H5: ='Master Schedule'!B72 -> 2010-10-18 | J5: ='Master Schedule'!B86 -> 2010-11-01 | L5: Notes
A6: Chair | B6: Reps | C6: Weight | D6: Reps | E6: Weight | F6: Reps | G6: Weight | H6: Reps | I6: Weight | J6: Reps | K6: Weight
A7: Slow-Motion 3-In-1 Push-Ups
A8: In & Out Shoulder Flys
A9: Chair Dips
A10: Plange Push-Ups
A11: Pike Presses
A12: Side Tri-Rises
A13: Floor-Flys
A14: Scarecrows
A15: Overhead Triceps Extensions
A16: Two-Twitch Speed Push-Ups
A17: Y-Presses
A18: Lying Triceps Extensions
A19: Side-To-Side Push-Ups
A20: Pour Flys
A21: Side-Leaning Triceps Extensions
A22: One-Arm Push-Up
A23: Weighted Circles
A24: Throw The Bomb
A25: Clap or Plyo Push-Ups
A26: Slow-Mo Throws
A27: Front-To-Back Triceps Extensions
A28: One-Arm Balance Push-Ups
A29: Fly-Row-Presses
A30: Dumbbell Cross-Body Blows
A31: TOTAL NUMBER OF PUSH-UPS | B31: =B7+C7+B10+B16+B19+B22+B25+B28 -> 0 | D31: =D7+E7+D10+D16+D19+D22+D25+D28 -> 0 | F31: =F7+G7+F10+F16+F19+F22+F25+F28 -> 0 | H31: =H7+I7+H10+H16+H19+H22+H25+H28 -> 0 | J31: =J7+K7+J10+J16+J19+J22+J25+J28 -> 0 | L31: =SUM(B31:K31)&" TOTAL PUSH-UPS" -> 0 TOTAL PUSH-UPS
A32: MONEY IN LAST 3 REPS | B32: Ab Ripper X | D32: Ab Ripper X | F32: Ab Ripper X | H32: Ab Ripper X | J32: Ab Ripper X
A33: Notes / Supplements:
A34: DVD Time: 0:55:44
A35: Warm-Up 0:2:30
A36: Stretching: 0:6:20

Sheet Chest, Shoulders & Triceps (L)
A1: Main Menu | B1: Master Schedule | E1: Worksheets | I1: Charts | L1: Workout Summaries
A2: TOOLS | B2: CHEST, SHOULDERS & TRICEPS ** LEAN **
A3: Weights or Bands | B3: Week 5 | D3: Week 6 | F3: Week 7 | H3: Week 10 | J3: Week 12 | L3: Chart
A4: Push-Up Bars | B4: =B5 -> 2010-09-15 | D4: =D5 -> 2010-09-22 | F4: =F5 -> 2010-09-29 | H4: =H5 -> 2010-10-18 | J4: =J5 -> 2010-11-01
A5: Plastic Plate, Cardboard, or Towel | B5: ='Master Schedule'!$B$39 -> 2010-09-15 | D5: ='Master Schedule'!$B$46 -> 2010-09-22 | F5: ='Master Schedule'!$B$53 -> 2010-09-29 | H5: ='Master Schedule'!$B$72 -> 2010-10-18 | J5: ='Master Schedule'!$B$86 -> 2010-11-01 | L5: Notes
A6: Chair | B6: Reps | C6: Weight | D6: Reps | E6: Weight | F6: Reps | G6: Weight | H6: Reps | I6: Weight | J6: Reps | K6: Weight
A7: Slow-Motion 3-In-1 Push-Ups
A8: In & Out Shoulder Flys
A9: Chair Dips
A10: Plange Push-Ups
A11: Pike Presses
A12: Side Tri-Rises
A13: Floor-Flys
A14: Scarecrows
A15: Overhead Triceps Extensions
A16: Two-Twitch Speed Push-Ups
A17: Y-Presses
A18: Lying Triceps Extensions
A19: Side-To-Side Push-Ups
A20: Pour Flys
A21: Side-Leaning Triceps Extensions
A22: One-Arm Push-Up
A23: Weighted Circles
A24: Throw The Bomb
A25: Clap or Plyo Push-Ups
A26: Slow-Mo Throws
A27: Front-To-Back Triceps Extensions
A28: One-Arm Balance Push-Ups
A29: Fly-Row-Presses
A30: Dumbbell Cross-Body Blows
A31: TOTAL NUMBER OF PUSH-UPS | B31: =B7+C7+B10+B16+B19+B22+B25+B28 -> 0 | D31: =D7+E7+D10+D16+D19+D22+D25+D28 -> 0 | F31: =F7+G7+F10+F16+F19+F22+F25+F28 -> 0 | H31: =H7+I7+H10+H16+H19+H22+H25+H28 -> 0 | J31: =J7+K7+J10+J16+J19+J22+J25+J28 -> 0 | L31: =SUM(B31:K31)&" TOTAL PUSH-UPS" -> 0 TOTAL PUSH-UPS
A32: MONEY IN LAST 3 REPS | B32: Ab Ripper X | D32: Ab Ripper X | F32: Ab Ripper X | H32: Ab Ripper X | J32: Ab Ripper X
A33: Notes / Supplements:
A34: DVD Time: 0:55:44
A35: Warm-Up 0:2:30
A36: Stretching: 0:6:20

Sheet Back & Biceps
A1: Main Menu | B1: Master Schedule | E1: Worksheets | I1: Charts | L1: Workout Summaries
A2: TOOLS | B2: BACK & BICEPS
A3: Weights or Bands | B3: Week 5 | D3: Week 6 | F3: Week 7 | H3: Week 10 | J3: Week 12 | L3: Chart
A4: Wall | B4: =B5 -> 2010-09-15 | D4: =D5 -> 2010-09-22 | F4: =F5 -> 2010-09-29 | H4: =H5 -> 2010-10-20 | J4: =J5 -> 2010-11-03
A5: Pull-Up Bar, or Bands | B5: ='Master Schedule'!$B$39 -> 2010-09-15 | D5: ='Master Schedule'!$B$46 -> 2010-09-22 | F5: ='Master Schedule'!$B$53 -> 2010-09-29 | H5: ='Master Schedule'!$B$74 -> 2010-10-20 | J5: ='Master Schedule'!$B$88 -> 2010-11-03 | L5: Notes
A6: Chair | B6: Reps | C6: Weight | D6: Reps | E6: Weight | F6: Reps | G6: Weight | H6: Reps | I6: Weight | J6: Reps | K6: Weight
A7: Wide Front Pull-Ups
A8: Lawnmowers
A9: Twenty-Ones
A10: One-Arm Cross-Body Curls
A11: Switch Grip Pull-Ups
A12: Elbows-Out Lawnmowers
A13: Standing Bicep Curls
A14: One-Arm Concentration Curls
A15: Corn Cob Pull-Ups
A16: Reverse Grip Bent-Over Rows
A17: One Arm Curls
A18: Static Arm Curls
A19: Towel Pull-Ups
A20: Congdon Locomotives
A21: Crouching Cohen Curls
A22: One-Arm Corkscrew Curls
A23: Chin-Ups
A24: Seated Bent-Over Back Flys
A25: Curl Up / Hammer Downs
A26: Hammer Curls
A27: Max Rep Pull-Ups
A28: Superman
A29: In-Out Hammer Curls
A30: Strip-Set Curls
A31: TOTAL PULL-UPS | B31: =B7+B11+B15+B19+B23+B27 -> 0 | D31: =D7+D11+D15+D19+D23+D27 -> 0 | F31: =F7+F11+F15+F19+F23+F27 -> 0 | H31: =H7+H11+H15+H19+H23+H27 -> 0 | J31: =J7+J11+J15+J19+J23+J27 -> 0 | L31: =SUM(B31:K31)&" TOTAL PULL-UPS" -> 0 TOTAL PULL-UPS
A32: STRIVE FOR GOOD FORM | B32: Ab Ripper X | D32: Ab Ripper X | F32: Ab Ripper X | H32: Ab Ripper X | J32: Ab Ripper X
A33: Notes / Supplements:
A34: DVD Time: 0:51:36
A35: Warm-Up 0:2:35
A36: Stretching: 0:6:32

Sheet Ab Ripper X
A1: Main Menu | B1: Master Schedule | D1: Worksheets | G1: Charts | P1: Master Schedule | S1: Worksheets | V1: Charts | X1: Summaries Page | AA1: Master Schedule | AC1: Worksheets | AF1: Charts
A2: TOOLS | B2: Ab Ripper X | K2: Chart: By Exercise | L2: Chart: By Week | N2: Summaries Page | P2: ='Main Sheet'!C4 -> 0 | AA2: Ab Ripper X | AJ2: Chart: By Exercise | AK2: Chart: By Week | AL2: Chart: By Week | AM2: Summaries Page
A3: Mat | B3: Week 1 | F3: Week 2 | J3: Week 3 | N3: Week 5 | R3: Week 6 | V3: Week 7 | Z3: Week 9 | AD3: Week 10 | AH3: Week 11 | AL3: Week 12
A4: Water and Towel | B4: =B5 -> 2010-08-16 | C4: =C5 -> 2010-08-18 | D4: 2010-08-20 | F4: =F5 -> 2010-08-23 | G4: 2010-08-25 | H4: 2010-08-27 | J4: =J5 -> 2010-08-30 | K4: 2010-09-01 | L4: 2010-09-03 | N4: =N5 -> 2010-09-13 | O4: 2010-09-15 | P4: 2010-09-17 | R4: 2010-09-20 | S4: 2010-09-22 | T4: 2010-09-24 | V4: 2010-09-27 | W4: 2010-09-29 | X4: 2010-10-01 | Z4: =Z5 -> 2010-10-11 | AA4: 2010-10-13 | AB4: 2010-10-15 | AD4: 2010-10-18 | AE4: 2010-10-20 | AF4: 2010-10-22 | AH4: 2010-10-25 | AI4: 2010-10-27 | AJ4: 2010-10-29 | AL4: 2010-11-01 | AM4: 2010-11-03 | AN4: 2010-11-05
B5: ='Master Schedule'!B9 -> 2010-08-16 | C5: ='Master Schedule'!B11 -> 2010-08-18 | D5: ='Master Schedule'!B13 -> 2010-08-20 | F5: ='Master Schedule'!$B$16 -> 2010-08-23 | G5: ='Master Schedule'!$B$18 -> 2010-08-25 | H5: ='Master Schedule'!$B$20 -> 2010-08-27 | J5: ='Master Schedule'!$B$23 -> 2010-08-30 | K5: ='Master Schedule'!$B$25 -> 2010-09-01 | L5: ='Master Schedule'!$B$27 -> 2010-09-03 | N5: ='Master Schedule'!$B$37 -> 2010-09-13 | O5: ='Master Schedule'!$B$39 -> 2010-09-15 | P5: ='Master Schedule'!$B$41 -> 2010-09-17 | R5: ='Master Schedule'!$B$44 -> 2010-09-20 | S5: ='Master Schedule'!$B$46 -> 2010-09-22 | T5: ='Master Schedule'!$B$48 -> 2010-09-24 | V5: ='Master Schedule'!$B$51 -> 2010-09-27 | W5: ='Master Schedule'!$B$53 -> 2010-09-29 | X5: ='Master Schedule'!$B$55 -> 2010-10-01 | Z5: ='Master Schedule'!$B$65 -> 2010-10-11 | AA5: ='Master Schedule'!$B$67 -> 2010-10-13 | AB5: ='Master Schedule'!$B$69 -> 2010-10-15 | AD5: ='Master Schedule'!$B$72 -> 2010-10-18 | AE5: ='Master Schedule'!$B$74 -> 2010-10-20 | AF5: ='Master Schedule'!$B$76 -> 2010-10-22 | AH5: ='Master Schedule'!$B$79 -> 2010-10-25 | AI5: ='Master Schedule'!$B$81 -> 2010-10-27 | AJ5: ='Master Schedule'!$B$83 -> 2010-10-29 | AL5: ='Master Schedule'!$B$86 -> 2010-11-01 | AM5: ='Master Schedule'!$B$88 -> 2010-11-03 | AN5: ='Master Schedule'!$B$90 -> 2010-11-05
B6: Reps | C6: Reps | D6: Reps | F6: Reps | G6: Reps | H6: Reps | J6: Reps | K6: Reps | L6: Reps | N6: Reps | O6: Reps | P6: Reps | R6: Reps | S6: Reps | T6: Reps | V6: Reps | W6: Reps | X6: Reps | Z6: Reps | AA6: Reps | AB6: Reps | AD6: Reps | AE6: Reps | AF6: Reps | AH6: Reps | AI6: Reps | AJ6: Reps | AL6: Reps | AM6: Reps | AN6: Reps
A7: In & Outs | E7: =IF(SUM(B7,C7,D7)=0,0,AVERAGE(B7,C7,D7)) -> 0 | I7: =IF(SUM(F7,G7,H7)=0,0,AVERAGE(F7,G7,H7)) -> 0 | M7: =IF(SUM(J7,K7,L7)=0,0,AVERAGE(J7,K7,L7)) -> 0 | Q7: =IF(SUM(N7,O7,P7)=0,0,AVERAGE(N7,O7,P7)) -> 0 | U7: =IF(SUM(R7,S7,T7)=0,0,AVERAGE(R7,S7,T7)) -> 0 | Y7: =IF(SUM(V7,W7,X7)=0,0,AVERAGE(V7,W7,X7)) -> 0 | AC7: =IF(SUM(Z7,AA7,AB7)=0,0,AVERAGE(Z7,AA7,AB7)) -> 0 | AG7: =IF(SUM(AD7,AE7,AF7)=0,0,AVERAGE(AD7,AE7,AF7)) -> 0 | AK7: =IF(SUM(AH7,AI7,AJ7)=0,0,AVERAGE(AH7,AI7,AJ7)) -> 0 | AO7: =IF(SUM(AL7,AM7,AN7)=0,0,AVERAGE(AL7,AM7,AN7)) -> 0
A8: Bicycles | E8: 0 | I8: 0 | M8: 0 | Q8: 0 | U8: 0 | Y8: 0 | AC8: 0 | AG8: 0 | AK8: 0 | AO8: 0
A9: Crunchy Frogs | E9: 0 | I9: 0 | M9: 0 | Q9: 0 | U9: 0 | Y9: 0 | AC9: 0 | AG9: 0 | AK9: 0 | AO9: 0
A10: Cross Leg/Wide Leg Sit-Ups | E10: 0 | I10: 0 | M10: 0 | Q10: 0 | U10: 0 | Y10: 0 | AC10: 0 | AG10: 0 | AK10: 0 | AO10: 0
A11: Fifer Scissors | E11: 0 | I11: 0 | M11: 0 | Q11: 0 | U11: 0 | Y11: 0 | AC11: 0 | AG11: 0 | AK11: 0 | AO11: 0
A12: Hip Rock'n Raises | E12: 0 | I12: 0 | M12: 0 | Q12: 0 | U12: 0 | Y12: 0 | AC12: 0 | AG12: 0 | AK12: 0 | AO12: 0
A13: Pulse Ups (Heels to the Heaven) | E13: 0 | I13: 0 | M13: 0 | Q13: 0 | U13: 0 | Y13: 0 | AC13: 0 | AG13: 0 | AK13: 0 | AO13: 0
A14: V-Up/Roll-Up Combos | E14: 0 | I14: 0 | M14: 0 | Q14: 0 | U14: 0 | Y14: 0 | AC14: 0 | AG14: 0 | AK14: 0 | AO14: 0
A15: Oblique V-Ups | E15: 0 | I15: 0 | M15: 0 | Q15: 0 | U15: 0 | Y15: 0 | AC15: 0 | AG15: 0 | AK15: 0 | AO15: 0
A16: Leg Climbs | E16: 0 | I16: 0 | M16: 0 | Q16: 0 | U16: 0 | Y16: 0 | AC16: 0 | AG16: 0 | AK16: 0 | AO16: 0
A17: Mason Twists | E17: 0 | I17: 0 | M17: 0 | Q17: 0 | U17: 0 | Y17: 0 | AC17: 0 | AG17: 0 | AK17: 0 | AO17: 0
A18: TOTAL REPS | B18: =IF(SUM(B7:B17)=0,"",SUM(B7:B17)) ->  | C18: =IF(SUM(C7:C17)=0,"",SUM(C7:C17)) ->  | D18: =IF(SUM(D7:D17)=0,"",SUM(D7:D17)) ->  | E18: =IF(SUM(B18,C18,D18)=0,0,AVERAGE(B18,C18,D18)) -> 0 | F18: =IF(SUM(F7:F17)=0,"",SUM(F7:F17)) ->  | G18: =IF(SUM(G7:G17)=0,"",SUM(G7:G17)) ->  | H18: =IF(SUM(H7:H17)=0,"",SUM(H7:H17)) ->  | I18: =IF(SUM(F18,G18,H18)=0,0,AVERAGE(F18,G18,H18)) -> 0 | J18: =IF(SUM(J7:J17)=0,"",SUM(J7:J17)) ->  | K18: =IF(SUM(K7:K17)=0,"",SUM(K7:K17)) ->  | L18: =IF(SUM(L7:L17)=0,"",SUM(L7:L17)) ->  | M18: =IF(SUM(J18,K18,L18)=0,0,AVERAGE(J18,K18,L18)) -> 0 | N18: =IF(SUM(N7:N17)=0,"",SUM(N7:N17)) ->  | O18: =IF(SUM(O7:O17)=0,"",SUM(O7:O17)) ->  | P18: =IF(SUM(P7:P17)=0,"",SUM(P7:P17)) ->  | Q18: =IF(SUM(N18,O18,P18)=0,0,AVERAGE(N18,O18,P18)) -> 0 | R18: =IF(SUM(R7:R17)=0,"",SUM(R7:R17)) ->  | S18: =IF(SUM(S7:S17)=0,"",SUM(S7:S17)) ->  | T18: =IF(SUM(T7:T17)=0,"",SUM(T7:T17)) ->  | U18: =IF(SUM(R18,S18,T18)=0,0,AVERAGE(R18,S18,T18)) -> 0 | V18: =IF(SUM(V7:V17)=0,"",SUM(V7:V17)) ->  | W18: =IF(SUM(W7:W17)=0,"",SUM(W7:W17)) ->  | X18: =IF(SUM(X7:X17)=0,"",SUM(X7:X17)) ->  | Y18: =IF(SUM(V18,W18,X18)=0,0,AVERAGE(V18,W18,X18)) -> 0 | Z18: =IF(SUM(Z7:Z17)=0,"",SUM(Z7:Z17)) ->  | AA18: =IF(SUM(AA7:AA17)=0,"",SUM(AA7:AA17)) ->  | AB18: =IF(SUM(AB7:AB17)=0,"",SUM(AB7:AB17)) ->  | AC18: =IF(SUM(Z18,AA18,AB18)=0,0,AVERAGE(Z18,AA18,AB18)) -> 0 | AD18: =IF(SUM(AD7:AD17)=0,"",SUM(AD7:AD17)) ->  | AE18: =IF(SUM(AE7:AE17)=0,"",SUM(AE7:AE17)) ->  | AF18: =IF(SUM(AF7:AF17)=0,"",SUM(AF7:AF17)) ->  | AG18: =IF(SUM(AD18,AE18,AF18)=0,0,AVERAGE(AD18,AE18,AF18)) -> 0 | AH18: =IF(SUM(AH7:AH17)=0,"",SUM(AH7:AH17)) ->  | AI18: =IF(SUM(AI7:AI17)=0,"",SUM(AI7:AI17)) ->  | AJ18: =IF(SUM(AJ7:AJ17)=0,"",SUM(AJ7:AJ17)) ->  | AK18: =IF(SUM(AH18,AI18,AJ18)=0,0,AVERAGE(AH18,AI18,AJ18)) -> 0 | AL18: =IF(SUM(AL7:AL17)=0,"",SUM(AL7:AL17)) ->  | AM18: =IF(SUM(AM7:AM17)=0,"",SUM(AM7:AM17)) ->  | AN18: =IF(SUM(AN7:AN17)=0,"",SUM(AN7:AN17)) ->  | AO18: =IF(SUM(AL18,AM18,AN18)=0,0,AVERAGE(AL18,AM18,AN18)) -> 0
A19: Classic & Doubles ==> | B19: Chest & Back | C19: Shoulders & Arms | D19: Legs & Back | E19: Yoga X | F19: Chest & Back | G19: Shoulders & Arms | H19: Legs & Back | I19: Yoga X | J19: Chest & Back | K19: Shoulders & Arms | L19: Legs & Back | M19: Yoga X | N19: Chest, Sho & Triceps | O19: Back & Biceps | P19: Legs & Back | Q19: Yoga X | R19: Chest, Sho & Triceps | S19: Back & Biceps | T19: Legs & Back | U19: Yoga X | V19: Chest, Sho & Triceps | W19: Back & Biceps | X19: Legs & Back | Z19: Chest & Back | AA19: Shoulders & Arms | AB19: Legs & Back | AC19: Yoga X | AD19: Chest, Sho & Triceps | AE19: Back & Biceps | AF19: Legs & Back | AH19: Chest & Back | AI19: Shoulders & Arms | AJ19: Legs & Back | AK19: Yoga X | AL19: Chest, Sho & Triceps | AM19: Back & Biceps | AN19: Legs & Back | AO19: Yoga X
A20: Lean ==> | O20: Chest, Sho & Tri (Lean) | S20: Chest, Sho & Tri (Lean) | W20: Chest, Sho & Tri (Lean) | AD20: Chest, Sho & Tri (Lean) | AL20: Chest, Sho & Tri (Lean)
A21: Notes / Supplements:
A22: DVD Time: 0:16:06
A23: 11 MOVES SHOOT FOR 30 EACH
A24: AB RIPPER 339

Sheet Summary 1
A1: Main Menu | B1: Master Schedule | E1: Worksheets | I1: Charts
A2: Chest & Back | B2: 1 | C2: 2 | D2: 3 | E2: 4 | F2: 5 | G2: 6 | H2: 7 | I2: 8 | J2: 9 | K2: 10 | L2: 11 | M2: 12
A3: Standard Push-Ups | B3: ='Chest & Back'!B7+'Chest & Back'!B8 -> 0 | C3: ='Chest & Back'!D7+'Chest & Back'!D8 -> 0 | D3: ='Chest & Back'!F7+'Chest & Back'!F8 -> 0 | J3: ='Chest & Back'!H7+'Chest & Back'!H8 -> 0 | L3: ='Chest & Back'!J7+'Chest & Back'!J8 -> 0
A4: Wide Front Pull-Ups | B4: ='Chest & Back'!B9+'Chest & Back'!B10 -> 0 | C4: ='Chest & Back'!D9+'Chest & Back'!D10 -> 0 | D4: ='Chest & Back'!F9+'Chest & Back'!F10 -> 0 | J4: ='Chest & Back'!H9+'Chest & Back'!H10 -> 0 | L4: ='Chest & Back'!J9+'Chest & Back'!J10 -> 0
A5: Military Push-Ups | B5: ='Chest & Back'!B11+'Chest & Back'!B12 -> 0 | C5: ='Chest & Back'!D11+'Chest & Back'!D12 -> 0 | D5: ='Chest & Back'!F11+'Chest & Back'!F12 -> 0 | J5: ='Chest & Back'!H11+'Chest & Back'!H12 -> 0 | L5: ='Chest & Back'!J11+'Chest & Back'!J12 -> 0
A6: Reverse Grip Chin-Ups | B6: ='Chest & Back'!B13+'Chest & Back'!B14 -> 0 | C6: ='Chest & Back'!D13+'Chest & Back'!D14 -> 0 | D6: ='Chest & Back'!F13+'Chest & Back'!F14 -> 0 | J6: ='Chest & Back'!H13+'Chest & Back'!H14 -> 0 | L6: ='Chest & Back'!J13+'Chest & Back'!J14 -> 0
A7: Wide Fly Push-Ups | B7: ='Chest & Back'!B15+'Chest & Back'!B16 -> 0 | C7: ='Chest & Back'!D15+'Chest & Back'!D16 -> 0 | D7: ='Chest & Back'!F15+'Chest & Back'!F16 -> 0 | J7: ='Chest & Back'!H15+'Chest & Back'!H16 -> 0 | L7: ='Chest & Back'!J15+'Chest & Back'!J16 -> 0
A8: Closed Grip Overhand Pull-Ups | B8: ='Chest & Back'!B17+'Chest & Back'!B18 -> 0 | C8: ='Chest & Back'!D17+'Chest & Back'!D18 -> 0 | D8: ='Chest & Back'!F17+'Chest & Back'!F18 -> 0 | J8: ='Chest & Back'!H17+'Chest & Back'!H18 -> 0 | L8: ='Chest & Back'!J17+'Chest & Back'!J18 -> 0
A9: Decline Push-Ups | B9: ='Chest & Back'!B19+'Chest & Back'!B20 -> 0 | C9: ='Chest & Back'!D19+'Chest & Back'!D20 -> 0 | D9: ='Chest & Back'!F19+'Chest & Back'!F20 -> 0 | J9: ='Chest & Back'!H19+'Chest & Back'!H20 -> 0 | L9: ='Chest & Back'!J19+'Chest & Back'!J20 -> 0
A10: Heavy Pants | B10: ='Chest & Back'!B21*'Chest & Back'!C21+'Chest & Back'!B22*'Chest & Back'!C22 -> 0 | C10: ='Chest & Back'!D21*'Chest & Back'!E21+'Chest & Back'!D22*'Chest & Back'!E22 -> 0 | D10: ='Chest & Back'!F21*'Chest & Back'!G21+'Chest & Back'!F22*'Chest & Back'!G22 -> 0 | J10: ='Chest & Back'!H21*'Chest & Back'!I21+'Chest & Back'!H22*'Chest & Back'!I22 -> 0 | L10: ='Chest & Back'!J21*'Chest & Back'!K21+'Chest & Back'!J22*'Chest & Back'!K22 -> 0
A11: Diamond Push-Ups | B11: ='Chest & Back'!B23+'Chest & Back'!B24 -> 0 | C11: ='Chest & Back'!D23+'Chest & Back'!D24 -> 0 | D11: ='Chest & Back'!F23+'Chest & Back'!F24 -> 0 | J11: ='Chest & Back'!H23+'Chest & Back'!H24 -> 0 | L11: ='Chest & Back'!J23+'Chest & Back'!J24 -> 0
A12: Lawnmowers | B12: ='Chest & Back'!B25*'Chest & Back'!C25+'Chest & Back'!B26*'Chest & Back'!C26 -> 0 | C12: ='Chest & Back'!D25*'Chest & Back'!E25+'Chest & Back'!D26*'Chest & Back'!E26 -> 0 | D12: ='Chest & Back'!F25*'Chest & Back'!G25+'Chest & Back'!F26*'Chest & Back'!G26 -> 0 | J12: ='Chest & Back'!H25*'Chest & Back'!I25+'Chest & Back'!H26*'Chest & Back'!I26 -> 0 | L12: ='Chest & Back'!J25*'Chest & Back'!K25+'Chest & Back'!J26*'Chest & Back'!K26 -> 0
A13: Dive-Bomber Push-Ups | B13: ='Chest & Back'!B27+'Chest & Back'!B28 -> 0 | C13: ='Chest & Back'!D27+'Chest & Back'!D28 -> 0 | D13: ='Chest & Back'!F27+'Chest & Back'!F28 -> 0 | J13: ='Chest & Back'!H27+'Chest & Back'!H28 -> 0 | L13: ='Chest & Back'!J27+'Chest & Back'!J28 -> 0
A14: Back Flyes | B14: ='Chest & Back'!B29*'Chest & Back'!C29+'Chest & Back'!B30*'Chest & Back'!C30 -> 0 | C14: ='Chest & Back'!D29*'Chest & Back'!E29+'Chest & Back'!D30*'Chest & Back'!E30 -> 0 | D14: ='Chest & Back'!F29*'Chest & Back'!G29+'Chest & Back'!F30*'Chest & Back'!G30 -> 0 | J14: ='Chest & Back'!H29*'Chest & Back'!I29+'Chest & Back'!H30*'Chest & Back'!I30 -> 0 | L14: ='Chest & Back'!J29*'Chest & Back'!K29+'Chest & Back'!J30*'Chest & Back'!K30 -> 0
A15: Shoulders & Arms | B15: 1 | C15: 2 | D15: 3 | E15: 4 | F15: 5 | G15: 6 | H15: 7 | I15: 8 | J15: 9 | K15: 10 | L15: 11 | M15: 12
A16: Alternating Shoulder Press | B16: ='Shoulders & Arms'!B7*'Shoulders & Arms'!C7+'Shoulders & Arms'!B8*'Shoulders & Arms'!C8 -> 0 | C16: ='Shoulders & Arms'!D7*'Shoulders & Arms'!E7+'Shoulders & Arms'!D8*'Shoulders & Arms'!E8 -> 0 | D16: ='Shoulders & Arms'!F7*'Shoulders & Arms'!G7+'Shoulders & Arms'!F8*'Shoulders & Arms'!G8 -> 0 | J16: ='Shoulders & Arms'!H7*'Shoulders & Arms'!I7+'Shoulders & Arms'!H8*'Shoulders & Arms'!I8 -> 0 | L16: ='Shoulders & Arms'!J7*'Shoulders & Arms'!K7+'Shoulders & Arms'!J8*'Shoulders & Arms'!K8 -> 0
A17: In & Out Bicep Curl | B17: ='Shoulders & Arms'!B9*'Shoulders & Arms'!C9+'Shoulders & Arms'!B10*'Shoulders & Arms'!C10 -> 0 | C17: ='Shoulders & Arms'!D9*'Shoulders & Arms'!E9+'Shoulders & Arms'!D10*'Shoulders & Arms'!E10 -> 0 | D17: ='Shoulders & Arms'!F9*'Shoulders & Arms'!G9+'Shoulders & Arms'!F10*'Shoulders & Arms'!G10 -> 0 | J17: ='Shoulders & Arms'!H9*'Shoulders & Arms'!I9+'Shoulders & Arms'!H10*'Shoulders & Arms'!I10 -> 0 | L17: ='Shoulders & Arms'!J9*'Shoulders & Arms'!K9+'Shoulders & Arms'!J10*'Shoulders & Arms'!K10 -> 0
A18: Two-Arm Triceps Kickback | B18: ='Shoulders & Arms'!B11*'Shoulders & Arms'!C11+'Shoulders & Arms'!B12*'Shoulders & Arms'!C12 -> 0 | C18: ='Shoulders & Arms'!D11*'Shoulders & Arms'!E11+'Shoulders & Arms'!D12*'Shoulders & Arms'!E12 -> 0 | D18: ='Shoulders & Arms'!F11*'Shoulders & Arms'!G11+'Shoulders & Arms'!F12*'Shoulders & Arms'!G12 -> 0 | J18: ='Shoulders & Arms'!H11*'Shoulders & Arms'!I11+'Shoulders & Arms'!H12*'Shoulders & Arms'!I12 -> 0 | L18: ='Shoulders & Arms'!J11*'Shoulders & Arms'!K11+'Shoulders & Arms'!J12*'Shoulders & Arms'!K12 -> 0
A19: Deep Swimmer's Press | B19: ='Shoulders & Arms'!B13*'Shoulders & Arms'!C13+'Shoulders & Arms'!B14*'Shoulders & Arms'!C14 -> 0 | C19: ='Shoulders & Arms'!D13*'Shoulders & Arms'!E13+'Shoulders & Arms'!D14*'Shoulders & Arms'!E14 -> 0 | D19: ='Shoulders & Arms'!F13*'Shoulders & Arms'!G13+'Shoulders & Arms'!F14*'Shoulders & Arms'!G14 -> 0 | J19: ='Shoulders & Arms'!H13*'Shoulders & Arms'!I13+'Shoulders & Arms'!H14*'Shoulders & Arms'!I14 -> 0 | L19: ='Shoulders & Arms'!J13*'Shoulders & Arms'!K13+'Shoulders & Arms'!J14*'Shoulders & Arms'!K14 -> 0
A20: Full Supination Concentration Curl | B20: ='Shoulders & Arms'!B15*'Shoulders & Arms'!C15+'Shoulders & Arms'!B16*'Shoulders & Arms'!C16 -> 0 | C20: ='Shoulders & Arms'!D15*'Shoulders & Arms'!E15+'Shoulders & Arms'!D16*'Shoulders & Arms'!E16 -> 0 | D20: ='Shoulders & Arms'!F15*'Shoulders & Arms'!G15+'Shoulders & Arms'!F16*'Shoulders & Arms'!G16 -> 0 | J20: ='Shoulders & Arms'!H15*'Shoulders & Arms'!I15+'Shoulders & Arms'!H16*'Shoulders & Arms'!I16 -> 0 | L20: ='Shoulders & Arms'!J15*'Shoulders & Arms'!K15+'Shoulders & Arms'!J16*'Shoulders & Arms'!K16 -> 0
A21: Chair Dip | B21: ='Shoulders & Arms'!B17+'Shoulders & Arms'!B18 -> 0 | C21: ='Shoulders & Arms'!D17+'Shoulders & Arms'!D18 -> 0 | D21: ='Shoulders & Arms'!F17+'Shoulders & Arms'!F18 -> 0 | J21: ='Shoulders & Arms'!H17+'Shoulders & Arms'!H18 -> 0 | L21: ='Shoulders & Arms'!J17+'Shoulders & Arms'!J18 -> 0
A22: Upright Row | B22: ='Shoulders & Arms'!B19*'Shoulders & Arms'!C19+'Shoulders & Arms'!B20*'Shoulders & Arms'!C20 -> 0 | C22: ='Shoulders & Arms'!D19*'Shoulders & Arms'!E19+'Shoulders & Arms'!D20*'Shoulders & Arms'!E20 -> 0 | D22: ='Shoulders & Arms'!F19*'Shoulders & Arms'!G19+'Shoulders & Arms'!F20*'Shoulders & Arms'!G20 -> 0 | J22: ='Shoulders & Arms'!H19*'Shoulders & Arms'!I19+'Shoulders & Arms'!H20*'Shoulders & Arms'!I20 -> 0 | L22: ='Shoulders & Arms'!J19*'Shoulders & Arms'!K19+'Shoulders & Arms'!J20*'Shoulders & Arms'!K20 -> 0
A23: Static Arm Curl | B23: ='Shoulders & Arms'!B21*'Shoulders & Arms'!C21+'Shoulders & Arms'!B22*'Shoulders & Arms'!C22 -> 0 | C23: ='Shoulders & Arms'!D21*'Shoulders & Arms'!E21+'Shoulders & Arms'!D22*'Shoulders & Arms'!E22 -> 0 | D23: ='Shoulders & Arms'!F21*'Shoulders & Arms'!G21+'Shoulders & Arms'!F22*'Shoulders & Arms'!G22 -> 0 | J23: ='Shoulders & Arms'!H21*'Shoulders & Arms'!I21+'Shoulders & Arms'!H22*'Shoulders & Arms'!I22 -> 0 | L23: ='Shoulders & Arms'!J21*'Shoulders & Arms'!K21+'Shoulders & Arms'!J22*'Shoulders & Arms'!K22 -> 0
A24: Flip-Grip Twist Triceps Kickback | B24: ='Shoulders & Arms'!B23*'Shoulders & Arms'!C23+'Shoulders & Arms'!B24*'Shoulders & Arms'!C24 -> 0 | C24: ='Shoulders & Arms'!D23*'Shoulders & Arms'!E23+'Shoulders & Arms'!D24*'Shoulders & Arms'!E24 -> 0 | D24: ='Shoulders & Arms'!F23*'Shoulders & Arms'!G23+'Shoulders & Arms'!F24*'Shoulders & Arms'!G24 -> 0 | J24: ='Shoulders & Arms'!H23*'Shoulders & Arms'!I23+'Shoulders & Arms'!H24*'Shoulders & Arms'!I24 -> 0 | L24: ='Shoulders & Arms'!J23*'Shoulders & Arms'!K23+'Shoulders & Arms'!J24*'Shoulders & Arms'!K24 -> 0
A25: Seated Two-Angle Shoulder Fly | B25: ='Shoulders & Arms'!B25*'Shoulders & Arms'!C25+'Shoulders & Arms'!B26*'Shoulders & Arms'!C26 -> 0 | C25: ='Shoulders & Arms'!D25*'Shoulders & Arms'!E25+'Shoulders & Arms'!D26*'Shoulders & Arms'!E26 -> 0 | D25: ='Shoulders & Arms'!F25*'Shoulders & Arms'!G25+'Shoulders & Arms'!F26*'Shoulders & Arms'!G26 -> 0 | J25: ='Shoulders & Arms'!H25*'Shoulders & Arms'!I25+'Shoulders & Arms'!H26*'Shoulders & Arms'!I26 -> 0 | L25: ='Shoulders & Arms'!J25*'Shoulders & Arms'!K25+'Shoulders & Arms'!J26*'Shoulders & Arms'!K26 -> 0
A26: Crouching Cohen Curl | B26: ='Shoulders & Arms'!B27*'Shoulders & Arms'!C27+'Shoulders & Arms'!B28*'Shoulders & Arms'!C28 -> 0 | C26: ='Shoulders & Arms'!D27*'Shoulders & Arms'!E27+'Shoulders & Arms'!D28*'Shoulders & Arms'!E28 -> 0 | D26: ='Shoulders & Arms'!F27*'Shoulders & Arms'!G27+'Shoulders & Arms'!F28*'Shoulders & Arms'!G28 -> 0 | J26: ='Shoulders & Arms'!H27*'Shoulders & Arms'!I27+'Shoulders & Arms'!H28*'Shoulders & Arms'!I28 -> 0 | L26: ='Shoulders & Arms'!J27*'Shoulders & Arms'!K27+'Shoulders & Arms'!J28*'Shoulders & Arms'!K28 -> 0
A27: Lying-Down Triceps Extension | B27: ='Shoulders & Arms'!B29*'Shoulders & Arms'!C29+'Shoulders & Arms'!B30*'Shoulders & Arms'!C30 -> 0 | C27: ='Shoulders & Arms'!D29*'Shoulders & Arms'!E29+'Shoulders & Arms'!D30*'Shoulders & Arms'!E30 -> 0 | D27: ='Shoulders & Arms'!F29*'Shoulders & Arms'!G29+'Shoulders & Arms'!F30*'Shoulders & Arms'!G30 -> 0 | J27: ='Shoulders & Arms'!H29*'Shoulders & Arms'!I29+'Shoulders & Arms'!H30*'Shoulders & Arms'!I30 -> 0 | L27: ='Shoulders & Arms'!J29*'Shoulders & Arms'!K29+'Shoulders & Arms'!J30*'Shoulders & Arms'!K30 -> 0
A28: In & Out Staight-Arm Shoulder Fly | B28: ='Shoulders & Arms'!B31*'Shoulders & Arms'!C31+'Shoulders & Arms'!B32*'Shoulders & Arms'!C32 -> 0 | C28: ='Shoulders & Arms'!D31*'Shoulders & Arms'!E31+'Shoulders & Arms'!D32*'Shoulders & Arms'!E32 -> 0 | D28: ='Shoulders & Arms'!F31*'Shoulders & Arms'!G31+'Shoulders & Arms'!F32*'Shoulders & Arms'!G32 -> 0 | J28: ='Shoulders & Arms'!H31*'Shoulders & Arms'!I31+'Shoulders & Arms'!H32*'Shoulders & Arms'!I32 -> 0 | L28: ='Shoulders & Arms'!J31*'Shoulders & Arms'!K31+'Shoulders & Arms'!J32*'Shoulders & Arms'!K32 -> 0
A29: Congdon Curl | B29: ='Shoulders & Arms'!B33*'Shoulders & Arms'!C33+'Shoulders & Arms'!B34*'Shoulders & Arms'!C34 -> 0 | C29: ='Shoulders & Arms'!D33*'Shoulders & Arms'!E33+'Shoulders & Arms'!D34*'Shoulders & Arms'!E34 -> 0 | D29: ='Shoulders & Arms'!F33*'Shoulders & Arms'!G33+'Shoulders & Arms'!F34*'Shoulders & Arms'!G34 -> 0 | J29: ='Shoulders & Arms'!H33*'Shoulders & Arms'!I33+'Shoulders & Arms'!H34*'Shoulders & Arms'!I34 -> 0 | L29: ='Shoulders & Arms'!J33*'Shoulders & Arms'!K33+'Shoulders & Arms'!J34*'Shoulders & Arms'!K34 -> 0
A30: Side Tri-Raise | B30: ='Shoulders & Arms'!B35+'Shoulders & Arms'!B36 -> 0 | C30: ='Shoulders & Arms'!D35+'Shoulders & Arms'!D36 -> 0 | D30: ='Shoulders & Arms'!F35+'Shoulders & Arms'!F36 -> 0 | J30: ='Shoulders & Arms'!H35+'Shoulders & Arms'!H36 -> 0 | L30: ='Shoulders & Arms'!J35+'Shoulders & Arms'!J36 -> 0
A31: Legs & Back | B31: 1 | C31: 2 | D31: 3 | E31: 4 | F31: 5 | G31: 6 | H31: 7 | I31: 8 | J31: 9 | K31: 10 | L31: 11 | M31: 12
A32: Balanced Lunges | B32: ='Legs & Back'!B7*'Legs & Back'!C7 -> 0 | C32: ='Legs & Back'!D7*'Legs & Back'!E7 -> 0 | D32: ='Legs & Back'!F7*'Legs & Back'!G7 -> 0 | F32: ='Legs & Back'!H7*'Legs & Back'!I7 -> 0 | G32: ='Legs & Back'!J7*'Legs & Back'!K7 -> 0 | H32: ='Legs & Back'!L7*'Legs & Back'!M7 -> 0 | J32: ='Legs & Back'!N7*'Legs & Back'!O7 -> 0 | K32: ='Legs & Back'!P7*'Legs & Back'!Q7 -> 0 | L32: ='Legs & Back'!R7*'Legs & Back'!S7 -> 0 | M32: ='Legs & Back'!T7*'Legs & Back'!U7 -> 0
A33: Calf Raise Squats | B33: ='Legs & Back'!B8*'Legs & Back'!C8 -> 0 | C33: ='Legs & Back'!D8*'Legs & Back'!E8 -> 0 | D33: ='Legs & Back'!F8*'Legs & Back'!G8 -> 0 | F33: ='Legs & Back'!H8*'Legs & Back'!I8 -> 0 | G33: ='Legs & Back'!J8*'Legs & Back'!K8 -> 0 | H33: ='Legs & Back'!L8*'Legs & Back'!M8 -> 0 | J33: ='Legs & Back'!N8*'Legs & Back'!O8 -> 0 | K33: ='Legs & Back'!P8*'Legs & Back'!Q8 -> 0 | L33: ='Legs & Back'!R8*'Legs & Back'!S8 -> 0 | M33: ='Legs & Back'!T8*'Legs & Back'!U8 -> 0
A34: Reverse Grip Chin-Ups | B34: ='Legs & Back'!B9 -> 0 | C34: ='Legs & Back'!D9 -> 0 | D34: ='Legs & Back'!F9 -> 0 | F34: ='Legs & Back'!H9 -> 0 | G34: ='Legs & Back'!J9 -> 0 | H34: ='Legs & Back'!L9 -> 0 | J34: ='Legs & Back'!N9 -> 0 | K34: ='Legs & Back'!P9 -> 0 | L34: ='Legs & Back'!R9 -> 0 | M34: ='Legs & Back'!T9 -> 0
A35: Super Skaters | B35: ='Legs & Back'!B10 -> 0 | C35: ='Legs & Back'!D10 -> 0 | D35: ='Legs & Back'!F10 -> 0 | F35: ='Legs & Back'!H10 -> 0 | G35: ='Legs & Back'!J10 -> 0 | H35: ='Legs & Back'!L10 -> 0 | J35: ='Legs & Back'!N10 -> 0 | K35: ='Legs & Back'!P10 -> 0 | L35: ='Legs & Back'!R10 -> 0 | M35: ='Legs & Back'!T10 -> 0
A36: Wall Squats | B36: ='Legs & Back'!B11 -> 0 | C36: ='Legs & Back'!D11 -> 0 | D36: ='Legs & Back'!F11 -> 0 | F36: ='Legs & Back'!H11 -> 0 | G36: ='Legs & Back'!J11 -> 0 | H36: ='Legs & Back'!L11 -> 0 | J36: ='Legs & Back'!N11 -> 0 | K36: ='Legs & Back'!P11 -> 0 | L36: ='Legs & Back'!R11 -> 0 | M36: ='Legs & Back'!T11 -> 0
A37: Wide-Front Pull-Ups | B37: ='Legs & Back'!B12 -> 0 | C37: ='Legs & Back'!D12 -> 0 | D37: ='Legs & Back'!F12 -> 0 | F37: ='Legs & Back'!H12 -> 0 | G37: ='Legs & Back'!J12 -> 0 | H37: ='Legs & Back'!L12 -> 0 | J37: ='Legs & Back'!N12 -> 0 | K37: ='Legs & Back'!P12 -> 0 | L37: ='Legs & Back'!R12 -> 0 | M37: ='Legs & Back'!T12 -> 0
A38: Step Back Lunges | B38: ='Legs & Back'!B13*'Legs & Back'!C13 -> 0 | C38: ='Legs & Back'!D13*'Legs & Back'!E13 -> 0 | D38: ='Legs & Back'!F13*'Legs & Back'!G13 -> 0 | F38: ='Legs & Back'!H13*'Legs & Back'!I13 -> 0 | G38: ='Legs & Back'!J13*'Legs & Back'!K13 -> 0 | H38: ='Legs & Back'!L13*'Legs & Back'!M13 -> 0 | J38: ='Legs & Back'!N13*'Legs & Back'!O13 -> 0 | K38: ='Legs & Back'!P13*'Legs & Back'!Q13 -> 0 | L38: ='Legs & Back'!R13*'Legs & Back'!S13 -> 0 | M38: ='Legs & Back'!T13*'Legs & Back'!U13 -> 0
A39: Alternating Side Lunges | B39: ='Legs & Back'!B14*'Legs & Back'!C14 -> 0 | C39: ='Legs & Back'!D14*'Legs & Back'!E14 -> 0 | D39: ='Legs & Back'!F14*'Legs & Back'!G14 -> 0 | F39: ='Legs & Back'!H14*'Legs & Back'!I14 -> 0 | G39: ='Legs & Back'!J14*'Legs & Back'!K14 -> 0 | H39: ='Legs & Back'!L14*'Legs & Back'!M14 -> 0 | J39: ='Legs & Back'!N14*'Legs & Back'!O14 -> 0 | K39: ='Legs & Back'!P14*'Legs & Back'!Q14 -> 0 | L39: ='Legs & Back'!R14*'Legs & Back'!S14 -> 0 | M39: ='Legs & Back'!T14*'Legs & Back'!U14 -> 0
A40: Closed Grip Overhand Pull-Up | B40: ='Legs & Back'!B15 -> 0 | C40: ='Legs & Back'!D15 -> 0 | D40: ='Legs & Back'!F15 -> 0 | F40: ='Legs & Back'!H15 -> 0 | G40: ='Legs & Back'!J15 -> 0 | H40: ='Legs & Back'!L15 -> 0 | J40: ='Legs & Back'!N15 -> 0 | K40: ='Legs & Back'!P15 -> 0 | L40: ='Legs & Back'!R15 -> 0 | M40: ='Legs & Back'!T15 -> 0
A41: Single-Leg Wall Squats | B41: ='Legs & Back'!B16 -> 0 | C41: ='Legs & Back'!D16 -> 0 | D41: ='Legs & Back'!F16 -> 0 | F41: ='Legs & Back'!H16 -> 0 | G41: ='Legs & Back'!J16 -> 0 | H41: ='Legs & Back'!L16 -> 0 | J41: ='Legs & Back'!N16 -> 0 | K41: ='Legs & Back'!P16 -> 0 | L41: ='Legs & Back'!R16 -> 0 | M41: ='Legs & Back'!T16 -> 0
A42: Dead Lift Squats | B42: ='Legs & Back'!B17 -> 0 | C42: ='Legs & Back'!D17 -> 0 | D42: ='Legs & Back'!F17 -> 0 | F42: ='Legs & Back'!H17 -> 0 | G42: ='Legs & Back'!J17 -> 0 | H42: ='Legs & Back'!L17 -> 0 | J42: ='Legs & Back'!N17 -> 0 | K42: ='Legs & Back'!P17 -> 0 | L42: ='Legs & Back'!R17 -> 0 | M42: ='Legs & Back'!T17 -> 0
A43: Switch Grip Pull-Ups | B43: ='Legs & Back'!B18 -> 0 | C43: ='Legs & Back'!D18 -> 0 | D43: ='Legs & Back'!F18 -> 0 | F43: ='Legs & Back'!H18 -> 0 | G43: ='Legs & Back'!J18 -> 0 | H43: ='Legs & Back'!L18 -> 0 | J43: ='Legs & Back'!N18 -> 0 | K43: ='Legs & Back'!P18 -> 0 | L43: ='Legs & Back'!R18 -> 0 | M43: ='Legs & Back'!T18 -> 0
A44: Three-Way Lunges | B44: ='Legs & Back'!B19 -> 0 | C44: ='Legs & Back'!D19 -> 0 | D44: ='Legs & Back'!F19 -> 0 | F44: ='Legs & Back'!H19 -> 0 | G44: ='Legs & Back'!J19 -> 0 | H44: ='Legs & Back'!L19 -> 0 | J44: ='Legs & Back'!N19 -> 0 | K44: ='Legs & Back'!P19 -> 0 | L44: ='Legs & Back'!R19 -> 0 | M44: ='Legs & Back'!T19 -> 0
A45: Sneaky Lunges | B45: ='Legs & Back'!B20 -> 0 | C45: ='Legs & Back'!D20 -> 0 | D45: ='Legs & Back'!F20 -> 0 | F45: ='Legs & Back'!H20 -> 0 | G45: ='Legs & Back'!J20 -> 0 | H45: ='Legs & Back'!L20 -> 0 | J45: ='Legs & Back'!N20 -> 0 | K45: ='Legs & Back'!P20 -> 0 | L45: ='Legs & Back'!R20 -> 0 | M45: ='Legs & Back'!T20 -> 0
A46: Reverse Grip Chin-Ups | B46: ='Legs & Back'!B21 -> 0 | C46: ='Legs & Back'!D21 -> 0 | D46: ='Legs & Back'!F21 -> 0 | F46: ='Legs & Back'!H21 -> 0 | G46: ='Legs & Back'!J21 -> 0 | H46: ='Legs & Back'!L21 -> 0 | J46: ='Legs & Back'!N21 -> 0 | K46: ='Legs & Back'!P21 -> 0 | L46: ='Legs & Back'!R21 -> 0 | M46: ='Legs & Back'!T21 -> 0
A47: Chair Salutations | B47: ='Legs & Back'!B22 -> 0 | C47: ='Legs & Back'!D22 -> 0 | D47: ='Legs & Back'!F22 -> 0 | F47: ='Legs & Back'!H22 -> 0 | G47: ='Legs & Back'!J22 -> 0 | H47: ='Legs & Back'!L22 -> 0 | J47: ='Legs & Back'!N22 -> 0 | K47: ='Legs & Back'!P22 -> 0 | L47: ='Legs & Back'!R22 -> 0 | M47: ='Legs & Back'!T22 -> 0
A48: Toe Row Iso Lunges | B48: ='Legs & Back'!B23*'Legs & Back'!C23 -> 0 | C48: ='Legs & Back'!D23*'Legs & Back'!E23 -> 0 | D48: ='Legs & Back'!F23*'Legs & Back'!G23 -> 0 | F48: ='Legs & Back'!H23*'Legs & Back'!I23 -> 0 | G48: ='Legs & Back'!J23*'Legs & Back'!K23 -> 0 | H48: ='Legs & Back'!L23*'Legs & Back'!M23 -> 0 | J48: ='Legs & Back'!N23*'Legs & Back'!O23 -> 0 | K48: ='Legs & Back'!P23*'Legs & Back'!Q23 -> 0 | L48: ='Legs & Back'!R23*'Legs & Back'!S23 -> 0 | M48: ='Legs & Back'!T23*'Legs & Back'!U23 -> 0
A49: Wide-Front Pull-Ups | B49: ='Legs & Back'!B24 -> 0 | C49: ='Legs & Back'!D24 -> 0 | D49: ='Legs & Back'!F24 -> 0 | F49: ='Legs & Back'!H24 -> 0 | G49: ='Legs & Back'!J24 -> 0 | H49: ='Legs & Back'!L24 -> 0 | J49: ='Legs & Back'!N24 -> 0 | K49: ='Legs & Back'!P24 -> 0 | L49: ='Legs & Back'!R24 -> 0 | M49: ='Legs & Back'!T24 -> 0
A50: Groucho Walk | B50: ='Legs & Back'!B25 -> 0 | C50: ='Legs & Back'!D25 -> 0 | D50: ='Legs & Back'!F25 -> 0 | F50: ='Legs & Back'!H25 -> 0 | G50: ='Legs & Back'!J25 -> 0 | H50: ='Legs & Back'!L25 -> 0 | J50: ='Legs & Back'!N25 -> 0 | K50: ='Legs & Back'!P25 -> 0 | L50: ='Legs & Back'!R25 -> 0 | M50: ='Legs & Back'!T25 -> 0
A51: Calf-Raises | B51: ='Legs & Back'!B26*'Legs & Back'!C26 -> 0 | C51: ='Legs & Back'!D26*'Legs & Back'!E26 -> 0 | D51: ='Legs & Back'!F26*'Legs & Back'!G26 -> 0 | F51: ='Legs & Back'!H26*'Legs & Back'!I26 -> 0 | G51: ='Legs & Back'!J26*'Legs & Back'!K26 -> 0 | H51: ='Legs & Back'!L26*'Legs & Back'!M26 -> 0 | J51: ='Legs & Back'!N26*'Legs & Back'!O26 -> 0 | K51: ='Legs & Back'!P26*'Legs & Back'!Q26 -> 0 | L51: ='Legs & Back'!R26*'Legs & Back'!S26 -> 0 | M51: ='Legs & Back'!T26*'Legs & Back'!U26 -> 0
A52: Close-Grip Overhead Pull-Ups | B52: ='Legs & Back'!B27 -> 0 | C52: ='Legs & Back'!D27 -> 0 | D52: ='Legs & Back'!F27 -> 0 | F52: ='Legs & Back'!H27 -> 0 | G52: ='Legs & Back'!J27 -> 0 | H52: ='Legs & Back'!L27 -> 0 | J52: ='Legs & Back'!N27 -> 0 | K52: ='Legs & Back'!P27 -> 0 | L52: ='Legs & Back'!R27 -> 0 | M52: ='Legs & Back'!T27 -> 0
A53: 80-20 Selbers Speed Squats | B53: ='Legs & Back'!B28 -> 0 | C53: ='Legs & Back'!D28 -> 0 | D53: ='Legs & Back'!F28 -> 0 | F53: ='Legs & Back'!H28 -> 0 | G53: ='Legs & Back'!J28 -> 0 | H53: ='Legs & Back'!L28 -> 0 | J53: ='Legs & Back'!N28 -> 0 | K53: ='Legs & Back'!P28 -> 0 | L53: ='Legs & Back'!R28 -> 0 | M53: ='Legs & Back'!T28 -> 0
A54: Switch Grip Pull-Ups | B54: ='Legs & Back'!B29 -> 0 | C54: ='Legs & Back'!D29 -> 0 | D54: ='Legs & Back'!F29 -> 0 | F54: ='Legs & Back'!H29 -> 0 | G54: ='Legs & Back'!J29 -> 0 | H54: ='Legs & Back'!L29 -> 0 | J54: ='Legs & Back'!N29 -> 0 | K54: ='Legs & Back'!P29 -> 0 | L54: ='Legs & Back'!R29 -> 0 | M54: ='Legs & Back'!T29 -> 0
A55: Chest, Shoulders & Triceps | B55: 1 | C55: 2 | D55: 3 | E55: 4 | F55: 5 | G55: 6 | H55: 7 | I55: 8 | J55: 9 | K55: 10 | L55: 11 | M55: 12
A56: Slow-Motion 3-In-1 Push-Up | F56: ='Chest, Shoulders & Triceps'!B7+'Chest, Shoulders & Triceps'!C7 -> 0 | G56: ='Chest, Shoulders & Triceps'!D7+'Chest, Shoulders & Triceps'!E7 -> 0 | H56: ='Chest, Shoulders & Triceps'!F7+'Chest, Shoulders & Triceps'!G7 -> 0 | K56: ='Chest, Shoulders & Triceps'!H7+'Chest, Shoulders & Triceps'!I7 -> 0 | M56: ='Chest, Shoulders & Triceps'!J7+'Chest, Shoulders & Triceps'!K7 -> 0
A57: In & Out Shoulder Fly | F57: ='Chest, Shoulders & Triceps'!B8*'Chest, Shoulders & Triceps'!C8 -> 0 | G57: ='Chest, Shoulders & Triceps'!D8*'Chest, Shoulders & Triceps'!E8 -> 0 | H57: ='Chest, Shoulders & Triceps'!F8*'Chest, Shoulders & Triceps'!G8 -> 0 | K57: ='Chest, Shoulders & Triceps'!H8*'Chest, Shoulders & Triceps'!I8 -> 0 | M57: ='Chest, Shoulders & Triceps'!J8*'Chest, Shoulders & Triceps'!K8 -> 0
A58: Chair Dip | F58: ='Chest, Shoulders & Triceps'!B9 -> 0 | G58: ='Chest, Shoulders & Triceps'!D9 -> 0 | H58: ='Chest, Shoulders & Triceps'!F9 -> 0 | K58: ='Chest, Shoulders & Triceps'!H9 -> 0 | M58: ='Chest, Shoulders & Triceps'!J9 -> 0
A59: Plange Push-Up | F59: ='Chest, Shoulders & Triceps'!B10 -> 0 | G59: ='Chest, Shoulders & Triceps'!D10 -> 0 | H59: ='Chest, Shoulders & Triceps'!F10 -> 0 | K59: ='Chest, Shoulders & Triceps'!H10 -> 0 | M59: ='Chest, Shoulders & Triceps'!J10 -> 0
A60: Pike Press | F60: ='Chest, Shoulders & Triceps'!B11 -> 0 | G60: ='Chest, Shoulders & Triceps'!D11 -> 0 | H60: ='Chest, Shoulders & Triceps'!F11 -> 0 | K60: ='Chest, Shoulders & Triceps'!H11 -> 0 | M60: ='Chest, Shoulders & Triceps'!J11 -> 0
A61: Side Tri-Rise | F61: ='Chest, Shoulders & Triceps'!B12 -> 0 | G61: ='Chest, Shoulders & Triceps'!D12 -> 0 | H61: ='Chest, Shoulders & Triceps'!F12 -> 0 | K61: ='Chest, Shoulders & Triceps'!H12 -> 0 | M61: ='Chest, Shoulders & Triceps'!J12 -> 0
A62: Floor-Fly | F62: ='Chest, Shoulders & Triceps'!B13 -> 0 | G62: ='Chest, Shoulders & Triceps'!D13 -> 0 | H62: ='Chest, Shoulders & Triceps'!F13 -> 0 | K62: ='Chest, Shoulders & Triceps'!H13 -> 0 | M62: ='Chest, Shoulders & Triceps'!J13 -> 0
A63: Scarecrow | F63: ='Chest, Shoulders & Triceps'!B14*'Chest, Shoulders & Triceps'!C14 -> 0 | G63: ='Chest, Shoulders & Triceps'!D14*'Chest, Shoulders & Triceps'!E14 -> 0 | H63: ='Chest, Shoulders & Triceps'!F14*'Chest, Shoulders & Triceps'!G14 -> 0 | K63: ='Chest, Shoulders & Triceps'!H14*'Chest, Shoulders & Triceps'!I14 -> 0 | M63: ='Chest, Shoulders & Triceps'!J14*'Chest, Shoulders & Triceps'!K14 -> 0
A64: Overhead Triceps Extension | F64: ='Chest, Shoulders & Triceps'!B15*'Chest, Shoulders & Triceps'!C15 -> 0 | G64: ='Chest, Shoulders & Triceps'!D15*'Chest, Shoulders & Triceps'!E15 -> 0 | H64: ='Chest, Shoulders & Triceps'!F15*'Chest, Shoulders & Triceps'!G15 -> 0 | K64: ='Chest, Shoulders & Triceps'!H15*'Chest, Shoulders & Triceps'!I15 -> 0 | M64: ='Chest, Shoulders & Triceps'!J15*'Chest, Shoulders & Triceps'!K15 -> 0
A65: Two-Twitch Speed Push-Up | F65: ='Chest, Shoulders & Triceps'!B16 -> 0 | G65: ='Chest, Shoulders & Triceps'!D16 -> 0 | H65: ='Chest, Shoulders & Triceps'!F16 -> 0 | K65: ='Chest, Shoulders & Triceps'!H16 -> 0 | M65: ='Chest, Shoulders & Triceps'!J16 -> 0
A66: Y-Press | F66: ='Chest, Shoulders & Triceps'!B17*'Chest, Shoulders & Triceps'!C17 -> 0 | G66: ='Chest, Shoulders & Triceps'!D17*'Chest, Shoulders & Triceps'!E17 -> 0 | H66: ='Chest, Shoulders & Triceps'!F17*'Chest, Shoulders & Triceps'!G17 -> 0 | K66: ='Chest, Shoulders & Triceps'!H17*'Chest, Shoulders & Triceps'!I17 -> 0 | M66: ='Chest, Shoulders & Triceps'!J17*'Chest, Shoulders & Triceps'!K17 -> 0
A67: Lying Triceps Extension | F67: ='Chest, Shoulders & Triceps'!B18*'Chest, Shoulders & Triceps'!C18 -> 0 | G67: ='Chest, Shoulders & Triceps'!D18*'Chest, Shoulders & Triceps'!E18 -> 0 | H67: ='Chest, Shoulders & Triceps'!F18*'Chest, Shoulders & Triceps'!G18 -> 0 | K67: ='Chest, Shoulders & Triceps'!H18*'Chest, Shoulders & Triceps'!I18 -> 0 | M67: ='Chest, Shoulders & Triceps'!J18*'Chest, Shoulders & Triceps'!K18 -> 0
A68: Side-To-Side Push-Up | F68: ='Chest, Shoulders & Triceps'!B19 -> 0 | G68: ='Chest, Shoulders & Triceps'!D19 -> 0 | H68: ='Chest, Shoulders & Triceps'!F19 -> 0 | K68: ='Chest, Shoulders & Triceps'!H19 -> 0 | M68: ='Chest, Shoulders & Triceps'!J19 -> 0
A69: Pour Fly | F69: ='Chest, Shoulders & Triceps'!B20*'Chest, Shoulders & Triceps'!C20 -> 0 | G69: ='Chest, Shoulders & Triceps'!D20*'Chest, Shoulders & Triceps'!E20 -> 0 | H69: ='Chest, Shoulders & Triceps'!F20*'Chest, Shoulders & Triceps'!G20 -> 0 | K69: ='Chest, Shoulders & Triceps'!H20*'Chest, Shoulders & Triceps'!I20 -> 0 | M69: ='Chest, Shoulders & Triceps'!J20*'Chest, Shoulders & Triceps'!K20 -> 0
A70: Side-Leaning Triceps Extension | F70: ='Chest, Shoulders & Triceps'!B21*'Chest, Shoulders & Triceps'!C21 -> 0 | G70: ='Chest, Shoulders & Triceps'!D21*'Chest, Shoulders & Triceps'!E21 -> 0 | H70: ='Chest, Shoulders & Triceps'!F21*'Chest, Shoulders & Triceps'!G21 -> 0 | K70: ='Chest, Shoulders & Triceps'!H21*'Chest, Shoulders & Triceps'!I21 -> 0 | M70: ='Chest, Shoulders & Triceps'!J21*'Chest, Shoulders & Triceps'!K21 -> 0
A71: One-Arm Push-Up | F71: ='Chest, Shoulders & Triceps'!B22 -> 0 | G71: ='Chest, Shoulders & Triceps'!D22 -> 0 | H71: ='Chest, Shoulders & Triceps'!F22 -> 0 | K71: ='Chest, Shoulders & Triceps'!H22 -> 0 | M71: ='Chest, Shoulders & Triceps'!J22 -> 0
A72: Weighted Circle | F72: ='Chest, Shoulders & Triceps'!B23*'Chest, Shoulders & Triceps'!C23 -> 0 | G72: ='Chest, Shoulders & Triceps'!D23*'Chest, Shoulders & Triceps'!E23 -> 0 | H72: ='Chest, Shoulders & Triceps'!F23*'Chest, Shoulders & Triceps'!G23 -> 0 | K72: ='Chest, Shoulders & Triceps'!H23*'Chest, Shoulders & Triceps'!I23 -> 0 | M72: ='Chest, Shoulders & Triceps'!J23*'Chest, Shoulders & Triceps'!K23 -> 0
A73: Throw The Bomb | F73: ='Chest, Shoulders & Triceps'!B24*'Chest, Shoulders & Triceps'!C24 -> 0 | G73: ='Chest, Shoulders & Triceps'!D24*'Chest, Shoulders & Triceps'!E24 -> 0 | H73: ='Chest, Shoulders & Triceps'!F24*'Chest, Shoulders & Triceps'!G24 -> 0 | K73: ='Chest, Shoulders & Triceps'!H24*'Chest, Shoulders & Triceps'!I24 -> 0 | M73: ='Chest, Shoulders & Triceps'!J24*'Chest, Shoulders & Triceps'!K24 -> 0
A74: Clap or Plyo Push-Up | F74: ='Chest, Shoulders & Triceps'!B25 -> 0 | G74: ='Chest, Shoulders & Triceps'!D25 -> 0 | H74: ='Chest, Shoulders & Triceps'!F25 -> 0 | K74: ='Chest, Shoulders & Triceps'!H25 -> 0 | M74: ='Chest, Shoulders & Triceps'!J25 -> 0
A75: Slow-Mo Throw | F75: ='Chest, Shoulders & Triceps'!B26*'Chest, Shoulders & Triceps'!C26 -> 0 | G75: ='Chest, Shoulders & Triceps'!D26*'Chest, Shoulders & Triceps'!E26 -> 0 | H75: ='Chest, Shoulders & Triceps'!F26*'Chest, Shoulders & Triceps'!G26 -> 0 | K75: ='Chest, Shoulders & Triceps'!H26*'Chest, Shoulders & Triceps'!I26 -> 0 | M75: ='Chest, Shoulders & Triceps'!J26*'Chest, Shoulders & Triceps'!K26 -> 0
A76: Front-To-Back Triceps Extension | F76: ='Chest, Shoulders & Triceps'!B27*'Chest, Shoulders & Triceps'!C27 -> 0 | G76: ='Chest, Shoulders & Triceps'!D27*'Chest, Shoulders & Triceps'!E27 -> 0 | H76: ='Chest, Shoulders & Triceps'!F27*'Chest, Shoulders & Triceps'!G27 -> 0 | K76: ='Chest, Shoulders & Triceps'!H27*'Chest, Shoulders & Triceps'!I27 -> 0 | M76: ='Chest, Shoulders & Triceps'!J27*'Chest, Shoulders & Triceps'!K27 -> 0
A77: One-Arm Balance Push-Up | F77: ='Chest, Shoulders & Triceps'!B28 -> 0 | G77: ='Chest, Shoulders & Triceps'!D28 -> 0 | H77: ='Chest, Shoulders & Triceps'!F28 -> 0 | K77: ='Chest, Shoulders & Triceps'!H28 -> 0 | M77: ='Chest, Shoulders & Triceps'!J28 -> 0
A78: Fly-Row-Press | F78: ='Chest, Shoulders & Triceps'!B29*'Chest, Shoulders & Triceps'!C29 -> 0 | G78: ='Chest, Shoulders & Triceps'!D29*'Chest, Shoulders & Triceps'!E29 -> 0 | H78: ='Chest, Shoulders & Triceps'!F29*'Chest, Shoulders & Triceps'!G29 -> 0 | K78: ='Chest, Shoulders & Triceps'!H29*'Chest, Shoulders & Triceps'!I29 -> 0 | M78: ='Chest, Shoulders & Triceps'!J29*'Chest, Shoulders & Triceps'!K29 -> 0
A79: Dumbbell Cross-Body Blows | F79: ='Chest, Shoulders & Triceps'!B30*'Chest, Shoulders & Triceps'!C30 -> 0 | G79: ='Chest, Shoulders & Triceps'!D30*'Chest, Shoulders & Triceps'!E30 -> 0 | H79: ='Chest, Shoulders & Triceps'!F30*'Chest, Shoulders & Triceps'!G30 -> 0 | K79: ='Chest, Shoulders & Triceps'!H30*'Chest, Shoulders & Triceps'!I30 -> 0 | M79: ='Chest, Shoulders & Triceps'!J30*'Chest, Shoulders & Triceps'!K30 -> 0
A80: Chest, Shoulders & Triceps (LEAN) | B80: 1 | C80: 2 | D80: 3 | E80: 4 | F80: 5 | G80: 6 | H80: 7 | I80: 8 | J80: 9 | K80: 10 | L80: 11 | M80: 12
A81: Slow-Motion 3-In-1 Push-Up | F81: ='Chest, Shoulders & Triceps (L)'!B7+'Chest, Shoulders & Triceps (L)'!C7 -> 0 | G81: ='Chest, Shoulders & Triceps (L)'!D7+'Chest, Shoulders & Triceps (L)'!E7 -> 0 | H81: ='Chest, Shoulders & Triceps (L)'!F7+'Chest, Shoulders & Triceps (L)'!G7 -> 0 | K81: ='Chest, Shoulders & Triceps (L)'!H7+'Chest, Shoulders & Triceps (L)'!I7 -> 0 | M81: ='Chest, Shoulders & Triceps (L)'!J7+'Chest, Shoulders & Triceps (L)'!K7 -> 0
A82: In & Out Shoulder Fly | F82: ='Chest, Shoulders & Triceps (L)'!B8*'Chest, Shoulders & Triceps (L)'!C8 -> 0 | G82: ='Chest, Shoulders & Triceps (L)'!D8*'Chest, Shoulders & Triceps (L)'!E8 -> 0 | H82: ='Chest, Shoulders & Triceps (L)'!F8*'Chest, Shoulders & Triceps (L)'!G8 -> 0 | K82: ='Chest, Shoulders & Triceps (L)'!H8*'Chest, Shoulders & Triceps (L)'!I8 -> 0 | M82: ='Chest, Shoulders & Triceps (L)'!J8*'Chest, Shoulders & Triceps (L)'!K8 -> 0
A83: Chair Dip | F83: ='Chest, Shoulders & Triceps (L)'!B9 -> 0 | G83: ='Chest, Shoulders & Triceps (L)'!D9 -> 0 | H83: ='Chest, Shoulders & Triceps (L)'!F9 -> 0 | K83: ='Chest, Shoulders & Triceps (L)'!H9 -> 0 | M83: ='Chest, Shoulders & Triceps (L)'!J9 -> 0
A84: Plange Push-Up | F84: ='Chest, Shoulders & Triceps (L)'!B10 -> 0 | G84: ='Chest, Shoulders & Triceps (L)'!D10 -> 0 | H84: ='Chest, Shoulders & Triceps (L)'!F10 -> 0 | K84: ='Chest, Shoulders & Triceps (L)'!H10 -> 0 | M84: ='Chest, Shoulders & Triceps (L)'!J10 -> 0
A85: Pike Press | F85: ='Chest, Shoulders & Triceps (L)'!B11 -> 0 | G85: ='Chest, Shoulders & Triceps (L)'!D11 -> 0 | H85: ='Chest, Shoulders & Triceps (L)'!F11 -> 0 | K85: ='Chest, Shoulders & Triceps (L)'!H11 -> 0 | M85: ='Chest, Shoulders & Triceps (L)'!J11 -> 0
A86: Side Tri-Rise | F86: ='Chest, Shoulders & Triceps (L)'!B12 -> 0 | G86: ='Chest, Shoulders & Triceps (L)'!D12 -> 0 | H86: ='Chest, Shoulders & Triceps (L)'!F12 -> 0 | K86: ='Chest, Shoulders & Triceps (L)'!H12 -> 0 | M86: ='Chest, Shoulders & Triceps (L)'!J12 -> 0
A87: Floor-Fly | F87: ='Chest, Shoulders & Triceps (L)'!B13 -> 0 | G87: ='Chest, Shoulders & Triceps (L)'!D13 -> 0 | H87: ='Chest, Shoulders & Triceps (L)'!F13 -> 0 | K87: ='Chest, Shoulders & Triceps (L)'!H13 -> 0 | M87: ='Chest, Shoulders & Triceps (L)'!J13 -> 0
A88: Scarecrow | F88: ='Chest, Shoulders & Triceps (L)'!B14*'Chest, Shoulders & Triceps (L)'!C14 -> 0 | G88: ='Chest, Shoulders & Triceps (L)'!D14*'Chest, Shoulders & Triceps (L)'!E14 -> 0 | H88: ='Chest, Shoulders & Triceps (L)'!F14*'Chest, Shoulders & Triceps (L)'!G14 -> 0 | K88: ='Chest, Shoulders & Triceps (L)'!H14*'Chest, Shoulders & Triceps (L)'!I14 -> 0 | M88: ='Chest, Shoulders & Triceps (L)'!J14*'Chest, Shoulders & Triceps (L)'!K14 -> 0
A89: Overhead Triceps Extension | F89: ='Chest, Shoulders & Triceps (L)'!B15*'Chest, Shoulders & Triceps (L)'!C15 -> 0 | G89: ='Chest, Shoulders & Triceps (L)'!D15*'Chest, Shoulders & Triceps (L)'!E15 -> 0 | H89: ='Chest, Shoulders & Triceps (L)'!F15*'Chest, Shoulders & Triceps (L)'!G15 -> 0 | K89: ='Chest, Shoulders & Triceps (L)'!H15*'Chest, Shoulders & Triceps (L)'!I15 -> 0 | M89: ='Chest, Shoulders & Triceps (L)'!J15*'Chest, Shoulders & Triceps (L)'!K15 -> 0
A90: Two-Twitch Speed Push-Up | F90: ='Chest, Shoulders & Triceps (L)'!B16 -> 0 | G90: ='Chest, Shoulders & Triceps (L)'!D16 -> 0 | H90: ='Chest, Shoulders & Triceps (L)'!F16 -> 0 | K90: ='Chest, Shoulders & Triceps (L)'!H16 -> 0 | M90: ='Chest, Shoulders & Triceps (L)'!J16 -> 0
A91: Y-Press | F91: ='Chest, Shoulders & Triceps (L)'!B17*'Chest, Shoulders & Triceps (L)'!C17 -> 0 | G91: ='Chest, Shoulders & Triceps (L)'!D17*'Chest, Shoulders & Triceps (L)'!E17 -> 0 | H91: ='Chest, Shoulders & Triceps (L)'!F17*'Chest, Shoulders & Triceps (L)'!G17 -> 0 | K91: ='Chest, Shoulders & Triceps (L)'!H17*'Chest, Shoulders & Triceps (L)'!I17 -> 0 | M91: ='Chest, Shoulders & Triceps (L)'!J17*'Chest, Shoulders & Triceps (L)'!K17 -> 0
A92: Lying Triceps Extension | F92: ='Chest, Shoulders & Triceps (L)'!B18*'Chest, Shoulders & Triceps (L)'!C18 -> 0 | G92: ='Chest, Shoulders & Triceps (L)'!D18*'Chest, Shoulders & Triceps (L)'!E18 -> 0 | H92: ='Chest, Shoulders & Triceps (L)'!F18*'Chest, Shoulders & Triceps (L)'!G18 -> 0 | K92: ='Chest, Shoulders & Triceps (L)'!H18*'Chest, Shoulders & Triceps (L)'!I18 -> 0 | M92: ='Chest, Shoulders & Triceps (L)'!J18*'Chest, Shoulders & Triceps (L)'!K18 -> 0
A93: Side-To-Side Push-Up | F93: ='Chest, Shoulders & Triceps (L)'!B19 -> 0 | G93: ='Chest, Shoulders & Triceps (L)'!D19 -> 0 | H93: ='Chest, Shoulders & Triceps (L)'!F19 -> 0 | K93: ='Chest, Shoulders & Triceps (L)'!H19 -> 0 | M93: ='Chest, Shoulders & Triceps (L)'!J19 -> 0
A94: Pour Fly | F94: ='Chest, Shoulders & Triceps (L)'!B20*'Chest, Shoulders & Triceps (L)'!C20 -> 0 | G94: ='Chest, Shoulders & Triceps (L)'!D20*'Chest, Shoulders & Triceps (L)'!E20 -> 0 | H94: ='Chest, Shoulders & Triceps (L)'!F20*'Chest, Shoulders & Triceps (L)'!G20 -> 0 | K94: ='Chest, Shoulders & Triceps (L)'!H20*'Chest, Shoulders & Triceps (L)'!I20 -> 0 | M94: ='Chest, Shoulders & Triceps (L)'!J20*'Chest, Shoulders & Triceps (L)'!K20 -> 0
A95: Side-Leaning Triceps Extension | F95: ='Chest, Shoulders & Triceps (L)'!B21*'Chest, Shoulders & Triceps (L)'!C21 -> 0 | G95: ='Chest, Shoulders & Triceps (L)'!D21*'Chest, Shoulders & Triceps (L)'!E21 -> 0 | H95: ='Chest, Shoulders & Triceps (L)'!F21*'Chest, Shoulders & Triceps (L)'!G21 -> 0 | K95: ='Chest, Shoulders & Triceps (L)'!H21*'Chest, Shoulders & Triceps (L)'!I21 -> 0 | M95: ='Chest, Shoulders & Triceps (L)'!J21*'Chest, Shoulders & Triceps (L)'!K21 -> 0
A96: One-Arm Push-Up | F96: ='Chest, Shoulders & Triceps (L)'!B22 -> 0 | G96: ='Chest, Shoulders & Triceps (L)'!D22 -> 0 | H96: ='Chest, Shoulders & Triceps (L)'!F22 -> 0 | K96: ='Chest, Shoulders & Triceps (L)'!H22 -> 0 | M96: ='Chest, Shoulders & Triceps (L)'!J22 -> 0
A97: Weighted Circle | F97: ='Chest, Shoulders & Triceps (L)'!B23*'Chest, Shoulders & Triceps (L)'!C23 -> 0 | G97: ='Chest, Shoulders & Triceps (L)'!D23*'Chest, Shoulders & Triceps (L)'!E23 -> 0 | H97: ='Chest, Shoulders & Triceps (L)'!F23*'Chest, Shoulders & Triceps (L)'!G23 -> 0 | K97: ='Chest, Shoulders & Triceps (L)'!H23*'Chest, Shoulders & Triceps (L)'!I23 -> 0 | M97: ='Chest, Shoulders & Triceps (L)'!J23*'Chest, Shoulders & Triceps (L)'!K23 -> 0
A98: Throw The Bomb | F98: ='Chest, Shoulders & Triceps (L)'!B24*'Chest, Shoulders & Triceps (L)'!C24 -> 0 | G98: ='Chest, Shoulders & Triceps (L)'!D24*'Chest, Shoulders & Triceps (L)'!E24 -> 0 | H98: ='Chest, Shoulders & Triceps (L)'!F24*'Chest, Shoulders & Triceps (L)'!G24 -> 0 | K98: ='Chest, Shoulders & Triceps (L)'!H24*'Chest, Shoulders & Triceps (L)'!I24 -> 0 | M98: ='Chest, Shoulders & Triceps (L)'!J24*'Chest, Shoulders & Triceps (L)'!K24 -> 0
A99: Clap or Plyo Push-Up | F99: ='Chest, Shoulders & Triceps (L)'!B25 -> 0 | G99: ='Chest, Shoulders & Triceps (L)'!D25 -> 0 | H99: ='Chest, Shoulders & Triceps (L)'!F25 -> 0 | K99: ='Chest, Shoulders & Triceps (L)'!H25 -> 0 | M99: ='Chest, Shoulders & Triceps (L)'!J25 -> 0
A100: Slow-Mo Throw | F100: ='Chest, Shoulders & Triceps (L)'!B26*'Chest, Shoulders & Triceps (L)'!C26 -> 0 | G100: ='Chest, Shoulders & Triceps (L)'!D26*'Chest, Shoulders & Triceps (L)'!E26 -> 0 | H100: ='Chest, Shoulders & Triceps (L)'!F26*'Chest, Shoulders & Triceps (L)'!G26 -> 0 | K100: ='Chest, Shoulders & Triceps (L)'!H26*'Chest, Shoulders & Triceps (L)'!I26 -> 0 | M100: ='Chest, Shoulders & Triceps (L)'!J26*'Chest, Shoulders & Triceps (L)'!K26 -> 0
A101: Front-To-Back Triceps Extension | F101: ='Chest, Shoulders & Triceps (L)'!B27*'Chest, Shoulders & Triceps (L)'!C27 -> 0 | G101: ='Chest, Shoulders & Triceps (L)'!D27*'Chest, Shoulders & Triceps (L)'!E27 -> 0 | H101: ='Chest, Shoulders & Triceps (L)'!F27*'Chest, Shoulders & Triceps (L)'!G27 -> 0 | K101: ='Chest, Shoulders & Triceps (L)'!H27*'Chest, Shoulders & Triceps (L)'!I27 -> 0 | M101: ='Chest, Shoulders & Triceps (L)'!J27*'Chest, Shoulders & Triceps (L)'!K27 -> 0
A102: One-Arm Balance Push-Up | F102: ='Chest, Shoulders & Triceps (L)'!B28 -> 0 | G102: ='Chest, Shoulders & Triceps (L)'!D28 -> 0 | H102: ='Chest, Shoulders & Triceps (L)'!F28 -> 0 | K102: ='Chest, Shoulders & Triceps (L)'!H28 -> 0 | M102: ='Chest, Shoulders & Triceps (L)'!J28 -> 0
A103: Fly-Row-Press | F103: ='Chest, Shoulders & Triceps (L)'!B29*'Chest, Shoulders & Triceps (L)'!C29 -> 0 | G103: ='Chest, Shoulders & Triceps (L)'!D29*'Chest, Shoulders & Triceps (L)'!E29 -> 0 | H103: ='Chest, Shoulders & Triceps (L)'!F29*'Chest, Shoulders & Triceps (L)'!G29 -> 0 | K103: ='Chest, Shoulders & Triceps (L)'!H29*'Chest, Shoulders & Triceps (L)'!I29 -> 0 | M103: ='Chest, Shoulders & Triceps (L)'!J29*'Chest, Shoulders & Triceps (L)'!K29 -> 0
A104: Dumbbell Cross-Body Blows | F104: ='Chest, Shoulders & Triceps (L)'!B30*'Chest, Shoulders & Triceps (L)'!C30 -> 0 | G104: ='Chest, Shoulders & Triceps (L)'!D30*'Chest, Shoulders & Triceps (L)'!E30 -> 0 | H104: ='Chest, Shoulders & Triceps (L)'!F30*'Chest, Shoulders & Triceps (L)'!G30 -> 0 | K104: ='Chest, Shoulders & Triceps (L)'!H30*'Chest, Shoulders & Triceps (L)'!I30 -> 0 | M104: ='Chest, Shoulders & Triceps (L)'!J30*'Chest, Shoulders & Triceps (L)'!K30 -> 0
A105: Back & Biceps | B105: 1 | C105: 2 | D105: 3 | E105: 4 | F105: 5 | G105: 6 | H105: 7 | I105: 8 | J105: 9 | K105: 10 | L105: 11 | M105: 12
A106: Wide Front Pull-Ups | F106: ='Back & Biceps'!B7 -> 0 | G106: ='Back & Biceps'!D7 -> 0 | H106: ='Back & Biceps'!F7 -> 0 | K106: ='Back & Biceps'!H7 -> 0 | M106: ='Back & Biceps'!J7 -> 0
A107: Lawnmowers | F107: ='Back & Biceps'!B8*'Back & Biceps'!C8 -> 0 | G107: ='Back & Biceps'!D8*'Back & Biceps'!E8 -> 0 | H107: ='Back & Biceps'!F8*'Back & Biceps'!G8 -> 0 | K107: ='Back & Biceps'!H8*'Back & Biceps'!I8 -> 0 | M107: ='Back & Biceps'!J8*'Back & Biceps'!K8 -> 0
A108: Twenty-Ones | F108: ='Back & Biceps'!B9*'Back & Biceps'!C9 -> 0 | G108: ='Back & Biceps'!D9*'Back & Biceps'!E9 -> 0 | H108: ='Back & Biceps'!F9*'Back & Biceps'!G9 -> 0 | K108: ='Back & Biceps'!H9*'Back & Biceps'!I9 -> 0 | M108: ='Back & Biceps'!J9*'Back & Biceps'!K9 -> 0
A109: One-Arm Cross-Body Curls | F109: ='Back & Biceps'!B10*'Back & Biceps'!C10 -> 0 | G109: ='Back & Biceps'!D10*'Back & Biceps'!E10 -> 0 | H109: ='Back & Biceps'!F10*'Back & Biceps'!G10 -> 0 | K109: ='Back & Biceps'!H10*'Back & Biceps'!I10 -> 0 | M109: ='Back & Biceps'!J10*'Back & Biceps'!K10 -> 0
A110: Switch Grip Pull-Ups | F110: ='Back & Biceps'!B11 -> 0 | G110: ='Back & Biceps'!D11 -> 0 | H110: ='Back & Biceps'!F11 -> 0 | K110: ='Back & Biceps'!H11 -> 0 | M110: ='Back & Biceps'!J11 -> 0
A111: Elbows-Out Lawnmowers | F111: ='Back & Biceps'!B12*'Back & Biceps'!C12 -> 0 | G111: ='Back & Biceps'!D12*'Back & Biceps'!E12 -> 0 | H111: ='Back & Biceps'!F12*'Back & Biceps'!G12 -> 0 | K111: ='Back & Biceps'!H12*'Back & Biceps'!I12 -> 0 | M111: ='Back & Biceps'!J12*'Back & Biceps'!K12 -> 0
A112: Standing Bicep Curls | F112: ='Back & Biceps'!B13*'Back & Biceps'!C13 -> 0 | G112: ='Back & Biceps'!D13*'Back & Biceps'!E13 -> 0 | H112: ='Back & Biceps'!F13*'Back & Biceps'!G13 -> 0 | K112: ='Back & Biceps'!H13*'Back & Biceps'!I13 -> 0 | M112: ='Back & Biceps'!J13*'Back & Biceps'!K13 -> 0
A113: One-Arm Concentration Curls | F113: ='Back & Biceps'!B14*'Back & Biceps'!C14 -> 0 | G113: ='Back & Biceps'!D14*'Back & Biceps'!E14 -> 0 | H113: ='Back & Biceps'!F14*'Back & Biceps'!G14 -> 0 | K113: ='Back & Biceps'!H14*'Back & Biceps'!I14 -> 0 | M113: ='Back & Biceps'!J14*'Back & Biceps'!K14 -> 0
A114: Corn Cob Pull-Ups | F114: ='Back & Biceps'!B15 -> 0 | G114: ='Back & Biceps'!D15 -> 0 | H114: ='Back & Biceps'!F15 -> 0 | K114: ='Back & Biceps'!H15 -> 0 | M114: ='Back & Biceps'!J15 -> 0
A115: Reverse Grip Bent-Over Rows | F115: ='Back & Biceps'!B16*'Back & Biceps'!C16 -> 0 | G115: ='Back & Biceps'!D16*'Back & Biceps'!E16 -> 0 | H115: ='Back & Biceps'!F16*'Back & Biceps'!G16 -> 0 | K115: ='Back & Biceps'!H16*'Back & Biceps'!I16 -> 0 | M115: ='Back & Biceps'!J16*'Back & Biceps'!K16 -> 0
A116: One Arm Curls | F116: ='Back & Biceps'!B17*'Back & Biceps'!C17 -> 0 | G116: ='Back & Biceps'!D17*'Back & Biceps'!E17 -> 0 | H116: ='Back & Biceps'!F17*'Back & Biceps'!G17 -> 0 | K116: ='Back & Biceps'!H17*'Back & Biceps'!I17 -> 0 | M116: ='Back & Biceps'!J17*'Back & Biceps'!K17 -> 0
A117: Static Arm Curls | F117: ='Back & Biceps'!B18*'Back & Biceps'!C18 -> 0 | G117: ='Back & Biceps'!D18*'Back & Biceps'!E18 -> 0 | H117: ='Back & Biceps'!F18*'Back & Biceps'!G18 -> 0 | K117: ='Back & Biceps'!H18*'Back & Biceps'!I18 -> 0 | M117: ='Back & Biceps'!J18*'Back & Biceps'!K18 -> 0
A118: Towel Pull-Ups | F118: ='Back & Biceps'!B19 -> 0 | G118: ='Back & Biceps'!D19 -> 0 | H118: ='Back & Biceps'!F19 -> 0 | K118: ='Back & Biceps'!H19 -> 0 | M118: ='Back & Biceps'!J19 -> 0
A119: Congdon Locomotives | F119: ='Back & Biceps'!B20*'Back & Biceps'!C20 -> 0 | G119: ='Back & Biceps'!D20*'Back & Biceps'!E20 -> 0 | H119: ='Back & Biceps'!F20*'Back & Biceps'!G20 -> 0 | K119: ='Back & Biceps'!H20*'Back & Biceps'!I20 -> 0 | M119: ='Back & Biceps'!J20*'Back & Biceps'!K20 -> 0
A120: Crouching Cohen Curls | F120: ='Back & Biceps'!B21*'Back & Biceps'!C21 -> 0 | G120: ='Back & Biceps'!D21*'Back & Biceps'!E21 -> 0 | H120: ='Back & Biceps'!F21*'Back & Biceps'!G21 -> 0 | K120: ='Back & Biceps'!H21*'Back & Biceps'!I21 -> 0 | M120: ='Back & Biceps'!J21*'Back & Biceps'!K21 -> 0
A121: One-Arm Corkscrew Curls | F121: ='Back & Biceps'!B22*'Back & Biceps'!C22 -> 0 | G121: ='Back & Biceps'!D22*'Back & Biceps'!E22 -> 0 | H121: ='Back & Biceps'!F22*'Back & Biceps'!G22 -> 0 | K121: ='Back & Biceps'!H22*'Back & Biceps'!I22 -> 0 | M121: ='Back & Biceps'!J22*'Back & Biceps'!K22 -> 0
A122: Chin-Ups | F122: ='Back & Biceps'!B23 -> 0 | G122: ='Back & Biceps'!D23 -> 0 | H122: ='Back & Biceps'!F23 -> 0 | K122: ='Back & Biceps'!H23 -> 0 | M122: ='Back & Biceps'!J23 -> 0
A123: Seated Bent-Over Back Flys | F123: ='Back & Biceps'!B24*'Back & Biceps'!C24 -> 0 | G123: ='Back & Biceps'!D24*'Back & Biceps'!E24 -> 0 | H123: ='Back & Biceps'!F24*'Back & Biceps'!G24 -> 0 | K123: ='Back & Biceps'!H24*'Back & Biceps'!I24 -> 0 | M123: ='Back & Biceps'!J24*'Back & Biceps'!K24 -> 0
A124: Curl Up / Hammer Downs | F124: ='Back & Biceps'!B25*'Back & Biceps'!C25 -> 0 | G124: ='Back & Biceps'!D25*'Back & Biceps'!E25 -> 0 | H124: ='Back & Biceps'!F25*'Back & Biceps'!G25 -> 0 | K124: ='Back & Biceps'!H25*'Back & Biceps'!I25 -> 0 | M124: ='Back & Biceps'!J25*'Back & Biceps'!K25 -> 0
A125: Hammer Curls | F125: ='Back & Biceps'!B26*'Back & Biceps'!C26 -> 0 | G125: ='Back & Biceps'!D26*'Back & Biceps'!E26 -> 0 | H125: ='Back & Biceps'!F26*'Back & Biceps'!G26 -> 0 | K125: ='Back & Biceps'!H26*'Back & Biceps'!I26 -> 0 | M125: ='Back & Biceps'!J26*'Back & Biceps'!K26 -> 0
A126: Max Rep Pull-Ups | F126: ='Back & Biceps'!B27 -> 0 | G126: ='Back & Biceps'!D27 -> 0 | H126: ='Back & Biceps'!F27 -> 0 | K126: ='Back & Biceps'!H27 -> 0 | M126: ='Back & Biceps'!J27 -> 0
A127: Superman | F127: ='Back & Biceps'!B28 -> 0 | G127: ='Back & Biceps'!D28 -> 0 | H127: ='Back & Biceps'!F28 -> 0 | K127: ='Back & Biceps'!H28 -> 0 | M127: ='Back & Biceps'!J28 -> 0
A128: In-Out Hammer Curls | F128: ='Back & Biceps'!B29*'Back & Biceps'!C29 -> 0 | G128: ='Back & Biceps'!D29*'Back & Biceps'!E29 -> 0 | H128: ='Back & Biceps'!F29*'Back & Biceps'!G29 -> 0 | K128: ='Back & Biceps'!H29*'Back & Biceps'!I29 -> 0 | M128: ='Back & Biceps'!J29*'Back & Biceps'!K29 -> 0
A129: Strip-Set Curls | F129: ='Back & Biceps'!B30*'Back & Biceps'!C30 -> 0 | G129: ='Back & Biceps'!D30*'Back & Biceps'!E30 -> 0 | H129: ='Back & Biceps'!F30*'Back & Biceps'!G30 -> 0 | K129: ='Back & Biceps'!H30*'Back & Biceps'!I30 -> 0 | M129: ='Back & Biceps'!J30*'Back & Biceps'!K30 -> 0
A130: Ab Ripper X | B130: 1 | C130: 2 | D130: 3 | E130: 4 | F130: 5 | G130: 6 | H130: 7 | I130: 8 | J130: 9 | K130: 10 | L130: 11 | M130: 12
A131: In & Outs | B131: ='Ab Ripper X'!E7 -> 0 | C131: ='Ab Ripper X'!I7 -> 0 | D131: ='Ab Ripper X'!M7 -> 0 | F131: ='Ab Ripper X'!Q7 -> 0 | G131: ='Ab Ripper X'!U7 -> 0 | H131: ='Ab Ripper X'!Y7 -> 0 | J131: ='Ab Ripper X'!AC7 -> 0 | K131: ='Ab Ripper X'!AG7 -> 0 | L131: ='Ab Ripper X'!AK7 -> 0 | M131: ='Ab Ripper X'!AO7 -> 0
A132: Bicycles | B132: ='Ab Ripper X'!E8 -> 0 | C132: ='Ab Ripper X'!I8 -> 0 | D132: ='Ab Ripper X'!M8 -> 0 | F132: ='Ab Ripper X'!Q8 -> 0 | G132: ='Ab Ripper X'!U8 -> 0 | H132: ='Ab Ripper X'!Y8 -> 0 | J132: ='Ab Ripper X'!AC8 -> 0 | K132: ='Ab Ripper X'!AG8 -> 0 | L132: ='Ab Ripper X'!AK8 -> 0 | M132: ='Ab Ripper X'!AO8 -> 0
A133: Crunchy Frogs | B133: ='Ab Ripper X'!E9 -> 0 | C133: ='Ab Ripper X'!I9 -> 0 | D133: ='Ab Ripper X'!M9 -> 0 | F133: ='Ab Ripper X'!Q9 -> 0 | G133: ='Ab Ripper X'!U9 -> 0 | H133: ='Ab Ripper X'!Y9 -> 0 | J133: ='Ab Ripper X'!AC9 -> 0 | K133: ='Ab Ripper X'!AG9 -> 0 | L133: ='Ab Ripper X'!AK9 -> 0 | M133: ='Ab Ripper X'!AO9 -> 0
A134: Cross Leg/Wide Leg Sit-Ups | B134: ='Ab Ripper X'!E10 -> 0 | C134: ='Ab Ripper X'!I10 -> 0 | D134: ='Ab Ripper X'!M10 -> 0 | F134: ='Ab Ripper X'!Q10 -> 0 | G134: ='Ab Ripper X'!U10 -> 0 | H134: ='Ab Ripper X'!Y10 -> 0 | J134: ='Ab Ripper X'!AC10 -> 0 | K134: ='Ab Ripper X'!AG10 -> 0 | L134: ='Ab Ripper X'!AK10 -> 0 | M134: ='Ab Ripper X'!AO10 -> 0
A135: Fifer Scissors | B135: ='Ab Ripper X'!E11 -> 0 | C135: ='Ab Ripper X'!I11 -> 0 | D135: ='Ab Ripper X'!M11 -> 0 | F135: ='Ab Ripper X'!Q11 -> 0 | G135: ='Ab Ripper X'!U11 -> 0 | H135: ='Ab Ripper X'!Y11 -> 0 | J135: ='Ab Ripper X'!AC11 -> 0 | K135: ='Ab Ripper X'!AG11 -> 0 | L135: ='Ab Ripper X'!AK11 -> 0 | M135: ='Ab Ripper X'!AO11 -> 0
A136: Hip Rock'n Raises | B136: ='Ab Ripper X'!E12 -> 0 | C136: ='Ab Ripper X'!I12 -> 0 | D136: ='Ab Ripper X'!M12 -> 0 | F136: ='Ab Ripper X'!Q12 -> 0 | G136: ='Ab Ripper X'!U12 -> 0 | H136: ='Ab Ripper X'!Y12 -> 0 | J136: ='Ab Ripper X'!AC12 -> 0 | K136: ='Ab Ripper X'!AG12 -> 0 | L136: ='Ab Ripper X'!AK12 -> 0 | M136: ='Ab Ripper X'!AO12 -> 0
A137: Pulse Ups (Heels to the Heaven) | B137: ='Ab Ripper X'!E13 -> 0 | C137: ='Ab Ripper X'!I13 -> 0 | D137: ='Ab Ripper X'!M13 -> 0 | F137: ='Ab Ripper X'!Q13 -> 0 | G137: ='Ab Ripper X'!U13 -> 0 | H137: ='Ab Ripper X'!Y13 -> 0 | J137: ='Ab Ripper X'!AC13 -> 0 | K137: ='Ab Ripper X'!AG13 -> 0 | L137: ='Ab Ripper X'!AK13 -> 0 | M137: ='Ab Ripper X'!AO13 -> 0
A138: V-Up/Roll-Up Combos | B138: ='Ab Ripper X'!E14 -> 0 | C138: ='Ab Ripper X'!I14 -> 0 | D138: ='Ab Ripper X'!M14 -> 0 | F138: ='Ab Ripper X'!Q14 -> 0 | G138: ='Ab Ripper X'!U14 -> 0 | H138: ='Ab Ripper X'!Y14 -> 0 | J138: ='Ab Ripper X'!AC14 -> 0 | K138: ='Ab Ripper X'!AG14 -> 0 | L138: ='Ab Ripper X'!AK14 -> 0 | M138: ='Ab Ripper X'!AO14 -> 0
A139: Oblique V-Ups | B139: ='Ab Ripper X'!E15 -> 0 | C139: ='Ab Ripper X'!I15 -> 0 | D139: ='Ab Ripper X'!M15 -> 0 | F139: ='Ab Ripper X'!Q15 -> 0 | G139: ='Ab Ripper X'!U15 -> 0 | H139: ='Ab Ripper X'!Y15 -> 0 | J139: ='Ab Ripper X'!AC15 -> 0 | K139: ='Ab Ripper X'!AG15 -> 0 | L139: ='Ab Ripper X'!AK15 -> 0 | M139: ='Ab Ripper X'!AO15 -> 0
A140: Leg Climbs | B140: ='Ab Ripper X'!E16 -> 0 | C140: ='Ab Ripper X'!I16 -> 0 | D140: ='Ab Ripper X'!M16 -> 0 | F140: ='Ab Ripper X'!Q16 -> 0 | G140: ='Ab Ripper X'!U16 -> 0 | H140: ='Ab Ripper X'!Y16 -> 0 | J140: ='Ab Ripper X'!AC16 -> 0 | K140: ='Ab Ripper X'!AG16 -> 0 | L140: ='Ab Ripper X'!AK16 -> 0 | M140: ='Ab Ripper X'!AO16 -> 0
A141: Mason Twists | B141: ='Ab Ripper X'!E17 -> 0 | C141: ='Ab Ripper X'!I17 -> 0 | D141: ='Ab Ripper X'!M17 -> 0 | F141: ='Ab Ripper X'!Q17 -> 0 | G141: ='Ab Ripper X'!U17 -> 0 | H141: ='Ab Ripper X'!Y17 -> 0 | J141: ='Ab Ripper X'!AC17 -> 0 | K141: ='Ab Ripper X'!AG17 -> 0 | L141: ='Ab Ripper X'!AK17 -> 0 | M141: ='Ab Ripper X'!AO17 -> 0
A142: Weekly Ab Ripper X Avgs | B142: ='Ab Ripper X'!E18 -> 0 | C142: ='Ab Ripper X'!I18 -> 0 | D142: ='Ab Ripper X'!M18 -> 0 | F142: ='Ab Ripper X'!Q18 -> 0 | G142: ='Ab Ripper X'!U18 -> 0 | H142: ='Ab Ripper X'!Y18 -> 0 | J142: ='Ab Ripper X'!AC18 -> 0 | K142: ='Ab Ripper X'!AG18 -> 0 | L142: ='Ab Ripper X'!AK18 -> 0 | M142: ='Ab Ripper X'!AO18 -> 0

Sheet Summary 2 (hidden)
A1: Main Menu | B1: Master Schedule | D1: Workout Journals Menu | G1: Workout Graphs Menu
A2: Chest & Back | B2: Week 1 | C2: Week 2 | D2: Week 3 | E2: Week 9 | F2: Week 11
A3: Standard Push-Ups | B3: =IF($G3,'Summary 1'!B3,NA()) -> 0 | C3: =IF($G3,'Summary 1'!C3,NA()) -> 0 | D3: =IF($G3,'Summary 1'!D3,NA()) -> 0 | E3: =IF($G3,'Summary 1'!J3,NA()) -> 0 | F3: =IF($G3,'Summary 1'!L3,NA()) -> 0 | G3: ='Chest & Back Chart'!$K32 -> TRUE
A4: Wide Front Pull-Ups | B4: =IF($G4,'Summary 1'!B4,NA()) -> 0 | C4: =IF($G4,'Summary 1'!C4,NA()) -> 0 | D4: =IF($G4,'Summary 1'!D4,NA()) -> 0 | E4: =IF($G4,'Summary 1'!J4,NA()) -> 0 | F4: =IF($G4,'Summary 1'!L4,NA()) -> 0 | G4: ='Chest & Back Chart'!$K33 -> TRUE
A5: Military Push-Ups | B5: =IF($G5,'Summary 1'!B5,NA()) -> 0 | C5: =IF($G5,'Summary 1'!C5,NA()) -> 0 | D5: =IF($G5,'Summary 1'!D5,NA()) -> 0 | E5: =IF($G5,'Summary 1'!J5,NA()) -> 0 | F5: =IF($G5,'Summary 1'!L5,NA()) -> 0 | G5: ='Chest & Back Chart'!$K34 -> TRUE
A6: Reverse Grip Chin-Ups | B6: =IF($G6,'Summary 1'!B6,NA()) -> 0 | C6: =IF($G6,'Summary 1'!C6,NA()) -> 0 | D6: =IF($G6,'Summary 1'!D6,NA()) -> 0 | E6: =IF($G6,'Summary 1'!J6,NA()) -> 0 | F6: =IF($G6,'Summary 1'!L6,NA()) -> 0 | G6: ='Chest & Back Chart'!$K35 -> TRUE
A7: Wide Fly Push-Ups | B7: =IF($G7,'Summary 1'!B7,NA()) -> 0 | C7: =IF($G7,'Summary 1'!C7,NA()) -> 0 | D7: =IF($G7,'Summary 1'!D7,NA()) -> 0 | E7: =IF($G7,'Summary 1'!J7,NA()) -> 0 | F7: =IF($G7,'Summary 1'!L7,NA()) -> 0 | G7: ='Chest & Back Chart'!$K36 -> TRUE
A8: Closed Grip Overhand Pull-Ups | B8: =IF($G8,'Summary 1'!B8,NA()) -> 0 | C8: =IF($G8,'Summary 1'!C8,NA()) -> 0 | D8: =IF($G8,'Summary 1'!D8,NA()) -> 0 | E8: =IF($G8,'Summary 1'!J8,NA()) -> 0 | F8: =IF($G8,'Summary 1'!L8,NA()) -> 0 | G8: ='Chest & Back Chart'!$K37 -> TRUE
A9: Decline Push-Ups | B9: =IF($G9,'Summary 1'!B9,NA()) -> 0 | C9: =IF($G9,'Summary 1'!C9,NA()) -> 0 | D9: =IF($G9,'Summary 1'!D9,NA()) -> 0 | E9: =IF($G9,'Summary 1'!J9,NA()) -> 0 | F9: =IF($G9,'Summary 1'!L9,NA()) -> 0 | G9: ='Chest & Back Chart'!$K38 -> TRUE
A10: Heavy Pants | B10: =IF($G10,'Summary 1'!B10,NA()) ->  | C10: =IF($G10,'Summary 1'!C10,NA()) ->  | D10: =IF($G10,'Summary 1'!D10,NA()) ->  | E10: =IF($G10,'Summary 1'!J10,NA()) ->  | F10: =IF($G10,'Summary 1'!L10,NA()) ->  | G10: ='Chest & Back Chart'!$K39 -> FALSE
A11: Diamond Push-Ups | B11: =IF($G11,'Summary 1'!B11,NA()) -> 0 | C11: =IF($G11,'Summary 1'!C11,NA()) -> 0 | D11: =IF($G11,'Summary 1'!D11,NA()) -> 0 | E11: =IF($G11,'Summary 1'!J11,NA()) -> 0 | F11: =IF($G11,'Summary 1'!L11,NA()) -> 0 | G11: ='Chest & Back Chart'!$K40 -> TRUE
A12: Lawnmowers | B12: =IF($G12,'Summary 1'!B12,NA()) ->  | C12: =IF($G12,'Summary 1'!C12,NA()) ->  | D12: =IF($G12,'Summary 1'!D12,NA()) ->  | E12: =IF($G12,'Summary 1'!J12,NA()) ->  | F12: =IF($G12,'Summary 1'!L12,NA()) ->  | G12: ='Chest & Back Chart'!$K41 -> FALSE
A13: Dive-Bomber Push-Ups | B13: =IF($G13,'Summary 1'!B13,NA()) -> 0 | C13: =IF($G13,'Summary 1'!C13,NA()) -> 0 | D13: =IF($G13,'Summary 1'!D13,NA()) -> 0 | E13: =IF($G13,'Summary 1'!J13,NA()) -> 0 | F13: =IF($G13,'Summary 1'!L13,NA()) -> 0 | G13: ='Chest & Back Chart'!$K42 -> TRUE
A14: Back Flyes | B14: =IF($G14,'Summary 1'!B14,NA()) ->  | C14: =IF($G14,'Summary 1'!C14,NA()) ->  | D14: =IF($G14,'Summary 1'!D14,NA()) ->  | E14: =IF($G14,'Summary 1'!J14,NA()) ->  | F14: =IF($G14,'Summary 1'!L14,NA()) ->  | G14: ='Chest & Back Chart'!$K43 -> FALSE
A15: Shoulders & Arms | B15: Week 1 | C15: Week 2 | D15: Week 3 | E15: Week 9 | F15: Week 11
A16: Alternating Shoulder Press | B16: =IF($G16,'Summary 1'!B16,NA()) ->  | C16: =IF($G16,'Summary 1'!C16,NA()) ->  | D16: =IF($G16,'Summary 1'!D16,NA()) ->  | E16: =IF($G16,'Summary 1'!J16,NA()) ->  | F16: =IF($G16,'Summary 1'!L16,NA()) ->  | G16: ='Shoulders & Arms Chart'!$K32 -> FALSE
A17: In & Out Bicep Curl | B17: =IF($G17,'Summary 1'!B17,NA()) -> 0 | C17: =IF($G17,'Summary 1'!C17,NA()) -> 0 | D17: =IF($G17,'Summary 1'!D17,NA()) -> 0 | E17: =IF($G17,'Summary 1'!J17,NA()) -> 0 | F17: =IF($G17,'Summary 1'!L17,NA()) -> 0 | G17: ='Shoulders & Arms Chart'!$K33 -> TRUE
A18: Two-Arm Triceps Kickback | B18: =IF($G18,'Summary 1'!B18,NA()) ->  | C18: =IF($G18,'Summary 1'!C18,NA()) ->  | D18: =IF($G18,'Summary 1'!D18,NA()) ->  | E18: =IF($G18,'Summary 1'!J18,NA()) ->  | F18: =IF($G18,'Summary 1'!L18,NA()) ->  | G18: ='Shoulders & Arms Chart'!$K34 -> FALSE
A19: Deep Swimmer's Press | B19: =IF($G19,'Summary 1'!B19,NA()) ->  | C19: =IF($G19,'Summary 1'!C19,NA()) ->  | D19: =IF($G19,'Summary 1'!D19,NA()) ->  | E19: =IF($G19,'Summary 1'!J19,NA()) ->  | F19: =IF($G19,'Summary 1'!L19,NA()) ->  | G19: ='Shoulders & Arms Chart'!$K35 -> FALSE
A20: Full Supination Concentration Curl | B20: =IF($G20,'Summary 1'!B20,NA()) -> 0 | C20: =IF($G20,'Summary 1'!C20,NA()) -> 0 | D20: =IF($G20,'Summary 1'!D20,NA()) -> 0 | E20: =IF($G20,'Summary 1'!J20,NA()) -> 0 | F20: =IF($G20,'Summary 1'!L20,NA()) -> 0 | G20: ='Shoulders & Arms Chart'!$K36 -> TRUE
A21: Chair Dip | B21: =IF($G21,'Summary 1'!B21,NA()) ->  | C21: =IF($G21,'Summary 1'!C21,NA()) ->  | D21: =IF($G21,'Summary 1'!D21,NA()) ->  | E21: =IF($G21,'Summary 1'!J21,NA()) ->  | F21: =IF($G21,'Summary 1'!L21,NA()) ->  | G21: ='Shoulders & Arms Chart'!$K37 -> FALSE
A22: Upright Row | B22: =IF($G22,'Summary 1'!B22,NA()) ->  | C22: =IF($G22,'Summary 1'!C22,NA()) ->  | D22: =IF($G22,'Summary 1'!D22,NA()) ->  | E22: =IF($G22,'Summary 1'!J22,NA()) ->  | F22: =IF($G22,'Summary 1'!L22,NA()) ->  | G22: ='Shoulders & Arms Chart'!$K38 -> FALSE
A23: Static Arm Curl | B23: =IF($G23,'Summary 1'!B23,NA()) -> 0 | C23: =IF($G23,'Summary 1'!C23,NA()) -> 0 | D23: =IF($G23,'Summary 1'!D23,NA()) -> 0 | E23: =IF($G23,'Summary 1'!J23,NA()) -> 0 | F23: =IF($G23,'Summary 1'!L23,NA()) -> 0 | G23: ='Shoulders & Arms Chart'!$K39 -> TRUE
A24: Flip-Grip Twist Triceps Kickback | B24: =IF($G24,'Summary 1'!B24,NA()) ->  | C24: =IF($G24,'Summary 1'!C24,NA()) ->  | D24: =IF($G24,'Summary 1'!D24,NA()) ->  | E24: =IF($G24,'Summary 1'!J24,NA()) ->  | F24: =IF($G24,'Summary 1'!L24,NA()) ->  | G24: ='Shoulders & Arms Chart'!$K40 -> FALSE
A25: Seated Two-Angle Shoulder Fly | B25: =IF($G25,'Summary 1'!B25,NA()) ->  | C25: =IF($G25,'Summary 1'!C25,NA()) ->  | D25: =IF($G25,'Summary 1'!D25,NA()) ->  | E25: =IF($G25,'Summary 1'!J25,NA()) ->  | F25: =IF($G25,'Summary 1'!L25,NA()) ->  | G25: ='Shoulders & Arms Chart'!$K41 -> FALSE
A26: Crouching Cohen Curl | B26: =IF($G26,'Summary 1'!B26,NA()) -> 0 | C26: =IF($G26,'Summary 1'!C26,NA()) -> 0 | D26: =IF($G26,'Summary 1'!D26,NA()) -> 0 | E26: =IF($G26,'Summary 1'!J26,NA()) -> 0 | F26: =IF($G26,'Summary 1'!L26,NA()) -> 0 | G26: ='Shoulders & Arms Chart'!$K42 -> TRUE
A27: Lying-Down Triceps Extension | B27: =IF($G27,'Summary 1'!B27,NA()) ->  | C27: =IF($G27,'Summary 1'!C27,NA()) ->  | D27: =IF($G27,'Summary 1'!D27,NA()) ->  | E27: =IF($G27,'Summary 1'!J27,NA()) ->  | F27: =IF($G27,'Summary 1'!L27,NA()) ->  | G27: ='Shoulders & Arms Chart'!$K43 -> FALSE
A28: In & Out Staight-Arm Shoulder Fly | B28: =IF($G28,'Summary 1'!B28,NA()) ->  | C28: =IF($G28,'Summary 1'!C28,NA()) ->  | D28: =IF($G28,'Summary 1'!D28,NA()) ->  | E28: =IF($G28,'Summary 1'!J28,NA()) ->  | F28: =IF($G28,'Summary 1'!L28,NA()) ->  | G28: ='Shoulders & Arms Chart'!$K44 -> FALSE
A29: Congdon Curl | B29: =IF($G29,'Summary 1'!B29,NA()) -> 0 | C29: =IF($G29,'Summary 1'!C29,NA()) -> 0 | D29: =IF($G29,'Summary 1'!D29,NA()) -> 0 | E29: =IF($G29,'Summary 1'!J29,NA()) -> 0 | F29: =IF($G29,'Summary 1'!L29,NA()) -> 0 | G29: ='Shoulders & Arms Chart'!$K45 -> TRUE
A30: Side Tri-Raise | B30: =IF($G30,'Summary 1'!B30,NA()) ->  | C30: =IF($G30,'Summary 1'!C30,NA()) ->  | D30: =IF($G30,'Summary 1'!D30,NA()) ->  | E30: =IF($G30,'Summary 1'!J30,NA()) ->  | F30: =IF($G30,'Summary 1'!L30,NA()) ->  | G30: ='Shoulders & Arms Chart'!$K46 -> FALSE
A31: Legs & Back | B31: Week 1 | C31: Week 2 | D31: Week 3 | E31: Week 5 | F31: Week 6 | G31: Week 7 | H31: Week 10 | I31: Week 10 | J31: Week 11 | K31: Week 12
A32: Balanced Lunges | B32: =IF($L32,'Summary 1'!B32,NA()) ->  | C32: =IF($L32,'Summary 1'!C32,NA()) ->  | D32: =IF($L32,'Summary 1'!D32,NA()) ->  | E32: =IF($L32,'Summary 1'!F32,NA()) ->  | F32: =IF($L32,'Summary 1'!G32,NA()) ->  | G32: =IF($L32,'Summary 1'!H32,NA()) ->  | H32: =IF($L32,'Summary 1'!J32,NA()) ->  | I32: =IF($L32,'Summary 1'!K32,NA()) ->  | J32: =IF($L32,'Summary 1'!L32,NA()) ->  | K32: =IF($L32,'Summary 1'!M32,NA()) ->  | L32: ='Legs & Back Chart'!$P34 -> FALSE
A33: Calf Raise Squats | B33: =IF($L33,'Summary 1'!B33,NA()) ->  | C33: =IF($L33,'Summary 1'!C33,NA()) ->  | D33: =IF($L33,'Summary 1'!D33,NA()) ->  | E33: =IF($L33,'Summary 1'!F33,NA()) ->  | F33: =IF($L33,'Summary 1'!G33,NA()) ->  | G33: =IF($L33,'Summary 1'!H33,NA()) ->  | H33: =IF($L33,'Summary 1'!J33,NA()) ->  | I33: =IF($L33,'Summary 1'!K33,NA()) ->  | J33: =IF($L33,'Summary 1'!L33,NA()) ->  | K33: =IF($L33,'Summary 1'!M33,NA()) ->  | L33: ='Legs & Back Chart'!$P35 -> FALSE
A34: Reverse Grip Chin-Ups | B34: =IF($L34,'Summary 1'!B34,NA()) -> 0 | C34: =IF($L34,'Summary 1'!C34,NA()) -> 0 | D34: =IF($L34,'Summary 1'!D34,NA()) -> 0 | E34: =IF($L34,'Summary 1'!F34,NA()) -> 0 | F34: =IF($L34,'Summary 1'!G34,NA()) -> 0 | G34: =IF($L34,'Summary 1'!H34,NA()) -> 0 | H34: =IF($L34,'Summary 1'!J34,NA()) -> 0 | I34: =IF($L34,'Summary 1'!K34,NA()) -> 0 | J34: =IF($L34,'Summary 1'!L34,NA()) -> 0 | K34: =IF($L34,'Summary 1'!M34,NA()) -> 0 | L34: ='Legs & Back Chart'!$P36 -> TRUE
A35: Super Skaters | B35: =IF($L35,'Summary 1'!B35,NA()) ->  | C35: =IF($L35,'Summary 1'!C35,NA()) ->  | D35: =IF($L35,'Summary 1'!D35,NA()) ->  | E35: =IF($L35,'Summary 1'!F35,NA()) ->  | F35: =IF($L35,'Summary 1'!G35,NA()) ->  | G35: =IF($L35,'Summary 1'!H35,NA()) ->  | H35: =IF($L35,'Summary 1'!J35,NA()) ->  | I35: =IF($L35,'Summary 1'!K35,NA()) ->  | J35: =IF($L35,'Summary 1'!L35,NA()) ->  | K35: =IF($L35,'Summary 1'!M35,NA()) ->  | L35: ='Legs & Back Chart'!$P37 -> FALSE
A36: Wall Squats | B36: =IF($L36,'Summary 1'!B36,NA()) ->  | C36: =IF($L36,'Summary 1'!C36,NA()) ->  | D36: =IF($L36,'Summary 1'!D36,NA()) ->  | E36: =IF($L36,'Summary 1'!F36,NA()) ->  | F36: =IF($L36,'Summary 1'!G36,NA()) ->  | G36: =IF($L36,'Summary 1'!H36,NA()) ->  | H36: =IF($L36,'Summary 1'!J36,NA()) ->  | I36: =IF($L36,'Summary 1'!K36,NA()) ->  | J36: =IF($L36,'Summary 1'!L36,NA()) ->  | K36: =IF($L36,'Summary 1'!M36,NA()) ->  | L36: ='Legs & Back Chart'!$P38 -> FALSE
A37: Wide-Front Pull-Ups | B37: =IF($L37,'Summary 1'!B37,NA()) -> 0 | C37: =IF($L37,'Summary 1'!C37,NA()) -> 0 | D37: =IF($L37,'Summary 1'!D37,NA()) -> 0 | E37: =IF($L37,'Summary 1'!F37,NA()) -> 0 | F37: =IF($L37,'Summary 1'!G37,NA()) -> 0 | G37: =IF($L37,'Summary 1'!H37,NA()) -> 0 | H37: =IF($L37,'Summary 1'!J37,NA()) -> 0 | I37: =IF($L37,'Summary 1'!K37,NA()) -> 0 | J37: =IF($L37,'Summary 1'!L37,NA()) -> 0 | K37: =IF($L37,'Summary 1'!M37,NA()) -> 0 | L37: ='Legs & Back Chart'!$P39 -> TRUE
A38: Step Back Lunges | B38: =IF($L38,'Summary 1'!B38,NA()) ->  | C38: =IF($L38,'Summary 1'!C38,NA()) ->  | D38: =IF($L38,'Summary 1'!D38,NA()) ->  | E38: =IF($L38,'Summary 1'!F38,NA()) ->  | F38: =IF($L38,'Summary 1'!G38,NA()) ->  | G38: =IF($L38,'Summary 1'!H38,NA()) ->  | H38: =IF($L38,'Summary 1'!J38,NA()) ->  | I38: =IF($L38,'Summary 1'!K38,NA()) ->  | J38: =IF($L38,'Summary 1'!L38,NA()) ->  | K38: =IF($L38,'Summary 1'!M38,NA()) ->  | L38: ='Legs & Back Chart'!$P40 -> FALSE
A39: Alternating Side Lunges | B39: =IF($L39,'Summary 1'!B39,NA()) ->  | C39: =IF($L39,'Summary 1'!C39,NA()) ->  | D39: =IF($L39,'Summary 1'!D39,NA()) ->  | E39: =IF($L39,'Summary 1'!F39,NA()) ->  | F39: =IF($L39,'Summary 1'!G39,NA()) ->  | G39: =IF($L39,'Summary 1'!H39,NA()) ->  | H39: =IF($L39,'Summary 1'!J39,NA()) ->  | I39: =IF($L39,'Summary 1'!K39,NA()) ->  | J39: =IF($L39,'Summary 1'!L39,NA()) ->  | K39: =IF($L39,'Summary 1'!M39,NA()) ->  | L39: ='Legs & Back Chart'!$P41 -> FALSE
A40: Closed Grip Overhand Pull-Up | B40: =IF($L40,'Summary 1'!B40,NA()) -> 0 | C40: =IF($L40,'Summary 1'!C40,NA()) -> 0 | D40: =IF($L40,'Summary 1'!D40,NA()) -> 0 | E40: =IF($L40,'Summary 1'!F40,NA()) -> 0 | F40: =IF($L40,'Summary 1'!G40,NA()) -> 0 | G40: =IF($L40,'Summary 1'!H40,NA()) -> 0 | H40: =IF($L40,'Summary 1'!J40,NA()) -> 0 | I40: =IF($L40,'Summary 1'!K40,NA()) -> 0 | J40: =IF($L40,'Summary 1'!L40,NA()) -> 0 | K40: =IF($L40,'Summary 1'!M40,NA()) -> 0 | L40: ='Legs & Back Chart'!$P42 -> TRUE
A41: Single-Leg Wall Squats | B41: =IF($L41,'Summary 1'!B41,NA()) ->  | C41: =IF($L41,'Summary 1'!C41,NA()) ->  | D41: =IF($L41,'Summary 1'!D41,NA()) ->  | E41: =IF($L41,'Summary 1'!F41,NA()) ->  | F41: =IF($L41,'Summary 1'!G41,NA()) ->  | G41: =IF($L41,'Summary 1'!H41,NA()) ->  | H41: =IF($L41,'Summary 1'!J41,NA()) ->  | I41: =IF($L41,'Summary 1'!K41,NA()) ->  | J41: =IF($L41,'Summary 1'!L41,NA()) ->  | K41: =IF($L41,'Summary 1'!M41,NA()) ->  | L41: ='Legs & Back Chart'!$P43 -> FALSE
A42: Dead Lift Squats | B42: =IF($L42,'Summary 1'!B42,NA()) ->  | C42: =IF($L42,'Summary 1'!C42,NA()) ->  | D42: =IF($L42,'Summary 1'!D42,NA()) ->  | E42: =IF($L42,'Summary 1'!F42,NA()) ->  | F42: =IF($L42,'Summary 1'!G42,NA()) ->  | G42: =IF($L42,'Summary 1'!H42,NA()) ->  | H42: =IF($L42,'Summary 1'!J42,NA()) ->  | I42: =IF($L42,'Summary 1'!K42,NA()) ->  | J42: =IF($L42,'Summary 1'!L42,NA()) ->  | K42: =IF($L42,'Summary 1'!M42,NA()) ->  | L42: ='Legs & Back Chart'!$P44 -> FALSE
A43: Switch Grip Pull-Ups | B43: =IF($L43,'Summary 1'!B43,NA()) -> 0 | C43: =IF($L43,'Summary 1'!C43,NA()) -> 0 | D43: =IF($L43,'Summary 1'!D43,NA()) -> 0 | E43: =IF($L43,'Summary 1'!F43,NA()) -> 0 | F43: =IF($L43,'Summary 1'!G43,NA()) -> 0 | G43: =IF($L43,'Summary 1'!H43,NA()) -> 0 | H43: =IF($L43,'Summary 1'!J43,NA()) -> 0 | I43: =IF($L43,'Summary 1'!K43,NA()) -> 0 | J43: =IF($L43,'Summary 1'!L43,NA()) -> 0 | K43: =IF($L43,'Summary 1'!M43,NA()) -> 0 | L43: ='Legs & Back Chart'!$P45 -> TRUE
A44: Three-Way Lunges | B44: =IF($L44,'Summary 1'!B44,NA()) ->  | C44: =IF($L44,'Summary 1'!C44,NA()) ->  | D44: =IF($L44,'Summary 1'!D44,NA()) ->  | E44: =IF($L44,'Summary 1'!F44,NA()) ->  | F44: =IF($L44,'Summary 1'!G44,NA()) ->  | G44: =IF($L44,'Summary 1'!H44,NA()) ->  | H44: =IF($L44,'Summary 1'!J44,NA()) ->  | I44: =IF($L44,'Summary 1'!K44,NA()) ->  | J44: =IF($L44,'Summary 1'!L44,NA()) ->  | K44: =IF($L44,'Summary 1'!M44,NA()) ->  | L44: ='Legs & Back Chart'!$P46 -> FALSE
A45: Sneaky Lunges | B45: =IF($L45,'Summary 1'!B45,NA()) ->  | C45: =IF($L45,'Summary 1'!C45,NA()) ->  | D45: =IF($L45,'Summary 1'!D45,NA()) ->  | E45: =IF($L45,'Summary 1'!F45,NA()) ->  | F45: =IF($L45,'Summary 1'!G45,NA()) ->  | G45: =IF($L45,'Summary 1'!H45,NA()) ->  | H45: =IF($L45,'Summary 1'!J45,NA()) ->  | I45: =IF($L45,'Summary 1'!K45,NA()) ->  | J45: =IF($L45,'Summary 1'!L45,NA()) ->  | K45: =IF($L45,'Summary 1'!M45,NA()) ->  | L45: ='Legs & Back Chart'!$P47 -> FALSE
A46: Reverse Grip Chin-Ups | B46: =IF($L46,'Summary 1'!B46,NA()) -> 0 | C46: =IF($L46,'Summary 1'!C46,NA()) -> 0 | D46: =IF($L46,'Summary 1'!D46,NA()) -> 0 | E46: =IF($L46,'Summary 1'!F46,NA()) -> 0 | F46: =IF($L46,'Summary 1'!G46,NA()) -> 0 | G46: =IF($L46,'Summary 1'!H46,NA()) -> 0 | H46: =IF($L46,'Summary 1'!J46,NA()) -> 0 | I46: =IF($L46,'Summary 1'!K46,NA()) -> 0 | J46: =IF($L46,'Summary 1'!L46,NA()) -> 0 | K46: =IF($L46,'Summary 1'!M46,NA()) -> 0 | L46: ='Legs & Back Chart'!$P48 -> TRUE
A47: Chair Salutations | B47: =IF($L47,'Summary 1'!B47,NA()) ->  | C47: =IF($L47,'Summary 1'!C47,NA()) ->  | D47: =IF($L47,'Summary 1'!D47,NA()) ->  | E47: =IF($L47,'Summary 1'!F47,NA()) ->  | F47: =IF($L47,'Summary 1'!G47,NA()) ->  | G47: =IF($L47,'Summary 1'!H47,NA()) ->  | H47: =IF($L47,'Summary 1'!J47,NA()) ->  | I47: =IF($L47,'Summary 1'!K47,NA()) ->  | J47: =IF($L47,'Summary 1'!L47,NA()) ->  | K47: =IF($L47,'Summary 1'!M47,NA()) ->  | L47: ='Legs & Back Chart'!$P49 -> FALSE
A48: Toe Row Iso Lunges | B48: =IF($L48,'Summary 1'!B48,NA()) ->  | C48: =IF($L48,'Summary 1'!C48,NA()) ->  | D48: =IF($L48,'Summary 1'!D48,NA()) ->  | E48: =IF($L48,'Summary 1'!F48,NA()) ->  | F48: =IF($L48,'Summary 1'!G48,NA()) ->  | G48: =IF($L48,'Summary 1'!H48,NA()) ->  | H48: =IF($L48,'Summary 1'!J48,NA()) ->  | I48: =IF($L48,'Summary 1'!K48,NA()) ->  | J48: =IF($L48,'Summary 1'!L48,NA()) ->  | K48: =IF($L48,'Summary 1'!M48,NA()) ->  | L48: ='Legs & Back Chart'!$P50 -> FALSE
A49: Wide-Front Pull-Ups | B49: =IF($L49,'Summary 1'!B49,NA()) -> 0 | C49: =IF($L49,'Summary 1'!C49,NA()) -> 0 | D49: =IF($L49,'Summary 1'!D49,NA()) -> 0 | E49: =IF($L49,'Summary 1'!F49,NA()) -> 0 | F49: =IF($L49,'Summary 1'!G49,NA()) -> 0 | G49: =IF($L49,'Summary 1'!H49,NA()) -> 0 | H49: =IF($L49,'Summary 1'!J49,NA()) -> 0 | I49: =IF($L49,'Summary 1'!K49,NA()) -> 0 | J49: =IF($L49,'Summary 1'!L49,NA()) -> 0 | K49: =IF($L49,'Summary 1'!M49,NA()) -> 0 | L49: ='Legs & Back Chart'!$P51 -> TRUE
A50: Groucho Walk | B50: =IF($L50,'Summary 1'!B50,NA()) ->  | C50: =IF($L50,'Summary 1'!C50,NA()) ->  | D50: =IF($L50,'Summary 1'!D50,NA()) ->  | E50: =IF($L50,'Summary 1'!F50,NA()) ->  | F50: =IF($L50,'Summary 1'!G50,NA()) ->  | G50: =IF($L50,'Summary 1'!H50,NA()) ->  | H50: =IF($L50,'Summary 1'!J50,NA()) ->  | I50: =IF($L50,'Summary 1'!K50,NA()) ->  | J50: =IF($L50,'Summary 1'!L50,NA()) ->  | K50: =IF($L50,'Summary 1'!M50,NA()) ->  | L50: ='Legs & Back Chart'!$P52 -> FALSE
A51: Calf-Raises | B51: =IF($L51,'Summary 1'!B51,NA()) ->  | C51: =IF($L51,'Summary 1'!C51,NA()) ->  | D51: =IF($L51,'Summary 1'!D51,NA()) ->  | E51: =IF($L51,'Summary 1'!F51,NA()) ->  | F51: =IF($L51,'Summary 1'!G51,NA()) ->  | G51: =IF($L51,'Summary 1'!H51,NA()) ->  | H51: =IF($L51,'Summary 1'!J51,NA()) ->  | I51: =IF($L51,'Summary 1'!K51,NA()) ->  | J51: =IF($L51,'Summary 1'!L51,NA()) ->  | K51: =IF($L51,'Summary 1'!M51,NA()) ->  | L51: ='Legs & Back Chart'!$P53 -> FALSE
A52: Close-Grip Overhead Pull-Ups | B52: =IF($L52,'Summary 1'!B52,NA()) -> 0 | C52: =IF($L52,'Summary 1'!C52,NA()) -> 0 | D52: =IF($L52,'Summary 1'!D52,NA()) -> 0 | E52: =IF($L52,'Summary 1'!F52,NA()) -> 0 | F52: =IF($L52,'Summary 1'!G52,NA()) -> 0 | G52: =IF($L52,'Summary 1'!H52,NA()) -> 0 | H52: =IF($L52,'Summary 1'!J52,NA()) -> 0 | I52: =IF($L52,'Summary 1'!K52,NA()) -> 0 | J52: =IF($L52,'Summary 1'!L52,NA()) -> 0 | K52: =IF($L52,'Summary 1'!M52,NA()) -> 0 | L52: ='Legs & Back Chart'!$P54 -> TRUE
A53: 80-20 Selbers Speed Squats | B53: =IF($L53,'Summary 1'!B53,NA()) ->  | C53: =IF($L53,'Summary 1'!C53,NA()) ->  | D53: =IF($L53,'Summary 1'!D53,NA()) ->  | E53: =IF($L53,'Summary 1'!F53,NA()) ->  | F53: =IF($L53,'Summary 1'!G53,NA()) ->  | G53: =IF($L53,'Summary 1'!H53,NA()) ->  | H53: =IF($L53,'Summary 1'!J53,NA()) ->  | I53: =IF($L53,'Summary 1'!K53,NA()) ->  | J53: =IF($L53,'Summary 1'!L53,NA()) ->  | K53: =IF($L53,'Summary 1'!M53,NA()) ->  | L53: ='Legs & Back Chart'!$P55 -> FALSE
A54: Switch Grip Pull-Ups | B54: =IF($L54,'Summary 1'!B54,NA()) -> 0 | C54: =IF($L54,'Summary 1'!C54,NA()) -> 0 | D54: =IF($L54,'Summary 1'!D54,NA()) -> 0 | E54: =IF($L54,'Summary 1'!F54,NA()) -> 0 | F54: =IF($L54,'Summary 1'!G54,NA()) -> 0 | G54: =IF($L54,'Summary 1'!H54,NA()) -> 0 | H54: =IF($L54,'Summary 1'!J54,NA()) -> 0 | I54: =IF($L54,'Summary 1'!K54,NA()) -> 0 | J54: =IF($L54,'Summary 1'!L54,NA()) -> 0 | K54: =IF($L54,'Summary 1'!M54,NA()) -> 0 | L54: ='Legs & Back Chart'!$P56 -> TRUE
A55: Chest, Shoulders & Triceps | B55: Week 5 | C55: Week 6 | D55: Week 7 | E55: Week 10 | F55: Week 12
A56: Slow-Motion 3-In-1 Push-Up | B56: =IF($G56,'Summary 1'!F56,NA()) -> 0 | C56: =IF($G56,'Summary 1'!G56,NA()) -> 0 | D56: =IF($G56,'Summary 1'!H56,NA()) -> 0 | E56: =IF($G56,'Summary 1'!K56,NA()) -> 0 | F56: =IF($G56,'Summary 1'!M56,NA()) -> 0 | G56: ='Chest, Shoulders, Tri Chart'!$K34 -> TRUE
A57: In & Out Shoulder Fly | B57: =IF($G57,'Summary 1'!F57,NA()) -> 0 | C57: =IF($G57,'Summary 1'!G57,NA()) -> 0 | D57: =IF($G57,'Summary 1'!H57,NA()) -> 0 | E57: =IF($G57,'Summary 1'!K57,NA()) -> 0 | F57: =IF($G57,'Summary 1'!M57,NA()) -> 0 | G57: ='Chest, Shoulders, Tri Chart'!$K35 -> TRUE
A58: Chair Dip | B58: =IF($G58,'Summary 1'!F58,NA()) -> 0 | C58: =IF($G58,'Summary 1'!G58,NA()) -> 0 | D58: =IF($G58,'Summary 1'!H58,NA()) -> 0 | E58: =IF($G58,'Summary 1'!K58,NA()) -> 0 | F58: =IF($G58,'Summary 1'!M58,NA()) -> 0 | G58: ='Chest, Shoulders, Tri Chart'!$K36 -> TRUE
A59: Plange Push-Up | B59: =IF($G59,'Summary 1'!F59,NA()) -> 0 | C59: =IF($G59,'Summary 1'!G59,NA()) -> 0 | D59: =IF($G59,'Summary 1'!H59,NA()) -> 0 | E59: =IF($G59,'Summary 1'!K59,NA()) -> 0 | F59: =IF($G59,'Summary 1'!M59,NA()) -> 0 | G59: ='Chest, Shoulders, Tri Chart'!$K37 -> TRUE
A60: Pike Press | B60: =IF($G60,'Summary 1'!F60,NA()) -> 0 | C60: =IF($G60,'Summary 1'!G60,NA()) -> 0 | D60: =IF($G60,'Summary 1'!H60,NA()) -> 0 | E60: =IF($G60,'Summary 1'!K60,NA()) -> 0 | F60: =IF($G60,'Summary 1'!M60,NA()) -> 0 | G60: ='Chest, Shoulders, Tri Chart'!$K38 -> TRUE
A61: Side Tri-Rise | B61: =IF($G61,'Summary 1'!F61,NA()) -> 0 | C61: =IF($G61,'Summary 1'!G61,NA()) -> 0 | D61: =IF($G61,'Summary 1'!H61,NA()) -> 0 | E61: =IF($G61,'Summary 1'!K61,NA()) -> 0 | F61: =IF($G61,'Summary 1'!M61,NA()) -> 0 | G61: ='Chest, Shoulders, Tri Chart'!$K39 -> TRUE
A62: Floor-Fly | B62: =IF($G62,'Summary 1'!F62,NA()) -> 0 | C62: =IF($G62,'Summary 1'!G62,NA()) -> 0 | D62: =IF($G62,'Summary 1'!H62,NA()) -> 0 | E62: =IF($G62,'Summary 1'!K62,NA()) -> 0 | F62: =IF($G62,'Summary 1'!M62,NA()) -> 0 | G62: ='Chest, Shoulders, Tri Chart'!$K40 -> TRUE
A63: Scarecrow | B63: =IF($G63,'Summary 1'!F63,NA()) -> 0 | C63: =IF($G63,'Summary 1'!G63,NA()) -> 0 | D63: =IF($G63,'Summary 1'!H63,NA()) -> 0 | E63: =IF($G63,'Summary 1'!K63,NA()) -> 0 | F63: =IF($G63,'Summary 1'!M63,NA()) -> 0 | G63: ='Chest, Shoulders, Tri Chart'!$K41 -> TRUE
A64: Overhead Triceps Extension | B64: =IF($G64,'Summary 1'!F64,NA()) -> 0 | C64: =IF($G64,'Summary 1'!G64,NA()) -> 0 | D64: =IF($G64,'Summary 1'!H64,NA()) -> 0 | E64: =IF($G64,'Summary 1'!K64,NA()) -> 0 | F64: =IF($G64,'Summary 1'!M64,NA()) -> 0 | G64: ='Chest, Shoulders, Tri Chart'!$K42 -> TRUE
A65: Two-Twitch Speed Push-Up | B65: =IF($G65,'Summary 1'!F65,NA()) -> 0 | C65: =IF($G65,'Summary 1'!G65,NA()) -> 0 | D65: =IF($G65,'Summary 1'!H65,NA()) -> 0 | E65: =IF($G65,'Summary 1'!K65,NA()) -> 0 | F65: =IF($G65,'Summary 1'!M65,NA()) -> 0 | G65: ='Chest, Shoulders, Tri Chart'!$K43 -> TRUE
A66: Y-Press | B66: =IF($G66,'Summary 1'!F66,NA()) -> 0 | C66: =IF($G66,'Summary 1'!G66,NA()) -> 0 | D66: =IF($G66,'Summary 1'!H66,NA()) -> 0 | E66: =IF($G66,'Summary 1'!K66,NA()) -> 0 | F66: =IF($G66,'Summary 1'!M66,NA()) -> 0 | G66: ='Chest, Shoulders, Tri Chart'!$K44 -> TRUE
A67: Lying Triceps Extension | B67: =IF($G67,'Summary 1'!F67,NA()) -> 0 | C67: =IF($G67,'Summary 1'!G67,NA()) -> 0 | D67: =IF($G67,'Summary 1'!H67,NA()) -> 0 | E67: =IF($G67,'Summary 1'!K67,NA()) -> 0 | F67: =IF($G67,'Summary 1'!M67,NA()) -> 0 | G67: ='Chest, Shoulders, Tri Chart'!$K45 -> TRUE
A68: Side-To-Side Push-Up | B68: =IF($G68,'Summary 1'!F68,NA()) -> 0 | C68: =IF($G68,'Summary 1'!G68,NA()) -> 0 | D68: =IF($G68,'Summary 1'!H68,NA()) -> 0 | E68: =IF($G68,'Summary 1'!K68,NA()) -> 0 | F68: =IF($G68,'Summary 1'!M68,NA()) -> 0 | G68: ='Chest, Shoulders, Tri Chart'!$K46 -> TRUE
A69: Pour Fly | B69: =IF($G69,'Summary 1'!F69,NA()) -> 0 | C69: =IF($G69,'Summary 1'!G69,NA()) -> 0 | D69: =IF($G69,'Summary 1'!H69,NA()) -> 0 | E69: =IF($G69,'Summary 1'!K69,NA()) -> 0 | F69: =IF($G69,'Summary 1'!M69,NA()) -> 0 | G69: ='Chest, Shoulders, Tri Chart'!$K47 -> TRUE
A70: Side-Leaning Triceps Extension | B70: =IF($G70,'Summary 1'!F70,NA()) -> 0 | C70: =IF($G70,'Summary 1'!G70,NA()) -> 0 | D70: =IF($G70,'Summary 1'!H70,NA()) -> 0 | E70: =IF($G70,'Summary 1'!K70,NA()) -> 0 | F70: =IF($G70,'Summary 1'!M70,NA()) -> 0 | G70: ='Chest, Shoulders, Tri Chart'!$K48 -> TRUE
A71: One-Arm Push-Up | B71: =IF($G71,'Summary 1'!F71,NA()) -> 0 | C71: =IF($G71,'Summary 1'!G71,NA()) -> 0 | D71: =IF($G71,'Summary 1'!H71,NA()) -> 0 | E71: =IF($G71,'Summary 1'!K71,NA()) -> 0 | F71: =IF($G71,'Summary 1'!M71,NA()) -> 0 | G71: ='Chest, Shoulders, Tri Chart'!$K49 -> TRUE
A72: Weighted Circle | B72: =IF($G72,'Summary 1'!F72,NA()) -> 0 | C72: =IF($G72,'Summary 1'!G72,NA()) -> 0 | D72: =IF($G72,'Summary 1'!H72,NA()) -> 0 | E72: =IF($G72,'Summary 1'!K72,NA()) -> 0 | F72: =IF($G72,'Summary 1'!M72,NA()) -> 0 | G72: ='Chest, Shoulders, Tri Chart'!$K50 -> TRUE
A73: Throw The Bomb | B73: =IF($G73,'Summary 1'!F73,NA()) -> 0 | C73: =IF($G73,'Summary 1'!G73,NA()) -> 0 | D73: =IF($G73,'Summary 1'!H73,NA()) -> 0 | E73: =IF($G73,'Summary 1'!K73,NA()) -> 0 | F73: =IF($G73,'Summary 1'!M73,NA()) -> 0 | G73: ='Chest, Shoulders, Tri Chart'!$K51 -> TRUE
A74: Clap or Plyo Push-Up | B74: =IF($G74,'Summary 1'!F74,NA()) -> 0 | C74: =IF($G74,'Summary 1'!G74,NA()) -> 0 | D74: =IF($G74,'Summary 1'!H74,NA()) -> 0 | E74: =IF($G74,'Summary 1'!K74,NA()) -> 0 | F74: =IF($G74,'Summary 1'!M74,NA()) -> 0 | G74: ='Chest, Shoulders, Tri Chart'!$K52 -> TRUE
A75: Slow-Mo Throw | B75: =IF($G75,'Summary 1'!F75,NA()) -> 0 | C75: =IF($G75,'Summary 1'!G75,NA()) -> 0 | D75: =IF($G75,'Summary 1'!H75,NA()) -> 0 | E75: =IF($G75,'Summary 1'!K75,NA()) -> 0 | F75: =IF($G75,'Summary 1'!M75,NA()) -> 0 | G75: ='Chest, Shoulders, Tri Chart'!$K53 -> TRUE
A76: Front-To-Back Triceps Extension | B76: =IF($G76,'Summary 1'!F76,NA()) -> 0 | C76: =IF($G76,'Summary 1'!G76,NA()) -> 0 | D76: =IF($G76,'Summary 1'!H76,NA()) -> 0 | E76: =IF($G76,'Summary 1'!K76,NA()) -> 0 | F76: =IF($G76,'Summary 1'!M76,NA()) -> 0 | G76: ='Chest, Shoulders, Tri Chart'!$K54 -> TRUE
A77: One-Arm Balance Push-Up | B77: =IF($G77,'Summary 1'!F77,NA()) -> 0 | C77: =IF($G77,'Summary 1'!G77,NA()) -> 0 | D77: =IF($G77,'Summary 1'!H77,NA()) -> 0 | E77: =IF($G77,'Summary 1'!K77,NA()) -> 0 | F77: =IF($G77,'Summary 1'!M77,NA()) -> 0 | G77: ='Chest, Shoulders, Tri Chart'!$K55 -> TRUE
A78: Fly-Row-Press | B78: =IF($G78,'Summary 1'!F78,NA()) -> 0 | C78: =IF($G78,'Summary 1'!G78,NA()) -> 0 | D78: =IF($G78,'Summary 1'!H78,NA()) -> 0 | E78: =IF($G78,'Summary 1'!K78,NA()) -> 0 | F78: =IF($G78,'Summary 1'!M78,NA()) -> 0 | G78: ='Chest, Shoulders, Tri Chart'!$K56 -> TRUE
A79: Dumbbell Cross-Body Blows | B79: =IF($G79,'Summary 1'!F79,NA()) -> 0 | C79: =IF($G79,'Summary 1'!G79,NA()) -> 0 | D79: =IF($G79,'Summary 1'!H79,NA()) -> 0 | E79: =IF($G79,'Summary 1'!K79,NA()) -> 0 | F79: =IF($G79,'Summary 1'!M79,NA()) -> 0 | G79: ='Chest, Shoulders, Tri Chart'!$K57 -> TRUE
A80: Chest, Shoulders & Triceps (LEAN) | B80: Week 5 | C80: Week 6 | D80: Week 7 | E80: Week 10 | F80: Week 12
A81: Slow-Motion 3-In-1 Push-Up | B81: =IF($G81,'Summary 1'!F81,NA()) -> 0 | C81: =IF($G81,'Summary 1'!G81,NA()) -> 0 | D81: =IF($G81,'Summary 1'!H81,NA()) -> 0 | E81: =IF($G81,'Summary 1'!K81,NA()) -> 0 | F81: =IF($G81,'Summary 1'!M81,NA()) -> 0 | G81: ='Chest, Shoulders, Tri Chart (L)'!$K34 -> TRUE
A82: In & Out Shoulder Fly | B82: =IF($G82,'Summary 1'!F82,NA()) -> 0 | C82: =IF($G82,'Summary 1'!G82,NA()) -> 0 | D82: =IF($G82,'Summary 1'!H82,NA()) -> 0 | E82: =IF($G82,'Summary 1'!K82,NA()) -> 0 | F82: =IF($G82,'Summary 1'!M82,NA()) -> 0 | G82: ='Chest, Shoulders, Tri Chart (L)'!$K35 -> TRUE
A83: Chair Dip | B83: =IF($G83,'Summary 1'!F83,NA()) -> 0 | C83: =IF($G83,'Summary 1'!G83,NA()) -> 0 | D83: =IF($G83,'Summary 1'!H83,NA()) -> 0 | E83: =IF($G83,'Summary 1'!K83,NA()) -> 0 | F83: =IF($G83,'Summary 1'!M83,NA()) -> 0 | G83: ='Chest, Shoulders, Tri Chart (L)'!$K36 -> TRUE
A84: Plange Push-Up | B84: =IF($G84,'Summary 1'!F84,NA()) -> 0 | C84: =IF($G84,'Summary 1'!G84,NA()) -> 0 | D84: =IF($G84,'Summary 1'!H84,NA()) -> 0 | E84: =IF($G84,'Summary 1'!K84,NA()) -> 0 | F84: =IF($G84,'Summary 1'!M84,NA()) -> 0 | G84: ='Chest, Shoulders, Tri Chart (L)'!$K37 -> TRUE
A85: Pike Press | B85: =IF($G85,'Summary 1'!F85,NA()) -> 0 | C85: =IF($G85,'Summary 1'!G85,NA()) -> 0 | D85: =IF($G85,'Summary 1'!H85,NA()) -> 0 | E85: =IF($G85,'Summary 1'!K85,NA()) -> 0 | F85: =IF($G85,'Summary 1'!M85,NA()) -> 0 | G85: ='Chest, Shoulders, Tri Chart (L)'!$K38 -> TRUE
A86: Side Tri-Rise | B86: =IF($G86,'Summary 1'!F86,NA()) -> 0 | C86: =IF($G86,'Summary 1'!G86,NA()) -> 0 | D86: =IF($G86,'Summary 1'!H86,NA()) -> 0 | E86: =IF($G86,'Summary 1'!K86,NA()) -> 0 | F86: =IF($G86,'Summary 1'!M86,NA()) -> 0 | G86: ='Chest, Shoulders, Tri Chart (L)'!$K39 -> TRUE
A87: Floor-Fly | B87: =IF($G87,'Summary 1'!F87,NA()) -> 0 | C87: =IF($G87,'Summary 1'!G87,NA()) -> 0 | D87: =IF($G87,'Summary 1'!H87,NA()) -> 0 | E87: =IF($G87,'Summary 1'!K87,NA()) -> 0 | F87: =IF($G87,'Summary 1'!M87,NA()) -> 0 | G87: ='Chest, Shoulders, Tri Chart (L)'!$K40 -> TRUE
A88: Scarecrow | B88: =IF($G88,'Summary 1'!F88,NA()) -> 0 | C88: =IF($G88,'Summary 1'!G88,NA()) -> 0 | D88: =IF($G88,'Summary 1'!H88,NA()) -> 0 | E88: =IF($G88,'Summary 1'!K88,NA()) -> 0 | F88: =IF($G88,'Summary 1'!M88,NA()) -> 0 | G88: ='Chest, Shoulders, Tri Chart (L)'!$K41 -> TRUE
A89: Overhead Triceps Extension | B89: =IF($G89,'Summary 1'!F89,NA()) -> 0 | C89: =IF($G89,'Summary 1'!G89,NA()) -> 0 | D89: =IF($G89,'Summary 1'!H89,NA()) -> 0 | E89: =IF($G89,'Summary 1'!K89,NA()) -> 0 | F89: =IF($G89,'Summary 1'!M89,NA()) -> 0 | G89: ='Chest, Shoulders, Tri Chart (L)'!$K42 -> TRUE
A90: Two-Twitch Speed Push-Up | B90: =IF($G90,'Summary 1'!F90,NA()) -> 0 | C90: =IF($G90,'Summary 1'!G90,NA()) -> 0 | D90: =IF($G90,'Summary 1'!H90,NA()) -> 0 | E90: =IF($G90,'Summary 1'!K90,NA()) -> 0 | F90: =IF($G90,'Summary 1'!M90,NA()) -> 0 | G90: ='Chest, Shoulders, Tri Chart (L)'!$K43 -> TRUE
A91: Y-Press | B91: =IF($G91,'Summary 1'!F91,NA()) -> 0 | C91: =IF($G91,'Summary 1'!G91,NA()) -> 0 | D91: =IF($G91,'Summary 1'!H91,NA()) -> 0 | E91: =IF($G91,'Summary 1'!K91,NA()) -> 0 | F91: =IF($G91,'Summary 1'!M91,NA()) -> 0 | G91: ='Chest, Shoulders, Tri Chart (L)'!$K44 -> TRUE
A92: Lying Triceps Extension | B92: =IF($G92,'Summary 1'!F92,NA()) -> 0 | C92: =IF($G92,'Summary 1'!G92,NA()) -> 0 | D92: =IF($G92,'Summary 1'!H92,NA()) -> 0 | E92: =IF($G92,'Summary 1'!K92,NA()) -> 0 | F92: =IF($G92,'Summary 1'!M92,NA()) -> 0 | G92: ='Chest, Shoulders, Tri Chart (L)'!$K45 -> TRUE
A93: Side-To-Side Push-Up | B93: =IF($G93,'Summary 1'!F93,NA()) -> 0 | C93: =IF($G93,'Summary 1'!G93,NA()) -> 0 | D93: =IF($G93,'Summary 1'!H93,NA()) -> 0 | E93: =IF($G93,'Summary 1'!K93,NA()) -> 0 | F93: =IF($G93,'Summary 1'!M93,NA()) -> 0 | G93: ='Chest, Shoulders, Tri Chart (L)'!$K46 -> TRUE
A94: Pour Fly | B94: =IF($G94,'Summary 1'!F94,NA()) -> 0 | C94: =IF($G94,'Summary 1'!G94,NA()) -> 0 | D94: =IF($G94,'Summary 1'!H94,NA()) -> 0 | E94: =IF($G94,'Summary 1'!K94,NA()) -> 0 | F94: =IF($G94,'Summary 1'!M94,NA()) -> 0 | G94: ='Chest, Shoulders, Tri Chart (L)'!$K47 -> TRUE
A95: Side-Leaning Triceps Extension | B95: =IF($G95,'Summary 1'!F95,NA()) -> 0 | C95: =IF($G95,'Summary 1'!G95,NA()) -> 0 | D95: =IF($G95,'Summary 1'!H95,NA()) -> 0 | E95: =IF($G95,'Summary 1'!K95,NA()) -> 0 | F95: =IF($G95,'Summary 1'!M95,NA()) -> 0 | G95: ='Chest, Shoulders, Tri Chart (L)'!$K48 -> TRUE
A96: One-Arm Push-Up | B96: =IF($G96,'Summary 1'!F96,NA()) -> 0 | C96: =IF($G96,'Summary 1'!G96,NA()) -> 0 | D96: =IF($G96,'Summary 1'!H96,NA()) -> 0 | E96: =IF($G96,'Summary 1'!K96,NA()) -> 0 | F96: =IF($G96,'Summary 1'!M96,NA()) -> 0 | G96: ='Chest, Shoulders, Tri Chart (L)'!$K49 -> TRUE
A97: Weighted Circle | B97: =IF($G97,'Summary 1'!F97,NA()) -> 0 | C97: =IF($G97,'Summary 1'!G97,NA()) -> 0 | D97: =IF($G97,'Summary 1'!H97,NA()) -> 0 | E97: =IF($G97,'Summary 1'!K97,NA()) -> 0 | F97: =IF($G97,'Summary 1'!M97,NA()) -> 0 | G97: ='Chest, Shoulders, Tri Chart (L)'!$K50 -> TRUE
A98: Throw The Bomb | B98: =IF($G98,'Summary 1'!F98,NA()) -> 0 | C98: =IF($G98,'Summary 1'!G98,NA()) -> 0 | D98: =IF($G98,'Summary 1'!H98,NA()) -> 0 | E98: =IF($G98,'Summary 1'!K98,NA()) -> 0 | F98: =IF($G98,'Summary 1'!M98,NA()) -> 0 | G98: ='Chest, Shoulders, Tri Chart (L)'!$K51 -> TRUE
A99: Clap or Plyo Push-Up | B99: =IF($G99,'Summary 1'!F99,NA()) -> 0 | C99: =IF($G99,'Summary 1'!G99,NA()) -> 0 | D99: =IF($G99,'Summary 1'!H99,NA()) -> 0 | E99: =IF($G99,'Summary 1'!K99,NA()) -> 0 | F99: =IF($G99,'Summary 1'!M99,NA()) -> 0 | G99: ='Chest, Shoulders, Tri Chart (L)'!$K52 -> TRUE
A100: Slow-Mo Throw | B100: =IF($G100,'Summary 1'!F100,NA()) -> 0 | C100: =IF($G100,'Summary 1'!G100,NA()) -> 0 | D100: =IF($G100,'Summary 1'!H100,NA()) -> 0 | E100: =IF($G100,'Summary 1'!K100,NA()) -> 0 | F100: =IF($G100,'Summary 1'!M100,NA()) -> 0 | G100: ='Chest, Shoulders, Tri Chart (L)'!$K53 -> TRUE
A101: Front-To-Back Triceps Extension | B101: =IF($G101,'Summary 1'!F101,NA()) -> 0 | C101: =IF($G101,'Summary 1'!G101,NA()) -> 0 | D101: =IF($G101,'Summary 1'!H101,NA()) -> 0 | E101: =IF($G101,'Summary 1'!K101,NA()) -> 0 | F101: =IF($G101,'Summary 1'!M101,NA()) -> 0 | G101: ='Chest, Shoulders, Tri Chart (L)'!$K54 -> TRUE
A102: One-Arm Balance Push-Up | B102: =IF($G102,'Summary 1'!F102,NA()) -> 0 | C102: =IF($G102,'Summary 1'!G102,NA()) -> 0 | D102: =IF($G102,'Summary 1'!H102,NA()) -> 0 | E102: =IF($G102,'Summary 1'!K102,NA()) -> 0 | F102: =IF($G102,'Summary 1'!M102,NA()) -> 0 | G102: ='Chest, Shoulders, Tri Chart (L)'!$K55 -> TRUE
A103: Fly-Row-Press | B103: =IF($G103,'Summary 1'!F103,NA()) -> 0 | C103: =IF($G103,'Summary 1'!G103,NA()) -> 0 | D103: =IF($G103,'Summary 1'!H103,NA()) -> 0 | E103: =IF($G103,'Summary 1'!K103,NA()) -> 0 | F103: =IF($G103,'Summary 1'!M103,NA()) -> 0 | G103: ='Chest, Shoulders, Tri Chart (L)'!$K56 -> TRUE
A104: Dumbbell Cross-Body Blows | B104: =IF($G104,'Summary 1'!F104,NA()) -> 0 | C104: =IF($G104,'Summary 1'!G104,NA()) -> 0 | D104: =IF($G104,'Summary 1'!H104,NA()) -> 0 | E104: =IF($G104,'Summary 1'!K104,NA()) -> 0 | F104: =IF($G104,'Summary 1'!M104,NA()) -> 0 | G104: ='Chest, Shoulders, Tri Chart (L)'!$K57 -> TRUE
A105: Back & Biceps | B105: Week 5 | C105: Week 6 | D105: Week 7 | E105: Week 10 | F105: Week 12
A106: Wide Front Pull-Ups | B106: =IF($G106,'Summary 1'!F106,NA()) -> 0 | C106: =IF($G106,'Summary 1'!G106,NA()) -> 0 | D106: =IF($G106,'Summary 1'!H106,NA()) -> 0 | E106: =IF($G106,'Summary 1'!K106,NA()) -> 0 | F106: =IF($G106,'Summary 1'!M106,NA()) -> 0 | G106: ='Back & Biceps Chart'!$K34 -> TRUE
A107: Lawnmowers | B107: =IF($G107,'Summary 1'!F107,NA()) ->  | C107: =IF($G107,'Summary 1'!G107,NA()) ->  | D107: =IF($G107,'Summary 1'!H107,NA()) ->  | E107: =IF($G107,'Summary 1'!K107,NA()) ->  | F107: =IF($G107,'Summary 1'!M107,NA()) ->  | G107: ='Back & Biceps Chart'!$K35 -> FALSE
A108: Twenty-Ones | B108: =IF($G108,'Summary 1'!F108,NA()) ->  | C108: =IF($G108,'Summary 1'!G108,NA()) ->  | D108: =IF($G108,'Summary 1'!H108,NA()) ->  | E108: =IF($G108,'Summary 1'!K108,NA()) ->  | F108: =IF($G108,'Summary 1'!M108,NA()) ->  | G108: ='Back & Biceps Chart'!$K36 -> FALSE
A109: One-Arm Cross-Body Curls | B109: =IF($G109,'Summary 1'!F109,NA()) ->  | C109: =IF($G109,'Summary 1'!G109,NA()) ->  | D109: =IF($G109,'Summary 1'!H109,NA()) ->  | E109: =IF($G109,'Summary 1'!K109,NA()) ->  | F109: =IF($G109,'Summary 1'!M109,NA()) ->  | G109: ='Back & Biceps Chart'!$K37 -> FALSE
A110: Switch Grip Pull-Ups | B110: =IF($G110,'Summary 1'!F110,NA()) -> 0 | C110: =IF($G110,'Summary 1'!G110,NA()) -> 0 | D110: =IF($G110,'Summary 1'!H110,NA()) -> 0 | E110: =IF($G110,'Summary 1'!K110,NA()) -> 0 | F110: =IF($G110,'Summary 1'!M110,NA()) -> 0 | G110: ='Back & Biceps Chart'!$K38 -> TRUE
A111: Elbows-Out Lawnmowers | B111: =IF($G111,'Summary 1'!F111,NA()) ->  | C111: =IF($G111,'Summary 1'!G111,NA()) ->  | D111: =IF($G111,'Summary 1'!H111,NA()) ->  | E111: =IF($G111,'Summary 1'!K111,NA()) ->  | F111: =IF($G111,'Summary 1'!M111,NA()) ->  | G111: ='Back & Biceps Chart'!$K39 -> FALSE
A112: Standing Bicep Curls | B112: =IF($G112,'Summary 1'!F112,NA()) ->  | C112: =IF($G112,'Summary 1'!G112,NA()) ->  | D112: =IF($G112,'Summary 1'!H112,NA()) ->  | E112: =IF($G112,'Summary 1'!K112,NA()) ->  | F112: =IF($G112,'Summary 1'!M112,NA()) ->  | G112: ='Back & Biceps Chart'!$K40 -> FALSE
A113: One-Arm Concentration Curls | B113: =IF($G113,'Summary 1'!F113,NA()) ->  | C113: =IF($G113,'Summary 1'!G113,NA()) ->  | D113: =IF($G113,'Summary 1'!H113,NA()) ->  | E113: =IF($G113,'Summary 1'!K113,NA()) ->  | F113: =IF($G113,'Summary 1'!M113,NA()) ->  | G113: ='Back & Biceps Chart'!$K41 -> FALSE
A114: Corn Cob Pull-Ups | B114: =IF($G114,'Summary 1'!F114,NA()) -> 0 | C114: =IF($G114,'Summary 1'!G114,NA()) -> 0 | D114: =IF($G114,'Summary 1'!H114,NA()) -> 0 | E114: =IF($G114,'Summary 1'!K114,NA()) -> 0 | F114: =IF($G114,'Summary 1'!M114,NA()) -> 0 | G114: ='Back & Biceps Chart'!$K42 -> TRUE
A115: Reverse Grip Bent-Over Rows | B115: =IF($G115,'Summary 1'!F115,NA()) ->  | C115: =IF($G115,'Summary 1'!G115,NA()) ->  | D115: =IF($G115,'Summary 1'!H115,NA()) ->  | E115: =IF($G115,'Summary 1'!K115,NA()) ->  | F115: =IF($G115,'Summary 1'!M115,NA()) ->  | G115: ='Back & Biceps Chart'!$K43 -> FALSE
A116: One Arm Curls | B116: =IF($G116,'Summary 1'!F116,NA()) ->  | C116: =IF($G116,'Summary 1'!G116,NA()) ->  | D116: =IF($G116,'Summary 1'!H116,NA()) ->  | E116: =IF($G116,'Summary 1'!K116,NA()) ->  | F116: =IF($G116,'Summary 1'!M116,NA()) ->  | G116: ='Back & Biceps Chart'!$K44 -> FALSE
A117: Static Arm Curls | B117: =IF($G117,'Summary 1'!F117,NA()) ->  | C117: =IF($G117,'Summary 1'!G117,NA()) ->  | D117: =IF($G117,'Summary 1'!H117,NA()) ->  | E117: =IF($G117,'Summary 1'!K117,NA()) ->  | F117: =IF($G117,'Summary 1'!M117,NA()) ->  | G117: ='Back & Biceps Chart'!$K45 -> FALSE
A118: Towel Pull-Ups | B118: =IF($G118,'Summary 1'!F118,NA()) -> 0 | C118: =IF($G118,'Summary 1'!G118,NA()) -> 0 | D118: =IF($G118,'Summary 1'!H118,NA()) -> 0 | E118: =IF($G118,'Summary 1'!K118,NA()) -> 0 | F118: =IF($G118,'Summary 1'!M118,NA()) -> 0 | G118: ='Back & Biceps Chart'!$K46 -> TRUE
A119: Congdon Locomotives | B119: =IF($G119,'Summary 1'!F119,NA()) ->  | C119: =IF($G119,'Summary 1'!G119,NA()) ->  | D119: =IF($G119,'Summary 1'!H119,NA()) ->  | E119: =IF($G119,'Summary 1'!K119,NA()) ->  | F119: =IF($G119,'Summary 1'!M119,NA()) ->  | G119: ='Back & Biceps Chart'!$K47 -> FALSE
A120: Crouching Cohen Curls | B120: =IF($G120,'Summary 1'!F120,NA()) ->  | C120: =IF($G120,'Summary 1'!G120,NA()) ->  | D120: =IF($G120,'Summary 1'!H120,NA()) ->  | E120: =IF($G120,'Summary 1'!K120,NA()) ->  | F120: =IF($G120,'Summary 1'!M120,NA()) ->  | G120: ='Back & Biceps Chart'!$K48 -> FALSE
A121: One-Arm Corkscrew Curls | B121: =IF($G121,'Summary 1'!F121,NA()) ->  | C121: =IF($G121,'Summary 1'!G121,NA()) ->  | D121: =IF($G121,'Summary 1'!H121,NA()) ->  | E121: =IF($G121,'Summary 1'!K121,NA()) ->  | F121: =IF($G121,'Summary 1'!M121,NA()) ->  | G121: ='Back & Biceps Chart'!$K49 -> FALSE
A122: Chin-Ups | B122: =IF($G122,'Summary 1'!F122,NA()) -> 0 | C122: =IF($G122,'Summary 1'!G122,NA()) -> 0 | D122: =IF($G122,'Summary 1'!H122,NA()) -> 0 | E122: =IF($G122,'Summary 1'!K122,NA()) -> 0 | F122: =IF($G122,'Summary 1'!M122,NA()) -> 0 | G122: ='Back & Biceps Chart'!$K50 -> TRUE
A123: Seated Bent-Over Back Flys | B123: =IF($G123,'Summary 1'!F123,NA()) ->  | C123: =IF($G123,'Summary 1'!G123,NA()) ->  | D123: =IF($G123,'Summary 1'!H123,NA()) ->  | E123: =IF($G123,'Summary 1'!K123,NA()) ->  | F123: =IF($G123,'Summary 1'!M123,NA()) ->  | G123: ='Back & Biceps Chart'!$K51 -> FALSE
A124: Curl Up / Hammer Downs | B124: =IF($G124,'Summary 1'!F124,NA()) ->  | C124: =IF($G124,'Summary 1'!G124,NA()) ->  | D124: =IF($G124,'Summary 1'!H124,NA()) ->  | E124: =IF($G124,'Summary 1'!K124,NA()) ->  | F124: =IF($G124,'Summary 1'!M124,NA()) ->  | G124: ='Back & Biceps Chart'!$K52 -> FALSE
A125: Hammer Curls | B125: =IF($G125,'Summary 1'!F125,NA()) ->  | C125: =IF($G125,'Summary 1'!G125,NA()) ->  | D125: =IF($G125,'Summary 1'!H125,NA()) ->  | E125: =IF($G125,'Summary 1'!K125,NA()) ->  | F125: =IF($G125,'Summary 1'!M125,NA()) ->  | G125: ='Back & Biceps Chart'!$K53 -> FALSE
A126: Max Rep Pull-Ups | B126: =IF($G126,'Summary 1'!F126,NA()) -> 0 | C126: =IF($G126,'Summary 1'!G126,NA()) -> 0 | D126: =IF($G126,'Summary 1'!H126,NA()) -> 0 | E126: =IF($G126,'Summary 1'!K126,NA()) -> 0 | F126: =IF($G126,'Summary 1'!M126,NA()) -> 0 | G126: ='Back & Biceps Chart'!$K54 -> TRUE
A127: Superman | B127: =IF($G127,'Summary 1'!F127,NA()) ->  | C127: =IF($G127,'Summary 1'!G127,NA()) ->  | D127: =IF($G127,'Summary 1'!H127,NA()) ->  | E127: =IF($G127,'Summary 1'!K127,NA()) ->  | F127: =IF($G127,'Summary 1'!M127,NA()) ->  | G127: ='Back & Biceps Chart'!$K55 -> FALSE
A128: In-Out Hammer Curls | B128: =IF($G128,'Summary 1'!F128,NA()) ->  | C128: =IF($G128,'Summary 1'!G128,NA()) ->  | D128: =IF($G128,'Summary 1'!H128,NA()) ->  | E128: =IF($G128,'Summary 1'!K128,NA()) ->  | F128: =IF($G128,'Summary 1'!M128,NA()) ->  | G128: ='Back & Biceps Chart'!$K56 -> FALSE
A129: Strip-Set Curls | B129: =IF($G129,'Summary 1'!F129,NA()) ->  | C129: =IF($G129,'Summary 1'!G129,NA()) ->  | D129: =IF($G129,'Summary 1'!H129,NA()) ->  | E129: =IF($G129,'Summary 1'!K129,NA()) ->  | F129: =IF($G129,'Summary 1'!M129,NA()) ->  | G129: ='Back & Biceps Chart'!$K57 -> FALSE
A130: Ab Ripper X | B130: 1 | C130: 2 | D130: 3 | E130: 5 | F130: 6 | G130: 7 | H130: 9 | I130: 10 | J130: 11 | K130: 12
A131: In & Outs | B131: =IF($L131,'Ab Ripper X'!E7,NA()) -> 0 | C131: =IF($L131,'Ab Ripper X'!I7,NA()) -> 0 | D131: =IF($L131,'Ab Ripper X'!M7,NA()) -> 0 | E131: =IF($L131,'Ab Ripper X'!Q7,NA()) -> 0 | F131: =IF($L131,'Ab Ripper X'!U7,NA()) -> 0 | G131: =IF($L131,'Ab Ripper X'!Y7,NA()) -> 0 | H131: =IF($L131,'Ab Ripper X'!AC7,NA()) -> 0 | I131: =IF($L131,'Ab Ripper X'!AG7,NA()) -> 0 | J131: =IF($L131,'Ab Ripper X'!AK7,NA()) -> 0 | K131: =IF($L131,'Ab Ripper X'!AO7,NA()) -> 0 | L131: ='Ab Ripper X Chart'!O42 -> TRUE
A132: Bicycles | B132: =IF($L132,'Ab Ripper X'!E8,NA()) -> 0 | C132: =IF($L132,'Ab Ripper X'!I8,NA()) -> 0 | D132: =IF($L132,'Ab Ripper X'!M8,NA()) -> 0 | E132: =IF($L132,'Ab Ripper X'!Q8,NA()) -> 0 | F132: =IF($L132,'Ab Ripper X'!U8,NA()) -> 0 | G132: =IF($L132,'Ab Ripper X'!Y8,NA()) -> 0 | H132: =IF($L132,'Ab Ripper X'!AC8,NA()) -> 0 | I132: =IF($L132,'Ab Ripper X'!AG8,NA()) -> 0 | J132: =IF($L132,'Ab Ripper X'!AK8,NA()) -> 0 | K132: =IF($L132,'Ab Ripper X'!AO8,NA()) -> 0 | L132: ='Ab Ripper X Chart'!O43 -> TRUE
A133: Crunchy Frogs | B133: =IF($L133,'Ab Ripper X'!E9,NA()) -> 0 | C133: =IF($L133,'Ab Ripper X'!I9,NA()) -> 0 | D133: =IF($L133,'Ab Ripper X'!M9,NA()) -> 0 | E133: =IF($L133,'Ab Ripper X'!Q9,NA()) -> 0 | F133: =IF($L133,'Ab Ripper X'!U9,NA()) -> 0 | G133: =IF($L133,'Ab Ripper X'!Y9,NA()) -> 0 | H133: =IF($L133,'Ab Ripper X'!AC9,NA()) -> 0 | I133: =IF($L133,'Ab Ripper X'!AG9,NA()) -> 0 | J133: =IF($L133,'Ab Ripper X'!AK9,NA()) -> 0 | K133: =IF($L133,'Ab Ripper X'!AO9,NA()) -> 0 | L133: ='Ab Ripper X Chart'!O44 -> TRUE
A134: Cross Leg/Wide Leg Sit-Ups | B134: =IF($L134,'Ab Ripper X'!E10,NA()) -> 0 | C134: =IF($L134,'Ab Ripper X'!I10,NA()) -> 0 | D134: =IF($L134,'Ab Ripper X'!M10,NA()) -> 0 | E134: =IF($L134,'Ab Ripper X'!Q10,NA()) -> 0 | F134: =IF($L134,'Ab Ripper X'!U10,NA()) -> 0 | G134: =IF($L134,'Ab Ripper X'!Y10,NA()) -> 0 | H134: =IF($L134,'Ab Ripper X'!AC10,NA()) -> 0 | I134: =IF($L134,'Ab Ripper X'!AG10,NA()) -> 0 | J134: =IF($L134,'Ab Ripper X'!AK10,NA()) -> 0 | K134: =IF($L134,'Ab Ripper X'!AO10,NA()) -> 0 | L134: ='Ab Ripper X Chart'!O45 -> TRUE
A135: Fifer Scissors | B135: =IF($L135,'Ab Ripper X'!E11,NA()) -> 0 | C135: =IF($L135,'Ab Ripper X'!I11,NA()) -> 0 | D135: =IF($L135,'Ab Ripper X'!M11,NA()) -> 0 | E135: =IF($L135,'Ab Ripper X'!Q11,NA()) -> 0 | F135: =IF($L135,'Ab Ripper X'!U11,NA()) -> 0 | G135: =IF($L135,'Ab Ripper X'!Y11,NA()) -> 0 | H135: =IF($L135,'Ab Ripper X'!AC11,NA()) -> 0 | I135: =IF($L135,'Ab Ripper X'!AG11,NA()) -> 0 | J135: =IF($L135,'Ab Ripper X'!AK11,NA()) -> 0 | K135: =IF($L135,'Ab Ripper X'!AO11,NA()) -> 0 | L135: ='Ab Ripper X Chart'!O46 -> TRUE
A136: Hip Rock'n Raises | B136: =IF($L136,'Ab Ripper X'!E12,NA()) -> 0 | C136: =IF($L136,'Ab Ripper X'!I12,NA()) -> 0 | D136: =IF($L136,'Ab Ripper X'!M12,NA()) -> 0 | E136: =IF($L136,'Ab Ripper X'!Q12,NA()) -> 0 | F136: =IF($L136,'Ab Ripper X'!U12,NA()) -> 0 | G136: =IF($L136,'Ab Ripper X'!Y12,NA()) -> 0 | H136: =IF($L136,'Ab Ripper X'!AC12,NA()) -> 0 | I136: =IF($L136,'Ab Ripper X'!AG12,NA()) -> 0 | J136: =IF($L136,'Ab Ripper X'!AK12,NA()) -> 0 | K136: =IF($L136,'Ab Ripper X'!AO12,NA()) -> 0 | L136: ='Ab Ripper X Chart'!O47 -> TRUE
A137: Pulse Ups (Heels to the Heaven) | B137: =IF($L137,'Ab Ripper X'!E13,NA()) -> 0 | C137: =IF($L137,'Ab Ripper X'!I13,NA()) -> 0 | D137: =IF($L137,'Ab Ripper X'!M13,NA()) -> 0 | E137: =IF($L137,'Ab Ripper X'!Q13,NA()) -> 0 | F137: =IF($L137,'Ab Ripper X'!U13,NA()) -> 0 | G137: =IF($L137,'Ab Ripper X'!Y13,NA()) -> 0 | H137: =IF($L137,'Ab Ripper X'!AC13,NA()) -> 0 | I137: =IF($L137,'Ab Ripper X'!AG13,NA()) -> 0 | J137: =IF($L137,'Ab Ripper X'!AK13,NA()) -> 0 | K137: =IF($L137,'Ab Ripper X'!AO13,NA()) -> 0 | L137: ='Ab Ripper X Chart'!O48 -> TRUE
A138: V-Up/Roll-Up Combos | B138: =IF($L138,'Ab Ripper X'!E14,NA()) -> 0 | C138: =IF($L138,'Ab Ripper X'!I14,NA()) -> 0 | D138: =IF($L138,'Ab Ripper X'!M14,NA()) -> 0 | E138: =IF($L138,'Ab Ripper X'!Q14,NA()) -> 0 | F138: =IF($L138,'Ab Ripper X'!U14,NA()) -> 0 | G138: =IF($L138,'Ab Ripper X'!Y14,NA()) -> 0 | H138: =IF($L138,'Ab Ripper X'!AC14,NA()) -> 0 | I138: =IF($L138,'Ab Ripper X'!AG14,NA()) -> 0 | J138: =IF($L138,'Ab Ripper X'!AK14,NA()) -> 0 | K138: =IF($L138,'Ab Ripper X'!AO14,NA()) -> 0 | L138: ='Ab Ripper X Chart'!O49 -> TRUE
A139: Oblique V-Ups | B139: =IF($L139,'Ab Ripper X'!E15,NA()) -> 0 | C139: =IF($L139,'Ab Ripper X'!I15,NA()) -> 0 | D139: =IF($L139,'Ab Ripper X'!M15,NA()) -> 0 | E139: =IF($L139,'Ab Ripper X'!Q15,NA()) -> 0 | F139: =IF($L139,'Ab Ripper X'!U15,NA()) -> 0 | G139: =IF($L139,'Ab Ripper X'!Y15,NA()) -> 0 | H139: =IF($L139,'Ab Ripper X'!AC15,NA()) -> 0 | I139: =IF($L139,'Ab Ripper X'!AG15,NA()) -> 0 | J139: =IF($L139,'Ab Ripper X'!AK15,NA()) -> 0 | K139: =IF($L139,'Ab Ripper X'!AO15,NA()) -> 0 | L139: ='Ab Ripper X Chart'!O50 -> TRUE
A140: Leg Climbs | B140: =IF($L140,'Ab Ripper X'!E16,NA()) -> 0 | C140: =IF($L140,'Ab Ripper X'!I16,NA()) -> 0 | D140: =IF($L140,'Ab Ripper X'!M16,NA()) -> 0 | E140: =IF($L140,'Ab Ripper X'!Q16,NA()) -> 0 | F140: =IF($L140,'Ab Ripper X'!U16,NA()) -> 0 | G140: =IF($L140,'Ab Ripper X'!Y16,NA()) -> 0 | H140: =IF($L140,'Ab Ripper X'!AC16,NA()) -> 0 | I140: =IF($L140,'Ab Ripper X'!AG16,NA()) -> 0 | J140: =IF($L140,'Ab Ripper X'!AK16,NA()) -> 0 | K140: =IF($L140,'Ab Ripper X'!AO16,NA()) -> 0 | L140: ='Ab Ripper X Chart'!O51 -> TRUE
A141: Mason Twists | B141: =IF($L141,'Ab Ripper X'!E17,NA()) -> 0 | C141: =IF($L141,'Ab Ripper X'!I17,NA()) -> 0 | D141: =IF($L141,'Ab Ripper X'!M17,NA()) -> 0 | E141: =IF($L141,'Ab Ripper X'!Q17,NA()) -> 0 | F141: =IF($L141,'Ab Ripper X'!U17,NA()) -> 0 | G141: =IF($L141,'Ab Ripper X'!Y17,NA()) -> 0 | H141: =IF($L141,'Ab Ripper X'!AC17,NA()) -> 0 | I141: =IF($L141,'Ab Ripper X'!AG17,NA()) -> 0 | J141: =IF($L141,'Ab Ripper X'!AK17,NA()) -> 0 | K141: =IF($L141,'Ab Ripper X'!AO17,NA()) -> 0 | L141: ='Ab Ripper X Chart'!O52 -> TRUE
A142: Weekly Ab Ripper X Avgs | B142: ='Ab Ripper X'!E18 -> 0 | C142: ='Ab Ripper X'!I18 -> 0 | D142: ='Ab Ripper X'!M18 -> 0 | E142: ='Ab Ripper X'!Q18 -> 0 | F142: ='Ab Ripper X'!U18 -> 0 | G142: ='Ab Ripper X'!Y18 -> 0 | H142: ='Ab Ripper X'!AC18 -> 0 | I142: ='Ab Ripper X'!AG18 -> 0 | J142: ='Ab Ripper X'!AK18 -> 0 | K142: ='Ab Ripper X'!AO18 -> 0

Sheet Summary 3 (hidden)
A1: Main Menu | B1: Master Schedule | D1: Workout Journals Menu | G1: Workout Graphs Menu
A2: Chest & Back | B2: Week 1 | C2: Week 2 | D2: Week 3 | E2: Week 9 | F2: Week 11
A3: Standard Push-Ups | B3: =IF($G3,IF('Summary 2'!B3=0,NA(),'Summary 2'!B3),NA()) ->  | C3: =IF($G3,IF('Summary 2'!C3=0,NA(),'Summary 2'!C3),NA()) ->  | D3: =IF($G3,IF('Summary 2'!D3=0,NA(),'Summary 2'!D3),NA()) ->  | E3: =IF($G3,IF('Summary 2'!E3=0,NA(),'Summary 2'!E3),NA()) ->  | F3: =IF($G3,IF('Summary 2'!F3=0,NA(),'Summary 2'!F3),NA()) ->  | G3: ='Chest & Back Chart'!$K32 -> TRUE
A4: Wide Front Pull-Ups | B4: =IF($G4,IF('Summary 2'!B4=0,NA(),'Summary 2'!B4),NA()) ->  | C4: =IF($G4,IF('Summary 2'!C4=0,NA(),'Summary 2'!C4),NA()) ->  | D4: =IF($G4,IF('Summary 2'!D4=0,NA(),'Summary 2'!D4),NA()) ->  | E4: =IF($G4,IF('Summary 2'!E4=0,NA(),'Summary 2'!E4),NA()) ->  | F4: =IF($G4,IF('Summary 2'!F4=0,NA(),'Summary 2'!F4),NA()) ->  | G4: ='Chest & Back Chart'!$K33 -> TRUE
A5: Military Push-Ups | B5: =IF($G5,IF('Summary 2'!B5=0,NA(),'Summary 2'!B5),NA()) ->  | C5: =IF($G5,IF('Summary 2'!C5=0,NA(),'Summary 2'!C5),NA()) ->  | D5: =IF($G5,IF('Summary 2'!D5=0,NA(),'Summary 2'!D5),NA()) ->  | E5: =IF($G5,IF('Summary 2'!E5=0,NA(),'Summary 2'!E5),NA()) ->  | F5: =IF($G5,IF('Summary 2'!F5=0,NA(),'Summary 2'!F5),NA()) ->  | G5: ='Chest & Back Chart'!$K34 -> TRUE
A6: Reverse Grip Chin-Ups | B6: =IF($G6,IF('Summary 2'!B6=0,NA(),'Summary 2'!B6),NA()) ->  | C6: =IF($G6,IF('Summary 2'!C6=0,NA(),'Summary 2'!C6),NA()) ->  | D6: =IF($G6,IF('Summary 2'!D6=0,NA(),'Summary 2'!D6),NA()) ->  | E6: =IF($G6,IF('Summary 2'!E6=0,NA(),'Summary 2'!E6),NA()) ->  | F6: =IF($G6,IF('Summary 2'!F6=0,NA(),'Summary 2'!F6),NA()) ->  | G6: ='Chest & Back Chart'!$K35 -> TRUE
A7: Wide Fly Push-Ups | B7: =IF($G7,IF('Summary 2'!B7=0,NA(),'Summary 2'!B7),NA()) ->  | C7: =IF($G7,IF('Summary 2'!C7=0,NA(),'Summary 2'!C7),NA()) ->  | D7: =IF($G7,IF('Summary 2'!D7=0,NA(),'Summary 2'!D7),NA()) ->  | E7: =IF($G7,IF('Summary 2'!E7=0,NA(),'Summary 2'!E7),NA()) ->  | F7: =IF($G7,IF('Summary 2'!F7=0,NA(),'Summary 2'!F7),NA()) ->  | G7: ='Chest & Back Chart'!$K36 -> TRUE
A8: Closed Grip OH Pull-Ups | B8: =IF($G8,IF('Summary 2'!B8=0,NA(),'Summary 2'!B8),NA()) ->  | C8: =IF($G8,IF('Summary 2'!C8=0,NA(),'Summary 2'!C8),NA()) ->  | D8: =IF($G8,IF('Summary 2'!D8=0,NA(),'Summary 2'!D8),NA()) ->  | E8: =IF($G8,IF('Summary 2'!E8=0,NA(),'Summary 2'!E8),NA()) ->  | F8: =IF($G8,IF('Summary 2'!F8=0,NA(),'Summary 2'!F8),NA()) ->  | G8: ='Chest & Back Chart'!$K37 -> TRUE
A9: Decline Push-Ups | B9: =IF($G9,IF('Summary 2'!B9=0,NA(),'Summary 2'!B9),NA()) ->  | C9: =IF($G9,IF('Summary 2'!C9=0,NA(),'Summary 2'!C9),NA()) ->  | D9: =IF($G9,IF('Summary 2'!D9=0,NA(),'Summary 2'!D9),NA()) ->  | E9: =IF($G9,IF('Summary 2'!E9=0,NA(),'Summary 2'!E9),NA()) ->  | F9: =IF($G9,IF('Summary 2'!F9=0,NA(),'Summary 2'!F9),NA()) ->  | G9: ='Chest & Back Chart'!$K38 -> TRUE
A10: Heavy Pants | B10: =IF($G10,IF('Summary 2'!B10=0,NA(),'Summary 2'!B10),NA()) ->  | C10: =IF($G10,IF('Summary 2'!C10=0,NA(),'Summary 2'!C10),NA()) ->  | D10: =IF($G10,IF('Summary 2'!D10=0,NA(),'Summary 2'!D10),NA()) ->  | E10: =IF($G10,IF('Summary 2'!E10=0,NA(),'Summary 2'!E10),NA()) ->  | F10: =IF($G10,IF('Summary 2'!F10=0,NA(),'Summary 2'!F10),NA()) ->  | G10: ='Chest & Back Chart'!$K39 -> FALSE
A11: Diamond Push-Ups | B11: =IF($G11,IF('Summary 2'!B11=0,NA(),'Summary 2'!B11),NA()) ->  | C11: =IF($G11,IF('Summary 2'!C11=0,NA(),'Summary 2'!C11),NA()) ->  | D11: =IF($G11,IF('Summary 2'!D11=0,NA(),'Summary 2'!D11),NA()) ->  | E11: =IF($G11,IF('Summary 2'!E11=0,NA(),'Summary 2'!E11),NA()) ->  | F11: =IF($G11,IF('Summary 2'!F11=0,NA(),'Summary 2'!F11),NA()) ->  | G11: ='Chest & Back Chart'!$K40 -> TRUE
A12: Lawnmowers | B12: =IF($G12,IF('Summary 2'!B12=0,NA(),'Summary 2'!B12),NA()) ->  | C12: =IF($G12,IF('Summary 2'!C12=0,NA(),'Summary 2'!C12),NA()) ->  | D12: =IF($G12,IF('Summary 2'!D12=0,NA(),'Summary 2'!D12),NA()) ->  | E12: =IF($G12,IF('Summary 2'!E12=0,NA(),'Summary 2'!E12),NA()) ->  | F12: =IF($G12,IF('Summary 2'!F12=0,NA(),'Summary 2'!F12),NA()) ->  | G12: ='Chest & Back Chart'!$K41 -> FALSE
A13: Dive-Bomber Push-Ups | B13: =IF($G13,IF('Summary 2'!B13=0,NA(),'Summary 2'!B13),NA()) ->  | C13: =IF($G13,IF('Summary 2'!C13=0,NA(),'Summary 2'!C13),NA()) ->  | D13: =IF($G13,IF('Summary 2'!D13=0,NA(),'Summary 2'!D13),NA()) ->  | E13: =IF($G13,IF('Summary 2'!E13=0,NA(),'Summary 2'!E13),NA()) ->  | F13: =IF($G13,IF('Summary 2'!F13=0,NA(),'Summary 2'!F13),NA()) ->  | G13: ='Chest & Back Chart'!$K42 -> TRUE
A14: Back Flyes | B14: =IF($G14,IF('Summary 2'!B14=0,NA(),'Summary 2'!B14),NA()) ->  | C14: =IF($G14,IF('Summary 2'!C14=0,NA(),'Summary 2'!C14),NA()) ->  | D14: =IF($G14,IF('Summary 2'!D14=0,NA(),'Summary 2'!D14),NA()) ->  | E14: =IF($G14,IF('Summary 2'!E14=0,NA(),'Summary 2'!E14),NA()) ->  | F14: =IF($G14,IF('Summary 2'!F14=0,NA(),'Summary 2'!F14),NA()) ->  | G14: ='Chest & Back Chart'!$K43 -> FALSE
A15: Shoulders & Arms | B15: Week 1 | C15: Week 2 | D15: Week 3 | E15: Week 9 | F15: Week 11
A16: Alternating Shoulder Press | B16: =IF($G16,IF('Summary 2'!B16=0,NA(),'Summary 2'!B16),NA()) ->  | C16: =IF($G16,IF('Summary 2'!C16=0,NA(),'Summary 2'!C16),NA()) ->  | D16: =IF($G16,IF('Summary 2'!D16=0,NA(),'Summary 2'!D16),NA()) ->  | E16: =IF($G16,IF('Summary 2'!E16=0,NA(),'Summary 2'!E16),NA()) ->  | F16: =IF($G16,IF('Summary 2'!F16=0,NA(),'Summary 2'!F16),NA()) ->  | G16: ='Shoulders & Arms Chart'!$K32 -> FALSE
A17: In & Out Bicep Curl | B17: =IF($G17,IF('Summary 2'!B17=0,NA(),'Summary 2'!B17),NA()) ->  | C17: =IF($G17,IF('Summary 2'!C17=0,NA(),'Summary 2'!C17),NA()) ->  | D17: =IF($G17,IF('Summary 2'!D17=0,NA(),'Summary 2'!D17),NA()) ->  | E17: =IF($G17,IF('Summary 2'!E17=0,NA(),'Summary 2'!E17),NA()) ->  | F17: =IF($G17,IF('Summary 2'!F17=0,NA(),'Summary 2'!F17),NA()) ->  | G17: ='Shoulders & Arms Chart'!$K33 -> TRUE
A18: Two-Arm Triceps Kickback | B18: =IF($G18,IF('Summary 2'!B18=0,NA(),'Summary 2'!B18),NA()) ->  | C18: =IF($G18,IF('Summary 2'!C18=0,NA(),'Summary 2'!C18),NA()) ->  | D18: =IF($G18,IF('Summary 2'!D18=0,NA(),'Summary 2'!D18),NA()) ->  | E18: =IF($G18,IF('Summary 2'!E18=0,NA(),'Summary 2'!E18),NA()) ->  | F18: =IF($G18,IF('Summary 2'!F18=0,NA(),'Summary 2'!F18),NA()) ->  | G18: ='Shoulders & Arms Chart'!$K34 -> FALSE
A19: Deep Swimmer's Press | B19: =IF($G19,IF('Summary 2'!B19=0,NA(),'Summary 2'!B19),NA()) ->  | C19: =IF($G19,IF('Summary 2'!C19=0,NA(),'Summary 2'!C19),NA()) ->  | D19: =IF($G19,IF('Summary 2'!D19=0,NA(),'Summary 2'!D19),NA()) ->  | E19: =IF($G19,IF('Summary 2'!E19=0,NA(),'Summary 2'!E19),NA()) ->  | F19: =IF($G19,IF('Summary 2'!F19=0,NA(),'Summary 2'!F19),NA()) ->  | G19: ='Shoulders & Arms Chart'!$K35 -> FALSE
A20: Full Supination Conc Curl | B20: =IF($G20,IF('Summary 2'!B20=0,NA(),'Summary 2'!B20),NA()) ->  | C20: =IF($G20,IF('Summary 2'!C20=0,NA(),'Summary 2'!C20),NA()) ->  | D20: =IF($G20,IF('Summary 2'!D20=0,NA(),'Summary 2'!D20),NA()) ->  | E20: =IF($G20,IF('Summary 2'!E20=0,NA(),'Summary 2'!E20),NA()) ->  | F20: =IF($G20,IF('Summary 2'!F20=0,NA(),'Summary 2'!F20),NA()) ->  | G20: ='Shoulders & Arms Chart'!$K36 -> TRUE
A21: Chair Dip | B21: =IF($G21,IF('Summary 2'!B21=0,NA(),'Summary 2'!B21),NA()) ->  | C21: =IF($G21,IF('Summary 2'!C21=0,NA(),'Summary 2'!C21),NA()) ->  | D21: =IF($G21,IF('Summary 2'!D21=0,NA(),'Summary 2'!D21),NA()) ->  | E21: =IF($G21,IF('Summary 2'!E21=0,NA(),'Summary 2'!E21),NA()) ->  | F21: =IF($G21,IF('Summary 2'!F21=0,NA(),'Summary 2'!F21),NA()) ->  | G21: ='Shoulders & Arms Chart'!$K37 -> FALSE
A22: Upright Row | B22: =IF($G22,IF('Summary 2'!B22=0,NA(),'Summary 2'!B22),NA()) ->  | C22: =IF($G22,IF('Summary 2'!C22=0,NA(),'Summary 2'!C22),NA()) ->  | D22: =IF($G22,IF('Summary 2'!D22=0,NA(),'Summary 2'!D22),NA()) ->  | E22: =IF($G22,IF('Summary 2'!E22=0,NA(),'Summary 2'!E22),NA()) ->  | F22: =IF($G22,IF('Summary 2'!F22=0,NA(),'Summary 2'!F22),NA()) ->  | G22: ='Shoulders & Arms Chart'!$K38 -> FALSE
A23: Static Arm Curl | B23: =IF($G23,IF('Summary 2'!B23=0,NA(),'Summary 2'!B23),NA()) ->  | C23: =IF($G23,IF('Summary 2'!C23=0,NA(),'Summary 2'!C23),NA()) ->  | D23: =IF($G23,IF('Summary 2'!D23=0,NA(),'Summary 2'!D23),NA()) ->  | E23: =IF($G23,IF('Summary 2'!E23=0,NA(),'Summary 2'!E23),NA()) ->  | F23: =IF($G23,IF('Summary 2'!F23=0,NA(),'Summary 2'!F23),NA()) ->  | G23: ='Shoulders & Arms Chart'!$K39 -> TRUE
A24: Flip-Grip Twist Triceps Kickback | B24: =IF($G24,IF('Summary 2'!B24=0,NA(),'Summary 2'!B24),NA()) ->  | C24: =IF($G24,IF('Summary 2'!C24=0,NA(),'Summary 2'!C24),NA()) ->  | D24: =IF($G24,IF('Summary 2'!D24=0,NA(),'Summary 2'!D24),NA()) ->  | E24: =IF($G24,IF('Summary 2'!E24=0,NA(),'Summary 2'!E24),NA()) ->  | F24: =IF($G24,IF('Summary 2'!F24=0,NA(),'Summary 2'!F24),NA()) ->  | G24: ='Shoulders & Arms Chart'!$K40 -> FALSE
A25: Seated 2-Angle Shoulder Fly | B25: =IF($G25,IF('Summary 2'!B25=0,NA(),'Summary 2'!B25),NA()) ->  | C25: =IF($G25,IF('Summary 2'!C25=0,NA(),'Summary 2'!C25),NA()) ->  | D25: =IF($G25,IF('Summary 2'!D25=0,NA(),'Summary 2'!D25),NA()) ->  | E25: =IF($G25,IF('Summary 2'!E25=0,NA(),'Summary 2'!E25),NA()) ->  | F25: =IF($G25,IF('Summary 2'!F25=0,NA(),'Summary 2'!F25),NA()) ->  | G25: ='Shoulders & Arms Chart'!$K41 -> FALSE
A26: Crouching Cohen Curl | B26: =IF($G26,IF('Summary 2'!B26=0,NA(),'Summary 2'!B26),NA()) ->  | C26: =IF($G26,IF('Summary 2'!C26=0,NA(),'Summary 2'!C26),NA()) ->  | D26: =IF($G26,IF('Summary 2'!D26=0,NA(),'Summary 2'!D26),NA()) ->  | E26: =IF($G26,IF('Summary 2'!E26=0,NA(),'Summary 2'!E26),NA()) ->  | F26: =IF($G26,IF('Summary 2'!F26=0,NA(),'Summary 2'!F26),NA()) ->  | G26: ='Shoulders & Arms Chart'!$K42 -> TRUE
A27: Lying-Down Triceps Extension | B27: =IF($G27,IF('Summary 2'!B27=0,NA(),'Summary 2'!B27),NA()) ->  | C27: =IF($G27,IF('Summary 2'!C27=0,NA(),'Summary 2'!C27),NA()) ->  | D27: =IF($G27,IF('Summary 2'!D27=0,NA(),'Summary 2'!D27),NA()) ->  | E27: =IF($G27,IF('Summary 2'!E27=0,NA(),'Summary 2'!E27),NA()) ->  | F27: =IF($G27,IF('Summary 2'!F27=0,NA(),'Summary 2'!F27),NA()) ->  | G27: ='Shoulders & Arms Chart'!$K43 -> FALSE
A28: In & Out Staight-Arm Sho Fly | B28: =IF($G28,IF('Summary 2'!B28=0,NA(),'Summary 2'!B28),NA()) ->  | C28: =IF($G28,IF('Summary 2'!C28=0,NA(),'Summary 2'!C28),NA()) ->  | D28: =IF($G28,IF('Summary 2'!D28=0,NA(),'Summary 2'!D28),NA()) ->  | E28: =IF($G28,IF('Summary 2'!E28=0,NA(),'Summary 2'!E28),NA()) ->  | F28: =IF($G28,IF('Summary 2'!F28=0,NA(),'Summary 2'!F28),NA()) ->  | G28: ='Shoulders & Arms Chart'!$K44 -> FALSE
A29: Congdon Curl | B29: =IF($G29,IF('Summary 2'!B29=0,NA(),'Summary 2'!B29),NA()) ->  | C29: =IF($G29,IF('Summary 2'!C29=0,NA(),'Summary 2'!C29),NA()) ->  | D29: =IF($G29,IF('Summary 2'!D29=0,NA(),'Summary 2'!D29),NA()) ->  | E29: =IF($G29,IF('Summary 2'!E29=0,NA(),'Summary 2'!E29),NA()) ->  | F29: =IF($G29,IF('Summary 2'!F29=0,NA(),'Summary 2'!F29),NA()) ->  | G29: ='Shoulders & Arms Chart'!$K45 -> TRUE
A30: Side Tri-Raise | B30: =IF($G30,IF('Summary 2'!B30=0,NA(),'Summary 2'!B30),NA()) ->  | C30: =IF($G30,IF('Summary 2'!C30=0,NA(),'Summary 2'!C30),NA()) ->  | D30: =IF($G30,IF('Summary 2'!D30=0,NA(),'Summary 2'!D30),NA()) ->  | E30: =IF($G30,IF('Summary 2'!E30=0,NA(),'Summary 2'!E30),NA()) ->  | F30: =IF($G30,IF('Summary 2'!F30=0,NA(),'Summary 2'!F30),NA()) ->  | G30: ='Shoulders & Arms Chart'!$K46 -> FALSE
A31: Legs & Back | B31: Week 1 | C31: Week 2 | D31: Week 3 | E31: Week 5 | F31: Week 6 | G31: Week 7 | H31: Week 10 | I31: Week 10 | J31: Week 11 | K31: Week 12
A32: Balanced Lunges | B32: =IF($L32,IF('Summary 2'!B32=0,NA(),'Summary 2'!B32),NA()) ->  | C32: =IF($L32,IF('Summary 2'!C32=0,NA(),'Summary 2'!C32),NA()) ->  | D32: =IF($L32,IF('Summary 2'!D32=0,NA(),'Summary 2'!D32),NA()) ->  | E32: =IF($L32,IF('Summary 2'!E32=0,NA(),'Summary 2'!E32),NA()) ->  | F32: =IF($L32,IF('Summary 2'!F32=0,NA(),'Summary 2'!F32),NA()) ->  | G32: =IF($L32,IF('Summary 2'!G32=0,NA(),'Summary 2'!G32),NA()) ->  | H32: =IF($L32,IF('Summary 2'!H32=0,NA(),'Summary 2'!H32),NA()) ->  | I32: =IF($L32,IF('Summary 2'!I32=0,NA(),'Summary 2'!I32),NA()) ->  | J32: =IF($L32,IF('Summary 2'!J32=0,NA(),'Summary 2'!J32),NA()) ->  | K32: =IF($L32,IF('Summary 2'!K32=0,NA(),'Summary 2'!K32),NA()) ->  | L32: ='Legs & Back Chart'!$P34 -> FALSE
A33: Calf Raise Squats | B33: =IF($L33,IF('Summary 2'!B33=0,NA(),'Summary 2'!B33),NA()) ->  | C33: =IF($L33,IF('Summary 2'!C33=0,NA(),'Summary 2'!C33),NA()) ->  | D33: =IF($L33,IF('Summary 2'!D33=0,NA(),'Summary 2'!D33),NA()) ->  | E33: =IF($L33,IF('Summary 2'!E33=0,NA(),'Summary 2'!E33),NA()) ->  | F33: =IF($L33,IF('Summary 2'!F33=0,NA(),'Summary 2'!F33),NA()) ->  | G33: =IF($L33,IF('Summary 2'!G33=0,NA(),'Summary 2'!G33),NA()) ->  | H33: =IF($L33,IF('Summary 2'!H33=0,NA(),'Summary 2'!H33),NA()) ->  | I33: =IF($L33,IF('Summary 2'!I33=0,NA(),'Summary 2'!I33),NA()) ->  | J33: =IF($L33,IF('Summary 2'!J33=0,NA(),'Summary 2'!J33),NA()) ->  | K33: =IF($L33,IF('Summary 2'!K33=0,NA(),'Summary 2'!K33),NA()) ->  | L33: ='Legs & Back Chart'!$P35 -> FALSE
A34: Reverse Grip Chin-Ups | B34: =IF($L34,IF('Summary 2'!B34=0,NA(),'Summary 2'!B34),NA()) ->  | C34: =IF($L34,IF('Summary 2'!C34=0,NA(),'Summary 2'!C34),NA()) ->  | D34: =IF($L34,IF('Summary 2'!D34=0,NA(),'Summary 2'!D34),NA()) ->  | E34: =IF($L34,IF('Summary 2'!E34=0,NA(),'Summary 2'!E34),NA()) ->  | F34: =IF($L34,IF('Summary 2'!F34=0,NA(),'Summary 2'!F34),NA()) ->  | G34: =IF($L34,IF('Summary 2'!G34=0,NA(),'Summary 2'!G34),NA()) ->  | H34: =IF($L34,IF('Summary 2'!H34=0,NA(),'Summary 2'!H34),NA()) ->  | I34: =IF($L34,IF('Summary 2'!I34=0,NA(),'Summary 2'!I34),NA()) ->  | J34: =IF($L34,IF('Summary 2'!J34=0,NA(),'Summary 2'!J34),NA()) ->  | K34: =IF($L34,IF('Summary 2'!K34=0,NA(),'Summary 2'!K34),NA()) ->  | L34: ='Legs & Back Chart'!$P36 -> TRUE
A35: Super Skaters | B35: =IF($L35,IF('Summary 2'!B35=0,NA(),'Summary 2'!B35),NA()) ->  | C35: =IF($L35,IF('Summary 2'!C35=0,NA(),'Summary 2'!C35),NA()) ->  | D35: =IF($L35,IF('Summary 2'!D35=0,NA(),'Summary 2'!D35),NA()) ->  | E35: =IF($L35,IF('Summary 2'!E35=0,NA(),'Summary 2'!E35),NA()) ->  | F35: =IF($L35,IF('Summary 2'!F35=0,NA(),'Summary 2'!F35),NA()) ->  | G35: =IF($L35,IF('Summary 2'!G35=0,NA(),'Summary 2'!G35),NA()) ->  | H35: =IF($L35,IF('Summary 2'!H35=0,NA(),'Summary 2'!H35),NA()) ->  | I35: =IF($L35,IF('Summary 2'!I35=0,NA(),'Summary 2'!I35),NA()) ->  | J35: =IF($L35,IF('Summary 2'!J35=0,NA(),'Summary 2'!J35),NA()) ->  | K35: =IF($L35,IF('Summary 2'!K35=0,NA(),'Summary 2'!K35),NA()) ->  | L35: ='Legs & Back Chart'!$P37 -> FALSE
A36: Wall Squats | B36: =IF($L36,IF('Summary 2'!B36=0,NA(),'Summary 2'!B36),NA()) ->  | C36: =IF($L36,IF('Summary 2'!C36=0,NA(),'Summary 2'!C36),NA()) ->  | D36: =IF($L36,IF('Summary 2'!D36=0,NA(),'Summary 2'!D36),NA()) ->  | E36: =IF($L36,IF('Summary 2'!E36=0,NA(),'Summary 2'!E36),NA()) ->  | F36: =IF($L36,IF('Summary 2'!F36=0,NA(),'Summary 2'!F36),NA()) ->  | G36: =IF($L36,IF('Summary 2'!G36=0,NA(),'Summary 2'!G36),NA()) ->  | H36: =IF($L36,IF('Summary 2'!H36=0,NA(),'Summary 2'!H36),NA()) ->  | I36: =IF($L36,IF('Summary 2'!I36=0,NA(),'Summary 2'!I36),NA()) ->  | J36: =IF($L36,IF('Summary 2'!J36=0,NA(),'Summary 2'!J36),NA()) ->  | K36: =IF($L36,IF('Summary 2'!K36=0,NA(),'Summary 2'!K36),NA()) ->  | L36: ='Legs & Back Chart'!$P38 -> FALSE
A37: Wide-Front Pull-Ups | B37: =IF($L37,IF('Summary 2'!B37=0,NA(),'Summary 2'!B37),NA()) ->  | C37: =IF($L37,IF('Summary 2'!C37=0,NA(),'Summary 2'!C37),NA()) ->  | D37: =IF($L37,IF('Summary 2'!D37=0,NA(),'Summary 2'!D37),NA()) ->  | E37: =IF($L37,IF('Summary 2'!E37=0,NA(),'Summary 2'!E37),NA()) ->  | F37: =IF($L37,IF('Summary 2'!F37=0,NA(),'Summary 2'!F37),NA()) ->  | G37: =IF($L37,IF('Summary 2'!G37=0,NA(),'Summary 2'!G37),NA()) ->  | H37: =IF($L37,IF('Summary 2'!H37=0,NA(),'Summary 2'!H37),NA()) ->  | I37: =IF($L37,IF('Summary 2'!I37=0,NA(),'Summary 2'!I37),NA()) ->  | J37: =IF($L37,IF('Summary 2'!J37=0,NA(),'Summary 2'!J37),NA()) ->  | K37: =IF($L37,IF('Summary 2'!K37=0,NA(),'Summary 2'!K37),NA()) ->  | L37: ='Legs & Back Chart'!$P39 -> TRUE
A38: Step Back Lunges | B38: =IF($L38,IF('Summary 2'!B38=0,NA(),'Summary 2'!B38),NA()) ->  | C38: =IF($L38,IF('Summary 2'!C38=0,NA(),'Summary 2'!C38),NA()) ->  | D38: =IF($L38,IF('Summary 2'!D38=0,NA(),'Summary 2'!D38),NA()) ->  | E38: =IF($L38,IF('Summary 2'!E38=0,NA(),'Summary 2'!E38),NA()) ->  | F38: =IF($L38,IF('Summary 2'!F38=0,NA(),'Summary 2'!F38),NA()) ->  | G38: =IF($L38,IF('Summary 2'!G38=0,NA(),'Summary 2'!G38),NA()) ->  | H38: =IF($L38,IF('Summary 2'!H38=0,NA(),'Summary 2'!H38),NA()) ->  | I38: =IF($L38,IF('Summary 2'!I38=0,NA(),'Summary 2'!I38),NA()) ->  | J38: =IF($L38,IF('Summary 2'!J38=0,NA(),'Summary 2'!J38),NA()) ->  | K38: =IF($L38,IF('Summary 2'!K38=0,NA(),'Summary 2'!K38),NA()) ->  | L38: ='Legs & Back Chart'!$P40 -> FALSE
A39: Alternating Side Lunges | B39: =IF($L39,IF('Summary 2'!B39=0,NA(),'Summary 2'!B39),NA()) ->  | C39: =IF($L39,IF('Summary 2'!C39=0,NA(),'Summary 2'!C39),NA()) ->  | D39: =IF($L39,IF('Summary 2'!D39=0,NA(),'Summary 2'!D39),NA()) ->  | E39: =IF($L39,IF('Summary 2'!E39=0,NA(),'Summary 2'!E39),NA()) ->  | F39: =IF($L39,IF('Summary 2'!F39=0,NA(),'Summary 2'!F39),NA()) ->  | G39: =IF($L39,IF('Summary 2'!G39=0,NA(),'Summary 2'!G39),NA()) ->  | H39: =IF($L39,IF('Summary 2'!H39=0,NA(),'Summary 2'!H39),NA()) ->  | I39: =IF($L39,IF('Summary 2'!I39=0,NA(),'Summary 2'!I39),NA()) ->  | J39: =IF($L39,IF('Summary 2'!J39=0,NA(),'Summary 2'!J39),NA()) ->  | K39: =IF($L39,IF('Summary 2'!K39=0,NA(),'Summary 2'!K39),NA()) ->  | L39: ='Legs & Back Chart'!$P41 -> FALSE
A40: Closed Grip OH Pull-Up | B40: =IF($L40,IF('Summary 2'!B40=0,NA(),'Summary 2'!B40),NA()) ->  | C40: =IF($L40,IF('Summary 2'!C40=0,NA(),'Summary 2'!C40),NA()) ->  | D40: =IF($L40,IF('Summary 2'!D40=0,NA(),'Summary 2'!D40),NA()) ->  | E40: =IF($L40,IF('Summary 2'!E40=0,NA(),'Summary 2'!E40),NA()) ->  | F40: =IF($L40,IF('Summary 2'!F40=0,NA(),'Summary 2'!F40),NA()) ->  | G40: =IF($L40,IF('Summary 2'!G40=0,NA(),'Summary 2'!G40),NA()) ->  | H40: =IF($L40,IF('Summary 2'!H40=0,NA(),'Summary 2'!H40),NA()) ->  | I40: =IF($L40,IF('Summary 2'!I40=0,NA(),'Summary 2'!I40),NA()) ->  | J40: =IF($L40,IF('Summary 2'!J40=0,NA(),'Summary 2'!J40),NA()) ->  | K40: =IF($L40,IF('Summary 2'!K40=0,NA(),'Summary 2'!K40),NA()) ->  | L40: ='Legs & Back Chart'!$P42 -> TRUE
A41: Single-Leg Wall Squats | B41: =IF($L41,IF('Summary 2'!B41=0,NA(),'Summary 2'!B41),NA()) ->  | C41: =IF($L41,IF('Summary 2'!C41=0,NA(),'Summary 2'!C41),NA()) ->  | D41: =IF($L41,IF('Summary 2'!D41=0,NA(),'Summary 2'!D41),NA()) ->  | E41: =IF($L41,IF('Summary 2'!E41=0,NA(),'Summary 2'!E41),NA()) ->  | F41: =IF($L41,IF('Summary 2'!F41=0,NA(),'Summary 2'!F41),NA()) ->  | G41: =IF($L41,IF('Summary 2'!G41=0,NA(),'Summary 2'!G41),NA()) ->  | H41: =IF($L41,IF('Summary 2'!H41=0,NA(),'Summary 2'!H41),NA()) ->  | I41: =IF($L41,IF('Summary 2'!I41=0,NA(),'Summary 2'!I41),NA()) ->  | J41: =IF($L41,IF('Summary 2'!J41=0,NA(),'Summary 2'!J41),NA()) ->  | K41: =IF($L41,IF('Summary 2'!K41=0,NA(),'Summary 2'!K41),NA()) ->  | L41: ='Legs & Back Chart'!$P43 -> FALSE
A42: Dead Lift Squats | B42: =IF($L42,IF('Summary 2'!B42=0,NA(),'Summary 2'!B42),NA()) ->  | C42: =IF($L42,IF('Summary 2'!C42=0,NA(),'Summary 2'!C42),NA()) ->  | D42: =IF($L42,IF('Summary 2'!D42=0,NA(),'Summary 2'!D42),NA()) ->  | E42: =IF($L42,IF('Summary 2'!E42=0,NA(),'Summary 2'!E42),NA()) ->  | F42: =IF($L42,IF('Summary 2'!F42=0,NA(),'Summary 2'!F42),NA()) ->  | G42: =IF($L42,IF('Summary 2'!G42=0,NA(),'Summary 2'!G42),NA()) ->  | H42: =IF($L42,IF('Summary 2'!H42=0,NA(),'Summary 2'!H42),NA()) ->  | I42: =IF($L42,IF('Summary 2'!I42=0,NA(),'Summary 2'!I42),NA()) ->  | J42: =IF($L42,IF('Summary 2'!J42=0,NA(),'Summary 2'!J42),NA()) ->  | K42: =IF($L42,IF('Summary 2'!K42=0,NA(),'Summary 2'!K42),NA()) ->  | L42: ='Legs & Back Chart'!$P44 -> FALSE
A43: Switch Grip Pull-Ups | B43: =IF($L43,IF('Summary 2'!B43=0,NA(),'Summary 2'!B43),NA()) ->  | C43: =IF($L43,IF('Summary 2'!C43=0,NA(),'Summary 2'!C43),NA()) ->  | D43: =IF($L43,IF('Summary 2'!D43=0,NA(),'Summary 2'!D43),NA()) ->  | E43: =IF($L43,IF('Summary 2'!E43=0,NA(),'Summary 2'!E43),NA()) ->  | F43: =IF($L43,IF('Summary 2'!F43=0,NA(),'Summary 2'!F43),NA()) ->  | G43: =IF($L43,IF('Summary 2'!G43=0,NA(),'Summary 2'!G43),NA()) ->  | H43: =IF($L43,IF('Summary 2'!H43=0,NA(),'Summary 2'!H43),NA()) ->  | I43: =IF($L43,IF('Summary 2'!I43=0,NA(),'Summary 2'!I43),NA()) ->  | J43: =IF($L43,IF('Summary 2'!J43=0,NA(),'Summary 2'!J43),NA()) ->  | K43: =IF($L43,IF('Summary 2'!K43=0,NA(),'Summary 2'!K43),NA()) ->  | L43: ='Legs & Back Chart'!$P45 -> TRUE
A44: Three-Way Lunges | B44: =IF($L44,IF('Summary 2'!B44=0,NA(),'Summary 2'!B44),NA()) ->  | C44: =IF($L44,IF('Summary 2'!C44=0,NA(),'Summary 2'!C44),NA()) ->  | D44: =IF($L44,IF('Summary 2'!D44=0,NA(),'Summary 2'!D44),NA()) ->  | E44: =IF($L44,IF('Summary 2'!E44=0,NA(),'Summary 2'!E44),NA()) ->  | F44: =IF($L44,IF('Summary 2'!F44=0,NA(),'Summary 2'!F44),NA()) ->  | G44: =IF($L44,IF('Summary 2'!G44=0,NA(),'Summary 2'!G44),NA()) ->  | H44: =IF($L44,IF('Summary 2'!H44=0,NA(),'Summary 2'!H44),NA()) ->  | I44: =IF($L44,IF('Summary 2'!I44=0,NA(),'Summary 2'!I44),NA()) ->  | J44: =IF($L44,IF('Summary 2'!J44=0,NA(),'Summary 2'!J44),NA()) ->  | K44: =IF($L44,IF('Summary 2'!K44=0,NA(),'Summary 2'!K44),NA()) ->  | L44: ='Legs & Back Chart'!$P46 -> FALSE
A45: Sneaky Lunges | B45: =IF($L45,IF('Summary 2'!B45=0,NA(),'Summary 2'!B45),NA()) ->  | C45: =IF($L45,IF('Summary 2'!C45=0,NA(),'Summary 2'!C45),NA()) ->  | D45: =IF($L45,IF('Summary 2'!D45=0,NA(),'Summary 2'!D45),NA()) ->  | E45: =IF($L45,IF('Summary 2'!E45=0,NA(),'Summary 2'!E45),NA()) ->  | F45: =IF($L45,IF('Summary 2'!F45=0,NA(),'Summary 2'!F45),NA()) ->  | G45: =IF($L45,IF('Summary 2'!G45=0,NA(),'Summary 2'!G45),NA()) ->  | H45: =IF($L45,IF('Summary 2'!H45=0,NA(),'Summary 2'!H45),NA()) ->  | I45: =IF($L45,IF('Summary 2'!I45=0,NA(),'Summary 2'!I45),NA()) ->  | J45: =IF($L45,IF('Summary 2'!J45=0,NA(),'Summary 2'!J45),NA()) ->  | K45: =IF($L45,IF('Summary 2'!K45=0,NA(),'Summary 2'!K45),NA()) ->  | L45: ='Legs & Back Chart'!$P47 -> FALSE
A46: Reverse Grip Chin-Ups | B46: =IF($L46,IF('Summary 2'!B46=0,NA(),'Summary 2'!B46),NA()) ->  | C46: =IF($L46,IF('Summary 2'!C46=0,NA(),'Summary 2'!C46),NA()) ->  | D46: =IF($L46,IF('Summary 2'!D46=0,NA(),'Summary 2'!D46),NA()) ->  | E46: =IF($L46,IF('Summary 2'!E46=0,NA(),'Summary 2'!E46),NA()) ->  | F46: =IF($L46,IF('Summary 2'!F46=0,NA(),'Summary 2'!F46),NA()) ->  | G46: =IF($L46,IF('Summary 2'!G46=0,NA(),'Summary 2'!G46),NA()) ->  | H46: =IF($L46,IF('Summary 2'!H46=0,NA(),'Summary 2'!H46),NA()) ->  | I46: =IF($L46,IF('Summary 2'!I46=0,NA(),'Summary 2'!I46),NA()) ->  | J46: =IF($L46,IF('Summary 2'!J46=0,NA(),'Summary 2'!J46),NA()) ->  | K46: =IF($L46,IF('Summary 2'!K46=0,NA(),'Summary 2'!K46),NA()) ->  | L46: ='Legs & Back Chart'!$P48 -> TRUE
A47: Chair Salutations | B47: =IF($L47,IF('Summary 2'!B47=0,NA(),'Summary 2'!B47),NA()) ->  | C47: =IF($L47,IF('Summary 2'!C47=0,NA(),'Summary 2'!C47),NA()) ->  | D47: =IF($L47,IF('Summary 2'!D47=0,NA(),'Summary 2'!D47),NA()) ->  | E47: =IF($L47,IF('Summary 2'!E47=0,NA(),'Summary 2'!E47),NA()) ->  | F47: =IF($L47,IF('Summary 2'!F47=0,NA(),'Summary 2'!F47),NA()) ->  | G47: =IF($L47,IF('Summary 2'!G47=0,NA(),'Summary 2'!G47),NA()) ->  | H47: =IF($L47,IF('Summary 2'!H47=0,NA(),'Summary 2'!H47),NA()) ->  | I47: =IF($L47,IF('Summary 2'!I47=0,NA(),'Summary 2'!I47),NA()) ->  | J47: =IF($L47,IF('Summary 2'!J47=0,NA(),'Summary 2'!J47),NA()) ->  | K47: =IF($L47,IF('Summary 2'!K47=0,NA(),'Summary 2'!K47),NA()) ->  | L47: ='Legs & Back Chart'!$P49 -> FALSE
A48: Toe Row Iso Lunges | B48: =IF($L48,IF('Summary 2'!B48=0,NA(),'Summary 2'!B48),NA()) ->  | C48: =IF($L48,IF('Summary 2'!C48=0,NA(),'Summary 2'!C48),NA()) ->  | D48: =IF($L48,IF('Summary 2'!D48=0,NA(),'Summary 2'!D48),NA()) ->  | E48: =IF($L48,IF('Summary 2'!E48=0,NA(),'Summary 2'!E48),NA()) ->  | F48: =IF($L48,IF('Summary 2'!F48=0,NA(),'Summary 2'!F48),NA()) ->  | G48: =IF($L48,IF('Summary 2'!G48=0,NA(),'Summary 2'!G48),NA()) ->  | H48: =IF($L48,IF('Summary 2'!H48=0,NA(),'Summary 2'!H48),NA()) ->  | I48: =IF($L48,IF('Summary 2'!I48=0,NA(),'Summary 2'!I48),NA()) ->  | J48: =IF($L48,IF('Summary 2'!J48=0,NA(),'Summary 2'!J48),NA()) ->  | K48: =IF($L48,IF('Summary 2'!K48=0,NA(),'Summary 2'!K48),NA()) ->  | L48: ='Legs & Back Chart'!$P50 -> FALSE
A49: Wide-Front Pull-Ups | B49: =IF($L49,IF('Summary 2'!B49=0,NA(),'Summary 2'!B49),NA()) ->  | C49: =IF($L49,IF('Summary 2'!C49=0,NA(),'Summary 2'!C49),NA()) ->  | D49: =IF($L49,IF('Summary 2'!D49=0,NA(),'Summary 2'!D49),NA()) ->  | E49: =IF($L49,IF('Summary 2'!E49=0,NA(),'Summary 2'!E49),NA()) ->  | F49: =IF($L49,IF('Summary 2'!F49=0,NA(),'Summary 2'!F49),NA()) ->  | G49: =IF($L49,IF('Summary 2'!G49=0,NA(),'Summary 2'!G49),NA()) ->  | H49: =IF($L49,IF('Summary 2'!H49=0,NA(),'Summary 2'!H49),NA()) ->  | I49: =IF($L49,IF('Summary 2'!I49=0,NA(),'Summary 2'!I49),NA()) ->  | J49: =IF($L49,IF('Summary 2'!J49=0,NA(),'Summary 2'!J49),NA()) ->  | K49: =IF($L49,IF('Summary 2'!K49=0,NA(),'Summary 2'!K49),NA()) ->  | L49: ='Legs & Back Chart'!$P51 -> TRUE
A50: Groucho Walk | B50: =IF($L50,IF('Summary 2'!B50=0,NA(),'Summary 2'!B50),NA()) ->  | C50: =IF($L50,IF('Summary 2'!C50=0,NA(),'Summary 2'!C50),NA()) ->  | D50: =IF($L50,IF('Summary 2'!D50=0,NA(),'Summary 2'!D50),NA()) ->  | E50: =IF($L50,IF('Summary 2'!E50=0,NA(),'Summary 2'!E50),NA()) ->  | F50: =IF($L50,IF('Summary 2'!F50=0,NA(),'Summary 2'!F50),NA()) ->  | G50: =IF($L50,IF('Summary 2'!G50=0,NA(),'Summary 2'!G50),NA()) ->  | H50: =IF($L50,IF('Summary 2'!H50=0,NA(),'Summary 2'!H50),NA()) ->  | I50: =IF($L50,IF('Summary 2'!I50=0,NA(),'Summary 2'!I50),NA()) ->  | J50: =IF($L50,IF('Summary 2'!J50=0,NA(),'Summary 2'!J50),NA()) ->  | K50: =IF($L50,IF('Summary 2'!K50=0,NA(),'Summary 2'!K50),NA()) ->  | L50: ='Legs & Back Chart'!$P52 -> FALSE
A51: Calf-Raises | B51: =IF($L51,IF('Summary 2'!B51=0,NA(),'Summary 2'!B51),NA()) ->  | C51: =IF($L51,IF('Summary 2'!C51=0,NA(),'Summary 2'!C51),NA()) ->  | D51: =IF($L51,IF('Summary 2'!D51=0,NA(),'Summary 2'!D51),NA()) ->  | E51: =IF($L51,IF('Summary 2'!E51=0,NA(),'Summary 2'!E51),NA()) ->  | F51: =IF($L51,IF('Summary 2'!F51=0,NA(),'Summary 2'!F51),NA()) ->  | G51: =IF($L51,IF('Summary 2'!G51=0,NA(),'Summary 2'!G51),NA()) ->  | H51: =IF($L51,IF('Summary 2'!H51=0,NA(),'Summary 2'!H51),NA()) ->  | I51: =IF($L51,IF('Summary 2'!I51=0,NA(),'Summary 2'!I51),NA()) ->  | J51: =IF($L51,IF('Summary 2'!J51=0,NA(),'Summary 2'!J51),NA()) ->  | K51: =IF($L51,IF('Summary 2'!K51=0,NA(),'Summary 2'!K51),NA()) ->  | L51: ='Legs & Back Chart'!$P53 -> FALSE
A52: Close-Grip OH Pull-Ups | B52: =IF($L52,IF('Summary 2'!B52=0,NA(),'Summary 2'!B52),NA()) ->  | C52: =IF($L52,IF('Summary 2'!C52=0,NA(),'Summary 2'!C52),NA()) ->  | D52: =IF($L52,IF('Summary 2'!D52=0,NA(),'Summary 2'!D52),NA()) ->  | E52: =IF($L52,IF('Summary 2'!E52=0,NA(),'Summary 2'!E52),NA()) ->  | F52: =IF($L52,IF('Summary 2'!F52=0,NA(),'Summary 2'!F52),NA()) ->  | G52: =IF($L52,IF('Summary 2'!G52=0,NA(),'Summary 2'!G52),NA()) ->  | H52: =IF($L52,IF('Summary 2'!H52=0,NA(),'Summary 2'!H52),NA()) ->  | I52: =IF($L52,IF('Summary 2'!I52=0,NA(),'Summary 2'!I52),NA()) ->  | J52: =IF($L52,IF('Summary 2'!J52=0,NA(),'Summary 2'!J52),NA()) ->  | K52: =IF($L52,IF('Summary 2'!K52=0,NA(),'Summary 2'!K52),NA()) ->  | L52: ='Legs & Back Chart'!$P54 -> TRUE
A53: 80-20 Selbers Speed Squats | B53: =IF($L53,IF('Summary 2'!B53=0,NA(),'Summary 2'!B53),NA()) ->  | C53: =IF($L53,IF('Summary 2'!C53=0,NA(),'Summary 2'!C53),NA()) ->  | D53: =IF($L53,IF('Summary 2'!D53=0,NA(),'Summary 2'!D53),NA()) ->  | E53: =IF($L53,IF('Summary 2'!E53=0,NA(),'Summary 2'!E53),NA()) ->  | F53: =IF($L53,IF('Summary 2'!F53=0,NA(),'Summary 2'!F53),NA()) ->  | G53: =IF($L53,IF('Summary 2'!G53=0,NA(),'Summary 2'!G53),NA()) ->  | H53: =IF($L53,IF('Summary 2'!H53=0,NA(),'Summary 2'!H53),NA()) ->  | I53: =IF($L53,IF('Summary 2'!I53=0,NA(),'Summary 2'!I53),NA()) ->  | J53: =IF($L53,IF('Summary 2'!J53=0,NA(),'Summary 2'!J53),NA()) ->  | K53: =IF($L53,IF('Summary 2'!K53=0,NA(),'Summary 2'!K53),NA()) ->  | L53: ='Legs & Back Chart'!$P55 -> FALSE
A54: Switch Grip Pull-Ups | B54: =IF($L54,IF('Summary 2'!B54=0,NA(),'Summary 2'!B54),NA()) ->  | C54: =IF($L54,IF('Summary 2'!C54=0,NA(),'Summary 2'!C54),NA()) ->  | D54: =IF($L54,IF('Summary 2'!D54=0,NA(),'Summary 2'!D54),NA()) ->  | E54: =IF($L54,IF('Summary 2'!E54=0,NA(),'Summary 2'!E54),NA()) ->  | F54: =IF($L54,IF('Summary 2'!F54=0,NA(),'Summary 2'!F54),NA()) ->  | G54: =IF($L54,IF('Summary 2'!G54=0,NA(),'Summary 2'!G54),NA()) ->  | H54: =IF($L54,IF('Summary 2'!H54=0,NA(),'Summary 2'!H54),NA()) ->  | I54: =IF($L54,IF('Summary 2'!I54=0,NA(),'Summary 2'!I54),NA()) ->  | J54: =IF($L54,IF('Summary 2'!J54=0,NA(),'Summary 2'!J54),NA()) ->  | K54: =IF($L54,IF('Summary 2'!K54=0,NA(),'Summary 2'!K54),NA()) ->  | L54: ='Legs & Back Chart'!$P56 -> TRUE
A55: Chest, Shoulders & Triceps | B55: Week 5 | C55: Week 6 | D55: Week 7 | E55: Week 10 | F55: Week 12
A56: Slow-Motion 3-In-1 Push-Up | B56: =IF($G56,IF('Summary 2'!B56=0,NA(),'Summary 2'!B56),NA()) ->  | C56: =IF($G56,IF('Summary 2'!C56=0,NA(),'Summary 2'!C56),NA()) ->  | D56: =IF($G56,IF('Summary 2'!D56=0,NA(),'Summary 2'!D56),NA()) ->  | E56: =IF($G56,IF('Summary 2'!E56=0,NA(),'Summary 2'!E56),NA()) ->  | F56: =IF($G56,IF('Summary 2'!F56=0,NA(),'Summary 2'!F56),NA()) ->  | G56: ='Chest, Shoulders, Tri Chart'!$K34 -> TRUE
A57: In & Out Shoulder Fly | B57: =IF($G57,IF('Summary 2'!B57=0,NA(),'Summary 2'!B57),NA()) ->  | C57: =IF($G57,IF('Summary 2'!C57=0,NA(),'Summary 2'!C57),NA()) ->  | D57: =IF($G57,IF('Summary 2'!D57=0,NA(),'Summary 2'!D57),NA()) ->  | E57: =IF($G57,IF('Summary 2'!E57=0,NA(),'Summary 2'!E57),NA()) ->  | F57: =IF($G57,IF('Summary 2'!F57=0,NA(),'Summary 2'!F57),NA()) ->  | G57: ='Chest, Shoulders, Tri Chart'!$K35 -> TRUE
A58: Chair Dip | B58: =IF($G58,IF('Summary 2'!B58=0,NA(),'Summary 2'!B58),NA()) ->  | C58: =IF($G58,IF('Summary 2'!C58=0,NA(),'Summary 2'!C58),NA()) ->  | D58: =IF($G58,IF('Summary 2'!D58=0,NA(),'Summary 2'!D58),NA()) ->  | E58: =IF($G58,IF('Summary 2'!E58=0,NA(),'Summary 2'!E58),NA()) ->  | F58: =IF($G58,IF('Summary 2'!F58=0,NA(),'Summary 2'!F58),NA()) ->  | G58: ='Chest, Shoulders, Tri Chart'!$K36 -> TRUE
A59: Plange Push-Up | B59: =IF($G59,IF('Summary 2'!B59=0,NA(),'Summary 2'!B59),NA()) ->  | C59: =IF($G59,IF('Summary 2'!C59=0,NA(),'Summary 2'!C59),NA()) ->  | D59: =IF($G59,IF('Summary 2'!D59=0,NA(),'Summary 2'!D59),NA()) ->  | E59: =IF($G59,IF('Summary 2'!E59=0,NA(),'Summary 2'!E59),NA()) ->  | F59: =IF($G59,IF('Summary 2'!F59=0,NA(),'Summary 2'!F59),NA()) ->  | G59: ='Chest, Shoulders, Tri Chart'!$K37 -> TRUE
A60: Pike Press | B60: =IF($G60,IF('Summary 2'!B60=0,NA(),'Summary 2'!B60),NA()) ->  | C60: =IF($G60,IF('Summary 2'!C60=0,NA(),'Summary 2'!C60),NA()) ->  | D60: =IF($G60,IF('Summary 2'!D60=0,NA(),'Summary 2'!D60),NA()) ->  | E60: =IF($G60,IF('Summary 2'!E60=0,NA(),'Summary 2'!E60),NA()) ->  | F60: =IF($G60,IF('Summary 2'!F60=0,NA(),'Summary 2'!F60),NA()) ->  | G60: ='Chest, Shoulders, Tri Chart'!$K38 -> TRUE
A61: Side Tri-Rise | B61: =IF($G61,IF('Summary 2'!B61=0,NA(),'Summary 2'!B61),NA()) ->  | C61: =IF($G61,IF('Summary 2'!C61=0,NA(),'Summary 2'!C61),NA()) ->  | D61: =IF($G61,IF('Summary 2'!D61=0,NA(),'Summary 2'!D61),NA()) ->  | E61: =IF($G61,IF('Summary 2'!E61=0,NA(),'Summary 2'!E61),NA()) ->  | F61: =IF($G61,IF('Summary 2'!F61=0,NA(),'Summary 2'!F61),NA()) ->  | G61: ='Chest, Shoulders, Tri Chart'!$K39 -> TRUE
A62: Floor-Fly | B62: =IF($G62,IF('Summary 2'!B62=0,NA(),'Summary 2'!B62),NA()) ->  | C62: =IF($G62,IF('Summary 2'!C62=0,NA(),'Summary 2'!C62),NA()) ->  | D62: =IF($G62,IF('Summary 2'!D62=0,NA(),'Summary 2'!D62),NA()) ->  | E62: =IF($G62,IF('Summary 2'!E62=0,NA(),'Summary 2'!E62),NA()) ->  | F62: =IF($G62,IF('Summary 2'!F62=0,NA(),'Summary 2'!F62),NA()) ->  | G62: ='Chest, Shoulders, Tri Chart'!$K40 -> TRUE
A63: Scarecrow | B63: =IF($G63,IF('Summary 2'!B63=0,NA(),'Summary 2'!B63),NA()) ->  | C63: =IF($G63,IF('Summary 2'!C63=0,NA(),'Summary 2'!C63),NA()) ->  | D63: =IF($G63,IF('Summary 2'!D63=0,NA(),'Summary 2'!D63),NA()) ->  | E63: =IF($G63,IF('Summary 2'!E63=0,NA(),'Summary 2'!E63),NA()) ->  | F63: =IF($G63,IF('Summary 2'!F63=0,NA(),'Summary 2'!F63),NA()) ->  | G63: ='Chest, Shoulders, Tri Chart'!$K41 -> TRUE
A64: Overhead Triceps Ext | B64: =IF($G64,IF('Summary 2'!B64=0,NA(),'Summary 2'!B64),NA()) ->  | C64: =IF($G64,IF('Summary 2'!C64=0,NA(),'Summary 2'!C64),NA()) ->  | D64: =IF($G64,IF('Summary 2'!D64=0,NA(),'Summary 2'!D64),NA()) ->  | E64: =IF($G64,IF('Summary 2'!E64=0,NA(),'Summary 2'!E64),NA()) ->  | F64: =IF($G64,IF('Summary 2'!F64=0,NA(),'Summary 2'!F64),NA()) ->  | G64: ='Chest, Shoulders, Tri Chart'!$K42 -> TRUE
A65: Two-Twitch Speed Push-Up | B65: =IF($G65,IF('Summary 2'!B65=0,NA(),'Summary 2'!B65),NA()) ->  | C65: =IF($G65,IF('Summary 2'!C65=0,NA(),'Summary 2'!C65),NA()) ->  | D65: =IF($G65,IF('Summary 2'!D65=0,NA(),'Summary 2'!D65),NA()) ->  | E65: =IF($G65,IF('Summary 2'!E65=0,NA(),'Summary 2'!E65),NA()) ->  | F65: =IF($G65,IF('Summary 2'!F65=0,NA(),'Summary 2'!F65),NA()) ->  | G65: ='Chest, Shoulders, Tri Chart'!$K43 -> TRUE
A66: Y-Press | B66: =IF($G66,IF('Summary 2'!B66=0,NA(),'Summary 2'!B66),NA()) ->  | C66: =IF($G66,IF('Summary 2'!C66=0,NA(),'Summary 2'!C66),NA()) ->  | D66: =IF($G66,IF('Summary 2'!D66=0,NA(),'Summary 2'!D66),NA()) ->  | E66: =IF($G66,IF('Summary 2'!E66=0,NA(),'Summary 2'!E66),NA()) ->  | F66: =IF($G66,IF('Summary 2'!F66=0,NA(),'Summary 2'!F66),NA()) ->  | G66: ='Chest, Shoulders, Tri Chart'!$K44 -> TRUE
A67: Lying Triceps Extension | B67: =IF($G67,IF('Summary 2'!B67=0,NA(),'Summary 2'!B67),NA()) ->  | C67: =IF($G67,IF('Summary 2'!C67=0,NA(),'Summary 2'!C67),NA()) ->  | D67: =IF($G67,IF('Summary 2'!D67=0,NA(),'Summary 2'!D67),NA()) ->  | E67: =IF($G67,IF('Summary 2'!E67=0,NA(),'Summary 2'!E67),NA()) ->  | F67: =IF($G67,IF('Summary 2'!F67=0,NA(),'Summary 2'!F67),NA()) ->  | G67: ='Chest, Shoulders, Tri Chart'!$K45 -> TRUE
A68: Side-To-Side Push-Up | B68: =IF($G68,IF('Summary 2'!B68=0,NA(),'Summary 2'!B68),NA()) ->  | C68: =IF($G68,IF('Summary 2'!C68=0,NA(),'Summary 2'!C68),NA()) ->  | D68: =IF($G68,IF('Summary 2'!D68=0,NA(),'Summary 2'!D68),NA()) ->  | E68: =IF($G68,IF('Summary 2'!E68=0,NA(),'Summary 2'!E68),NA()) ->  | F68: =IF($G68,IF('Summary 2'!F68=0,NA(),'Summary 2'!F68),NA()) ->  | G68: ='Chest, Shoulders, Tri Chart'!$K46 -> TRUE
A69: Pour Fly | B69: =IF($G69,IF('Summary 2'!B69=0,NA(),'Summary 2'!B69),NA()) ->  | C69: =IF($G69,IF('Summary 2'!C69=0,NA(),'Summary 2'!C69),NA()) ->  | D69: =IF($G69,IF('Summary 2'!D69=0,NA(),'Summary 2'!D69),NA()) ->  | E69: =IF($G69,IF('Summary 2'!E69=0,NA(),'Summary 2'!E69),NA()) ->  | F69: =IF($G69,IF('Summary 2'!F69=0,NA(),'Summary 2'!F69),NA()) ->  | G69: ='Chest, Shoulders, Tri Chart'!$K47 -> TRUE
A70: Side-Leaning Triceps Ext | B70: =IF($G70,IF('Summary 2'!B70=0,NA(),'Summary 2'!B70),NA()) ->  | C70: =IF($G70,IF('Summary 2'!C70=0,NA(),'Summary 2'!C70),NA()) ->  | D70: =IF($G70,IF('Summary 2'!D70=0,NA(),'Summary 2'!D70),NA()) ->  | E70: =IF($G70,IF('Summary 2'!E70=0,NA(),'Summary 2'!E70),NA()) ->  | F70: =IF($G70,IF('Summary 2'!F70=0,NA(),'Summary 2'!F70),NA()) ->  | G70: ='Chest, Shoulders, Tri Chart'!$K48 -> TRUE
A71: One-Arm Push-Up | B71: =IF($G71,IF('Summary 2'!B71=0,NA(),'Summary 2'!B71),NA()) ->  | C71: =IF($G71,IF('Summary 2'!C71=0,NA(),'Summary 2'!C71),NA()) ->  | D71: =IF($G71,IF('Summary 2'!D71=0,NA(),'Summary 2'!D71),NA()) ->  | E71: =IF($G71,IF('Summary 2'!E71=0,NA(),'Summary 2'!E71),NA()) ->  | F71: =IF($G71,IF('Summary 2'!F71=0,NA(),'Summary 2'!F71),NA()) ->  | G71: ='Chest, Shoulders, Tri Chart'!$K49 -> TRUE
A72: Weighted Circle | B72: =IF($G72,IF('Summary 2'!B72=0,NA(),'Summary 2'!B72),NA()) ->  | C72: =IF($G72,IF('Summary 2'!C72=0,NA(),'Summary 2'!C72),NA()) ->  | D72: =IF($G72,IF('Summary 2'!D72=0,NA(),'Summary 2'!D72),NA()) ->  | E72: =IF($G72,IF('Summary 2'!E72=0,NA(),'Summary 2'!E72),NA()) ->  | F72: =IF($G72,IF('Summary 2'!F72=0,NA(),'Summary 2'!F72),NA()) ->  | G72: ='Chest, Shoulders, Tri Chart'!$K50 -> TRUE
A73: Throw The Bomb | B73: =IF($G73,IF('Summary 2'!B73=0,NA(),'Summary 2'!B73),NA()) ->  | C73: =IF($G73,IF('Summary 2'!C73=0,NA(),'Summary 2'!C73),NA()) ->  | D73: =IF($G73,IF('Summary 2'!D73=0,NA(),'Summary 2'!D73),NA()) ->  | E73: =IF($G73,IF('Summary 2'!E73=0,NA(),'Summary 2'!E73),NA()) ->  | F73: =IF($G73,IF('Summary 2'!F73=0,NA(),'Summary 2'!F73),NA()) ->  | G73: ='Chest, Shoulders, Tri Chart'!$K51 -> TRUE
A74: Clap or Plyo Push-Up | B74: =IF($G74,IF('Summary 2'!B74=0,NA(),'Summary 2'!B74),NA()) ->  | C74: =IF($G74,IF('Summary 2'!C74=0,NA(),'Summary 2'!C74),NA()) ->  | D74: =IF($G74,IF('Summary 2'!D74=0,NA(),'Summary 2'!D74),NA()) ->  | E74: =IF($G74,IF('Summary 2'!E74=0,NA(),'Summary 2'!E74),NA()) ->  | F74: =IF($G74,IF('Summary 2'!F74=0,NA(),'Summary 2'!F74),NA()) ->  | G74: ='Chest, Shoulders, Tri Chart'!$K52 -> TRUE
A75: Slow-Mo Throw | B75: =IF($G75,IF('Summary 2'!B75=0,NA(),'Summary 2'!B75),NA()) ->  | C75: =IF($G75,IF('Summary 2'!C75=0,NA(),'Summary 2'!C75),NA()) ->  | D75: =IF($G75,IF('Summary 2'!D75=0,NA(),'Summary 2'!D75),NA()) ->  | E75: =IF($G75,IF('Summary 2'!E75=0,NA(),'Summary 2'!E75),NA()) ->  | F75: =IF($G75,IF('Summary 2'!F75=0,NA(),'Summary 2'!F75),NA()) ->  | G75: ='Chest, Shoulders, Tri Chart'!$K53 -> TRUE
A76: Front-To-Back Triceps Ext | B76: =IF($G76,IF('Summary 2'!B76=0,NA(),'Summary 2'!B76),NA()) ->  | C76: =IF($G76,IF('Summary 2'!C76=0,NA(),'Summary 2'!C76),NA()) ->  | D76: =IF($G76,IF('Summary 2'!D76=0,NA(),'Summary 2'!D76),NA()) ->  | E76: =IF($G76,IF('Summary 2'!E76=0,NA(),'Summary 2'!E76),NA()) ->  | F76: =IF($G76,IF('Summary 2'!F76=0,NA(),'Summary 2'!F76),NA()) ->  | G76: ='Chest, Shoulders, Tri Chart'!$K54 -> TRUE
A77: One-Arm Balance Push-Up | B77: =IF($G77,IF('Summary 2'!B77=0,NA(),'Summary 2'!B77),NA()) ->  | C77: =IF($G77,IF('Summary 2'!C77=0,NA(),'Summary 2'!C77),NA()) ->  | D77: =IF($G77,IF('Summary 2'!D77=0,NA(),'Summary 2'!D77),NA()) ->  | E77: =IF($G77,IF('Summary 2'!E77=0,NA(),'Summary 2'!E77),NA()) ->  | F77: =IF($G77,IF('Summary 2'!F77=0,NA(),'Summary 2'!F77),NA()) ->  | G77: ='Chest, Shoulders, Tri Chart'!$K55 -> TRUE
A78: Fly-Row-Press | B78: =IF($G78,IF('Summary 2'!B78=0,NA(),'Summary 2'!B78),NA()) ->  | C78: =IF($G78,IF('Summary 2'!C78=0,NA(),'Summary 2'!C78),NA()) ->  | D78: =IF($G78,IF('Summary 2'!D78=0,NA(),'Summary 2'!D78),NA()) ->  | E78: =IF($G78,IF('Summary 2'!E78=0,NA(),'Summary 2'!E78),NA()) ->  | F78: =IF($G78,IF('Summary 2'!F78=0,NA(),'Summary 2'!F78),NA()) ->  | G78: ='Chest, Shoulders, Tri Chart'!$K56 -> TRUE
A79: Dumbbell Cross-Body Blows | B79: =IF($G79,IF('Summary 2'!B79=0,NA(),'Summary 2'!B79),NA()) ->  | C79: =IF($G79,IF('Summary 2'!C79=0,NA(),'Summary 2'!C79),NA()) ->  | D79: =IF($G79,IF('Summary 2'!D79=0,NA(),'Summary 2'!D79),NA()) ->  | E79: =IF($G79,IF('Summary 2'!E79=0,NA(),'Summary 2'!E79),NA()) ->  | F79: =IF($G79,IF('Summary 2'!F79=0,NA(),'Summary 2'!F79),NA()) ->  | G79: ='Chest, Shoulders, Tri Chart'!$K57 -> TRUE
A80: Chest, Shoulders & Triceps (LEAN) | B80: Week 5 | C80: Week 6 | D80: Week 7 | E80: Week 10 | F80: Week 12
A81: Slow-Motion 3-In-1 Push-Up | B81: =IF($G81,IF('Summary 2'!B81=0,NA(),'Summary 2'!B81),NA()) ->  | C81: =IF($G81,IF('Summary 2'!C81=0,NA(),'Summary 2'!C81),NA()) ->  | D81: =IF($G81,IF('Summary 2'!D81=0,NA(),'Summary 2'!D81),NA()) ->  | E81: =IF($G81,IF('Summary 2'!E81=0,NA(),'Summary 2'!E81),NA()) ->  | F81: =IF($G81,IF('Summary 2'!F81=0,NA(),'Summary 2'!F81),NA()) ->  | G81: ='Chest, Shoulders, Tri Chart (L)'!$K34 -> TRUE
A82: In & Out Shoulder Fly | B82: =IF($G82,IF('Summary 2'!B82=0,NA(),'Summary 2'!B82),NA()) ->  | C82: =IF($G82,IF('Summary 2'!C82=0,NA(),'Summary 2'!C82),NA()) ->  | D82: =IF($G82,IF('Summary 2'!D82=0,NA(),'Summary 2'!D82),NA()) ->  | E82: =IF($G82,IF('Summary 2'!E82=0,NA(),'Summary 2'!E82),NA()) ->  | F82: =IF($G82,IF('Summary 2'!F82=0,NA(),'Summary 2'!F82),NA()) ->  | G82: ='Chest, Shoulders, Tri Chart (L)'!$K35 -> TRUE
A83: Chair Dip | B83: =IF($G83,IF('Summary 2'!B83=0,NA(),'Summary 2'!B83),NA()) ->  | C83: =IF($G83,IF('Summary 2'!C83=0,NA(),'Summary 2'!C83),NA()) ->  | D83: =IF($G83,IF('Summary 2'!D83=0,NA(),'Summary 2'!D83),NA()) ->  | E83: =IF($G83,IF('Summary 2'!E83=0,NA(),'Summary 2'!E83),NA()) ->  | F83: =IF($G83,IF('Summary 2'!F83=0,NA(),'Summary 2'!F83),NA()) ->  | G83: ='Chest, Shoulders, Tri Chart (L)'!$K36 -> TRUE
A84: Plange Push-Up | B84: =IF($G84,IF('Summary 2'!B84=0,NA(),'Summary 2'!B84),NA()) ->  | C84: =IF($G84,IF('Summary 2'!C84=0,NA(),'Summary 2'!C84),NA()) ->  | D84: =IF($G84,IF('Summary 2'!D84=0,NA(),'Summary 2'!D84),NA()) ->  | E84: =IF($G84,IF('Summary 2'!E84=0,NA(),'Summary 2'!E84),NA()) ->  | F84: =IF($G84,IF('Summary 2'!F84=0,NA(),'Summary 2'!F84),NA()) ->  | G84: ='Chest, Shoulders, Tri Chart (L)'!$K37 -> TRUE
A85: Pike Press | B85: =IF($G85,IF('Summary 2'!B85=0,NA(),'Summary 2'!B85),NA()) ->  | C85: =IF($G85,IF('Summary 2'!C85=0,NA(),'Summary 2'!C85),NA()) ->  | D85: =IF($G85,IF('Summary 2'!D85=0,NA(),'Summary 2'!D85),NA()) ->  | E85: =IF($G85,IF('Summary 2'!E85=0,NA(),'Summary 2'!E85),NA()) ->  | F85: =IF($G85,IF('Summary 2'!F85=0,NA(),'Summary 2'!F85),NA()) ->  | G85: ='Chest, Shoulders, Tri Chart (L)'!$K38 -> TRUE
A86: Side Tri-Rise | B86: =IF($G86,IF('Summary 2'!B86=0,NA(),'Summary 2'!B86),NA()) ->  | C86: =IF($G86,IF('Summary 2'!C86=0,NA(),'Summary 2'!C86),NA()) ->  | D86: =IF($G86,IF('Summary 2'!D86=0,NA(),'Summary 2'!D86),NA()) ->  | E86: =IF($G86,IF('Summary 2'!E86=0,NA(),'Summary 2'!E86),NA()) ->  | F86: =IF($G86,IF('Summary 2'!F86=0,NA(),'Summary 2'!F86),NA()) ->  | G86: ='Chest, Shoulders, Tri Chart (L)'!$K39 -> TRUE
A87: Floor-Fly | B87: =IF($G87,IF('Summary 2'!B87=0,NA(),'Summary 2'!B87),NA()) ->  | C87: =IF($G87,IF('Summary 2'!C87=0,NA(),'Summary 2'!C87),NA()) ->  | D87: =IF($G87,IF('Summary 2'!D87=0,NA(),'Summary 2'!D87),NA()) ->  | E87: =IF($G87,IF('Summary 2'!E87=0,NA(),'Summary 2'!E87),NA()) ->  | F87: =IF($G87,IF('Summary 2'!F87=0,NA(),'Summary 2'!F87),NA()) ->  | G87: ='Chest, Shoulders, Tri Chart (L)'!$K40 -> TRUE
A88: Scarecrow | B88: =IF($G88,IF('Summary 2'!B88=0,NA(),'Summary 2'!B88),NA()) ->  | C88: =IF($G88,IF('Summary 2'!C88=0,NA(),'Summary 2'!C88),NA()) ->  | D88: =IF($G88,IF('Summary 2'!D88=0,NA(),'Summary 2'!D88),NA()) ->  | E88: =IF($G88,IF('Summary 2'!E88=0,NA(),'Summary 2'!E88),NA()) ->  | F88: =IF($G88,IF('Summary 2'!F88=0,NA(),'Summary 2'!F88),NA()) ->  | G88: ='Chest, Shoulders, Tri Chart (L)'!$K41 -> TRUE
A89: Overhead Triceps Ext | B89: =IF($G89,IF('Summary 2'!B89=0,NA(),'Summary 2'!B89),NA()) ->  | C89: =IF($G89,IF('Summary 2'!C89=0,NA(),'Summary 2'!C89),NA()) ->  | D89: =IF($G89,IF('Summary 2'!D89=0,NA(),'Summary 2'!D89),NA()) ->  | E89: =IF($G89,IF('Summary 2'!E89=0,NA(),'Summary 2'!E89),NA()) ->  | F89: =IF($G89,IF('Summary 2'!F89=0,NA(),'Summary 2'!F89),NA()) ->  | G89: ='Chest, Shoulders, Tri Chart (L)'!$K42 -> TRUE
A90: Two-Twitch Speed Push-Up | B90: =IF($G90,IF('Summary 2'!B90=0,NA(),'Summary 2'!B90),NA()) ->  | C90: =IF($G90,IF('Summary 2'!C90=0,NA(),'Summary 2'!C90),NA()) ->  | D90: =IF($G90,IF('Summary 2'!D90=0,NA(),'Summary 2'!D90),NA()) ->  | E90: =IF($G90,IF('Summary 2'!E90=0,NA(),'Summary 2'!E90),NA()) ->  | F90: =IF($G90,IF('Summary 2'!F90=0,NA(),'Summary 2'!F90),NA()) ->  | G90: ='Chest, Shoulders, Tri Chart (L)'!$K43 -> TRUE
A91: Y-Press | B91: =IF($G91,IF('Summary 2'!B91=0,NA(),'Summary 2'!B91),NA()) ->  | C91: =IF($G91,IF('Summary 2'!C91=0,NA(),'Summary 2'!C91),NA()) ->  | D91: =IF($G91,IF('Summary 2'!D91=0,NA(),'Summary 2'!D91),NA()) ->  | E91: =IF($G91,IF('Summary 2'!E91=0,NA(),'Summary 2'!E91),NA()) ->  | F91: =IF($G91,IF('Summary 2'!F91=0,NA(),'Summary 2'!F91),NA()) ->  | G91: ='Chest, Shoulders, Tri Chart (L)'!$K44 -> TRUE
A92: Lying Triceps Extension | B92: =IF($G92,IF('Summary 2'!B92=0,NA(),'Summary 2'!B92),NA()) ->  | C92: =IF($G92,IF('Summary 2'!C92=0,NA(),'Summary 2'!C92),NA()) ->  | D92: =IF($G92,IF('Summary 2'!D92=0,NA(),'Summary 2'!D92),NA()) ->  | E92: =IF($G92,IF('Summary 2'!E92=0,NA(),'Summary 2'!E92),NA()) ->  | F92: =IF($G92,IF('Summary 2'!F92=0,NA(),'Summary 2'!F92),NA()) ->  | G92: ='Chest, Shoulders, Tri Chart (L)'!$K45 -> TRUE
A93: Side-To-Side Push-Up | B93: =IF($G93,IF('Summary 2'!B93=0,NA(),'Summary 2'!B93),NA()) ->  | C93: =IF($G93,IF('Summary 2'!C93=0,NA(),'Summary 2'!C93),NA()) ->  | D93: =IF($G93,IF('Summary 2'!D93=0,NA(),'Summary 2'!D93),NA()) ->  | E93: =IF($G93,IF('Summary 2'!E93=0,NA(),'Summary 2'!E93),NA()) ->  | F93: =IF($G93,IF('Summary 2'!F93=0,NA(),'Summary 2'!F93),NA()) ->  | G93: ='Chest, Shoulders, Tri Chart (L)'!$K46 -> TRUE
A94: Pour Fly | B94: =IF($G94,IF('Summary 2'!B94=0,NA(),'Summary 2'!B94),NA()) ->  | C94: =IF($G94,IF('Summary 2'!C94=0,NA(),'Summary 2'!C94),NA()) ->  | D94: =IF($G94,IF('Summary 2'!D94=0,NA(),'Summary 2'!D94),NA()) ->  | E94: =IF($G94,IF('Summary 2'!E94=0,NA(),'Summary 2'!E94),NA()) ->  | F94: =IF($G94,IF('Summary 2'!F94=0,NA(),'Summary 2'!F94),NA()) ->  | G94: ='Chest, Shoulders, Tri Chart (L)'!$K47 -> TRUE
A95: Side-Leaning Triceps Ext | B95: =IF($G95,IF('Summary 2'!B95=0,NA(),'Summary 2'!B95),NA()) ->  | C95: =IF($G95,IF('Summary 2'!C95=0,NA(),'Summary 2'!C95),NA()) ->  | D95: =IF($G95,IF('Summary 2'!D95=0,NA(),'Summary 2'!D95),NA()) ->  | E95: =IF($G95,IF('Summary 2'!E95=0,NA(),'Summary 2'!E95),NA()) ->  | F95: =IF($G95,IF('Summary 2'!F95=0,NA(),'Summary 2'!F95),NA()) ->  | G95: ='Chest, Shoulders, Tri Chart (L)'!$K48 -> TRUE
A96: One-Arm Push-Up | B96: =IF($G96,IF('Summary 2'!B96=0,NA(),'Summary 2'!B96),NA()) ->  | C96: =IF($G96,IF('Summary 2'!C96=0,NA(),'Summary 2'!C96),NA()) ->  | D96: =IF($G96,IF('Summary 2'!D96=0,NA(),'Summary 2'!D96),NA()) ->  | E96: =IF($G96,IF('Summary 2'!E96=0,NA(),'Summary 2'!E96),NA()) ->  | F96: =IF($G96,IF('Summary 2'!F96=0,NA(),'Summary 2'!F96),NA()) ->  | G96: ='Chest, Shoulders, Tri Chart (L)'!$K49 -> TRUE
A97: Weighted Circle | B97: =IF($G97,IF('Summary 2'!B97=0,NA(),'Summary 2'!B97),NA()) ->  | C97: =IF($G97,IF('Summary 2'!C97=0,NA(),'Summary 2'!C97),NA()) ->  | D97: =IF($G97,IF('Summary 2'!D97=0,NA(),'Summary 2'!D97),NA()) ->  | E97: =IF($G97,IF('Summary 2'!E97=0,NA(),'Summary 2'!E97),NA()) ->  | F97: =IF($G97,IF('Summary 2'!F97=0,NA(),'Summary 2'!F97),NA()) ->  | G97: ='Chest, Shoulders, Tri Chart (L)'!$K50 -> TRUE
A98: Throw The Bomb | B98: =IF($G98,IF('Summary 2'!B98=0,NA(),'Summary 2'!B98),NA()) ->  | C98: =IF($G98,IF('Summary 2'!C98=0,NA(),'Summary 2'!C98),NA()) ->  | D98: =IF($G98,IF('Summary 2'!D98=0,NA(),'Summary 2'!D98),NA()) ->  | E98: =IF($G98,IF('Summary 2'!E98=0,NA(),'Summary 2'!E98),NA()) ->  | F98: =IF($G98,IF('Summary 2'!F98=0,NA(),'Summary 2'!F98),NA()) ->  | G98: ='Chest, Shoulders, Tri Chart (L)'!$K51 -> TRUE
A99: Clap or Plyo Push-Up | B99: =IF($G99,IF('Summary 2'!B99=0,NA(),'Summary 2'!B99),NA()) ->  | C99: =IF($G99,IF('Summary 2'!C99=0,NA(),'Summary 2'!C99),NA()) ->  | D99: =IF($G99,IF('Summary 2'!D99=0,NA(),'Summary 2'!D99),NA()) ->  | E99: =IF($G99,IF('Summary 2'!E99=0,NA(),'Summary 2'!E99),NA()) ->  | F99: =IF($G99,IF('Summary 2'!F99=0,NA(),'Summary 2'!F99),NA()) ->  | G99: ='Chest, Shoulders, Tri Chart (L)'!$K52 -> TRUE
A100: Slow-Mo Throw | B100: =IF($G100,IF('Summary 2'!B100=0,NA(),'Summary 2'!B100),NA()) ->  | C100: =IF($G100,IF('Summary 2'!C100=0,NA(),'Summary 2'!C100),NA()) ->  | D100: =IF($G100,IF('Summary 2'!D100=0,NA(),'Summary 2'!D100),NA()) ->  | E100: =IF($G100,IF('Summary 2'!E100=0,NA(),'Summary 2'!E100),NA()) ->  | F100: =IF($G100,IF('Summary 2'!F100=0,NA(),'Summary 2'!F100),NA()) ->  | G100: ='Chest, Shoulders, Tri Chart (L)'!$K53 -> TRUE
A101: Front-To-Back Triceps Ext | B101: =IF($G101,IF('Summary 2'!B101=0,NA(),'Summary 2'!B101),NA()) ->  | C101: =IF($G101,IF('Summary 2'!C101=0,NA(),'Summary 2'!C101),NA()) ->  | D101: =IF($G101,IF('Summary 2'!D101=0,NA(),'Summary 2'!D101),NA()) ->  | E101: =IF($G101,IF('Summary 2'!E101=0,NA(),'Summary 2'!E101),NA()) ->  | F101: =IF($G101,IF('Summary 2'!F101=0,NA(),'Summary 2'!F101),NA()) ->  | G101: ='Chest, Shoulders, Tri Chart (L)'!$K54 -> TRUE
A102: One-Arm Balance Push-Up | B102: =IF($G102,IF('Summary 2'!B102=0,NA(),'Summary 2'!B102),NA()) ->  | C102: =IF($G102,IF('Summary 2'!C102=0,NA(),'Summary 2'!C102),NA()) ->  | D102: =IF($G102,IF('Summary 2'!D102=0,NA(),'Summary 2'!D102),NA()) ->  | E102: =IF($G102,IF('Summary 2'!E102=0,NA(),'Summary 2'!E102),NA()) ->  | F102: =IF($G102,IF('Summary 2'!F102=0,NA(),'Summary 2'!F102),NA()) ->  | G102: ='Chest, Shoulders, Tri Chart (L)'!$K55 -> TRUE
A103: Fly-Row-Press | B103: =IF($G103,IF('Summary 2'!B103=0,NA(),'Summary 2'!B103),NA()) ->  | C103: =IF($G103,IF('Summary 2'!C103=0,NA(),'Summary 2'!C103),NA()) ->  | D103: =IF($G103,IF('Summary 2'!D103=0,NA(),'Summary 2'!D103),NA()) ->  | E103: =IF($G103,IF('Summary 2'!E103=0,NA(),'Summary 2'!E103),NA()) ->  | F103: =IF($G103,IF('Summary 2'!F103=0,NA(),'Summary 2'!F103),NA()) ->  | G103: ='Chest, Shoulders, Tri Chart (L)'!$K56 -> TRUE
A104: Dumbbell Cross-Body Blows | B104: =IF($G104,IF('Summary 2'!B104=0,NA(),'Summary 2'!B104),NA()) ->  | C104: =IF($G104,IF('Summary 2'!C104=0,NA(),'Summary 2'!C104),NA()) ->  | D104: =IF($G104,IF('Summary 2'!D104=0,NA(),'Summary 2'!D104),NA()) ->  | E104: =IF($G104,IF('Summary 2'!E104=0,NA(),'Summary 2'!E104),NA()) ->  | F104: =IF($G104,IF('Summary 2'!F104=0,NA(),'Summary 2'!F104),NA()) ->  | G104: ='Chest, Shoulders, Tri Chart (L)'!$K57 -> TRUE
A105: Back & Biceps | B105: Week 5 | C105: Week 6 | D105: Week 7 | E105: Week 10 | F105: Week 12
A106: Wide Front Pull-Ups | B106: =IF($G106,IF('Summary 2'!B106=0,NA(),'Summary 2'!B106),NA()) ->  | C106: =IF($G106,IF('Summary 2'!C106=0,NA(),'Summary 2'!C106),NA()) ->  | D106: =IF($G106,IF('Summary 2'!D106=0,NA(),'Summary 2'!D106),NA()) ->  | E106: =IF($G106,IF('Summary 2'!E106=0,NA(),'Summary 2'!E106),NA()) ->  | F106: =IF($G106,IF('Summary 2'!F106=0,NA(),'Summary 2'!F106),NA()) ->  | G106: ='Back & Biceps Chart'!$K34 -> TRUE
A107: Lawnmowers | B107: =IF($G107,IF('Summary 2'!B107=0,NA(),'Summary 2'!B107),NA()) ->  | C107: =IF($G107,IF('Summary 2'!C107=0,NA(),'Summary 2'!C107),NA()) ->  | D107: =IF($G107,IF('Summary 2'!D107=0,NA(),'Summary 2'!D107),NA()) ->  | E107: =IF($G107,IF('Summary 2'!E107=0,NA(),'Summary 2'!E107),NA()) ->  | F107: =IF($G107,IF('Summary 2'!F107=0,NA(),'Summary 2'!F107),NA()) ->  | G107: ='Back & Biceps Chart'!$K35 -> FALSE
A108: Twenty-Ones | B108: =IF($G108,IF('Summary 2'!B108=0,NA(),'Summary 2'!B108),NA()) ->  | C108: =IF($G108,IF('Summary 2'!C108=0,NA(),'Summary 2'!C108),NA()) ->  | D108: =IF($G108,IF('Summary 2'!D108=0,NA(),'Summary 2'!D108),NA()) ->  | E108: =IF($G108,IF('Summary 2'!E108=0,NA(),'Summary 2'!E108),NA()) ->  | F108: =IF($G108,IF('Summary 2'!F108=0,NA(),'Summary 2'!F108),NA()) ->  | G108: ='Back & Biceps Chart'!$K36 -> FALSE
A109: One-Arm Cross-Body Curls | B109: =IF($G109,IF('Summary 2'!B109=0,NA(),'Summary 2'!B109),NA()) ->  | C109: =IF($G109,IF('Summary 2'!C109=0,NA(),'Summary 2'!C109),NA()) ->  | D109: =IF($G109,IF('Summary 2'!D109=0,NA(),'Summary 2'!D109),NA()) ->  | E109: =IF($G109,IF('Summary 2'!E109=0,NA(),'Summary 2'!E109),NA()) ->  | F109: =IF($G109,IF('Summary 2'!F109=0,NA(),'Summary 2'!F109),NA()) ->  | G109: ='Back & Biceps Chart'!$K37 -> FALSE
A110: Switch Grip Pull-Ups | B110: =IF($G110,IF('Summary 2'!B110=0,NA(),'Summary 2'!B110),NA()) ->  | C110: =IF($G110,IF('Summary 2'!C110=0,NA(),'Summary 2'!C110),NA()) ->  | D110: =IF($G110,IF('Summary 2'!D110=0,NA(),'Summary 2'!D110),NA()) ->  | E110: =IF($G110,IF('Summary 2'!E110=0,NA(),'Summary 2'!E110),NA()) ->  | F110: =IF($G110,IF('Summary 2'!F110=0,NA(),'Summary 2'!F110),NA()) ->  | G110: ='Back & Biceps Chart'!$K38 -> TRUE
A111: Elbows-Out Lawnmowers | B111: =IF($G111,IF('Summary 2'!B111=0,NA(),'Summary 2'!B111),NA()) ->  | C111: =IF($G111,IF('Summary 2'!C111=0,NA(),'Summary 2'!C111),NA()) ->  | D111: =IF($G111,IF('Summary 2'!D111=0,NA(),'Summary 2'!D111),NA()) ->  | E111: =IF($G111,IF('Summary 2'!E111=0,NA(),'Summary 2'!E111),NA()) ->  | F111: =IF($G111,IF('Summary 2'!F111=0,NA(),'Summary 2'!F111),NA()) ->  | G111: ='Back & Biceps Chart'!$K39 -> FALSE
A112: Standing Bicep Curls | B112: =IF($G112,IF('Summary 2'!B112=0,NA(),'Summary 2'!B112),NA()) ->  | C112: =IF($G112,IF('Summary 2'!C112=0,NA(),'Summary 2'!C112),NA()) ->  | D112: =IF($G112,IF('Summary 2'!D112=0,NA(),'Summary 2'!D112),NA()) ->  | E112: =IF($G112,IF('Summary 2'!E112=0,NA(),'Summary 2'!E112),NA()) ->  | F112: =IF($G112,IF('Summary 2'!F112=0,NA(),'Summary 2'!F112),NA()) ->  | G112: ='Back & Biceps Chart'!$K40 -> FALSE
A113: One-Arm Concentration Curls | B113: =IF($G113,IF('Summary 2'!B113=0,NA(),'Summary 2'!B113),NA()) ->  | C113: =IF($G113,IF('Summary 2'!C113=0,NA(),'Summary 2'!C113),NA()) ->  | D113: =IF($G113,IF('Summary 2'!D113=0,NA(),'Summary 2'!D113),NA()) ->  | E113: =IF($G113,IF('Summary 2'!E113=0,NA(),'Summary 2'!E113),NA()) ->  | F113: =IF($G113,IF('Summary 2'!F113=0,NA(),'Summary 2'!F113),NA()) ->  | G113: ='Back & Biceps Chart'!$K41 -> FALSE
A114: Corn Cob Pull-Ups | B114: =IF($G114,IF('Summary 2'!B114=0,NA(),'Summary 2'!B114),NA()) ->  | C114: =IF($G114,IF('Summary 2'!C114=0,NA(),'Summary 2'!C114),NA()) ->  | D114: =IF($G114,IF('Summary 2'!D114=0,NA(),'Summary 2'!D114),NA()) ->  | E114: =IF($G114,IF('Summary 2'!E114=0,NA(),'Summary 2'!E114),NA()) ->  | F114: =IF($G114,IF('Summary 2'!F114=0,NA(),'Summary 2'!F114),NA()) ->  | G114: ='Back & Biceps Chart'!$K42 -> TRUE
A115: Reverse Grip Bent-Over Rows | B115: =IF($G115,IF('Summary 2'!B115=0,NA(),'Summary 2'!B115),NA()) ->  | C115: =IF($G115,IF('Summary 2'!C115=0,NA(),'Summary 2'!C115),NA()) ->  | D115: =IF($G115,IF('Summary 2'!D115=0,NA(),'Summary 2'!D115),NA()) ->  | E115: =IF($G115,IF('Summary 2'!E115=0,NA(),'Summary 2'!E115),NA()) ->  | F115: =IF($G115,IF('Summary 2'!F115=0,NA(),'Summary 2'!F115),NA()) ->  | G115: ='Back & Biceps Chart'!$K43 -> FALSE
A116: One Arm Curls | B116: =IF($G116,IF('Summary 2'!B116=0,NA(),'Summary 2'!B116),NA()) ->  | C116: =IF($G116,IF('Summary 2'!C116=0,NA(),'Summary 2'!C116),NA()) ->  | D116: =IF($G116,IF('Summary 2'!D116=0,NA(),'Summary 2'!D116),NA()) ->  | E116: =IF($G116,IF('Summary 2'!E116=0,NA(),'Summary 2'!E116),NA()) ->  | F116: =IF($G116,IF('Summary 2'!F116=0,NA(),'Summary 2'!F116),NA()) ->  | G116: ='Back & Biceps Chart'!$K44 -> FALSE
A117: Static Arm Curls | B117: =IF($G117,IF('Summary 2'!B117=0,NA(),'Summary 2'!B117),NA()) ->  | C117: =IF($G117,IF('Summary 2'!C117=0,NA(),'Summary 2'!C117),NA()) ->  | D117: =IF($G117,IF('Summary 2'!D117=0,NA(),'Summary 2'!D117),NA()) ->  | E117: =IF($G117,IF('Summary 2'!E117=0,NA(),'Summary 2'!E117),NA()) ->  | F117: =IF($G117,IF('Summary 2'!F117=0,NA(),'Summary 2'!F117),NA()) ->  | G117: ='Back & Biceps Chart'!$K45 -> FALSE
A118: Towel Pull-Ups | B118: =IF($G118,IF('Summary 2'!B118=0,NA(),'Summary 2'!B118),NA()) ->  | C118: =IF($G118,IF('Summary 2'!C118=0,NA(),'Summary 2'!C118),NA()) ->  | D118: =IF($G118,IF('Summary 2'!D118=0,NA(),'Summary 2'!D118),NA()) ->  | E118: =IF($G118,IF('Summary 2'!E118=0,NA(),'Summary 2'!E118),NA()) ->  | F118: =IF($G118,IF('Summary 2'!F118=0,NA(),'Summary 2'!F118),NA()) ->  | G118: ='Back & Biceps Chart'!$K46 -> TRUE
A119: Congdon Locomotives | B119: =IF($G119,IF('Summary 2'!B119=0,NA(),'Summary 2'!B119),NA()) ->  | C119: =IF($G119,IF('Summary 2'!C119=0,NA(),'Summary 2'!C119),NA()) ->  | D119: =IF($G119,IF('Summary 2'!D119=0,NA(),'Summary 2'!D119),NA()) ->  | E119: =IF($G119,IF('Summary 2'!E119=0,NA(),'Summary 2'!E119),NA()) ->  | F119: =IF($G119,IF('Summary 2'!F119=0,NA(),'Summary 2'!F119),NA()) ->  | G119: ='Back & Biceps Chart'!$K47 -> FALSE
A120: Crouching Cohen Curls | B120: =IF($G120,IF('Summary 2'!B120=0,NA(),'Summary 2'!B120),NA()) ->  | C120: =IF($G120,IF('Summary 2'!C120=0,NA(),'Summary 2'!C120),NA()) ->  | D120: =IF($G120,IF('Summary 2'!D120=0,NA(),'Summary 2'!D120),NA()) ->  | E120: =IF($G120,IF('Summary 2'!E120=0,NA(),'Summary 2'!E120),NA()) ->  | F120: =IF($G120,IF('Summary 2'!F120=0,NA(),'Summary 2'!F120),NA()) ->  | G120: ='Back & Biceps Chart'!$K48 -> FALSE
A121: One-Arm Corkscrew Curls | B121: =IF($G121,IF('Summary 2'!B121=0,NA(),'Summary 2'!B121),NA()) ->  | C121: =IF($G121,IF('Summary 2'!C121=0,NA(),'Summary 2'!C121),NA()) ->  | D121: =IF($G121,IF('Summary 2'!D121=0,NA(),'Summary 2'!D121),NA()) ->  | E121: =IF($G121,IF('Summary 2'!E121=0,NA(),'Summary 2'!E121),NA()) ->  | F121: =IF($G121,IF('Summary 2'!F121=0,NA(),'Summary 2'!F121),NA()) ->  | G121: ='Back & Biceps Chart'!$K49 -> FALSE
A122: Chin-Ups | B122: =IF($G122,IF('Summary 2'!B122=0,NA(),'Summary 2'!B122),NA()) ->  | C122: =IF($G122,IF('Summary 2'!C122=0,NA(),'Summary 2'!C122),NA()) ->  | D122: =IF($G122,IF('Summary 2'!D122=0,NA(),'Summary 2'!D122),NA()) ->  | E122: =IF($G122,IF('Summary 2'!E122=0,NA(),'Summary 2'!E122),NA()) ->  | F122: =IF($G122,IF('Summary 2'!F122=0,NA(),'Summary 2'!F122),NA()) ->  | G122: ='Back & Biceps Chart'!$K50 -> TRUE
A123: Seated Bent-Over Back Flys | B123: =IF($G123,IF('Summary 2'!B123=0,NA(),'Summary 2'!B123),NA()) ->  | C123: =IF($G123,IF('Summary 2'!C123=0,NA(),'Summary 2'!C123),NA()) ->  | D123: =IF($G123,IF('Summary 2'!D123=0,NA(),'Summary 2'!D123),NA()) ->  | E123: =IF($G123,IF('Summary 2'!E123=0,NA(),'Summary 2'!E123),NA()) ->  | F123: =IF($G123,IF('Summary 2'!F123=0,NA(),'Summary 2'!F123),NA()) ->  | G123: ='Back & Biceps Chart'!$K51 -> FALSE
A124: Curl Up / Hammer Downs | B124: =IF($G124,IF('Summary 2'!B124=0,NA(),'Summary 2'!B124),NA()) ->  | C124: =IF($G124,IF('Summary 2'!C124=0,NA(),'Summary 2'!C124),NA()) ->  | D124: =IF($G124,IF('Summary 2'!D124=0,NA(),'Summary 2'!D124),NA()) ->  | E124: =IF($G124,IF('Summary 2'!E124=0,NA(),'Summary 2'!E124),NA()) ->  | F124: =IF($G124,IF('Summary 2'!F124=0,NA(),'Summary 2'!F124),NA()) ->  | G124: ='Back & Biceps Chart'!$K52 -> FALSE
A125: Hammer Curls | B125: =IF($G125,IF('Summary 2'!B125=0,NA(),'Summary 2'!B125),NA()) ->  | C125: =IF($G125,IF('Summary 2'!C125=0,NA(),'Summary 2'!C125),NA()) ->  | D125: =IF($G125,IF('Summary 2'!D125=0,NA(),'Summary 2'!D125),NA()) ->  | E125: =IF($G125,IF('Summary 2'!E125=0,NA(),'Summary 2'!E125),NA()) ->  | F125: =IF($G125,IF('Summary 2'!F125=0,NA(),'Summary 2'!F125),NA()) ->  | G125: ='Back & Biceps Chart'!$K53 -> FALSE
A126: Max Rep Pull-Ups | B126: =IF($G126,IF('Summary 2'!B126=0,NA(),'Summary 2'!B126),NA()) ->  | C126: =IF($G126,IF('Summary 2'!C126=0,NA(),'Summary 2'!C126),NA()) ->  | D126: =IF($G126,IF('Summary 2'!D126=0,NA(),'Summary 2'!D126),NA()) ->  | E126: =IF($G126,IF('Summary 2'!E126=0,NA(),'Summary 2'!E126),NA()) ->  | F126: =IF($G126,IF('Summary 2'!F126=0,NA(),'Summary 2'!F126),NA()) ->  | G126: ='Back & Biceps Chart'!$K54 -> TRUE
A127: Superman | B127: =IF($G127,IF('Summary 2'!B127=0,NA(),'Summary 2'!B127),NA()) ->  | C127: =IF($G127,IF('Summary 2'!C127=0,NA(),'Summary 2'!C127),NA()) ->  | D127: =IF($G127,IF('Summary 2'!D127=0,NA(),'Summary 2'!D127),NA()) ->  | E127: =IF($G127,IF('Summary 2'!E127=0,NA(),'Summary 2'!E127),NA()) ->  | F127: =IF($G127,IF('Summary 2'!F127=0,NA(),'Summary 2'!F127),NA()) ->  | G127: ='Back & Biceps Chart'!$K55 -> FALSE
A128: In-Out Hammer Curls | B128: =IF($G128,IF('Summary 2'!B128=0,NA(),'Summary 2'!B128),NA()) ->  | C128: =IF($G128,IF('Summary 2'!C128=0,NA(),'Summary 2'!C128),NA()) ->  | D128: =IF($G128,IF('Summary 2'!D128=0,NA(),'Summary 2'!D128),NA()) ->  | E128: =IF($G128,IF('Summary 2'!E128=0,NA(),'Summary 2'!E128),NA()) ->  | F128: =IF($G128,IF('Summary 2'!F128=0,NA(),'Summary 2'!F128),NA()) ->  | G128: ='Back & Biceps Chart'!$K56 -> FALSE
A129: Strip-Set Curls | B129: =IF($G129,IF('Summary 2'!B129=0,NA(),'Summary 2'!B129),NA()) ->  | C129: =IF($G129,IF('Summary 2'!C129=0,NA(),'Summary 2'!C129),NA()) ->  | D129: =IF($G129,IF('Summary 2'!D129=0,NA(),'Summary 2'!D129),NA()) ->  | E129: =IF($G129,IF('Summary 2'!E129=0,NA(),'Summary 2'!E129),NA()) ->  | F129: =IF($G129,IF('Summary 2'!F129=0,NA(),'Summary 2'!F129),NA()) ->  | G129: ='Back & Biceps Chart'!$K57 -> FALSE
A130: Ab Ripper X | B130: Week 1 | C130: Week 2 | D130: Week 3 | E130: Week 5 | F130: Week 6 | G130: Week 7 | H130: Week 9 | I130: Week 10 | J130: Week 11 | K130: Week 12
A131: In & Outs | B131: =IF($L131,IF('Summary 2'!B131=0,NA(),'Summary 2'!B131),NA()) ->  | C131: =IF($L131,IF('Summary 2'!C131=0,NA(),'Summary 2'!C131),NA()) ->  | D131: =IF($L131,IF('Summary 2'!D131=0,NA(),'Summary 2'!D131),NA()) ->  | E131: =IF($L131,IF('Summary 2'!E131=0,NA(),'Summary 2'!E131),NA()) ->  | F131: =IF($L131,IF('Summary 2'!F131=0,NA(),'Summary 2'!F131),NA()) ->  | G131: =IF($L131,IF('Summary 2'!G131=0,NA(),'Summary 2'!G131),NA()) ->  | H131: =IF($L131,IF('Summary 2'!H131=0,NA(),'Summary 2'!H131),NA()) ->  | I131: =IF($L131,IF('Summary 2'!I131=0,NA(),'Summary 2'!I131),NA()) ->  | J131: =IF($L131,IF('Summary 2'!J131=0,NA(),'Summary 2'!J131),NA()) ->  | K131: =IF($L131,IF('Summary 2'!K131=0,NA(),'Summary 2'!K131),NA()) ->  | L131: ='Ab Ripper X Chart'!O42 -> TRUE
A132: Bicycles | B132: =IF($L132,IF('Summary 2'!B132=0,NA(),'Summary 2'!B132),NA()) ->  | C132: =IF($L132,IF('Summary 2'!C132=0,NA(),'Summary 2'!C132),NA()) ->  | D132: =IF($L132,IF('Summary 2'!D132=0,NA(),'Summary 2'!D132),NA()) ->  | E132: =IF($L132,IF('Summary 2'!E132=0,NA(),'Summary 2'!E132),NA()) ->  | F132: =IF($L132,IF('Summary 2'!F132=0,NA(),'Summary 2'!F132),NA()) ->  | G132: =IF($L132,IF('Summary 2'!G132=0,NA(),'Summary 2'!G132),NA()) ->  | H132: =IF($L132,IF('Summary 2'!H132=0,NA(),'Summary 2'!H132),NA()) ->  | I132: =IF($L132,IF('Summary 2'!I132=0,NA(),'Summary 2'!I132),NA()) ->  | J132: =IF($L132,IF('Summary 2'!J132=0,NA(),'Summary 2'!J132),NA()) ->  | K132: =IF($L132,IF('Summary 2'!K132=0,NA(),'Summary 2'!K132),NA()) ->  | L132: ='Ab Ripper X Chart'!O43 -> TRUE
A133: Crunchy Frogs | B133: =IF($L133,IF('Summary 2'!B133=0,NA(),'Summary 2'!B133),NA()) ->  | C133: =IF($L133,IF('Summary 2'!C133=0,NA(),'Summary 2'!C133),NA()) ->  | D133: =IF($L133,IF('Summary 2'!D133=0,NA(),'Summary 2'!D133),NA()) ->  | E133: =IF($L133,IF('Summary 2'!E133=0,NA(),'Summary 2'!E133),NA()) ->  | F133: =IF($L133,IF('Summary 2'!F133=0,NA(),'Summary 2'!F133),NA()) ->  | G133: =IF($L133,IF('Summary 2'!G133=0,NA(),'Summary 2'!G133),NA()) ->  | H133: =IF($L133,IF('Summary 2'!H133=0,NA(),'Summary 2'!H133),NA()) ->  | I133: =IF($L133,IF('Summary 2'!I133=0,NA(),'Summary 2'!I133),NA()) ->  | J133: =IF($L133,IF('Summary 2'!J133=0,NA(),'Summary 2'!J133),NA()) ->  | K133: =IF($L133,IF('Summary 2'!K133=0,NA(),'Summary 2'!K133),NA()) ->  | L133: ='Ab Ripper X Chart'!O44 -> TRUE
A134: Cross/Wide Leg Sit-Ups | B134: =IF($L134,IF('Summary 2'!B134=0,NA(),'Summary 2'!B134),NA()) ->  | C134: =IF($L134,IF('Summary 2'!C134=0,NA(),'Summary 2'!C134),NA()) ->  | D134: =IF($L134,IF('Summary 2'!D134=0,NA(),'Summary 2'!D134),NA()) ->  | E134: =IF($L134,IF('Summary 2'!E134=0,NA(),'Summary 2'!E134),NA()) ->  | F134: =IF($L134,IF('Summary 2'!F134=0,NA(),'Summary 2'!F134),NA()) ->  | G134: =IF($L134,IF('Summary 2'!G134=0,NA(),'Summary 2'!G134),NA()) ->  | H134: =IF($L134,IF('Summary 2'!H134=0,NA(),'Summary 2'!H134),NA()) ->  | I134: =IF($L134,IF('Summary 2'!I134=0,NA(),'Summary 2'!I134),NA()) ->  | J134: =IF($L134,IF('Summary 2'!J134=0,NA(),'Summary 2'!J134),NA()) ->  | K134: =IF($L134,IF('Summary 2'!K134=0,NA(),'Summary 2'!K134),NA()) ->  | L134: ='Ab Ripper X Chart'!O45 -> TRUE
A135: Fifer Scissors | B135: =IF($L135,IF('Summary 2'!B135=0,NA(),'Summary 2'!B135),NA()) ->  | C135: =IF($L135,IF('Summary 2'!C135=0,NA(),'Summary 2'!C135),NA()) ->  | D135: =IF($L135,IF('Summary 2'!D135=0,NA(),'Summary 2'!D135),NA()) ->  | E135: =IF($L135,IF('Summary 2'!E135=0,NA(),'Summary 2'!E135),NA()) ->  | F135: =IF($L135,IF('Summary 2'!F135=0,NA(),'Summary 2'!F135),NA()) ->  | G135: =IF($L135,IF('Summary 2'!G135=0,NA(),'Summary 2'!G135),NA()) ->  | H135: =IF($L135,IF('Summary 2'!H135=0,NA(),'Summary 2'!H135),NA()) ->  | I135: =IF($L135,IF('Summary 2'!I135=0,NA(),'Summary 2'!I135),NA()) ->  | J135: =IF($L135,IF('Summary 2'!J135=0,NA(),'Summary 2'!J135),NA()) ->  | K135: =IF($L135,IF('Summary 2'!K135=0,NA(),'Summary 2'!K135),NA()) ->  | L135: ='Ab Ripper X Chart'!O46 -> TRUE
A136: Hip Rock'n Raises | B136: =IF($L136,IF('Summary 2'!B136=0,NA(),'Summary 2'!B136),NA()) ->  | C136: =IF($L136,IF('Summary 2'!C136=0,NA(),'Summary 2'!C136),NA()) ->  | D136: =IF($L136,IF('Summary 2'!D136=0,NA(),'Summary 2'!D136),NA()) ->  | E136: =IF($L136,IF('Summary 2'!E136=0,NA(),'Summary 2'!E136),NA()) ->  | F136: =IF($L136,IF('Summary 2'!F136=0,NA(),'Summary 2'!F136),NA()) ->  | G136: =IF($L136,IF('Summary 2'!G136=0,NA(),'Summary 2'!G136),NA()) ->  | H136: =IF($L136,IF('Summary 2'!H136=0,NA(),'Summary 2'!H136),NA()) ->  | I136: =IF($L136,IF('Summary 2'!I136=0,NA(),'Summary 2'!I136),NA()) ->  | J136: =IF($L136,IF('Summary 2'!J136=0,NA(),'Summary 2'!J136),NA()) ->  | K136: =IF($L136,IF('Summary 2'!K136=0,NA(),'Summary 2'!K136),NA()) ->  | L136: ='Ab Ripper X Chart'!O47 -> TRUE
A137: Pulse Ups | B137: =IF($L137,IF('Summary 2'!B137=0,NA(),'Summary 2'!B137),NA()) ->  | C137: =IF($L137,IF('Summary 2'!C137=0,NA(),'Summary 2'!C137),NA()) ->  | D137: =IF($L137,IF('Summary 2'!D137=0,NA(),'Summary 2'!D137),NA()) ->  | E137: =IF($L137,IF('Summary 2'!E137=0,NA(),'Summary 2'!E137),NA()) ->  | F137: =IF($L137,IF('Summary 2'!F137=0,NA(),'Summary 2'!F137),NA()) ->  | G137: =IF($L137,IF('Summary 2'!G137=0,NA(),'Summary 2'!G137),NA()) ->  | H137: =IF($L137,IF('Summary 2'!H137=0,NA(),'Summary 2'!H137),NA()) ->  | I137: =IF($L137,IF('Summary 2'!I137=0,NA(),'Summary 2'!I137),NA()) ->  | J137: =IF($L137,IF('Summary 2'!J137=0,NA(),'Summary 2'!J137),NA()) ->  | K137: =IF($L137,IF('Summary 2'!K137=0,NA(),'Summary 2'!K137),NA()) ->  | L137: ='Ab Ripper X Chart'!O48 -> TRUE
A138: V-Up/Roll-Up Combos | B138: =IF($L138,IF('Summary 2'!B138=0,NA(),'Summary 2'!B138),NA()) ->  | C138: =IF($L138,IF('Summary 2'!C138=0,NA(),'Summary 2'!C138),NA()) ->  | D138: =IF($L138,IF('Summary 2'!D138=0,NA(),'Summary 2'!D138),NA()) ->  | E138: =IF($L138,IF('Summary 2'!E138=0,NA(),'Summary 2'!E138),NA()) ->  | F138: =IF($L138,IF('Summary 2'!F138=0,NA(),'Summary 2'!F138),NA()) ->  | G138: =IF($L138,IF('Summary 2'!G138=0,NA(),'Summary 2'!G138),NA()) ->  | H138: =IF($L138,IF('Summary 2'!H138=0,NA(),'Summary 2'!H138),NA()) ->  | I138: =IF($L138,IF('Summary 2'!I138=0,NA(),'Summary 2'!I138),NA()) ->  | J138: =IF($L138,IF('Summary 2'!J138=0,NA(),'Summary 2'!J138),NA()) ->  | K138: =IF($L138,IF('Summary 2'!K138=0,NA(),'Summary 2'!K138),NA()) ->  | L138: ='Ab Ripper X Chart'!O49 -> TRUE
A139: Oblique V-Ups | B139: =IF($L139,IF('Summary 2'!B139=0,NA(),'Summary 2'!B139),NA()) ->  | C139: =IF($L139,IF('Summary 2'!C139=0,NA(),'Summary 2'!C139),NA()) ->  | D139: =IF($L139,IF('Summary 2'!D139=0,NA(),'Summary 2'!D139),NA()) ->  | E139: =IF($L139,IF('Summary 2'!E139=0,NA(),'Summary 2'!E139),NA()) ->  | F139: =IF($L139,IF('Summary 2'!F139=0,NA(),'Summary 2'!F139),NA()) ->  | G139: =IF($L139,IF('Summary 2'!G139=0,NA(),'Summary 2'!G139),NA()) ->  | H139: =IF($L139,IF('Summary 2'!H139=0,NA(),'Summary 2'!H139),NA()) ->  | I139: =IF($L139,IF('Summary 2'!I139=0,NA(),'Summary 2'!I139),NA()) ->  | J139: =IF($L139,IF('Summary 2'!J139=0,NA(),'Summary 2'!J139),NA()) ->  | K139: =IF($L139,IF('Summary 2'!K139=0,NA(),'Summary 2'!K139),NA()) ->  | L139: ='Ab Ripper X Chart'!O50 -> TRUE
A140: Leg Climbs | B140: =IF($L140,IF('Summary 2'!B140=0,NA(),'Summary 2'!B140),NA()) ->  | C140: =IF($L140,IF('Summary 2'!C140=0,NA(),'Summary 2'!C140),NA()) ->  | D140: =IF($L140,IF('Summary 2'!D140=0,NA(),'Summary 2'!D140),NA()) ->  | E140: =IF($L140,IF('Summary 2'!E140=0,NA(),'Summary 2'!E140),NA()) ->  | F140: =IF($L140,IF('Summary 2'!F140=0,NA(),'Summary 2'!F140),NA()) ->  | G140: =IF($L140,IF('Summary 2'!G140=0,NA(),'Summary 2'!G140),NA()) ->  | H140: =IF($L140,IF('Summary 2'!H140=0,NA(),'Summary 2'!H140),NA()) ->  | I140: =IF($L140,IF('Summary 2'!I140=0,NA(),'Summary 2'!I140),NA()) ->  | J140: =IF($L140,IF('Summary 2'!J140=0,NA(),'Summary 2'!J140),NA()) ->  | K140: =IF($L140,IF('Summary 2'!K140=0,NA(),'Summary 2'!K140),NA()) ->  | L140: ='Ab Ripper X Chart'!O51 -> TRUE
A141: Mason Twists | B141: =IF($L141,IF('Summary 2'!B141=0,NA(),'Summary 2'!B141),NA()) ->  | C141: =IF($L141,IF('Summary 2'!C141=0,NA(),'Summary 2'!C141),NA()) ->  | D141: =IF($L141,IF('Summary 2'!D141=0,NA(),'Summary 2'!D141),NA()) ->  | E141: =IF($L141,IF('Summary 2'!E141=0,NA(),'Summary 2'!E141),NA()) ->  | F141: =IF($L141,IF('Summary 2'!F141=0,NA(),'Summary 2'!F141),NA()) ->  | G141: =IF($L141,IF('Summary 2'!G141=0,NA(),'Summary 2'!G141),NA()) ->  | H141: =IF($L141,IF('Summary 2'!H141=0,NA(),'Summary 2'!H141),NA()) ->  | I141: =IF($L141,IF('Summary 2'!I141=0,NA(),'Summary 2'!I141),NA()) ->  | J141: =IF($L141,IF('Summary 2'!J141=0,NA(),'Summary 2'!J141),NA()) ->  | K141: =IF($L141,IF('Summary 2'!K141=0,NA(),'Summary 2'!K141),NA()) ->  | L141: ='Ab Ripper X Chart'!O52 -> TRUE
A142: Weekly Ab Ripper X Avgs | B142: =IF('Summary 2'!B142=0,NA(),'Summary 2'!B142) ->  | C142: =IF('Summary 2'!C142=0,NA(),'Summary 2'!C142) ->  | D142: =IF('Summary 2'!D142=0,NA(),'Summary 2'!D142) ->  | E142: =IF('Summary 2'!E142=0,NA(),'Summary 2'!E142) ->  | F142: =IF('Summary 2'!F142=0,NA(),'Summary 2'!F142) ->  | G142: =IF('Summary 2'!G142=0,NA(),'Summary 2'!G142) ->  | H142: =IF('Summary 2'!H142=0,NA(),'Summary 2'!H142) ->  | I142: =IF('Summary 2'!I142=0,NA(),'Summary 2'!I142) ->  | J142: =IF('Summary 2'!J142=0,NA(),'Summary 2'!J142) ->  | K142: =IF('Summary 2'!K142=0,NA(),'Summary 2'!K142) -> 

Sheet Plyometrics
A1: Main Menu | B1: Master Schedule | E1: Worksheets | I1: Charts
A2: ='Main Sheet'!$C$4 -> 0 | B2: Plyometrics
B4: =B5 -> 2010-08-17 | C4: =C5 -> 2010-08-24 | D4: 2010-08-31 | E4: 2010-09-14 | F4: 2010-09-21 | G4: 2010-09-28 | H4: 2010-10-12 | I4: 2010-10-19 | J4: 2010-10-26 | K4: 2010-11-02
B5: ='Master Schedule'!B10 -> 2010-08-17 | C5: ='Master Schedule'!B17 -> 2010-08-24 | D5: ='Master Schedule'!$B24 -> 2010-08-31 | E5: ='Master Schedule'!B38 -> 2010-09-14 | F5: ='Master Schedule'!$B45 -> 2010-09-21 | G5: ='Master Schedule'!$B52 -> 2010-09-28 | H5: ='Master Schedule'!B66 -> 2010-10-12 | I5: ='Master Schedule'!B73 -> 2010-10-19 | J5: ='Master Schedule'!C80 -> 2010-10-26 | K5: ='Master Schedule'!B87 -> 2010-11-02
A6: Place X if Completed | B6: Week 1 | C6: Week 2 | D6: Week 3 | E6: Week 5 | F6: Week 6 | G6: Week 7 | H6: Week 9 | I6: Week 10 | J6: Week 11 | K6: Week 12
A7: X | B7: X
A8: Lower Limit THR | B8: 160
A9: Upper Limit THR | B9: 178
A10: Average Heart Rate | B10: 170
A11: Cardio Time (Approx) | B11: 43 | C11: 43 | D11: 43 | E11: 43 | F11: 43 | G11: 43 | H11: 43 | I11: 43 | J11: 43 | K11: 43
A12: Time in Zone (Min) | B12: 40
A13: Time in Zone (%) | B13: =IF(B11=0,0,B12/B11) -> 0.9302325581 | C13: =IF(C11=0,0,C12/C11) -> 0 | D13: 0 | E13: 0 | F13: 0 | G13: 0 | H13: 0 | I13: 0 | J13: 0 | K13: 0
B15: Notes: | C15: THINK LIKE A CAT! | E15: Some call it the "Beast". With over 30 explosive jumping moves, you won't
B16: TOTAL WORKOUT: | D16: 0.04068287037 | E16: be spending much time on the ground. Just be sure to wear some
B17: WARM-UP 9:30 | E17: shock-absorbing footwear & have a good shock-absorbing mat.
B18: 2 Rounds: | C18: Jump Squats :30, Run Stance Squats :30, Airborne Heismans :30, Swing Kicks 1:00
B19: WATER BREAK :30
B20: 2 Rounds: | C20: Squat Reach Jumps :30, Squat Switch Pickups :30, Double Airborne Heismans :30, Circle Runs 1:00
B21: WATER BREAK :30
A22: Tools | B22: 2 Rounds: | C22: Jump Knee Tucks :30, Mary Katherine Lunges :30, Leap Frog Squats :30, Twist Combos 1:00
A23: Heart Rate Monitor | B23: WATER BREAK :30
A24: Mat | B24: 2 Rounds: | C24: Rock Star Hops :30, Gap Jumps :30, Squat Jumps :30, Military March 1:00
A25: Stool or Chair | B25: WATER BREAK :30
A26: Water & Towel | B26: 2 Rounds: | C26: Run Squat 180 Jump Switches :30, Lateral Leap Frog Squats :30, Monstor Truck Tires :30, Hot Foot 1:00
B27: WATER BREAK :30
B28: BONUS ROUND: | D28: Pitch & Catch 1:00, Jump Shots 1:00, Football Hero 1:00
B29: WARM-DOWN 5:00

Sheet Yoga X
A1: Main Menu | B1: Master Schedule | E1: Worksheets | I1: Charts
A2: ='Main Sheet'!$C$4 -> 0 | B2: Yoga X
B4: =B5 -> 2010-08-19 | C4: =C5 -> 2010-08-26 | D4: 2010-09-02 | E4: 2010-09-06 | F4: 2010-09-11 | G4: 2010-09-16 | H4: 2010-09-23 | I4: 2010-09-30 | J4: 2010-10-04 | K4: 2010-10-09
B5: ='Master Schedule'!$B$12 -> 2010-08-19 | C5: ='Master Schedule'!$B$19 -> 2010-08-26 | D5: ='Master Schedule'!$B$26 -> 2010-09-02 | E5: ='Master Schedule'!B30 -> 2010-09-06 | F5: ='Master Schedule'!B35 -> 2010-09-11 | G5: ='Master Schedule'!B40 -> 2010-09-16 | H5: ='Master Schedule'!$B$47 -> 2010-09-23 | I5: ='Master Schedule'!$B$54 -> 2010-09-30 | J5: ='Master Schedule'!B58 -> 2010-10-04 | K5: ='Master Schedule'!B63 -> 2010-10-09
A6: Place X if Completed | B6: Week 1 | C6: Week 2 | D6: Week 3 | E6: Week 4 (Day 1) | F6: Week 4 (Day 6) | G6: Week 5 | H6: Week 6 | I6: Week 7 | J6: Week 8 (Day 1) | K6: Week 8 (Day 6)
A7: X | B7: X
B9: =B10 -> 2010-10-14 | C9: 2010-10-21 | D9: 2010-10-28 | E9: 2010-11-04 | F9: 2010-11-08 | G9: 2010-11-13 | H9: If you think this will be the day you can relax & take a breather, Forget It! This Yoga workout will challenge you like never before. You'll, sweat, twist, stretch, and hold all kinks of unfamiliar positions, but you'll leave felling energized, invigorated, and maybe even a little enlightened.
B10: ='Master Schedule'!B68 -> 2010-10-14 | C10: ='Master Schedule'!B75 -> 2010-10-21 | D10: ='Master Schedule'!B82 -> 2010-10-28 | E10: ='Master Schedule'!B89 -> 2010-11-04 | F10: ='Master Schedule'!B93 -> 2010-11-08 | G10: ='Master Schedule'!B98 -> 2010-11-13
A11: Place X if Completed | B11: Week 9 | C11: Week 10 | D11: Week 11 | E11: Week 12 | F11: Week 13 (Day 1) | G11: Week 13 (Day 6)
A12: X
B14: Notes: | C14: FOCUS ON PRESENT MOMENT.
B15: WORKOUT TIME: | D15: 0.06388888889
A16: Tools | B16: WARM-UP, STRETCHES | E16: 0.03472222222
A17: Mat | B17: Mountan Pose, Wide Leg Hamstring Stretch, Wide Bent Torso Twist, Split Leg Hamstring Stretch,
A18: Yoga Blocs | B18: Astanga Sun Salutations, Runner's Pose, Crescent Pose, Warrior One, Warrior Two, Reverse Warrior
A19: Water & Towel | B19: Triangle Pose, Twisting Triangle Pose, Chair Pose, Twisting Chair Pose, Downward Dog with Leg Raise
B20: Right Angle Pose, Extended Right Angle Pose, Right Angle Pose & Grab, Right Angle Pose, Extended Right Angle Pose
B21: Prayer Twist, Warrior Three, Standing Splits, Half Moon, Twisting Half Moon, Last Vinyasa
B22: BALANCE POSTURES
B23: Tree, Royal Dancer, Standing Leg Extensions, Crane
B24: WATER BREAK
B25: STRETCHES
B26: Seated Spinal Stretch, Cat Stretch, Frog, Bridge, Plough to Shoulder Stand, Table, Cobbler Pose,
B27: One Legged Hamstring Stretch, Two Legged Hamstring Stretch
B28: CORE
B29: Yoga Belly X, Boat, Half Boat, Open Scissors, Torso Twist Hold, Deep Torso Twist Hold, Touch the Sky
B30: Side Twist, Glute Stretch
B31: YOGA / MEDITATION
B32: Happy Baby, Childs Pose, Shavasana (Corpse Pose), Fetus Pose, Lotus (Meditation Pose)

Sheet Kenpo X
A1: Main Menu | B1: Master Schedule | E1: Worksheets | I1: Charts
A2: ='Main Sheet'!$C$4 -> 0 | B2: Kenpo X
B4: =B5 -> 2010-08-21 | C4: =C5 -> 2010-08-28 | D4: 2010-09-04 | E4: 2010-09-08 | F4: 2010-09-18 | G4: 2010-09-25 | H4: 2010-10-02 | I4: 2010-10-06 | J4: =J5 -> 2010-10-16 | K4: =K5 -> 2010-10-23 | L4: =L5 -> 2010-10-30 | M4: =M5 -> 2010-11-06 | N4: =N5 -> 2010-11-10
B5: ='Master Schedule'!$B$14 -> 2010-08-21 | C5: ='Master Schedule'!$B$21 -> 2010-08-28 | D5: ='Master Schedule'!$B$28 -> 2010-09-04 | E5: ='Master Schedule'!$B$32 -> 2010-09-08 | F5: ='Master Schedule'!$B$42 -> 2010-09-18 | G5: ='Master Schedule'!$B$49 -> 2010-09-25 | H5: ='Master Schedule'!$B$56 -> 2010-10-02 | I5: ='Master Schedule'!$B$60 -> 2010-10-06 | J5: ='Master Schedule'!$B$70 -> 2010-10-16 | K5: ='Master Schedule'!$B$77 -> 2010-10-23 | L5: ='Master Schedule'!$B$84 -> 2010-10-30 | M5: ='Master Schedule'!$B$91 -> 2010-11-06 | N5: ='Master Schedule'!B95 -> 2010-11-10
A6: Place X if Completed | B6: Week 1 | C6: Week 2 | D6: Week 3 | E6: Week 4 | F6: Week 5 | G6: Week 6 | H6: Week 7 | I6: Week 8 | J6: Week 9 | K6: Week 10 | L6: Week 11 | M6: Week 12 | N6: Week 13
A7: X
A8: Lower Limit THR
A9: Upper Limit THR
A10: Average Heart Rate
A11: Cardio Time (Approx) | B11: 41 | C11: 41 | D11: 41 | E11: 41 | F11: 41 | G11: 41 | H11: 41 | I11: 41 | J11: 41 | K11: 41 | L11: 41 | M11: 41 | N11: 41
A12: Time in Zone (Min)
A13: Time in Zone (%) | B13: =IF(B11=0,0,B12/B11) -> 0 | C13: =IF(C11=0,0,C12/C11) -> 0 | D13: 0 | E13: 0 | F13: 0 | G13: 0 | H13: 0 | I13: 0 | J13: 0 | K13: 0 | L13: 0 | M13: 0 | N13: 0
B15: Notes: | C15: DON'T BANG YOUR JOINTS! | F15: You will be throwing a whole bunch of kicks, elbows, knees, and forearms. You'll learn a highly effective
B16: WORKOUT TIME: | D16: 0.04079861111 | F16: way to defend yourself, while at the same time getting one heck of a total body, super cardio workout.
B17: WARM-UP 11:50
B18: 1 Round: | C18: Twist & Pivot 50x, Twist & Pivot w/ Uppercut Hook 50x, Jabs 60x, Jab/Cross 50x, Jab/Cross/Hook 50x, Jab/Cross/Hook/Uppercut 50x
B19: BREAK 1:15 (ACTIVE BREAK, RUN-IN-PLACE, JUMPING JACKS, ETC.)
B20: 1 Round: | C20: Step Drag Punch High & Low 60x, Jab/Cross Switch 40x, Hook/Uppercut Switching 40x, Knee Kicks 50x, Ball Kicks 60x, Side Kicks 60x
B21: BREAK 1:45 (ACTIVE BREAK, RUN-IN-PLACE, JUMPING JACKS, ETC.)
A22: Tools | B22: 1 Round: | C22: Back Kicks 50x, Three Direction Kicks 16x, High Sword/Low Hammer 30x, Step/Drag/Claw/Low Punch 50x
A23: Heart Rate Monitor | B23: BREAK 1:35 (ACTIVE BREAK, RUN-IN-PLACE, JUMPING JACKS, ETC.)
A24: Water & Towel | B24: 1 Round: | C24: High Blocks 30x, Inward Blocsk 30x, Outward Blocks 30x, Downward Blocks 30x, Star Blocks 16x
B25: BREAK 1:50 (ACTIVE BREAK, RUN-IN-PLACE, JUMPING JACKS, ETC.)
B26: 1 Round: | C26: High Block/Low Punch 50x, Knee/Back Kick 30x, Back Knuckle/Ball Kick/Back Kick 20x, Hook/Uppercut/Low Side Kick 20x, Elbow Series 30x, Vertical Punches 100x+
B27: COOL DOWN 4:30

Sheet X Stretch
A1: Main Menu | B1: Master Schedule | E1: Worksheets | I1: Charts
A2: ='Main Sheet'!$C$4 -> 0 | B2: X Stretch
B4: =B5 -> 2010-08-22 | C4: =C5 -> 2010-08-29 | D4: 2010-09-05 | E4: 2010-09-09 | F4: 2010-09-12 | G4: 2010-09-19 | H4: 2010-09-26 | I4: 2010-10-03 | J4: 2010-10-07 | K4: 2010-10-10
B5: ='Master Schedule'!$B$15 -> 2010-08-22 | C5: ='Master Schedule'!$B$22 -> 2010-08-29 | D5: ='Master Schedule'!$B$29 -> 2010-09-05 | E5: ='Master Schedule'!$B$33 -> 2010-09-09 | F5: ='Master Schedule'!$B$36 -> 2010-09-12 | G5: ='Master Schedule'!$B$43 -> 2010-09-19 | H5: ='Master Schedule'!$B$50 -> 2010-09-26 | I5: ='Master Schedule'!$B$57 -> 2010-10-03 | J5: ='Master Schedule'!$B$61 -> 2010-10-07 | K5: ='Master Schedule'!$B$64 -> 2010-10-10
A6: Place X if Completed | B6: Week 1 | C6: Week 2 | D6: Week 3 | E6: Week 4 (Day 4) | F6: Week 4 (Day 7) | G6: Week 5 | H6: Week 6 | I6: Week 7 | J6: Week 8 (Day 4) | K6: Week 8 (Day 7)
A7: X
B9: =B10 -> 2010-10-17 | C9: 2010-10-24 | D9: 2010-10-31 | E9: 2010-11-07 | F9: 2010-11-11 | G9: 2010-11-14 | H9: This Routine is designed to keep you limber & loose, which is vital to any fitness program. In this entire 40 minute routine you will do nothing but stretch all your muscles. This minimizes your potential for injury and will keep you at the top of your game.
B10: ='Master Schedule'!$B$71 -> 2010-10-17 | C10: ='Master Schedule'!$B$78 -> 2010-10-24 | D10: ='Master Schedule'!$B$85 -> 2010-10-31 | E10: ='Master Schedule'!$B$92 -> 2010-11-07 | F10: ='Master Schedule'!$B$96 -> 2010-11-11 | G10: ='Master Schedule'!B99 -> 2010-11-14
A11: Place X if Completed | B11: Week 9 | C11: Week 10 | D11: Week 11 | E11: Week 12 | F11: Week 13 (Day 4) | G11: Week 13 (Day 7)
A12: X | G12: CELEBRATE
B14: Notes: | C14: ALL YOU HAVE TO DO IS BREATH.
B15: Time: | C15: 00:57:30
B16: WARM-UP 4:00 | D16: ( SUN SALUTATIONIS )
B17: 1 Round: | C17: Neck Stretch :53, Back Up the Car :36, Head Rolls 1:08, Chest-Back-Shoulder Stretch :30
C18: Topas Shoulder Stretch :45, Wridt-Forearm Flexor Stretch :66, Dreya Forearm Stretch 1:00
C19: Standing Side Stretch 1:30, Rollers :25, Shoulder Stand to Plough 1:45, Seated Spinal Stretch 1:10
C20: Cat Stretch 1:00, Glute Stretch 1:10, Wide Feet Forward Bend 2:30, Camel :35, Back Hero 1:00
C21: Kenpo Quad Stretch :30, Bow :30, Low Squat :40, Frog 1:00, Single Leg Hamstring Stretch 2:00
C22: Two-Legged Hamstring Stretch :50, Ballistic Hamstring Stretch :50, Split-Let Hamstring Stretch 2:00
C23: Toe Flexors 1:30, Downward Dog & Calf Stretch :50, Upward Dog & Ankle Stretch :30
C24: Childs Pose & Side Stretch 1:20

Sheet Core Synergistics
A1: Main Menu | B1: Master Schedule | D1: Worksheets | F1: Charts
A2: ='Main Sheet'!C4 -> 0 | B2: Core Synergistics
B3: Week 4 | F3: Week 8 | J3: Week 13
B4: =B5 -> 2010-09-07 | D4: 2010-09-10 | F4: 2010-10-05 | H4: 2010-10-08 | J4: 2010-11-09 | L4: 2010-11-12
A5: Exercise | B5: ='Master Schedule'!$B$31 -> 2010-09-07 | D5: ='Master Schedule'!$B$34 -> 2010-09-10 | F5: ='Master Schedule'!$B$59 -> 2010-10-05 | H5: ='Master Schedule'!$B$62 -> 2010-10-08 | J5: ='Master Schedule'!$B$94 -> 2010-11-09 | L5: ='Master Schedule'!$B$97 -> 2010-11-12
B6: Reps | C6: Weight | D6: Reps | E6: Weight | F6: Reps | G6: Weight | H6: Reps | I6: Weight | J6: Reps | K6: Weight | L6: Reps | M6: Weight
A7: X if completed
A8: ENGAGE YOUR CORE!! | B8: This is a total body workout, which incorporates cardio, stretching & resistance to strengthen your core muscles. By strenghening your core, you'll be more prepared to take on all the other workout routines. You'll also improve your flexiblilty, balance, and coordination. ALL VITAL TO YOUR TOTAL BODY DEVELOPMENT.
B9: Notes: | C9: Tony is not so concerned with numbers on this routine. Main goal is to consistently engage your core w/ good form.
A10: Stack Foot/Stagger Hands Push-Ups
A11: Banana Rolls
A12: Leaning Crescent Lunges
A13: Squat Runs
A14: Sphinx Push-Ups
A15: Bow To Boat
A16: Low Lateral Skaters
A17: Lunge & Reaches
A18: Prison Cell Push-Ups
A19: Side Hip Raises
A20: Squat X-Presses
A21: Plank To Chaturanga Runs
A22: Walking Push-Ups
A23: Superman Banana
A24: Lunge-Kickback-Curl-Presses
A25: Towel Hopping
A26: Reach High & Under Push-Ups
A27: Steam Engines
A28: Dreya Rolls
A29: ** BONUS ROUND **
A30: Plank To Chaturanga Iso
A31: The Halfback
A32: Table Dip Leg Raises
A33: More notes:
A34: Tools
A35: Mats
A36: Weights or Bands
A37: Plastic Plate, Cardboard or Towel
A38: Water and Towel

Sheet Core Synergistics (L)
A1: Main Menu | B1: Master Schedule | H1: Worksheets | O1: Charts
A2: Tools | B2: Core Synergistcs ** LEAN PROGRAM **
A3: Mats | B3: Week 1 | D3: Week 2 | F3: Week 3 | H3: Week 4 | J3: Week 5 | L3: Week 6 | N3: Week 7 | P3: Week 8 | R3: Week 9 | T3: Week 10 | V3: Week 11 | X3: Week 12 | Z3: Week 13
A4: Weights or Bands | B4: =B5 -> 2010-08-16 | D4: =D5 -> 2010-08-23 | F4: =F5 -> 2010-08-30 | H4: =H5 -> 2010-09-07 | J4: =J5 -> 2010-09-13 | L4: =L5 -> 2010-09-20 | N4: =N5 -> 2010-09-27 | P4: =P5 -> 2010-10-05 | R4: =R5 -> 2010-10-15 | T4: =T5 -> 2010-10-22 | V4: =V5 -> 2010-10-29 | X4: =X5 -> 2010-11-05 | Z4: =Z5 -> 2010-11-09
A5: Plastic Plate, Cardboard or Towel | B5: ='Master Schedule'!$B$9 -> 2010-08-16 | D5: ='Master Schedule'!$B$16 -> 2010-08-23 | F5: ='Master Schedule'!$B$23 -> 2010-08-30 | H5: ='Master Schedule'!$B$31 -> 2010-09-07 | J5: ='Master Schedule'!$B$37 -> 2010-09-13 | L5: ='Master Schedule'!$B$44 -> 2010-09-20 | N5: ='Master Schedule'!$B$51 -> 2010-09-27 | P5: ='Master Schedule'!$B$59 -> 2010-10-05 | R5: ='Master Schedule'!$B$69 -> 2010-10-15 | T5: ='Master Schedule'!$B$76 -> 2010-10-22 | V5: ='Master Schedule'!$B$83 -> 2010-10-29 | X5: ='Master Schedule'!$B$90 -> 2010-11-05 | Z5: ='Master Schedule'!B94 -> 2010-11-09
A6: Water and Towel | B6: Reps | C6: Wt | D6: Reps | E6: Wt | F6: Reps | G6: Wt | H6: Reps | I6: Wt | J6: Reps | K6: Wt | L6: Reps | M6: Wt | N6: Reps | O6: Wt | P6: Reps | Q6: Wt | R6: Reps | S6: Wt | T6: Reps | U6: Wt | V6: Reps | W6: Wt | X6: Reps | Y6: Wt | Z6: Reps | AA6: Wt
A7: X if completed
B9: Notes: | C9: Tony is not so concerned with numbers on this routine. Main goal is to consistently engage your core while using good form.
A10: Stack Foot/Stagger Hands Push-Ups
A11: Banana Rolls
A12: Leaning Crescent Lunges
A13: Squat Runs
A14: Sphinx Push-Ups
A15: Bow To Boat
A16: Low Lateral Skaters
A17: Lunge & Reaches
A18: Prison Cell Push-Ups
A19: Side Hip Raises
A20: Squat X-Presses
A21: Plank To Chaturanga Runs
A22: Walking Push-Ups
A23: Superman Banana
A24: Lunge-Kickback-Curl-Presses
A25: Towel Hopping
A26: Reach High & Under Push-Ups
A27: Steam Engines
A28: Dreya Rolls
A29: ** BONUS ROUND **
A30: Plank To Chaturanga Iso
A31: The Halfback
A32: Table Dip Leg Raises

Sheet Cardio X (L)
A1: Main Menu | B1: Master Schedule | E1: Worksheets | I1: Charts
A2: ='Main Sheet'!$C$4 -> 0 | B2: Cardio X ** LEAN PROGRAM **
B4: =B5 -> 2010-08-17 | C4: =C5 -> 2010-08-24 | D4: 2010-08-31 | E4: 2010-09-10 | F4: 2010-08-31 | G4: 2010-09-07 | H4: 2010-09-14 | I4: 2010-10-08 | J4: =J5 -> 2010-09-28 | K4: =K5 -> 2010-10-05 | L4: =L5 -> 2010-10-12 | M4: =M5 -> 2010-10-19 | N4: =N5 -> 2010-11-12
B5: ='Master Schedule'!$B$10 -> 2010-08-17 | C5: ='Master Schedule'!$B$17 -> 2010-08-24 | D5: ='Master Schedule'!$B$24 -> 2010-08-31 | E5: ='Master Schedule'!B34 -> 2010-09-10 | F5: ='Master Schedule'!$B$24 -> 2010-08-31 | G5: ='Master Schedule'!$B$31 -> 2010-09-07 | H5: ='Master Schedule'!$B$38 -> 2010-09-14 | I5: ='Master Schedule'!$B$62 -> 2010-10-08 | J5: ='Master Schedule'!$B$52 -> 2010-09-28 | K5: ='Master Schedule'!$B$59 -> 2010-10-05 | L5: ='Master Schedule'!$B$66 -> 2010-10-12 | M5: ='Master Schedule'!$B$73 -> 2010-10-19 | N5: ='Master Schedule'!B97 -> 2010-11-12
B6: Week 1 | C6: Week 2 | D6: Week 3 | E6: Week 4 | F6: Week 5 | G6: Week 6 | H6: Week 7 | I6: Week 8 | J6: Week 9 | K6: Week 10 | L6: Week 11 | M6: Week 12 | N6: Week 13
A7: X
A8: Lower Limit THR
A9: Upper Limit THR
A10: Average Heart Rate
A11: Cardio Time (Approx) | B11: 33 | C11: 33 | D11: 33 | E11: 33 | F11: 33 | G11: 33 | H11: 33 | I11: 33 | J11: 33 | K11: 33 | L11: 33 | M11: 33 | N11: 33
A12: Time in Zone (Min)
A13: Time in Zone (%) | B13: =IF(B11=0,0,B12/B11) -> 0 | C13: =IF(C11=0,0,C12/C11) -> 0 | D13: 0 | E13: 0 | F13: 0 | G13: 0 | H13: 0 | I13: 0 | J13: 0 | K13: 0 | L13: 0 | M13: 0 | N13: 0
B15: Notes: | C15: EAT ENOUGH!!! | F15: In this workout, you will sweat comfortably, while your body pumps oxygenated blood through you.
B16: TOTAL WORKOUT: | D16: 0.03006944444 | F16: Designed to flush out lactic acid and increase your number of capillaries.
B17: WARM-UP 5:30 | D17: ( Run in Place, Jump rope, jumping jacks, stretching, etc.)
B18: Astanga Sun Salutations 2:50, Runners Pose 1:15, Warrior One 1:20, Warrior Two 1:20, Reverse Warrior 1:50
B19: KENPO
B20: Ball Kick 1:10, Hook/Uppercut/Side Kick 1:10, Knuckles/Ball Kick/Back Kick :50, Jab/Cross/Hook/Uppercut 1:50, Three Directions Kicks :50
A21: Tools | B21: PLYO
A22: Stool or Chair | B22: 2 Rounds:
A23: Mat | B23: Airborne Heisman :30, Swing Kicks 1:00, Jump Shots 0:30, Truck Tires :30, Wacky Jacks :30
A24: Yoga Blocks | B24: CORE
A25: Heart Rate Monitor | B25: Squat Cross X-Press :45, Steam Engine 1:15, The Dreya Roll 1:00, Squat Run 1:00, Superman/Banana 1:00
A26: Water and Towel | B26: COOL-DOWN 4:00

Sheet Cardio X (D)
A1: Main Menu | B1: Master Schedule | E1: Worksheets | I1: Charts | O1: Master Schedule | R1: Worksheets | V1: Charts
A2: ='Main Sheet'!$C$4 -> 0 | B2: Cardio X ** DOUBLES PROGRAM** | O2: Cardio X ** DOUBLES PROGRAM**
B4: =B5 -> 2010-09-13 | C4: 2010-09-15 | D4: 2010-09-17 | E4: 2010-09-20 | F4: 2010-09-22 | G4: 2010-09-24 | H4: 2010-09-27 | I4: 2010-09-29 | J4: 2010-10-01 | K4: =K5 -> 2010-10-11 | L4: 2010-10-12 | M4: 2010-10-14 | N4: 2010-10-15 | O4: 2010-10-18 | P4: 2010-10-19 | Q4: 2010-10-21 | R4: 2010-10-22 | S4: =S5 -> 2010-10-25 | T4: 2010-10-26 | U4: 2010-10-28 | V4: 2010-10-29 | W4: 2010-11-01 | X4: 2010-11-02 | Y4: 2010-11-04 | Z4: 2010-11-05
B5: ='Master Schedule'!$B$37 -> 2010-09-13 | C5: ='Master Schedule'!$B$39 -> 2010-09-15 | D5: ='Master Schedule'!$B$41 -> 2010-09-17 | E5: ='Master Schedule'!$B$44 -> 2010-09-20 | F5: ='Master Schedule'!$B$46 -> 2010-09-22 | G5: ='Master Schedule'!$B$48 -> 2010-09-24 | H5: ='Master Schedule'!$B$51 -> 2010-09-27 | I5: ='Master Schedule'!$B$53 -> 2010-09-29 | J5: ='Master Schedule'!$B$55 -> 2010-10-01 | K5: ='Master Schedule'!$B$65 -> 2010-10-11 | L5: ='Master Schedule'!$B$66 -> 2010-10-12 | M5: ='Master Schedule'!$B$68 -> 2010-10-14 | N5: ='Master Schedule'!$B$69 -> 2010-10-15 | O5: ='Master Schedule'!$B$72 -> 2010-10-18 | P5: ='Master Schedule'!$B$73 -> 2010-10-19 | Q5: ='Master Schedule'!$B$75 -> 2010-10-21 | R5: ='Master Schedule'!$B$76 -> 2010-10-22 | S5: ='Master Schedule'!$B$79 -> 2010-10-25 | T5: ='Master Schedule'!$B$80 -> 2010-10-26 | U5: ='Master Schedule'!$B$82 -> 2010-10-28 | V5: ='Master Schedule'!$B$83 -> 2010-10-29 | W5: ='Master Schedule'!$B$86 -> 2010-11-01 | X5: ='Master Schedule'!$B$87 -> 2010-11-02 | Y5: ='Master Schedule'!$B$89 -> 2010-11-04 | Z5: ='Master Schedule'!$B$90 -> 2010-11-05
B6: Week 5 | E6: Week 6 | H6: Week 7 | K6: Week 9 | O6: Week 10 | S6: Week 11 | W6: Week 12
A7: X
A8: Lower Limit THR
A9: Upper Limit THR
A10: Average Heart Rate
A11: Cardio Time (Approx) | B11: 33 | C11: 33 | D11: 33 | E11: 33 | F11: 33 | G11: 33 | H11: 33 | I11: 33 | J11: 33 | K11: 33 | L11: 33 | M11: 33 | N11: 33 | O11: 33 | P11: 33 | Q11: 33 | R11: 33 | S11: 33 | T11: 33 | U11: 33 | V11: 33 | W11: 33 | X11: 33 | Y11: 33 | Z11: 33
A12: Time in Zone (Min)
A13: Time in Zone (%) | B13: =IF(B11=0,0,B12/B11) -> 0 | C13: 0 | D13: 0 | E13: 0 | F13: 0 | G13: 0 | H13: 0 | I13: 0 | J13: 0 | K13: 0 | L13: 0 | M13: 0 | N13: 0 | O13: 0 | P13: 0 | Q13: 0 | R13: 0 | S13: 0 | T13: 0 | U13: 0 | V13: 0 | W13: 0 | X13: 0 | Y13: 0 | Z13: 0
B15: Notes: | C15: EAT ENOUGH!!! | F15: In this workout, you will sweat comfortably, while your body pumps oxygenated blood through you.
B16: TOTAL WORKOUT: | D16: 0.03006944444 | F16: Designed to flush out lactic acid and increase your number of capillaries.
B17: WARM-UP 5:30 | D17: ( Run in Place, Jump rope, jumping jacks, stretching, etc.)
B18: Astanga Sun Salutations 2:50, Runners Pose 1:15, Warrior One 1:20, Warrior Two 1:20, Reverse Warrior 1:50
B19: KENPO
B20: Ball Kick 1:10, Hook/Uppercut/Side Kick 1:10, Knuckles/Ball Kick/Back Kick :50, Jab/Cross/Hook/Uppercut 1:50, Three Directions Kicks :50
A21: Tools | B21: PLYO
A22: Stool or Chair | B22: 2 Rounds:
A23: Mat | B23: Airborne Heisman :30, Swing Kicks 1:00, Jump Shots 0:30, Truck Tires :30, Wacky Jacks :30
A24: Yoga Blocks | B24: CORE
A25: Heart Rate Monitor | B25: Squat Cross X-Press :45, Steam Engine 1:15, The Dreya Roll 1:00, Squat Run 1:00, Superman/Banana 1:00
A26: Water and Towel | B26: COOL-DOWN 4:00

Sheet Chest & Back Chart
A1: Main Menu | C1: Master Schedule | E1: Worksheets | G1: Charts | H1: Chest & Back Worksheet | L1: Worksheet Summaries
A11: ALL
A24: ALL
A31: ALL | B31: Chest & Back | F31: Week 1 | G31: Week 2 | H31: Week 3 | I31: Week 9 | J31: Week 11
B32: Standard Push-Ups | F32: =IF($K32,'Summary 2'!B3,"") -> 0 | G32: =IF($K32,'Summary 2'!C3,"") -> 0 | H32: =IF($K32,'Summary 2'!D3,"") -> 0 | I32: =IF($K32,'Summary 2'!E3,"") -> 0 | J32: =IF($K32,'Summary 2'!F3,"") -> 0 | K32: TRUE
B33: Wide Front Pull-Ups | F33: =IF($K33,'Summary 2'!B4,"") -> 0 | G33: =IF($K33,'Summary 2'!C4,"") -> 0 | H33: =IF($K33,'Summary 2'!D4,"") -> 0 | I33: =IF($K33,'Summary 2'!E4,"") -> 0 | J33: =IF($K33,'Summary 2'!F4,"") -> 0 | K33: TRUE
B34: Military Push-Ups | F34: =IF($K34,'Summary 2'!B5,"") -> 0 | G34: =IF($K34,'Summary 2'!C5,"") -> 0 | H34: =IF($K34,'Summary 2'!D5,"") -> 0 | I34: =IF($K34,'Summary 2'!E5,"") -> 0 | J34: =IF($K34,'Summary 2'!F5,"") -> 0 | K34: TRUE
B35: Reverse Grip Chin-Ups | F35: =IF($K35,'Summary 2'!B6,"") -> 0 | G35: =IF($K35,'Summary 2'!C6,"") -> 0 | H35: =IF($K35,'Summary 2'!D6,"") -> 0 | I35: =IF($K35,'Summary 2'!E6,"") -> 0 | J35: =IF($K35,'Summary 2'!F6,"") -> 0 | K35: TRUE
B36: Wide Fly Push-Ups | F36: =IF($K36,'Summary 2'!B7,"") -> 0 | G36: =IF($K36,'Summary 2'!C7,"") -> 0 | H36: =IF($K36,'Summary 2'!D7,"") -> 0 | I36: =IF($K36,'Summary 2'!E7,"") -> 0 | J36: =IF($K36,'Summary 2'!F7,"") -> 0 | K36: TRUE
B37: Closed Grip Overhand Pull-Ups | F37: =IF($K37,'Summary 2'!B8,"") -> 0 | G37: =IF($K37,'Summary 2'!C8,"") -> 0 | H37: =IF($K37,'Summary 2'!D8,"") -> 0 | I37: =IF($K37,'Summary 2'!E8,"") -> 0 | J37: =IF($K37,'Summary 2'!F8,"") -> 0 | K37: TRUE
B38: Decline Push-Ups | F38: =IF($K38,'Summary 2'!B9,"") -> 0 | G38: =IF($K38,'Summary 2'!C9,"") -> 0 | H38: =IF($K38,'Summary 2'!D9,"") -> 0 | I38: =IF($K38,'Summary 2'!E9,"") -> 0 | J38: =IF($K38,'Summary 2'!F9,"") -> 0 | K38: TRUE
B39: Heavy Pants | F39: =IF($K39,'Summary 2'!B10,"") ->  | G39: =IF($K39,'Summary 2'!C10,"") ->  | H39: =IF($K39,'Summary 2'!D10,"") ->  | I39: =IF($K39,'Summary 2'!E10,"") ->  | J39: =IF($K39,'Summary 2'!F10,"") ->  | K39: FALSE
B40: Diamond Push-Ups | F40: =IF($K40,'Summary 2'!B11,"") -> 0 | G40: =IF($K40,'Summary 2'!C11,"") -> 0 | H40: =IF($K40,'Summary 2'!D11,"") -> 0 | I40: =IF($K40,'Summary 2'!E11,"") -> 0 | J40: =IF($K40,'Summary 2'!F11,"") -> 0 | K40: TRUE
B41: Lawnmowers | F41: =IF($K41,'Summary 2'!B12,"") ->  | G41: =IF($K41,'Summary 2'!C12,"") ->  | H41: =IF($K41,'Summary 2'!D12,"") ->  | I41: =IF($K41,'Summary 2'!E12,"") ->  | J41: =IF($K41,'Summary 2'!F12,"") ->  | K41: FALSE
B42: Dive-Bomber Push-Ups | F42: =IF($K42,'Summary 2'!B13,"") -> 0 | G42: =IF($K42,'Summary 2'!C13,"") -> 0 | H42: =IF($K42,'Summary 2'!D13,"") -> 0 | I42: =IF($K42,'Summary 2'!E13,"") -> 0 | J42: =IF($K42,'Summary 2'!F13,"") -> 0 | K42: TRUE
B43: Back Flyes | F43: =IF($K43,'Summary 2'!B14,"") ->  | G43: =IF($K43,'Summary 2'!C14,"") ->  | H43: =IF($K43,'Summary 2'!D14,"") ->  | I43: =IF($K43,'Summary 2'!E14,"") ->  | J43: =IF($K43,'Summary 2'!F14,"") ->  | K43: FALSE
A44: ALL

Sheet Shoulders & Arms Chart
A1: Main Menu | C1: Master Schedule | E1: Worksheets | G1: Charts | H1: Shoulders & Arms Worksheet | L1: Worksheet Summaries Page
A7: ALL
A23: ALL
A31: ALL | B31: Shoulders & Arms | F31: Week 1 | G31: Week 2 | H31: Week 3 | I31: Week 9 | J31: Week 11
B32: Alternating Shoulder Press | F32: =IF($K32,'Summary 2'!B16,"") ->  | G32: =IF($K32,'Summary 2'!C16,"") ->  | H32: =IF($K32,'Summary 2'!D16,"") ->  | I32: =IF($K32,'Summary 2'!E16,"") ->  | J32: =IF($K32,'Summary 2'!F16,"") ->  | K32: FALSE
B33: In & Out Bicep Curl | F33: =IF($K33,'Summary 2'!B17,"") -> 0 | G33: =IF($K33,'Summary 2'!C17,"") -> 0 | H33: =IF($K33,'Summary 2'!D17,"") -> 0 | I33: =IF($K33,'Summary 2'!E17,"") -> 0 | J33: =IF($K33,'Summary 2'!F17,"") -> 0 | K33: TRUE
B34: Two-Arm Triceps Kickback | F34: =IF($K34,'Summary 2'!B18,"") ->  | G34: =IF($K34,'Summary 2'!C18,"") ->  | H34: =IF($K34,'Summary 2'!D18,"") ->  | I34: =IF($K34,'Summary 2'!E18,"") ->  | J34: =IF($K34,'Summary 2'!F18,"") ->  | K34: FALSE
B35: Deep Swimmer's Press | F35: =IF($K35,'Summary 2'!B19,"") ->  | G35: =IF($K35,'Summary 2'!C19,"") ->  | H35: =IF($K35,'Summary 2'!D19,"") ->  | I35: =IF($K35,'Summary 2'!E19,"") ->  | J35: =IF($K35,'Summary 2'!F19,"") ->  | K35: FALSE
B36: Full Supination Concentration Curl | F36: =IF($K36,'Summary 2'!B20,"") -> 0 | G36: =IF($K36,'Summary 2'!C20,"") -> 0 | H36: =IF($K36,'Summary 2'!D20,"") -> 0 | I36: =IF($K36,'Summary 2'!E20,"") -> 0 | J36: =IF($K36,'Summary 2'!F20,"") -> 0 | K36: TRUE
B37: Chair Dip | F37: =IF($K37,'Summary 2'!B21,"") ->  | G37: =IF($K37,'Summary 2'!C21,"") ->  | H37: =IF($K37,'Summary 2'!D21,"") ->  | I37: =IF($K37,'Summary 2'!E21,"") ->  | J37: =IF($K37,'Summary 2'!F21,"") ->  | K37: FALSE
B38: Upright Row | F38: =IF($K38,'Summary 2'!B22,"") ->  | G38: =IF($K38,'Summary 2'!C22,"") ->  | H38: =IF($K38,'Summary 2'!D22,"") ->  | I38: =IF($K38,'Summary 2'!E22,"") ->  | J38: =IF($K38,'Summary 2'!F22,"") ->  | K38: FALSE
B39: Static Arm Curl | F39: =IF($K39,'Summary 2'!B23,"") -> 0 | G39: =IF($K39,'Summary 2'!C23,"") -> 0 | H39: =IF($K39,'Summary 2'!D23,"") -> 0 | I39: =IF($K39,'Summary 2'!E23,"") -> 0 | J39: =IF($K39,'Summary 2'!F23,"") -> 0 | K39: TRUE
B40: Flip-Grip Twist Triceps Kickback | F40: =IF($K40,'Summary 2'!B24,"") ->  | G40: =IF($K40,'Summary 2'!C24,"") ->  | H40: =IF($K40,'Summary 2'!D24,"") ->  | I40: =IF($K40,'Summary 2'!E24,"") ->  | J40: =IF($K40,'Summary 2'!F24,"") ->  | K40: FALSE
B41: Seated Two-Angle Shoulder Fly | F41: =IF($K41,'Summary 2'!B25,"") ->  | G41: =IF($K41,'Summary 2'!C25,"") ->  | H41: =IF($K41,'Summary 2'!D25,"") ->  | I41: =IF($K41,'Summary 2'!E25,"") ->  | J41: =IF($K41,'Summary 2'!F25,"") ->  | K41: FALSE
B42: Crouching Cohen Curl | F42: =IF($K42,'Summary 2'!B26,"") -> 0 | G42: =IF($K42,'Summary 2'!C26,"") -> 0 | H42: =IF($K42,'Summary 2'!D26,"") -> 0 | I42: =IF($K42,'Summary 2'!E26,"") -> 0 | J42: =IF($K42,'Summary 2'!F26,"") -> 0 | K42: TRUE
B43: Lying-Down Triceps Extension | F43: =IF($K43,'Summary 2'!B27,"") ->  | G43: =IF($K43,'Summary 2'!C27,"") ->  | H43: =IF($K43,'Summary 2'!D27,"") ->  | I43: =IF($K43,'Summary 2'!E27,"") ->  | J43: =IF($K43,'Summary 2'!F27,"") ->  | K43: FALSE
B44: In & Out Staight-Arm Shoulder Fly | F44: =IF($K44,'Summary 2'!B28,"") ->  | G44: =IF($K44,'Summary 2'!C28,"") ->  | H44: =IF($K44,'Summary 2'!D28,"") ->  | I44: =IF($K44,'Summary 2'!E28,"") ->  | J44: =IF($K44,'Summary 2'!F28,"") ->  | K44: FALSE
B45: Congdon Curl | F45: =IF($K45,'Summary 2'!B29,"") -> 0 | G45: =IF($K45,'Summary 2'!C29,"") -> 0 | H45: =IF($K45,'Summary 2'!D29,"") -> 0 | I45: =IF($K45,'Summary 2'!E29,"") -> 0 | J45: =IF($K45,'Summary 2'!F29,"") -> 0 | K45: TRUE
B46: Side Tri-Raise | F46: =IF($K46,'Summary 2'!B30,"") ->  | G46: =IF($K46,'Summary 2'!C30,"") ->  | H46: =IF($K46,'Summary 2'!D30,"") ->  | I46: =IF($K46,'Summary 2'!E30,"") ->  | J46: =IF($K46,'Summary 2'!F30,"") ->  | K46: FALSE
A47: ALL

Sheet Legs & Back Chart
A1: Main Menu | C1: Master Schedule | E1: Worksheets | G1: Charts | H1: Legs & Back Worksheet | L1: Worksheet Summaries Page
A5: ALL
A29: ALL
A33: ALL | B33: Legs & Back | F33: Week 1 | G33: Week 2 | H33: Week 3 | I33: Week 5 | J33: Week 6 | K33: Week 7 | L33: Week 9 | M33: Week 10 | N33: Week 11 | O33: Week 12
B34: Balanced Lunges | F34: =IF($P34,'Summary 2'!B32,"") ->  | G34: =IF($P34,'Summary 2'!C32,"") ->  | H34: =IF($P34,'Summary 2'!D32,"") ->  | I34: =IF($P34,'Summary 2'!E32,"") ->  | J34: =IF($P34,'Summary 2'!F32,"") ->  | K34: =IF($P34,'Summary 2'!G32,"") ->  | L34: =IF($P34,'Summary 2'!H32,"") ->  | M34: =IF($P34,'Summary 2'!I32,"") ->  | N34: =IF($P34,'Summary 2'!J32,"") ->  | O34: =IF($P34,'Summary 2'!K32,"") ->  | P34: FALSE
B35: Calf Raise Squats | F35: =IF($P35,'Summary 2'!B33,"") ->  | G35: =IF($P35,'Summary 2'!C33,"") ->  | H35: =IF($P35,'Summary 2'!D33,"") ->  | I35: =IF($P35,'Summary 2'!E33,"") ->  | J35: =IF($P35,'Summary 2'!F33,"") ->  | K35: =IF($P35,'Summary 2'!G33,"") ->  | L35: =IF($P35,'Summary 2'!H33,"") ->  | M35: =IF($P35,'Summary 2'!I33,"") ->  | N35: =IF($P35,'Summary 2'!J33,"") ->  | O35: =IF($P35,'Summary 2'!K33,"") ->  | P35: FALSE
B36: Reverse Grip Chin-Ups | F36: =IF($P36,'Summary 2'!B34,"") -> 0 | G36: =IF($P36,'Summary 2'!C34,"") -> 0 | H36: =IF($P36,'Summary 2'!D34,"") -> 0 | I36: =IF($P36,'Summary 2'!E34,"") -> 0 | J36: =IF($P36,'Summary 2'!F34,"") -> 0 | K36: =IF($P36,'Summary 2'!G34,"") -> 0 | L36: =IF($P36,'Summary 2'!H34,"") -> 0 | M36: =IF($P36,'Summary 2'!I34,"") -> 0 | N36: =IF($P36,'Summary 2'!J34,"") -> 0 | O36: =IF($P36,'Summary 2'!K34,"") -> 0 | P36: TRUE
B37: Super Skaters | F37: =IF($P37,'Summary 2'!B35,"") ->  | G37: =IF($P37,'Summary 2'!C35,"") ->  | H37: =IF($P37,'Summary 2'!D35,"") ->  | I37: =IF($P37,'Summary 2'!E35,"") ->  | J37: =IF($P37,'Summary 2'!F35,"") ->  | K37: =IF($P37,'Summary 2'!G35,"") ->  | L37: =IF($P37,'Summary 2'!H35,"") ->  | M37: =IF($P37,'Summary 2'!I35,"") ->  | N37: =IF($P37,'Summary 2'!J35,"") ->  | O37: =IF($P37,'Summary 2'!K35,"") ->  | P37: FALSE
B38: Wall Squats | F38: =IF($P38,'Summary 2'!B36,"") ->  | G38: =IF($P38,'Summary 2'!C36,"") ->  | H38: =IF($P38,'Summary 2'!D36,"") ->  | I38: =IF($P38,'Summary 2'!E36,"") ->  | J38: =IF($P38,'Summary 2'!F36,"") ->  | K38: =IF($P38,'Summary 2'!G36,"") ->  | L38: =IF($P38,'Summary 2'!H36,"") ->  | M38: =IF($P38,'Summary 2'!I36,"") ->  | N38: =IF($P38,'Summary 2'!J36,"") ->  | O38: =IF($P38,'Summary 2'!K36,"") ->  | P38: FALSE
B39: Wide-Front Pull-Ups | F39: =IF($P39,'Summary 2'!B37,"") -> 0 | G39: =IF($P39,'Summary 2'!C37,"") -> 0 | H39: =IF($P39,'Summary 2'!D37,"") -> 0 | I39: =IF($P39,'Summary 2'!E37,"") -> 0 | J39: =IF($P39,'Summary 2'!F37,"") -> 0 | K39: =IF($P39,'Summary 2'!G37,"") -> 0 | L39: =IF($P39,'Summary 2'!H37,"") -> 0 | M39: =IF($P39,'Summary 2'!I37,"") -> 0 | N39: =IF($P39,'Summary 2'!J37,"") -> 0 | O39: =IF($P39,'Summary 2'!K37,"") -> 0 | P39: TRUE
B40: Step Back Lunges | F40: =IF($P40,'Summary 2'!B38,"") ->  | G40: =IF($P40,'Summary 2'!C38,"") ->  | H40: =IF($P40,'Summary 2'!D38,"") ->  | I40: =IF($P40,'Summary 2'!E38,"") ->  | J40: =IF($P40,'Summary 2'!F38,"") ->  | K40: =IF($P40,'Summary 2'!G38,"") ->  | L40: =IF($P40,'Summary 2'!H38,"") ->  | M40: =IF($P40,'Summary 2'!I38,"") ->  | N40: =IF($P40,'Summary 2'!J38,"") ->  | O40: =IF($P40,'Summary 2'!K38,"") ->  | P40: FALSE
B41: Alternating Side Lunges | F41: =IF($P41,'Summary 2'!B39,"") ->  | G41: =IF($P41,'Summary 2'!C39,"") ->  | H41: =IF($P41,'Summary 2'!D39,"") ->  | I41: =IF($P41,'Summary 2'!E39,"") ->  | J41: =IF($P41,'Summary 2'!F39,"") ->  | K41: =IF($P41,'Summary 2'!G39,"") ->  | L41: =IF($P41,'Summary 2'!H39,"") ->  | M41: =IF($P41,'Summary 2'!I39,"") ->  | N41: =IF($P41,'Summary 2'!J39,"") ->  | O41: =IF($P41,'Summary 2'!K39,"") ->  | P41: FALSE
B42: Closed Grip Overhand Pull-Up | F42: =IF($P42,'Summary 2'!B40,"") -> 0 | G42: =IF($P42,'Summary 2'!C40,"") -> 0 | H42: =IF($P42,'Summary 2'!D40,"") -> 0 | I42: =IF($P42,'Summary 2'!E40,"") -> 0 | J42: =IF($P42,'Summary 2'!F40,"") -> 0 | K42: =IF($P42,'Summary 2'!G40,"") -> 0 | L42: =IF($P42,'Summary 2'!H40,"") -> 0 | M42: =IF($P42,'Summary 2'!I40,"") -> 0 | N42: =IF($P42,'Summary 2'!J40,"") -> 0 | O42: =IF($P42,'Summary 2'!K40,"") -> 0 | P42: TRUE
B43: Single-Leg Wall Squats | F43: =IF($P43,'Summary 2'!B41,"") ->  | G43: =IF($P43,'Summary 2'!C41,"") ->  | H43: =IF($P43,'Summary 2'!D41,"") ->  | I43: =IF($P43,'Summary 2'!E41,"") ->  | J43: =IF($P43,'Summary 2'!F41,"") ->  | K43: =IF($P43,'Summary 2'!G41,"") ->  | L43: =IF($P43,'Summary 2'!H41,"") ->  | M43: =IF($P43,'Summary 2'!I41,"") ->  | N43: =IF($P43,'Summary 2'!J41,"") ->  | O43: =IF($P43,'Summary 2'!K41,"") ->  | P43: FALSE
B44: Dead Lift Squats | F44: =IF($P44,'Summary 2'!B42,"") ->  | G44: =IF($P44,'Summary 2'!C42,"") ->  | H44: =IF($P44,'Summary 2'!D42,"") ->  | I44: =IF($P44,'Summary 2'!E42,"") ->  | J44: =IF($P44,'Summary 2'!F42,"") ->  | K44: =IF($P44,'Summary 2'!G42,"") ->  | L44: =IF($P44,'Summary 2'!H42,"") ->  | M44: =IF($P44,'Summary 2'!I42,"") ->  | N44: =IF($P44,'Summary 2'!J42,"") ->  | O44: =IF($P44,'Summary 2'!K42,"") ->  | P44: FALSE
B45: Switch Grip Pull-Ups | F45: =IF($P45,'Summary 2'!B43,"") -> 0 | G45: =IF($P45,'Summary 2'!C43,"") -> 0 | H45: =IF($P45,'Summary 2'!D43,"") -> 0 | I45: =IF($P45,'Summary 2'!E43,"") -> 0 | J45: =IF($P45,'Summary 2'!F43,"") -> 0 | K45: =IF($P45,'Summary 2'!G43,"") -> 0 | L45: =IF($P45,'Summary 2'!H43,"") -> 0 | M45: =IF($P45,'Summary 2'!I43,"") -> 0 | N45: =IF($P45,'Summary 2'!J43,"") -> 0 | O45: =IF($P45,'Summary 2'!K43,"") -> 0 | P45: TRUE
B46: Three-Way Lunges | F46: =IF($P46,'Summary 2'!B44,"") ->  | G46: =IF($P46,'Summary 2'!C44,"") ->  | H46: =IF($P46,'Summary 2'!D44,"") ->  | I46: =IF($P46,'Summary 2'!E44,"") ->  | J46: =IF($P46,'Summary 2'!F44,"") ->  | K46: =IF($P46,'Summary 2'!G44,"") ->  | L46: =IF($P46,'Summary 2'!H44,"") ->  | M46: =IF($P46,'Summary 2'!I44,"") ->  | N46: =IF($P46,'Summary 2'!J44,"") ->  | O46: =IF($P46,'Summary 2'!K44,"") ->  | P46: FALSE
B47: Sneaky Lunges | F47: =IF($P47,'Summary 2'!B45,"") ->  | G47: =IF($P47,'Summary 2'!C45,"") ->  | H47: =IF($P47,'Summary 2'!D45,"") ->  | I47: =IF($P47,'Summary 2'!E45,"") ->  | J47: =IF($P47,'Summary 2'!F45,"") ->  | K47: =IF($P47,'Summary 2'!G45,"") ->  | L47: =IF($P47,'Summary 2'!H45,"") ->  | M47: =IF($P47,'Summary 2'!I45,"") ->  | N47: =IF($P47,'Summary 2'!J45,"") ->  | O47: =IF($P47,'Summary 2'!K45,"") ->  | P47: FALSE
B48: Reverse Grip Chin-Ups | F48: =IF($P48,'Summary 2'!B46,"") -> 0 | G48: =IF($P48,'Summary 2'!C46,"") -> 0 | H48: =IF($P48,'Summary 2'!D46,"") -> 0 | I48: =IF($P48,'Summary 2'!E46,"") -> 0 | J48: =IF($P48,'Summary 2'!F46,"") -> 0 | K48: =IF($P48,'Summary 2'!G46,"") -> 0 | L48: =IF($P48,'Summary 2'!H46,"") -> 0 | M48: =IF($P48,'Summary 2'!I46,"") -> 0 | N48: =IF($P48,'Summary 2'!J46,"") -> 0 | O48: =IF($P48,'Summary 2'!K46,"") -> 0 | P48: TRUE
B49: Chair Salutations | F49: =IF($P49,'Summary 2'!B47,"") ->  | G49: =IF($P49,'Summary 2'!C47,"") ->  | H49: =IF($P49,'Summary 2'!D47,"") ->  | I49: =IF($P49,'Summary 2'!E47,"") ->  | J49: =IF($P49,'Summary 2'!F47,"") ->  | K49: =IF($P49,'Summary 2'!G47,"") ->  | L49: =IF($P49,'Summary 2'!H47,"") ->  | M49: =IF($P49,'Summary 2'!I47,"") ->  | N49: =IF($P49,'Summary 2'!J47,"") ->  | O49: =IF($P49,'Summary 2'!K47,"") ->  | P49: FALSE
B50: Toe Row Iso Lunges | F50: =IF($P50,'Summary 2'!B48,"") ->  | G50: =IF($P50,'Summary 2'!C48,"") ->  | H50: =IF($P50,'Summary 2'!D48,"") ->  | I50: =IF($P50,'Summary 2'!E48,"") ->  | J50: =IF($P50,'Summary 2'!F48,"") ->  | K50: =IF($P50,'Summary 2'!G48,"") ->  | L50: =IF($P50,'Summary 2'!H48,"") ->  | M50: =IF($P50,'Summary 2'!I48,"") ->  | N50: =IF($P50,'Summary 2'!J48,"") ->  | O50: =IF($P50,'Summary 2'!K48,"") ->  | P50: FALSE
B51: Wide-Front Pull-Ups | F51: =IF($P51,'Summary 2'!B49,"") -> 0 | G51: =IF($P51,'Summary 2'!C49,"") -> 0 | H51: =IF($P51,'Summary 2'!D49,"") -> 0 | I51: =IF($P51,'Summary 2'!E49,"") -> 0 | J51: =IF($P51,'Summary 2'!F49,"") -> 0 | K51: =IF($P51,'Summary 2'!G49,"") -> 0 | L51: =IF($P51,'Summary 2'!H49,"") -> 0 | M51: =IF($P51,'Summary 2'!I49,"") -> 0 | N51: =IF($P51,'Summary 2'!J49,"") -> 0 | O51: =IF($P51,'Summary 2'!K49,"") -> 0 | P51: TRUE
B52: Groucho Walk | F52: =IF($P52,'Summary 2'!B50,"") ->  | G52: =IF($P52,'Summary 2'!C50,"") ->  | H52: =IF($P52,'Summary 2'!D50,"") ->  | I52: =IF($P52,'Summary 2'!E50,"") ->  | J52: =IF($P52,'Summary 2'!F50,"") ->  | K52: =IF($P52,'Summary 2'!G50,"") ->  | L52: =IF($P52,'Summary 2'!H50,"") ->  | M52: =IF($P52,'Summary 2'!I50,"") ->  | N52: =IF($P52,'Summary 2'!J50,"") ->  | O52: =IF($P52,'Summary 2'!K50,"") ->  | P52: FALSE
B53: Calf-Raises | F53: =IF($P53,'Summary 2'!B51,"") ->  | G53: =IF($P53,'Summary 2'!C51,"") ->  | H53: =IF($P53,'Summary 2'!D51,"") ->  | I53: =IF($P53,'Summary 2'!E51,"") ->  | J53: =IF($P53,'Summary 2'!F51,"") ->  | K53: =IF($P53,'Summary 2'!G51,"") ->  | L53: =IF($P53,'Summary 2'!H51,"") ->  | M53: =IF($P53,'Summary 2'!I51,"") ->  | N53: =IF($P53,'Summary 2'!J51,"") ->  | O53: =IF($P53,'Summary 2'!K51,"") ->  | P53: FALSE
B54: Close-Grip Overhead Pull-Ups | F54: =IF($P54,'Summary 2'!B52,"") -> 0 | G54: =IF($P54,'Summary 2'!C52,"") -> 0 | H54: =IF($P54,'Summary 2'!D52,"") -> 0 | I54: =IF($P54,'Summary 2'!E52,"") -> 0 | J54: =IF($P54,'Summary 2'!F52,"") -> 0 | K54: =IF($P54,'Summary 2'!G52,"") -> 0 | L54: =IF($P54,'Summary 2'!H52,"") -> 0 | M54: =IF($P54,'Summary 2'!I52,"") -> 0 | N54: =IF($P54,'Summary 2'!J52,"") -> 0 | O54: =IF($P54,'Summary 2'!K52,"") -> 0 | P54: TRUE
B55: 80-20 Selbers Speed Squats | F55: =IF($P55,'Summary 2'!B53,"") ->  | G55: =IF($P55,'Summary 2'!C53,"") ->  | H55: =IF($P55,'Summary 2'!D53,"") ->  | I55: =IF($P55,'Summary 2'!E53,"") ->  | J55: =IF($P55,'Summary 2'!F53,"") ->  | K55: =IF($P55,'Summary 2'!G53,"") ->  | L55: =IF($P55,'Summary 2'!H53,"") ->  | M55: =IF($P55,'Summary 2'!I53,"") ->  | N55: =IF($P55,'Summary 2'!J53,"") ->  | O55: =IF($P55,'Summary 2'!K53,"") ->  | P55: FALSE
B56: Switch Grip Pull-Ups | F56: =IF($P56,'Summary 2'!B54,"") -> 0 | G56: =IF($P56,'Summary 2'!C54,"") -> 0 | H56: =IF($P56,'Summary 2'!D54,"") -> 0 | I56: =IF($P56,'Summary 2'!E54,"") -> 0 | J56: =IF($P56,'Summary 2'!F54,"") -> 0 | K56: =IF($P56,'Summary 2'!G54,"") -> 0 | L56: =IF($P56,'Summary 2'!H54,"") -> 0 | M56: =IF($P56,'Summary 2'!I54,"") -> 0 | N56: =IF($P56,'Summary 2'!J54,"") -> 0 | O56: =IF($P56,'Summary 2'!K54,"") -> 0 | P56: TRUE
A57: ALL

Sheet Chest, Shoulders, Tri Chart
A1: Main Menu | C1: Master Schedule | E1: Worksheets | G1: Charts | H1: Chest, Sho, Tri Worksheet | K1: Summaries Page | M1: Full Screen OFF
A5: ALL
A30: ALL
A33: ALL | B33: Chest, Shoulders & Triceps | F33: Week 5 | G33: Week 6 | H33: Week 7 | I33: Week 10 | J33: Week 12
B34: Slow-Motion 3-In-1 Push-Ups | F34: =IF($K34,'Summary 2'!B56,"") -> 0 | G34: =IF($K34,'Summary 2'!C56,"") -> 0 | H34: =IF($K34,'Summary 2'!D56,"") -> 0 | I34: =IF($K34,'Summary 2'!E56,"") -> 0 | J34: =IF($K34,'Summary 2'!F56,"") -> 0 | K34: TRUE
B35: In & Out Shoulder Flyes | F35: =IF($K35,'Summary 2'!B57,"") -> 0 | G35: =IF($K35,'Summary 2'!C57,"") -> 0 | H35: =IF($K35,'Summary 2'!D57,"") -> 0 | I35: =IF($K35,'Summary 2'!E57,"") -> 0 | J35: =IF($K35,'Summary 2'!F57,"") -> 0 | K35: TRUE
B36: Chair Dips | F36: =IF($K36,'Summary 2'!B58,"") -> 0 | G36: =IF($K36,'Summary 2'!C58,"") -> 0 | H36: =IF($K36,'Summary 2'!D58,"") -> 0 | I36: =IF($K36,'Summary 2'!E58,"") -> 0 | J36: =IF($K36,'Summary 2'!F58,"") -> 0 | K36: TRUE
B37: Plange Push-Ups | F37: =IF($K37,'Summary 2'!B59,"") -> 0 | G37: =IF($K37,'Summary 2'!C59,"") -> 0 | H37: =IF($K37,'Summary 2'!D59,"") -> 0 | I37: =IF($K37,'Summary 2'!E59,"") -> 0 | J37: =IF($K37,'Summary 2'!F59,"") -> 0 | K37: TRUE
B38: Pike Presses | F38: =IF($K38,'Summary 2'!B60,"") -> 0 | G38: =IF($K38,'Summary 2'!C60,"") -> 0 | H38: =IF($K38,'Summary 2'!D60,"") -> 0 | I38: =IF($K38,'Summary 2'!E60,"") -> 0 | J38: =IF($K38,'Summary 2'!F60,"") -> 0 | K38: TRUE
B39: Side Tri-Risees | F39: =IF($K39,'Summary 2'!B61,"") -> 0 | G39: =IF($K39,'Summary 2'!C61,"") -> 0 | H39: =IF($K39,'Summary 2'!D61,"") -> 0 | I39: =IF($K39,'Summary 2'!E61,"") -> 0 | J39: =IF($K39,'Summary 2'!F61,"") -> 0 | K39: TRUE
B40: Floor-Flyes | F40: =IF($K40,'Summary 2'!B62,"") -> 0 | G40: =IF($K40,'Summary 2'!C62,"") -> 0 | H40: =IF($K40,'Summary 2'!D62,"") -> 0 | I40: =IF($K40,'Summary 2'!E62,"") -> 0 | J40: =IF($K40,'Summary 2'!F62,"") -> 0 | K40: TRUE
B41: Scarecrows | F41: =IF($K41,'Summary 2'!B63,"") -> 0 | G41: =IF($K41,'Summary 2'!C63,"") -> 0 | H41: =IF($K41,'Summary 2'!D63,"") -> 0 | I41: =IF($K41,'Summary 2'!E63,"") -> 0 | J41: =IF($K41,'Summary 2'!F63,"") -> 0 | K41: TRUE
B42: Overhead Triceps Extensions | F42: =IF($K42,'Summary 2'!B64,"") -> 0 | G42: =IF($K42,'Summary 2'!C64,"") -> 0 | H42: =IF($K42,'Summary 2'!D64,"") -> 0 | I42: =IF($K42,'Summary 2'!E64,"") -> 0 | J42: =IF($K42,'Summary 2'!F64,"") -> 0 | K42: TRUE
B43: Two-Twitch Speed Push-Ups | F43: =IF($K43,'Summary 2'!B65,"") -> 0 | G43: =IF($K43,'Summary 2'!C65,"") -> 0 | H43: =IF($K43,'Summary 2'!D65,"") -> 0 | I43: =IF($K43,'Summary 2'!E65,"") -> 0 | J43: =IF($K43,'Summary 2'!F65,"") -> 0 | K43: TRUE
B44: Y-Presses | F44: =IF($K44,'Summary 2'!B66,"") -> 0 | G44: =IF($K44,'Summary 2'!C66,"") -> 0 | H44: =IF($K44,'Summary 2'!D66,"") -> 0 | I44: =IF($K44,'Summary 2'!E66,"") -> 0 | J44: =IF($K44,'Summary 2'!F66,"") -> 0 | K44: TRUE
B45: Lying Triceps Extensions | F45: =IF($K45,'Summary 2'!B67,"") -> 0 | G45: =IF($K45,'Summary 2'!C67,"") -> 0 | H45: =IF($K45,'Summary 2'!D67,"") -> 0 | I45: =IF($K45,'Summary 2'!E67,"") -> 0 | J45: =IF($K45,'Summary 2'!F67,"") -> 0 | K45: TRUE
B46: Side-To-Side Push-Ups | F46: =IF($K46,'Summary 2'!B68,"") -> 0 | G46: =IF($K46,'Summary 2'!C68,"") -> 0 | H46: =IF($K46,'Summary 2'!D68,"") -> 0 | I46: =IF($K46,'Summary 2'!E68,"") -> 0 | J46: =IF($K46,'Summary 2'!F68,"") -> 0 | K46: TRUE
B47: Pour Flyes | F47: =IF($K47,'Summary 2'!B69,"") -> 0 | G47: =IF($K47,'Summary 2'!C69,"") -> 0 | H47: =IF($K47,'Summary 2'!D69,"") -> 0 | I47: =IF($K47,'Summary 2'!E69,"") -> 0 | J47: =IF($K47,'Summary 2'!F69,"") -> 0 | K47: TRUE
B48: Side-Leaning Triceps Extensions | F48: =IF($K48,'Summary 2'!B70,"") -> 0 | G48: =IF($K48,'Summary 2'!C70,"") -> 0 | H48: =IF($K48,'Summary 2'!D70,"") -> 0 | I48: =IF($K48,'Summary 2'!E70,"") -> 0 | J48: =IF($K48,'Summary 2'!F70,"") -> 0 | K48: TRUE
B49: One-Arm Push-Ups | F49: =IF($K49,'Summary 2'!B71,"") -> 0 | G49: =IF($K49,'Summary 2'!C71,"") -> 0 | H49: =IF($K49,'Summary 2'!D71,"") -> 0 | I49: =IF($K49,'Summary 2'!E71,"") -> 0 | J49: =IF($K49,'Summary 2'!F71,"") -> 0 | K49: TRUE
B50: Weighted Circles | F50: =IF($K50,'Summary 2'!B72,"") -> 0 | G50: =IF($K50,'Summary 2'!C72,"") -> 0 | H50: =IF($K50,'Summary 2'!D72,"") -> 0 | I50: =IF($K50,'Summary 2'!E72,"") -> 0 | J50: =IF($K50,'Summary 2'!F72,"") -> 0 | K50: TRUE
B51: Throw The Bomb | F51: =IF($K51,'Summary 2'!B73,"") -> 0 | G51: =IF($K51,'Summary 2'!C73,"") -> 0 | H51: =IF($K51,'Summary 2'!D73,"") -> 0 | I51: =IF($K51,'Summary 2'!E73,"") -> 0 | J51: =IF($K51,'Summary 2'!F73,"") -> 0 | K51: TRUE
B52: Clap or Plyo Push-Ups | F52: =IF($K52,'Summary 2'!B74,"") -> 0 | G52: =IF($K52,'Summary 2'!C74,"") -> 0 | H52: =IF($K52,'Summary 2'!D74,"") -> 0 | I52: =IF($K52,'Summary 2'!E74,"") -> 0 | J52: =IF($K52,'Summary 2'!F74,"") -> 0 | K52: TRUE
B53: Slow-Mo Throws | F53: =IF($K53,'Summary 2'!B75,"") -> 0 | G53: =IF($K53,'Summary 2'!C75,"") -> 0 | H53: =IF($K53,'Summary 2'!D75,"") -> 0 | I53: =IF($K53,'Summary 2'!E75,"") -> 0 | J53: =IF($K53,'Summary 2'!F75,"") -> 0 | K53: TRUE
B54: Front-To-Back Triceps Extensions | F54: =IF($K54,'Summary 2'!B76,"") -> 0 | G54: =IF($K54,'Summary 2'!C76,"") -> 0 | H54: =IF($K54,'Summary 2'!D76,"") -> 0 | I54: =IF($K54,'Summary 2'!E76,"") -> 0 | J54: =IF($K54,'Summary 2'!F76,"") -> 0 | K54: TRUE
B55: One-Arm Balance Push-Ups | F55: =IF($K55,'Summary 2'!B77,"") -> 0 | G55: =IF($K55,'Summary 2'!C77,"") -> 0 | H55: =IF($K55,'Summary 2'!D77,"") -> 0 | I55: =IF($K55,'Summary 2'!E77,"") -> 0 | J55: =IF($K55,'Summary 2'!F77,"") -> 0 | K55: TRUE
B56: Fly-Row-Presses | F56: =IF($K56,'Summary 2'!B78,"") -> 0 | G56: =IF($K56,'Summary 2'!C78,"") -> 0 | H56: =IF($K56,'Summary 2'!D78,"") -> 0 | I56: =IF($K56,'Summary 2'!E78,"") -> 0 | J56: =IF($K56,'Summary 2'!F78,"") -> 0 | K56: TRUE
B57: Dumbbell Cross-Body Blows | F57: =IF($K57,'Summary 2'!B79,"") -> 0 | G57: =IF($K57,'Summary 2'!C79,"") -> 0 | H57: =IF($K57,'Summary 2'!D79,"") -> 0 | I57: =IF($K57,'Summary 2'!E79,"") -> 0 | J57: =IF($K57,'Summary 2'!F79,"") -> 0 | K57: TRUE
A58: ALL

Sheet Chest, Shoulders, Tri Chart (L)
A1: Main Menu | C1: Master Schedule | E1: Worksheets | G1: Charts | H1: Chest, Sho, Tri Worksheet | K1: Summaries Page | M1: Full Screen OFF
A3: `
A5: ALL
A30: ALL
A33: ALL | B33: Chest, Shoulders & Triceps (Lean) | F33: Week 5 | G33: Week 6 | H33: Week 7 | I33: Week 10 | J33: Week 12
B34: Slow-Motion 3-In-1 Push-Ups | F34: =IF($K34,'Summary 2'!B81,"") -> 0 | G34: =IF($K34,'Summary 2'!C81,"") -> 0 | H34: =IF($K34,'Summary 2'!D81,"") -> 0 | I34: =IF($K34,'Summary 2'!E81,"") -> 0 | J34: =IF($K34,'Summary 2'!F81,"") -> 0 | K34: TRUE
B35: In & Out Shoulder Flyes | F35: =IF($K35,'Summary 2'!B82,"") -> 0 | G35: =IF($K35,'Summary 2'!C82,"") -> 0 | H35: =IF($K35,'Summary 2'!D82,"") -> 0 | I35: =IF($K35,'Summary 2'!E82,"") -> 0 | J35: =IF($K35,'Summary 2'!F82,"") -> 0 | K35: TRUE
B36: Chair Dips | F36: =IF($K36,'Summary 2'!B83,"") -> 0 | G36: =IF($K36,'Summary 2'!C83,"") -> 0 | H36: =IF($K36,'Summary 2'!D83,"") -> 0 | I36: =IF($K36,'Summary 2'!E83,"") -> 0 | J36: =IF($K36,'Summary 2'!F83,"") -> 0 | K36: TRUE
B37: Plange Push-Ups | F37: =IF($K37,'Summary 2'!B84,"") -> 0 | G37: =IF($K37,'Summary 2'!C84,"") -> 0 | H37: =IF($K37,'Summary 2'!D84,"") -> 0 | I37: =IF($K37,'Summary 2'!E84,"") -> 0 | J37: =IF($K37,'Summary 2'!F84,"") -> 0 | K37: TRUE
B38: Pike Presses | F38: =IF($K38,'Summary 2'!B85,"") -> 0 | G38: =IF($K38,'Summary 2'!C85,"") -> 0 | H38: =IF($K38,'Summary 2'!D85,"") -> 0 | I38: =IF($K38,'Summary 2'!E85,"") -> 0 | J38: =IF($K38,'Summary 2'!F85,"") -> 0 | K38: TRUE
B39: Side Tri-Risees | F39: =IF($K39,'Summary 2'!B86,"") -> 0 | G39: =IF($K39,'Summary 2'!C86,"") -> 0 | H39: =IF($K39,'Summary 2'!D86,"") -> 0 | I39: =IF($K39,'Summary 2'!E86,"") -> 0 | J39: =IF($K39,'Summary 2'!F86,"") -> 0 | K39: TRUE
B40: Floor-Flyes | F40: =IF($K40,'Summary 2'!B87,"") -> 0 | G40: =IF($K40,'Summary 2'!C87,"") -> 0 | H40: =IF($K40,'Summary 2'!D87,"") -> 0 | I40: =IF($K40,'Summary 2'!E87,"") -> 0 | J40: =IF($K40,'Summary 2'!F87,"") -> 0 | K40: TRUE
B41: Scarecrows | F41: =IF($K41,'Summary 2'!B88,"") -> 0 | G41: =IF($K41,'Summary 2'!C88,"") -> 0 | H41: =IF($K41,'Summary 2'!D88,"") -> 0 | I41: =IF($K41,'Summary 2'!E88,"") -> 0 | J41: =IF($K41,'Summary 2'!F88,"") -> 0 | K41: TRUE
B42: Overhead Triceps Extensions | F42: =IF($K42,'Summary 2'!B89,"") -> 0 | G42: =IF($K42,'Summary 2'!C89,"") -> 0 | H42: =IF($K42,'Summary 2'!D89,"") -> 0 | I42: =IF($K42,'Summary 2'!E89,"") -> 0 | J42: =IF($K42,'Summary 2'!F89,"") -> 0 | K42: TRUE
B43: Two-Twitch Speed Push-Ups | F43: =IF($K43,'Summary 2'!B90,"") -> 0 | G43: =IF($K43,'Summary 2'!C90,"") -> 0 | H43: =IF($K43,'Summary 2'!D90,"") -> 0 | I43: =IF($K43,'Summary 2'!E90,"") -> 0 | J43: =IF($K43,'Summary 2'!F90,"") -> 0 | K43: TRUE
B44: Y-Presses | F44: =IF($K44,'Summary 2'!B91,"") -> 0 | G44: =IF($K44,'Summary 2'!C91,"") -> 0 | H44: =IF($K44,'Summary 2'!D91,"") -> 0 | I44: =IF($K44,'Summary 2'!E91,"") -> 0 | J44: =IF($K44,'Summary 2'!F91,"") -> 0 | K44: TRUE
B45: Lying Triceps Extensions | F45: =IF($K45,'Summary 2'!B92,"") -> 0 | G45: =IF($K45,'Summary 2'!C92,"") -> 0 | H45: =IF($K45,'Summary 2'!D92,"") -> 0 | I45: =IF($K45,'Summary 2'!E92,"") -> 0 | J45: =IF($K45,'Summary 2'!F92,"") -> 0 | K45: TRUE
B46: Side-To-Side Push-Ups | F46: =IF($K46,'Summary 2'!B93,"") -> 0 | G46: =IF($K46,'Summary 2'!C93,"") -> 0 | H46: =IF($K46,'Summary 2'!D93,"") -> 0 | I46: =IF($K46,'Summary 2'!E93,"") -> 0 | J46: =IF($K46,'Summary 2'!F93,"") -> 0 | K46: TRUE
B47: Pour Flyes | F47: =IF($K47,'Summary 2'!B94,"") -> 0 | G47: =IF($K47,'Summary 2'!C94,"") -> 0 | H47: =IF($K47,'Summary 2'!D94,"") -> 0 | I47: =IF($K47,'Summary 2'!E94,"") -> 0 | J47: =IF($K47,'Summary 2'!F94,"") -> 0 | K47: TRUE
B48: Side-Leaning Triceps Extensions | F48: =IF($K48,'Summary 2'!B95,"") -> 0 | G48: =IF($K48,'Summary 2'!C95,"") -> 0 | H48: =IF($K48,'Summary 2'!D95,"") -> 0 | I48: =IF($K48,'Summary 2'!E95,"") -> 0 | J48: =IF($K48,'Summary 2'!F95,"") -> 0 | K48: TRUE
B49: One-Arm Push-Ups | F49: =IF($K49,'Summary 2'!B96,"") -> 0 | G49: =IF($K49,'Summary 2'!C96,"") -> 0 | H49: =IF($K49,'Summary 2'!D96,"") -> 0 | I49: =IF($K49,'Summary 2'!E96,"") -> 0 | J49: =IF($K49,'Summary 2'!F96,"") -> 0 | K49: TRUE
B50: Weighted Circles | F50: =IF($K50,'Summary 2'!B97,"") -> 0 | G50: =IF($K50,'Summary 2'!C97,"") -> 0 | H50: =IF($K50,'Summary 2'!D97,"") -> 0 | I50: =IF($K50,'Summary 2'!E97,"") -> 0 | J50: =IF($K50,'Summary 2'!F97,"") -> 0 | K50: TRUE
B51: Throw The Bomb | F51: =IF($K51,'Summary 2'!B98,"") -> 0 | G51: =IF($K51,'Summary 2'!C98,"") -> 0 | H51: =IF($K51,'Summary 2'!D98,"") -> 0 | I51: =IF($K51,'Summary 2'!E98,"") -> 0 | J51: =IF($K51,'Summary 2'!F98,"") -> 0 | K51: TRUE
B52: Clap or Plyo Push-Ups | F52: =IF($K52,'Summary 2'!B99,"") -> 0 | G52: =IF($K52,'Summary 2'!C99,"") -> 0 | H52: =IF($K52,'Summary 2'!D99,"") -> 0 | I52: =IF($K52,'Summary 2'!E99,"") -> 0 | J52: =IF($K52,'Summary 2'!F99,"") -> 0 | K52: TRUE
B53: Slow-Mo Throws | F53: =IF($K53,'Summary 2'!B100,"") -> 0 | G53: =IF($K53,'Summary 2'!C100,"") -> 0 | H53: =IF($K53,'Summary 2'!D100,"") -> 0 | I53: =IF($K53,'Summary 2'!E100,"") -> 0 | J53: =IF($K53,'Summary 2'!F100,"") -> 0 | K53: TRUE
B54: Front-To-Back Triceps Extensions | F54: =IF($K54,'Summary 2'!B101,"") -> 0 | G54: =IF($K54,'Summary 2'!C101,"") -> 0 | H54: =IF($K54,'Summary 2'!D101,"") -> 0 | I54: =IF($K54,'Summary 2'!E101,"") -> 0 | J54: =IF($K54,'Summary 2'!F101,"") -> 0 | K54: TRUE
B55: One-Arm Balance Push-Ups | F55: =IF($K55,'Summary 2'!B102,"") -> 0 | G55: =IF($K55,'Summary 2'!C102,"") -> 0 | H55: =IF($K55,'Summary 2'!D102,"") -> 0 | I55: =IF($K55,'Summary 2'!E102,"") -> 0 | J55: =IF($K55,'Summary 2'!F102,"") -> 0 | K55: TRUE
B56: Fly-Row-Presses | F56: =IF($K56,'Summary 2'!B103,"") -> 0 | G56: =IF($K56,'Summary 2'!C103,"") -> 0 | H56: =IF($K56,'Summary 2'!D103,"") -> 0 | I56: =IF($K56,'Summary 2'!E103,"") -> 0 | J56: =IF($K56,'Summary 2'!F103,"") -> 0 | K56: TRUE
B57: Dumbbell Cross-Body Blows | F57: =IF($K57,'Summary 2'!B104,"") -> 0 | G57: =IF($K57,'Summary 2'!C104,"") -> 0 | H57: =IF($K57,'Summary 2'!D104,"") -> 0 | I57: =IF($K57,'Summary 2'!E104,"") -> 0 | J57: =IF($K57,'Summary 2'!F104,"") -> 0 | K57: TRUE
A58: ALL

Sheet Back & Biceps Chart
A1: Main Menu | C1: Master Schedule | E1: Worksheets | G1: Charts | H1: Back & Biceps Worksheet | K1: Summaries Page | M1: Full Screen OFF
A5: ALL
A30: ALL
A33: ALL | B33: Back & Biceps | F33: Week 5 | G33: Week 6 | H33: Week 7 | I33: Week 10 | J33: Week 12
B34: Wide Front Pull-Ups | F34: =IF($K34,'Summary 2'!B106,"") -> 0 | G34: =IF($K34,'Summary 2'!C106,"") -> 0 | H34: =IF($K34,'Summary 2'!D106,"") -> 0 | I34: =IF($K34,'Summary 2'!E106,"") -> 0 | J34: =IF($K34,'Summary 2'!F106,"") -> 0 | K34: TRUE
B35: Lawnmowers | F35: =IF($K35,'Summary 2'!B107,"") ->  | G35: =IF($K35,'Summary 2'!C107,"") ->  | H35: =IF($K35,'Summary 2'!D107,"") ->  | I35: =IF($K35,'Summary 2'!E107,"") ->  | J35: =IF($K35,'Summary 2'!F107,"") ->  | K35: FALSE
B36: Twenty-Ones | F36: =IF($K36,'Summary 2'!B108,"") ->  | G36: =IF($K36,'Summary 2'!C108,"") ->  | H36: =IF($K36,'Summary 2'!D108,"") ->  | I36: =IF($K36,'Summary 2'!E108,"") ->  | J36: =IF($K36,'Summary 2'!F108,"") ->  | K36: FALSE
B37: One-Arm Cross-Body Curls | F37: =IF($K37,'Summary 2'!B109,"") ->  | G37: =IF($K37,'Summary 2'!C109,"") ->  | H37: =IF($K37,'Summary 2'!D109,"") ->  | I37: =IF($K37,'Summary 2'!E109,"") ->  | J37: =IF($K37,'Summary 2'!F109,"") ->  | K37: FALSE
B38: Switch Grip Pull-Ups | F38: =IF($K38,'Summary 2'!B110,"") -> 0 | G38: =IF($K38,'Summary 2'!C110,"") -> 0 | H38: =IF($K38,'Summary 2'!D110,"") -> 0 | I38: =IF($K38,'Summary 2'!E110,"") -> 0 | J38: =IF($K38,'Summary 2'!F110,"") -> 0 | K38: TRUE
B39: Elbows-Out Lawnmowers | F39: =IF($K39,'Summary 2'!B111,"") ->  | G39: =IF($K39,'Summary 2'!C111,"") ->  | H39: =IF($K39,'Summary 2'!D111,"") ->  | I39: =IF($K39,'Summary 2'!E111,"") ->  | J39: =IF($K39,'Summary 2'!F111,"") ->  | K39: FALSE
B40: Standing Bicep Curls | F40: =IF($K40,'Summary 2'!B112,"") ->  | G40: =IF($K40,'Summary 2'!C112,"") ->  | H40: =IF($K40,'Summary 2'!D112,"") ->  | I40: =IF($K40,'Summary 2'!E112,"") ->  | J40: =IF($K40,'Summary 2'!F112,"") ->  | K40: FALSE
B41: One-Arm Concentration Curls | F41: =IF($K41,'Summary 2'!B113,"") ->  | G41: =IF($K41,'Summary 2'!C113,"") ->  | H41: =IF($K41,'Summary 2'!D113,"") ->  | I41: =IF($K41,'Summary 2'!E113,"") ->  | J41: =IF($K41,'Summary 2'!F113,"") ->  | K41: FALSE
B42: Corn Cob Pull-Ups | F42: =IF($K42,'Summary 2'!B114,"") -> 0 | G42: =IF($K42,'Summary 2'!C114,"") -> 0 | H42: =IF($K42,'Summary 2'!D114,"") -> 0 | I42: =IF($K42,'Summary 2'!E114,"") -> 0 | J42: =IF($K42,'Summary 2'!F114,"") -> 0 | K42: TRUE
B43: Reverse Grip Bent-Over Rows | F43: =IF($K43,'Summary 2'!B115,"") ->  | G43: =IF($K43,'Summary 2'!C115,"") ->  | H43: =IF($K43,'Summary 2'!D115,"") ->  | I43: =IF($K43,'Summary 2'!E115,"") ->  | J43: =IF($K43,'Summary 2'!F115,"") ->  | K43: FALSE
B44: One Arm Curls | F44: =IF($K44,'Summary 2'!B116,"") ->  | G44: =IF($K44,'Summary 2'!C116,"") ->  | H44: =IF($K44,'Summary 2'!D116,"") ->  | I44: =IF($K44,'Summary 2'!E116,"") ->  | J44: =IF($K44,'Summary 2'!F116,"") ->  | K44: FALSE
B45: Static Arm Curls | F45: =IF($K45,'Summary 2'!B117,"") ->  | G45: =IF($K45,'Summary 2'!C117,"") ->  | H45: =IF($K45,'Summary 2'!D117,"") ->  | I45: =IF($K45,'Summary 2'!E117,"") ->  | J45: =IF($K45,'Summary 2'!F117,"") ->  | K45: FALSE
B46: Towel Pull-Ups | F46: =IF($K46,'Summary 2'!B118,"") -> 0 | G46: =IF($K46,'Summary 2'!C118,"") -> 0 | H46: =IF($K46,'Summary 2'!D118,"") -> 0 | I46: =IF($K46,'Summary 2'!E118,"") -> 0 | J46: =IF($K46,'Summary 2'!F118,"") -> 0 | K46: TRUE
B47: Congdon Locomotives | F47: =IF($K47,'Summary 2'!B119,"") ->  | G47: =IF($K47,'Summary 2'!C119,"") ->  | H47: =IF($K47,'Summary 2'!D119,"") ->  | I47: =IF($K47,'Summary 2'!E119,"") ->  | J47: =IF($K47,'Summary 2'!F119,"") ->  | K47: FALSE
B48: Crouching Cohen Curls | F48: =IF($K48,'Summary 2'!B120,"") ->  | G48: =IF($K48,'Summary 2'!C120,"") ->  | H48: =IF($K48,'Summary 2'!D120,"") ->  | I48: =IF($K48,'Summary 2'!E120,"") ->  | J48: =IF($K48,'Summary 2'!F120,"") ->  | K48: FALSE
B49: One-Arm Corkscrew Curls | F49: =IF($K49,'Summary 2'!B121,"") ->  | G49: =IF($K49,'Summary 2'!C121,"") ->  | H49: =IF($K49,'Summary 2'!D121,"") ->  | I49: =IF($K49,'Summary 2'!E121,"") ->  | J49: =IF($K49,'Summary 2'!F121,"") ->  | K49: FALSE
B50: Chin-Ups | F50: =IF($K50,'Summary 2'!B122,"") -> 0 | G50: =IF($K50,'Summary 2'!C122,"") -> 0 | H50: =IF($K50,'Summary 2'!D122,"") -> 0 | I50: =IF($K50,'Summary 2'!E122,"") -> 0 | J50: =IF($K50,'Summary 2'!F122,"") -> 0 | K50: TRUE
B51: Seated Bent-Over Back Flys | F51: =IF($K51,'Summary 2'!B123,"") ->  | G51: =IF($K51,'Summary 2'!C123,"") ->  | H51: =IF($K51,'Summary 2'!D123,"") ->  | I51: =IF($K51,'Summary 2'!E123,"") ->  | J51: =IF($K51,'Summary 2'!F123,"") ->  | K51: FALSE
B52: Curl Up / Hammer Downs | F52: =IF($K52,'Summary 2'!B124,"") ->  | G52: =IF($K52,'Summary 2'!C124,"") ->  | H52: =IF($K52,'Summary 2'!D124,"") ->  | I52: =IF($K52,'Summary 2'!E124,"") ->  | J52: =IF($K52,'Summary 2'!F124,"") ->  | K52: FALSE
B53: Hammer Curls | F53: =IF($K53,'Summary 2'!B125,"") ->  | G53: =IF($K53,'Summary 2'!C125,"") ->  | H53: =IF($K53,'Summary 2'!D125,"") ->  | I53: =IF($K53,'Summary 2'!E125,"") ->  | J53: =IF($K53,'Summary 2'!F125,"") ->  | K53: FALSE
B54: Max Rep Pull-Ups | F54: =IF($K54,'Summary 2'!B126,"") -> 0 | G54: =IF($K54,'Summary 2'!C126,"") -> 0 | H54: =IF($K54,'Summary 2'!D126,"") -> 0 | I54: =IF($K54,'Summary 2'!E126,"") -> 0 | J54: =IF($K54,'Summary 2'!F126,"") -> 0 | K54: TRUE
B55: Superman | F55: =IF($K55,'Summary 2'!B127,"") ->  | G55: =IF($K55,'Summary 2'!C127,"") ->  | H55: =IF($K55,'Summary 2'!D127,"") ->  | I55: =IF($K55,'Summary 2'!E127,"") ->  | J55: =IF($K55,'Summary 2'!F127,"") ->  | K55: FALSE
B56: In-Out Hammer Curls | F56: =IF($K56,'Summary 2'!B128,"") ->  | G56: =IF($K56,'Summary 2'!C128,"") ->  | H56: =IF($K56,'Summary 2'!D128,"") ->  | I56: =IF($K56,'Summary 2'!E128,"") ->  | J56: =IF($K56,'Summary 2'!F128,"") ->  | K56: FALSE
B57: Strip-Set Curls | F57: =IF($K57,'Summary 2'!B129,"") ->  | G57: =IF($K57,'Summary 2'!C129,"") ->  | H57: =IF($K57,'Summary 2'!D129,"") ->  | I57: =IF($K57,'Summary 2'!E129,"") ->  | J57: =IF($K57,'Summary 2'!F129,"") ->  | K57: FALSE
A58: ALL

Sheet Ab Ripper X Chart
A1: Main Menu | C1: Master Schedule | E1: Worksheets | G1: Charts | I1: Ab Ripper X Worksheet | L1: Worksheet Summaries Page
A15: ALL
A27: ALL
A41: ALL | B41: Ab Ripper X | E41: Week 1 | F41: Week 2 | G41: Week 3 | H41: Week 5 | I41: Week 6 | J41: Week 7 | K41: Week 9 | L41: Week 10 | M41: Week 11 | N41: Week 12
B42: In & Outs | E42: =IF($O42,'Summary 2'!B131,"") -> 0 | F42: =IF($O42,'Summary 2'!C131,"") -> 0 | G42: =IF($O42,'Summary 2'!D131,"") -> 0 | H42: =IF($O42,'Summary 2'!E131,"") -> 0 | I42: =IF($O42,'Summary 2'!F131,"") -> 0 | J42: =IF($O42,'Summary 2'!G131,"") -> 0 | K42: =IF($O42,'Summary 2'!H131,"") -> 0 | L42: =IF($O42,'Summary 2'!I131,"") -> 0 | M42: =IF($O42,'Summary 2'!J131,"") -> 0 | N42: =IF($O42,'Summary 2'!K131,"") -> 0 | O42: TRUE
B43: Bicycles | E43: =IF($O43,'Summary 2'!B132,"") -> 0 | F43: =IF($O43,'Summary 2'!C132,"") -> 0 | G43: =IF($O43,'Summary 2'!D132,"") -> 0 | H43: =IF($O43,'Summary 2'!E132,"") -> 0 | I43: =IF($O43,'Summary 2'!F132,"") -> 0 | J43: =IF($O43,'Summary 2'!G132,"") -> 0 | K43: =IF($O43,'Summary 2'!H132,"") -> 0 | L43: =IF($O43,'Summary 2'!I132,"") -> 0 | M43: =IF($O43,'Summary 2'!J132,"") -> 0 | N43: =IF($O43,'Summary 2'!K132,"") -> 0 | O43: TRUE
B44: Crunchy Frogs | E44: =IF($O44,'Summary 2'!B133,"") -> 0 | F44: =IF($O44,'Summary 2'!C133,"") -> 0 | G44: =IF($O44,'Summary 2'!D133,"") -> 0 | H44: =IF($O44,'Summary 2'!E133,"") -> 0 | I44: =IF($O44,'Summary 2'!F133,"") -> 0 | J44: =IF($O44,'Summary 2'!G133,"") -> 0 | K44: =IF($O44,'Summary 2'!H133,"") -> 0 | L44: =IF($O44,'Summary 2'!I133,"") -> 0 | M44: =IF($O44,'Summary 2'!J133,"") -> 0 | N44: =IF($O44,'Summary 2'!K133,"") -> 0 | O44: TRUE
B45: Cross Leg/Wide Leg Sit-Ups | E45: =IF($O45,'Summary 2'!B134,"") -> 0 | F45: =IF($O45,'Summary 2'!C134,"") -> 0 | G45: =IF($O45,'Summary 2'!D134,"") -> 0 | H45: =IF($O45,'Summary 2'!E134,"") -> 0 | I45: =IF($O45,'Summary 2'!F134,"") -> 0 | J45: =IF($O45,'Summary 2'!G134,"") -> 0 | K45: =IF($O45,'Summary 2'!H134,"") -> 0 | L45: =IF($O45,'Summary 2'!I134,"") -> 0 | M45: =IF($O45,'Summary 2'!J134,"") -> 0 | N45: =IF($O45,'Summary 2'!K134,"") -> 0 | O45: TRUE
B46: Fifer Scissors | E46: =IF($O46,'Summary 2'!B135,"") -> 0 | F46: =IF($O46,'Summary 2'!C135,"") -> 0 | G46: =IF($O46,'Summary 2'!D135,"") -> 0 | H46: =IF($O46,'Summary 2'!E135,"") -> 0 | I46: =IF($O46,'Summary 2'!F135,"") -> 0 | J46: =IF($O46,'Summary 2'!G135,"") -> 0 | K46: =IF($O46,'Summary 2'!H135,"") -> 0 | L46: =IF($O46,'Summary 2'!I135,"") -> 0 | M46: =IF($O46,'Summary 2'!J135,"") -> 0 | N46: =IF($O46,'Summary 2'!K135,"") -> 0 | O46: TRUE
B47: Hip Rock'n Raises | E47: =IF($O47,'Summary 2'!B136,"") -> 0 | F47: =IF($O47,'Summary 2'!C136,"") -> 0 | G47: =IF($O47,'Summary 2'!D136,"") -> 0 | H47: =IF($O47,'Summary 2'!E136,"") -> 0 | I47: =IF($O47,'Summary 2'!F136,"") -> 0 | J47: =IF($O47,'Summary 2'!G136,"") -> 0 | K47: =IF($O47,'Summary 2'!H136,"") -> 0 | L47: =IF($O47,'Summary 2'!I136,"") -> 0 | M47: =IF($O47,'Summary 2'!J136,"") -> 0 | N47: =IF($O47,'Summary 2'!K136,"") -> 0 | O47: TRUE
B48: Pulse Ups | E48: =IF($O48,'Summary 2'!B137,"") -> 0 | F48: =IF($O48,'Summary 2'!C137,"") -> 0 | G48: =IF($O48,'Summary 2'!D137,"") -> 0 | H48: =IF($O48,'Summary 2'!E137,"") -> 0 | I48: =IF($O48,'Summary 2'!F137,"") -> 0 | J48: =IF($O48,'Summary 2'!G137,"") -> 0 | K48: =IF($O48,'Summary 2'!H137,"") -> 0 | L48: =IF($O48,'Summary 2'!I137,"") -> 0 | M48: =IF($O48,'Summary 2'!J137,"") -> 0 | N48: =IF($O48,'Summary 2'!K137,"") -> 0 | O48: TRUE
B49: V-Up/Roll-Up Combos | E49: =IF($O49,'Summary 2'!B138,"") -> 0 | F49: =IF($O49,'Summary 2'!C138,"") -> 0 | G49: =IF($O49,'Summary 2'!D138,"") -> 0 | H49: =IF($O49,'Summary 2'!E138,"") -> 0 | I49: =IF($O49,'Summary 2'!F138,"") -> 0 | J49: =IF($O49,'Summary 2'!G138,"") -> 0 | K49: =IF($O49,'Summary 2'!H138,"") -> 0 | L49: =IF($O49,'Summary 2'!I138,"") -> 0 | M49: =IF($O49,'Summary 2'!J138,"") -> 0 | N49: =IF($O49,'Summary 2'!K138,"") -> 0 | O49: TRUE
B50: Oblique V-Ups | E50: =IF($O50,'Summary 2'!B139,"") -> 0 | F50: =IF($O50,'Summary 2'!C139,"") -> 0 | G50: =IF($O50,'Summary 2'!D139,"") -> 0 | H50: =IF($O50,'Summary 2'!E139,"") -> 0 | I50: =IF($O50,'Summary 2'!F139,"") -> 0 | J50: =IF($O50,'Summary 2'!G139,"") -> 0 | K50: =IF($O50,'Summary 2'!H139,"") -> 0 | L50: =IF($O50,'Summary 2'!I139,"") -> 0 | M50: =IF($O50,'Summary 2'!J139,"") -> 0 | N50: =IF($O50,'Summary 2'!K139,"") -> 0 | O50: TRUE
B51: Leg Climbs | E51: =IF($O51,'Summary 2'!B140,"") -> 0 | F51: =IF($O51,'Summary 2'!C140,"") -> 0 | G51: =IF($O51,'Summary 2'!D140,"") -> 0 | H51: =IF($O51,'Summary 2'!E140,"") -> 0 | I51: =IF($O51,'Summary 2'!F140,"") -> 0 | J51: =IF($O51,'Summary 2'!G140,"") -> 0 | K51: =IF($O51,'Summary 2'!H140,"") -> 0 | L51: =IF($O51,'Summary 2'!I140,"") -> 0 | M51: =IF($O51,'Summary 2'!J140,"") -> 0 | N51: =IF($O51,'Summary 2'!K140,"") -> 0 | O51: TRUE
B52: Mason Twists | E52: =IF($O52,'Summary 2'!B141,"") -> 0 | F52: =IF($O52,'Summary 2'!C141,"") -> 0 | G52: =IF($O52,'Summary 2'!D141,"") -> 0 | H52: =IF($O52,'Summary 2'!E141,"") -> 0 | I52: =IF($O52,'Summary 2'!F141,"") -> 0 | J52: =IF($O52,'Summary 2'!G141,"") -> 0 | K52: =IF($O52,'Summary 2'!H141,"") -> 0 | L52: =IF($O52,'Summary 2'!I141,"") -> 0 | M52: =IF($O52,'Summary 2'!J141,"") -> 0 | N52: =IF($O52,'Summary 2'!K141,"") -> 0 | O52: TRUE
A53: ALL | B53: Weekly Ab Ripper X Avgs | E53: ='Summary 2'!B142 -> 0 | F53: ='Summary 2'!C142 -> 0 | G53: ='Summary 2'!D142 -> 0 | H53: ='Summary 2'!E142 -> 0 | I53: ='Summary 2'!F142 -> 0 | J53: ='Summary 2'!G142 -> 0 | K53: ='Summary 2'!H142 -> 0 | L53: ='Summary 2'!I142 -> 0 | M53: ='Summary 2'!J142 -> 0 | N53: ='Summary 2'!K142 -> 0

Sheet Ab Ripper Weekly Reps Chart
A1: Main Menu | C1: Master Schedule | E1: Worksheets | G1: Charts | I1: Ab Ripper X Worksheet | L1: Worksheet Summaries Page

Sheet Weekly CheckUp (1)
A1: Main Menu | B1: Master Schedule | D1: Main Set Up Page | E1: Fit Test | F1: Journals | G1: Charts
A2: Name: | B2: ='Main Sheet'!C4 -> 0
A3: Sex: | B3: ='Main Sheet'!C7 -> Male | C3: Week 1 Check Up
A4: Age: | B4: ='Main Sheet'!C8 -> 0
A5: Height: | B5: ='Main Sheet'!C9 -> 0 | C5: inches | D5: =B5*2.54 -> 0 | E5: cm
A7: Starting Statistics (Day 1) | B7: WEIGHT LOSS, BODY FAT PROGRESS CALCULATOR | H7: Week 1 CheckUp
A8: Weight | B8: ='Main Sheet'!C10 -> 0 | C8: lbs | D8: =B8/2.2 -> 0 | E8: kg | H8: Week 2 CheckUp
A9: Waist | B9: ='Main Sheet'!C11 -> 0 | C9: inches | D9: =B9*2.54 -> 0 | E9: cm | H9: Week 3 CheckUp
A10: Hips | B10: ='Main Sheet'!C12 -> 0 | C10: inches | D10: =B10*2.54 -> 0 | E10: cm | H10: Week 4 CheckUp
A11: Neck | B11: ='Main Sheet'!C13 -> 0 | C11: inches | D11: =B11*2.54 -> 0 | E11: cm | H11: Week 5 CheckUp
A12: Body Fat % | B12: ='Main Sheet'!C15 -> 0 | C12: % | D12: Body Fat Calculators | H12: Week 6 CheckUp
A13: Fat Mass | B13: =IF(B8=0,0,(B8*B12)/100) -> 0 | C13: lbs | D13: =B13/2.2 -> 0 | E13: kg | H13: Week 7 CheckUp
A14: Lean Body Mass | B14: =B8-B13 -> 0 | C14: lbs | D14: =B14/2.2 -> 0 | E14: kg | H14: Week 8 CheckUp
A15: Body Stats at Check Up | B15: ='Master Schedule'!$B$16 -> 2010-08-23 | D15: << = Check In Date | H15: Week 9 CheckUp
A16: Weight | C16: lbs | D16: =B16/2.2 -> 0 | E16: kg | F16: Progress Journal | H16: Week 10 CheckUp
A17: Waist | C17: inches | D17: =B17*2.54 -> 0 | E17: cm | H17: Week 11 CheckUp
A18: Hips | C18: inches | D18: =B18*2.54 -> 0 | E18: cm | H18: Week 12 CheckUp
A19: Neck | C19: inches | D19: =B19*2.54 -> 0 | E19: cm | H19: Week 13 CheckUp
A20: Get Body Fat % From: | B20: Auto Calc | C20: If Other: Enter Number Here =>>
A21: Body Fat % | B21: =IF(B20="Auto Calc",IF(B17="",0,IF(B3="Male",495/(1.0324-0.19077*(LOG(D17-D19))+0.15456*(LOG(D5)))-450,495/(1.29579-0.35004*(LOG(D17+D18-D19))+0.221*(LOG(D5)))-450)),G20) -> 0 | C21: % | D21: Body Fat Calculators
A22: Fat Mass | B22: =B16*B21/100 -> 0 | C22: lbs | D22: =B22/2.2 -> 0 | E22: kg | F22: Fit Test Page
A23: Lean Body Mass | B23: =B16-B22 -> 0 | C23: lbs | D23: =B23/2.2 -> 0 | E23: kg
A24: Results / Feedback | B24: From Day 1 to the Check-In Date Above
A25: Fat Lost / (Fat Gained) | B25: =B13-B22 -> 0 | C25: lbs | D25: (Negative value denotes fat gain)
A26: Lean Mass Gained / (Lost) | B26: =B23-B14 -> 0 | C26: lbs | D26: (Negative value denotes lean mass loss)
A27: Weight Lost / (Gained) | B27: =B8-B16 -> 0 | C27: lbs | D27: (Negative value denotes weight gain)

Sheet Weekly CheckUp (2)
A1: Main Menu | B1: Master Schedule | D1: Main Set Up Page | E1: Fit Test | F1: Journals | G1: Charts
A2: Name: | B2: ='Main Sheet'!C4 -> 0
A3: Sex: | B3: ='Main Sheet'!C7 -> Male | C3: Week 2 Check Up
A4: Age: | B4: ='Main Sheet'!C8 -> 0
A5: Height: | B5: ='Main Sheet'!C9 -> 0 | C5: inches | D5: =B5*2.54 -> 0 | E5: cm
A7: Starting Statistics (Day 1) | B7: WEIGHT LOSS, BODY FAT PROGRESS CALCULATOR | H7: Week 1 CheckUp
A8: Weight | B8: ='Main Sheet'!C10 -> 0 | C8: lbs | D8: =B8/2.2 -> 0 | E8: kg | H8: Week 2 CheckUp
A9: Waist | B9: ='Main Sheet'!C11 -> 0 | C9: inches | D9: =B9*2.54 -> 0 | E9: cm | H9: Week 3 CheckUp
A10: Hips | B10: ='Main Sheet'!C12 -> 0 | C10: inches | D10: =B10*2.54 -> 0 | E10: cm | H10: Week 4 CheckUp
A11: Neck | B11: ='Main Sheet'!C13 -> 0 | C11: inches | D11: =B11*2.54 -> 0 | E11: cm | H11: Week 5 CheckUp
A12: Body Fat % | B12: ='Main Sheet'!C15 -> 0 | C12: % | D12: Body Fat Calculators | H12: Week 6 CheckUp
A13: Fat Mass | B13: =IF(B8=0,0,(B8*B12)/100) -> 0 | C13: lbs | D13: =B13/2.2 -> 0 | E13: kg | H13: Week 7 CheckUp
A14: Lean Body Mass | B14: =B8-B13 -> 0 | C14: lbs | D14: =B14/2.2 -> 0 | E14: kg | H14: Week 8 CheckUp
A15: Body Stats at Check In | B15: ='Master Schedule'!$B$23 -> 2010-08-30 | D15: << = Check In Date | H15: Week 9 CheckUp
A16: Weight | C16: lbs | D16: =B16/2.2 -> 0 | E16: kg | F16: Progress Journal | H16: Week 10 CheckUp
A17: Waist | C17: inches | D17: =B17*2.54 -> 0 | E17: cm | H17: Week 11 CheckUp
A18: Hips | C18: inches | D18: =B18*2.54 -> 0 | E18: cm | H18: Week 12 CheckUp
A19: Neck | C19: inches | D19: =B19*2.54 -> 0 | E19: cm | H19: Week 13 CheckUp
A20: Get Body Fat % From: | B20: Auto Calc | C20: If Other: Enter Number Here =>>
A21: Body Fat % | B21: =IF(B20="Auto Calc",IF(B17="",0,IF(B3="Male",495/(1.0324-0.19077*(LOG(D17-D19))+0.15456*(LOG(D5)))-450,495/(1.29579-0.35004*(LOG(D17+D18-D19))+0.221*(LOG(D5)))-450)),G20) -> 0 | C21: % | D21: Body Fat Calculators
A22: Fat Mass | B22: =B16*B21/100 -> 0 | C22: lbs | D22: =B22/2.2 -> 0 | E22: kg
A23: Lean Body Mass | B23: =B16-B22 -> 0 | C23: lbs | D23: =B23/2.2 -> 0 | E23: kg
A24: Results / Feedback | B24: From Day 1 to the Check-In Date Above
A25: Fat Lost / (Fat Gained) | B25: =B13-B22 -> 0 | C25: lbs | D25: (Negative value denotes fat gain)
A26: Lean Mass Gained / (Lost) | B26: =B23-B14 -> 0 | C26: lbs | D26: (Negative value denotes lean mass loss)
A27: Weight Lost / (Gained) | B27: =B8-B16 -> 0 | C27: lbs | D27: (Negative value denotes weight gain)

Sheet Weekly CheckUp (3)
A1: Main Menu | B1: Master Schedule | D1: Main Set Up Page | E1: Fit Test | F1: Journals | G1: Charts
A2: Name: | B2: ='Main Sheet'!C4 -> 0
A3: Sex: | B3: ='Main Sheet'!C7 -> Male | C3: Week 3 Check Up
A4: Age: | B4: ='Main Sheet'!C8 -> 0
A5: Height: | B5: ='Main Sheet'!C9 -> 0 | C5: inches | D5: =B5*2.54 -> 0 | E5: cm
A7: Starting Statistics (Day 1) | B7: WEIGHT LOSS, BODY FAT PROGRESS CALCULATOR | H7: Week 1 CheckUp
A8: Weight | B8: ='Main Sheet'!C10 -> 0 | C8: lbs | D8: =B8/2.2 -> 0 | E8: kg | H8: Week 2 CheckUp
A9: Waist | B9: ='Main Sheet'!C11 -> 0 | C9: inches | D9: =B9*2.54 -> 0 | E9: cm | H9: Week 3 CheckUp
A10: Hips | B10: ='Main Sheet'!C12 -> 0 | C10: inches | D10: =B10*2.54 -> 0 | E10: cm | H10: Week 4 CheckUp
A11: Neck | B11: ='Main Sheet'!C13 -> 0 | C11: inches | D11: =B11*2.54 -> 0 | E11: cm | H11: Week 5 CheckUp
A12: Body Fat % | B12: ='Main Sheet'!C15 -> 0 | C12: % | D12: Body Fat Calculators | H12: Week 6 CheckUp
A13: Fat Mass | B13: =IF(B8=0,0,(B8*B12)/100) -> 0 | C13: lbs | D13: =B13/2.2 -> 0 | E13: kg | H13: Week 7 CheckUp
A14: Lean Body Mass | B14: =B8-B13 -> 0 | C14: lbs | D14: =B14/2.2 -> 0 | E14: kg | H14: Week 8 CheckUp
A15: Body Stats at Check In | B15: ='Master Schedule'!$B$30 -> 2010-09-06 | D15: << = Check In Date | H15: Week 9 CheckUp
A16: Weight | C16: lbs | D16: =B16/2.2 -> 0 | E16: kg | F16: Progress Journal | H16: Week 10 CheckUp
A17: Waist | C17: inches | D17: =B17*2.54 -> 0 | E17: cm | H17: Week 11 CheckUp
A18: Hips | C18: inches | D18: =B18*2.54 -> 0 | E18: cm | H18: Week 12 CheckUp
A19: Neck | C19: inches | D19: =B19*2.54 -> 0 | E19: cm | H19: Week 13 CheckUp
A20: Get Body Fat % From: | B20: Auto Calc | C20: If Other: Enter Number Here =>>
A21: Body Fat % | B21: =IF(B20="Auto Calc",IF(B17="",0,IF(B3="Male",495/(1.0324-0.19077*(LOG(D17-D19))+0.15456*(LOG(D5)))-450,495/(1.29579-0.35004*(LOG(D17+D18-D19))+0.221*(LOG(D5)))-450)),G20) -> 0 | C21: % | D21: Body Fat Calculators
A22: Fat Mass | B22: =B16*B21/100 -> 0 | C22: lbs | D22: =B22/2.2 -> 0 | E22: kg
A23: Lean Body Mass | B23: =B16-B22 -> 0 | C23: lbs | D23: =B23/2.2 -> 0 | E23: kg
A24: Results / Feedback | B24: From Day 1 to the Check-In Date Above
A25: Fat Lost / (Fat Gained) | B25: =B13-B22 -> 0 | C25: lbs | D25: (Negative value denotes fat gain)
A26: Lean Mass Gained / (Lost) | B26: =B23-B14 -> 0 | C26: lbs | D26: (Negative value denotes lean mass loss)
A27: Weight Lost / (Gained) | B27: =B8-B16 -> 0 | C27: lbs | D27: (Negative value denotes weight gain)

Sheet Weekly CheckUp (4)
A1: Main Menu | B1: Master Schedule | D1: Main Set Up Page | E1: Fit Test | F1: Journals | G1: Charts
A2: Name: | B2: ='Main Sheet'!C4 -> 0
A3: Sex: | B3: ='Main Sheet'!C7 -> Male | C3: Week 4 Check Up
A4: Age: | B4: ='Main Sheet'!C8 -> 0
A5: Height: | B5: ='Main Sheet'!C9 -> 0 | C5: inches | D5: =B5*2.54 -> 0 | E5: cm
A7: Starting Statistics (Day 1) | B7: WEIGHT LOSS, BODY FAT PROGRESS CALCULATOR | H7: Week 1 CheckUp
A8: Weight | B8: ='Main Sheet'!C10 -> 0 | C8: lbs | D8: =B8/2.2 -> 0 | E8: kg | H8: Week 2 CheckUp
A9: Waist | B9: ='Main Sheet'!C11 -> 0 | C9: inches | D9: =B9*2.54 -> 0 | E9: cm | H9: Week 3 CheckUp
A10: Hips | B10: ='Main Sheet'!C12 -> 0 | C10: inches | D10: =B10*2.54 -> 0 | E10: cm | H10: Week 4 CheckUp
A11: Neck | B11: ='Main Sheet'!C13 -> 0 | C11: inches | D11: =B11*2.54 -> 0 | E11: cm | H11: Week 5 CheckUp
A12: Body Fat % | B12: ='Main Sheet'!C15 -> 0 | C12: % | D12: Body Fat Calculators | H12: Week 6 CheckUp
A13: Fat Mass | B13: =IF(B8=0,0,(B8*B12)/100) -> 0 | C13: lbs | D13: =B13/2.2 -> 0 | E13: kg | H13: Week 7 CheckUp
A14: Lean Body Mass | B14: =B8-B13 -> 0 | C14: lbs | D14: =B14/2.2 -> 0 | E14: kg | H14: Week 8 CheckUp
A15: Body Stats at Check In | B15: ='Master Schedule'!$B$37 -> 2010-09-13 | D15: << = Check In Date | H15: Week 9 CheckUp
A16: Weight | C16: lbs | D16: =B16/2.2 -> 0 | E16: kg | F16: Progress Journal | H16: Week 10 CheckUp
A17: Waist | C17: inches | D17: =B17*2.54 -> 0 | E17: cm | H17: Week 11 CheckUp
A18: Hips | C18: inches | D18: =B18*2.54 -> 0 | E18: cm | H18: Week 12 CheckUp
A19: Neck | C19: inches | D19: =B19*2.54 -> 0 | E19: cm | H19: Week 13 CheckUp
A20: Get Body Fat % From: | B20: Auto Calc | C20: If Other: Enter Number Here =>>
A21: Body Fat % | B21: =IF(B20="Auto Calc",IF(B17="",0,IF(B3="Male",495/(1.0324-0.19077*(LOG(D17-D19))+0.15456*(LOG(D5)))-450,495/(1.29579-0.35004*(LOG(D17+D18-D19))+0.221*(LOG(D5)))-450)),G20) -> 0 | C21: % | D21: Body Fat Calculators
A22: Fat Mass | B22: =B16*B21/100 -> 0 | C22: lbs | D22: =B22/2.2 -> 0 | E22: kg | F22: Fit Test Page to Record Day 28
A23: Lean Body Mass | B23: =B16-B22 -> 0 | C23: lbs | D23: =B23/2.2 -> 0 | E23: kg
A24: Results / Feedback | B24: From Day 1 to the Check-In Date Above
A25: Fat Lost / (Fat Gained) | B25: =B13-B22 -> 0 | C25: lbs | D25: (Negative value denotes fat gain)
A26: Lean Mass Gained / (Lost) | B26: =B23-B14 -> 0 | C26: lbs | D26: (Negative value denotes lean mass loss)
A27: Weight Lost / (Gained) | B27: =B8-B16 -> 0 | C27: lbs | D27: (Negative value denotes weight gain)

Sheet Weekly CheckUp (5)
A1: Main Menu | B1: Master Schedule | D1: Main Set Up Page | E1: Fit Test | F1: Journals | G1: Charts
A2: Name: | B2: ='Main Sheet'!C4 -> 0
A3: Sex: | B3: ='Main Sheet'!C7 -> Male | C3: Week 5 Check Up
A4: Age: | B4: ='Main Sheet'!C8 -> 0
A5: Height: | B5: ='Main Sheet'!C9 -> 0 | C5: inches | D5: =B5*2.54 -> 0 | E5: cm
A7: Starting Statistics (Day 1) | B7: WEIGHT LOSS, BODY FAT PROGRESS CALCULATOR | H7: Week 1 CheckUp
A8: Weight | B8: ='Main Sheet'!C10 -> 0 | C8: lbs | D8: =B8/2.2 -> 0 | E8: kg | H8: Week 2 CheckUp
A9: Waist | B9: ='Main Sheet'!C11 -> 0 | C9: inches | D9: =B9*2.54 -> 0 | E9: cm | H9: Week 3 CheckUp
A10: Hips | B10: ='Main Sheet'!C12 -> 0 | C10: inches | D10: =B10*2.54 -> 0 | E10: cm | H10: Week 4 CheckUp
A11: Neck | B11: ='Main Sheet'!C13 -> 0 | C11: inches | D11: =B11*2.54 -> 0 | E11: cm | H11: Week 5 CheckUp
A12: Body Fat % | B12: ='Main Sheet'!C15 -> 0 | C12: % | D12: Body Fat Calculators | H12: Week 6 CheckUp
A13: Fat Mass | B13: =IF(B8=0,0,(B8*B12)/100) -> 0 | C13: lbs | D13: =B13/2.2 -> 0 | E13: kg | H13: Week 7 CheckUp
A14: Lean Body Mass | B14: =B8-B13 -> 0 | C14: lbs | D14: =B14/2.2 -> 0 | E14: kg | H14: Week 8 CheckUp
A15: Body Stats at Check In | B15: ='Master Schedule'!$B$44 -> 2010-09-20 | D15: << = Check In Date | H15: Week 9 CheckUp
A16: Weight | C16: lbs | D16: =B16/2.2 -> 0 | E16: kg | F16: Progress Journal | H16: Week 10 CheckUp
A17: Waist | C17: inches | D17: =B17*2.54 -> 0 | E17: cm | H17: Week 11 CheckUp
A18: Hips | C18: inches | D18: =B18*2.54 -> 0 | E18: cm | H18: Week 12 CheckUp
A19: Neck | C19: inches | D19: =B19*2.54 -> 0 | E19: cm | H19: Week 13 CheckUp
A20: Get Body Fat % From: | B20: Auto Calc | C20: If Other: Enter Number Here =>>
A21: Body Fat % | B21: =IF(B20="Auto Calc",IF(B17="",0,IF(B3="Male",495/(1.0324-0.19077*(LOG(D17-D19))+0.15456*(LOG(D5)))-450,495/(1.29579-0.35004*(LOG(D17+D18-D19))+0.221*(LOG(D5)))-450)),G20) -> 0 | C21: % | D21: Body Fat Calculators
A22: Fat Mass | B22: =B16*B21/100 -> 0 | C22: lbs | D22: =B22/2.2 -> 0 | E22: kg
A23: Lean Body Mass | B23: =B16-B22 -> 0 | C23: lbs | D23: =B23/2.2 -> 0 | E23: kg
A24: Results / Feedback | B24: From Day 1 to the Check-In Date Above
A25: Fat Lost / (Fat Gained) | B25: =B13-B22 -> 0 | C25: lbs | D25: (Negative value denotes fat gain)
A26: Lean Mass Gained / (Lost) | B26: =B23-B14 -> 0 | C26: lbs | D26: (Negative value denotes lean mass loss)
A27: Weight Lost / (Gained) | B27: =B8-B16 -> 0 | C27: lbs | D27: (Negative value denotes weight gain)

Sheet Weekly CheckUp (6)
A1: Main Menu | B1: Master Schedule | D1: Main Set Up Page | E1: Fit Test | F1: Journals | G1: Charts
A2: Name: | B2: ='Main Sheet'!C4 -> 0
A3: Sex: | B3: ='Main Sheet'!C7 -> Male | C3: Week 6 Check Up
A4: Age: | B4: ='Main Sheet'!C8 -> 0
A5: Height: | B5: ='Main Sheet'!C9 -> 0 | C5: inches | D5: =B5*2.54 -> 0 | E5: cm
A7: Starting Statistics (Day 1) | B7: WEIGHT LOSS, BODY FAT PROGRESS CALCULATOR | H7: Week 1 CheckUp
A8: Weight | B8: ='Main Sheet'!C10 -> 0 | C8: lbs | D8: =B8/2.2 -> 0 | E8: kg | H8: Week 2 CheckUp
A9: Waist | B9: ='Main Sheet'!C11 -> 0 | C9: inches | D9: =B9*2.54 -> 0 | E9: cm | H9: Week 3 CheckUp
A10: Hips | B10: ='Main Sheet'!C12 -> 0 | C10: inches | D10: =B10*2.54 -> 0 | E10: cm | H10: Week 4 CheckUp
A11: Neck | B11: ='Main Sheet'!C13 -> 0 | C11: inches | D11: =B11*2.54 -> 0 | E11: cm | H11: Week 5 CheckUp
A12: Body Fat % | B12: ='Main Sheet'!C15 -> 0 | C12: % | D12: Body Fat Calculators | H12: Week 6 CheckUp
A13: Fat Mass | B13: =IF(B8=0,0,(B8*B12)/100) -> 0 | C13: lbs | D13: =B13/2.2 -> 0 | E13: kg | H13: Week 7 CheckUp
A14: Lean Body Mass | B14: =B8-B13 -> 0 | C14: lbs | D14: =B14/2.2 -> 0 | E14: kg | H14: Week 8 CheckUp
A15: Body Stats at Check In | B15: ='Master Schedule'!$B$51 -> 2010-09-27 | D15: << = Check In Date | H15: Week 9 CheckUp
A16: Weight | C16: lbs | D16: =B16/2.2 -> 0 | E16: kg | F16: Progress Journal | H16: Week 10 CheckUp
A17: Waist | C17: inches | D17: =B17*2.54 -> 0 | E17: cm | H17: Week 11 CheckUp
A18: Hips | C18: inches | D18: =B18*2.54 -> 0 | E18: cm | H18: Week 12 CheckUp
A19: Neck | C19: inches | D19: =B19*2.54 -> 0 | E19: cm | H19: Week 13 CheckUp
A20: Get Body Fat % From: | B20: Auto Calc | C20: If Other: Enter Number Here =>>
A21: Body Fat % | B21: =IF(B20="Auto Calc",IF(B17="",0,IF(B3="Male",495/(1.0324-0.19077*(LOG(D17-D19))+0.15456*(LOG(D5)))-450,495/(1.29579-0.35004*(LOG(D17+D18-D19))+0.221*(LOG(D5)))-450)),G20) -> 0 | C21: % | D21: Body Fat Calculators
A22: Fat Mass | B22: =B16*B21/100 -> 0 | C22: lbs | D22: =B22/2.2 -> 0 | E22: kg
A23: Lean Body Mass | B23: =B16-B22 -> 0 | C23: lbs | D23: =B23/2.2 -> 0 | E23: kg
A24: Results / Feedback | B24: From Day 1 to the Check-In Date Above
A25: Fat Lost / (Fat Gained) | B25: =B13-B22 -> 0 | C25: lbs | D25: (Negative value denotes fat gain)
A26: Lean Mass Gained / (Lost) | B26: =B23-B14 -> 0 | C26: lbs | D26: (Negative value denotes lean mass loss)
A27: Weight Lost / (Gained) | B27: =B8-B16 -> 0 | C27: lbs | D27: (Negative value denotes weight gain)

Sheet Weekly CheckUp (7)
A1: Main Menu | B1: Master Schedule | D1: Main Set Up Page | E1: Fit Test | F1: Journals | G1: Charts
A2: Name: | B2: ='Main Sheet'!C4 -> 0
A3: Sex: | B3: ='Main Sheet'!C7 -> Male | C3: Week 7 Check Up
A4: Age: | B4: ='Main Sheet'!C8 -> 0
A5: Height: | B5: ='Main Sheet'!C9 -> 0 | C5: inches | D5: =B5*2.54 -> 0 | E5: cm
A7: Starting Statistics (Day 1) | B7: WEIGHT LOSS, BODY FAT PROGRESS CALCULATOR | H7: Week 1 CheckUp
A8: Weight | B8: ='Main Sheet'!C10 -> 0 | C8: lbs | D8: =B8/2.2 -> 0 | E8: kg | H8: Week 2 CheckUp
A9: Waist | B9: ='Main Sheet'!C11 -> 0 | C9: inches | D9: =B9*2.54 -> 0 | E9: cm | H9: Week 3 CheckUp
A10: Hips | B10: ='Main Sheet'!C12 -> 0 | C10: inches | D10: =B10*2.54 -> 0 | E10: cm | H10: Week 4 CheckUp
A11: Neck | B11: ='Main Sheet'!C13 -> 0 | C11: inches | D11: =B11*2.54 -> 0 | E11: cm | H11: Week 5 CheckUp
A12: Body Fat % | B12: ='Main Sheet'!C15 -> 0 | C12: % | D12: Body Fat Calculators | H12: Week 6 CheckUp
A13: Fat Mass | B13: =IF(B8=0,0,(B8*B12)/100) -> 0 | C13: lbs | D13: =B13/2.2 -> 0 | E13: kg | H13: Week 7 CheckUp
A14: Lean Body Mass | B14: =B8-B13 -> 0 | C14: lbs | D14: =B14/2.2 -> 0 | E14: kg | H14: Week 8 CheckUp
A15: Body Stats at Check In | B15: ='Master Schedule'!$B$58 -> 2010-10-04 | D15: << = Check In Date | H15: Week 9 CheckUp
A16: Weight | C16: lbs | D16: =B16/2.2 -> 0 | E16: kg | F16: Progress Journal | H16: Week 10 CheckUp
A17: Waist | C17: inches | D17: =B17*2.54 -> 0 | E17: cm | H17: Week 11 CheckUp
A18: Hips | C18: inches | D18: =B18*2.54 -> 0 | E18: cm | H18: Week 12 CheckUp
A19: Neck | C19: inches | D19: =B19*2.54 -> 0 | E19: cm | H19: Week 13 CheckUp
A20: Get Body Fat % From: | B20: Auto Calc | C20: If Other: Enter Number Here =>>
A21: Body Fat % | B21: =IF(B20="Auto Calc",IF(B17="",0,IF(B3="Male",495/(1.0324-0.19077*(LOG(D17-D19))+0.15456*(LOG(D5)))-450,495/(1.29579-0.35004*(LOG(D17+D18-D19))+0.221*(LOG(D5)))-450)),G20) -> 0 | C21: % | D21: Body Fat Calculators
A22: Fat Mass | B22: =B16*B21/100 -> 0 | C22: lbs | D22: =B22/2.2 -> 0 | E22: kg
A23: Lean Body Mass | B23: =B16-B22 -> 0 | C23: lbs | D23: =B23/2.2 -> 0 | E23: kg
A24: Results / Feedback | B24: From Day 1 to the Check-In Date Above
A25: Fat Lost / (Fat Gained) | B25: =B13-B22 -> 0 | C25: lbs | D25: (Negative value denotes fat gain)
A26: Lean Mass Gained / (Lost) | B26: =B23-B14 -> 0 | C26: lbs | D26: (Negative value denotes lean mass loss)
A27: Weight Lost / (Gained) | B27: =B8-B16 -> 0 | C27: lbs | D27: (Negative value denotes weight gain)

Sheet Weekly CheckUp (8)
A1: Main Menu | B1: Master Schedule | D1: Main Set Up Page | E1: Fit Test | F1: Journals | G1: Charts
A2: Name: | B2: ='Main Sheet'!C4 -> 0
A3: Sex: | B3: ='Main Sheet'!C7 -> Male | C3: Week 8 Check Up
A4: Age: | B4: ='Main Sheet'!C8 -> 0
A5: Height: | B5: ='Main Sheet'!C9 -> 0 | C5: inches | D5: =B5*2.54 -> 0 | E5: cm
A7: Starting Statistics (Day 1) | B7: WEIGHT LOSS, BODY FAT PROGRESS CALCULATOR | H7: Week 1 CheckUp
A8: Weight | B8: ='Main Sheet'!C10 -> 0 | C8: lbs | D8: =B8/2.2 -> 0 | E8: kg | H8: Week 2 CheckUp
A9: Waist | B9: ='Main Sheet'!C11 -> 0 | C9: inches | D9: =B9*2.54 -> 0 | E9: cm | H9: Week 3 CheckUp
A10: Hips | B10: ='Main Sheet'!C12 -> 0 | C10: inches | D10: =B10*2.54 -> 0 | E10: cm | H10: Week 4 CheckUp
A11: Neck | B11: ='Main Sheet'!C13 -> 0 | C11: inches | D11: =B11*2.54 -> 0 | E11: cm | H11: Week 5 CheckUp
A12: Body Fat % | B12: ='Main Sheet'!C15 -> 0 | C12: % | D12: Body Fat Calculators | H12: Week 6 CheckUp
A13: Fat Mass | B13: =IF(B8=0,0,(B8*B12)/100) -> 0 | C13: lbs | D13: =B13/2.2 -> 0 | E13: kg | H13: Week 7 CheckUp
A14: Lean Body Mass | B14: =B8-B13 -> 0 | C14: lbs | D14: =B14/2.2 -> 0 | E14: kg | H14: Week 8 CheckUp
A15: Body Stats at Check In | B15: ='Master Schedule'!$B$65 -> 2010-10-11 | D15: << = Check In Date | H15: Week 9 CheckUp
A16: Weight | C16: lbs | D16: =B16/2.2 -> 0 | E16: kg | F16: Progress Journal | H16: Week 10 CheckUp
A17: Waist | C17: inches | D17: =B17*2.54 -> 0 | E17: cm | H17: Week 11 CheckUp
A18: Hips | C18: inches | D18: =B18*2.54 -> 0 | E18: cm | H18: Week 12 CheckUp
A19: Neck | C19: inches | D19: =B19*2.54 -> 0 | E19: cm | H19: Week 13 CheckUp
A20: Get Body Fat % From: | B20: Auto Calc | C20: If Other: Enter Number Here =>>
A21: Body Fat % | B21: =IF(B20="Auto Calc",IF(B17="",0,IF(B3="Male",495/(1.0324-0.19077*(LOG(D17-D19))+0.15456*(LOG(D5)))-450,495/(1.29579-0.35004*(LOG(D17+D18-D19))+0.221*(LOG(D5)))-450)),G20) -> 0 | C21: % | D21: Body Fat Calculators
A22: Fat Mass | B22: =B16*B21/100 -> 0 | C22: lbs | D22: =B22/2.2 -> 0 | E22: kg | F22: Fit Test Page to Record Day 56
A23: Lean Body Mass | B23: =B16-B22 -> 0 | C23: lbs | D23: =B23/2.2 -> 0 | E23: kg
A24: Results / Feedback | B24: From Day 1 to the Check-In Date Above
A25: Fat Lost / (Fat Gained) | B25: =B13-B22 -> 0 | C25: lbs | D25: (Negative value denotes fat gain)
A26: Lean Mass Gained / (Lost) | B26: =B23-B14 -> 0 | C26: lbs | D26: (Negative value denotes lean mass loss)
A27: Weight Lost / (Gained) | B27: =B8-B16 -> 0 | C27: lbs | D27: (Negative value denotes weight gain)

Sheet Weekly CheckUp (9)
A1: Main Menu | B1: Master Schedule | D1: Main Set Up Page | E1: Fit Test | F1: Journals | G1: Charts
A2: Name: | B2: ='Main Sheet'!C4 -> 0
A3: Sex: | B3: ='Main Sheet'!C7 -> Male | C3: Week 9 Check Up
A4: Age: | B4: ='Main Sheet'!C8 -> 0
A5: Height: | B5: ='Main Sheet'!C9 -> 0 | C5: inches | D5: =B5*2.54 -> 0 | E5: cm
A7: Starting Statistics (Day 1) | B7: WEIGHT LOSS, BODY FAT PROGRESS CALCULATOR | H7: Week 1 CheckUp
A8: Weight | B8: ='Main Sheet'!C10 -> 0 | C8: lbs | D8: =B8/2.2 -> 0 | E8: kg | H8: Week 2 CheckUp
A9: Waist | B9: ='Main Sheet'!C11 -> 0 | C9: inches | D9: =B9*2.54 -> 0 | E9: cm | H9: Week 3 CheckUp
A10: Hips | B10: ='Main Sheet'!C12 -> 0 | C10: inches | D10: =B10*2.54 -> 0 | E10: cm | H10: Week 4 CheckUp
A11: Neck | B11: ='Main Sheet'!C13 -> 0 | C11: inches | D11: =B11*2.54 -> 0 | E11: cm | H11: Week 5 CheckUp
A12: Body Fat % | B12: ='Main Sheet'!C15 -> 0 | C12: % | D12: Body Fat Calculators | H12: Week 6 CheckUp
A13: Fat Mass | B13: =IF(B8=0,0,(B8*B12)/100) -> 0 | C13: lbs | D13: =B13/2.2 -> 0 | E13: kg | H13: Week 7 CheckUp
A14: Lean Body Mass | B14: =B8-B13 -> 0 | C14: lbs | D14: =B14/2.2 -> 0 | E14: kg | H14: Week 8 CheckUp
A15: Body Stats at Check In | B15: ='Master Schedule'!$B$72 -> 2010-10-18 | D15: << = Check In Date | H15: Week 9 CheckUp
A16: Weight | C16: lbs | D16: =B16/2.2 -> 0 | E16: kg | F16: Progress Journal | H16: Week 10 CheckUp
A17: Waist | C17: inches | D17: =B17*2.54 -> 0 | E17: cm | H17: Week 11 CheckUp
A18: Hips | C18: inches | D18: =B18*2.54 -> 0 | E18: cm | H18: Week 12 CheckUp
A19: Neck | C19: inches | D19: =B19*2.54 -> 0 | E19: cm | H19: Week 13 CheckUp
A20: Get Body Fat % From: | B20: Auto Calc | C20: If Other: Enter Number Here =>>
A21: Body Fat % | B21: =IF(B20="Auto Calc",IF(B17="",0,IF(B3="Male",495/(1.0324-0.19077*(LOG(D17-D19))+0.15456*(LOG(D5)))-450,495/(1.29579-0.35004*(LOG(D17+D18-D19))+0.221*(LOG(D5)))-450)),G20) -> 0 | C21: % | D21: Body Fat Calculators
A22: Fat Mass | B22: =B16*B21/100 -> 0 | C22: lbs | D22: =B22/2.2 -> 0 | E22: kg
A23: Lean Body Mass | B23: =B16-B22 -> 0 | C23: lbs | D23: =B23/2.2 -> 0 | E23: kg
A24: Results / Feedback | B24: From Day 1 to the Check-In Date Above
A25: Fat Lost / (Fat Gained) | B25: =B13-B22 -> 0 | C25: lbs | D25: (Negative value denotes fat gain)
A26: Lean Mass Gained / (Lost) | B26: =B23-B14 -> 0 | C26: lbs | D26: (Negative value denotes lean mass loss)
A27: Weight Lost / (Gained) | B27: =B8-B16 -> 0 | C27: lbs | D27: (Negative value denotes weight gain)

Sheet Weekly CheckUp (10)
A1: Main Menu | B1: Master Schedule | D1: Main Set Up Page | E1: Fit Test | F1: Journals | G1: Charts
A2: Name: | B2: ='Main Sheet'!C4 -> 0
A3: Sex: | B3: ='Main Sheet'!C7 -> Male | C3: Week 10 Check Up
A4: Age: | B4: ='Main Sheet'!C8 -> 0
A5: Height: | B5: ='Main Sheet'!C9 -> 0 | C5: inches | D5: =B5*2.54 -> 0 | E5: cm
A7: Starting Statistics (Day 1) | B7: WEIGHT LOSS, BODY FAT PROGRESS CALCULATOR | H7: Week 1 CheckUp
A8: Weight | B8: ='Main Sheet'!C10 -> 0 | C8: lbs | D8: =B8/2.2 -> 0 | E8: kg | H8: Week 2 CheckUp
A9: Waist | B9: ='Main Sheet'!C11 -> 0 | C9: inches | D9: =B9*2.54 -> 0 | E9: cm | H9: Week 3 CheckUp
A10: Hips | B10: ='Main Sheet'!C12 -> 0 | C10: inches | D10: =B10*2.54 -> 0 | E10: cm | H10: Week 4 CheckUp
A11: Neck | B11: ='Main Sheet'!C13 -> 0 | C11: inches | D11: =B11*2.54 -> 0 | E11: cm | H11: Week 5 CheckUp
A12: Body Fat % | B12: ='Main Sheet'!C15 -> 0 | C12: % | D12: Body Fat Calculators | H12: Week 6 CheckUp
A13: Fat Mass | B13: =IF(B8=0,0,(B8*B12)/100) -> 0 | C13: lbs | D13: =B13/2.2 -> 0 | E13: kg | H13: Week 7 CheckUp
A14: Lean Body Mass | B14: =B8-B13 -> 0 | C14: lbs | D14: =B14/2.2 -> 0 | E14: kg | H14: Week 8 CheckUp
A15: Body Stats at Check In | B15: ='Master Schedule'!$B$79 -> 2010-10-25 | D15: << = Check In Date | H15: Week 9 CheckUp
